Workbook

Sheet Carátula
C2: HOJA DE CÁLCULO DEL MODELO DE ESTIMACIÓN DEL CARGO DE INTERCONEXIÓN POR TERMINACIÓN DE LLAMADAS EN LA RED DE LA EMPRESA AMÉRICA MÓVIL PERÚ S.A.C.
C4: OSIPTEL - MAYO 2010
C17: Nota:
C19: Las celdas con datos modificados, ficticios o con resultados de datos ficticios están resaltadas con color amarillo

Sheet Resultado
B3: CARGO DE INTERCONEXIÓN (FICTICIO): | C3: =+UNITISATION!AG294 -> 0.0202274426

Sheet Summary
A1: 0.8
B2: =UNITISATION!AE284 -> Core | C2: =UNITISATION!AF284 -> 772861589.8 | D2: =UNITISATION!AG284 -> 0.434883271 | E2: =UNITISATION!AH284 -> 0
B3: =UNITISATION!AE285 -> Cellsite | C3: =UNITISATION!AF285 -> 52662374.49 | D3: =UNITISATION!AG285 -> 0.029632713 | E3: =UNITISATION!AH285 -> 0 | F3: =UNITISATION!AI285 -> 0
B4: =UNITISATION!AE286 -> Transmission | C4: =UNITISATION!AF286 -> 159066888.9 | D4: =UNITISATION!AG286 -> 0.08950571468 | E4: =UNITISATION!AH286 -> 0 | F4: =UNITISATION!AI286 -> 0
B5: =UNITISATION!AE287 -> IT | C5: =UNITISATION!AF287 -> 624312267.1 | D5: =UNITISATION!AG287 -> 0.35129571 | E5: =UNITISATION!AH287 -> 0 | F5: =UNITISATION!AI287 -> 0
B6: =UNITISATION!AE288 -> Tasas + Canon + Espectro | C6: =UNITISATION!AF288 -> 1659061263 | D6: =UNITISATION!AG288 -> 0.9335410096
B8: =UNITISATION!AE290 -> Overheads | C8: =UNITISATION!AF290 -> 0 | D8: =UNITISATION!AG290 -> 0 | E8: =UNITISATION!AH290 -> 0.1838858418 | F8: =UNITISATION!AI290 -> 0.1
B9: =UNITISATION!AE291 -> 0 | C9: =UNITISATION!AF291 -> 0 | D9: =UNITISATION!AG291 -> 0 | E9: =UNITISATION!AH291 -> 0 | F9: =UNITISATION!AI291 -> 0
B10: =UNITISATION!AE292 -> 0 | C10: =UNITISATION!AF292 -> 0 | D10: =UNITISATION!AG292 -> 1.838858418 | E10: =UNITISATION!AH292 -> 0.1838858418 | F10: =UNITISATION!AI292 -> 0
B11: =UNITISATION!AE293 -> 0 | C11: =UNITISATION!AF293 -> 0 | D11: =UNITISATION!AG293 -> 0 | E11: =UNITISATION!AH293 -> 0 | F11: =UNITISATION!AI293 -> 0
B12: =UNITISATION!AE294 -> Charge | C12: =UNITISATION!AF294 -> 0 | D12: =UNITISATION!AG294 -> 0.0202274426 | E12: =UNITISATION!AH294 -> 0 | F12: =UNITISATION!AI294 -> 0
D14: BTS | F14: Repetidoras
D15: Equipment | E15: Infraestructura | F15: Equipment | G15: Infraestructura | H15: Total Equipment | I15: Total Infraestructura | J15: Total
B16: ="BTS "&C16 -> BTS Amazonas | C16: Amazonas | D16: =VLOOKUP(C16,'Cellsite - BTS'!$Q$8:$S$31,2,FALSE)+$A$1*VLOOKUP(C16,'Cellsite - BTS'!$Q$38:$R$61,2,FALSE) -> 140430.8149 | E16: =VLOOKUP(C16,'Cellsite - BTS'!$Q$8:$S$31,3,FALSE) -> 128478.4242 | F16: =VLOOKUP(C16,'Cellsite - Repetitors and BDA'!$M$5:$O$28,2,FALSE) -> 0 | G16: =VLOOKUP(C16,'Cellsite - Repetitors and BDA'!$M$5:$O$28,3,FALSE) -> 0 | H16: =+D16+F16 -> 140430.8149 | I16: =+E16+G16 -> 128478.4242 | J16: =SUM(H16:I16) -> 268909.2391
B17: BTS Ancash | C17: Ancash | D17: =VLOOKUP(C17,'Cellsite - BTS'!$Q$8:$S$31,2,FALSE)+$A$1*VLOOKUP(C17,'Cellsite - BTS'!$Q$38:$R$61,2,FALSE) -> 70820.8074 | E17: =VLOOKUP(C17,'Cellsite - BTS'!$Q$8:$S$31,3,FALSE) -> 248888.1942 | F17: =VLOOKUP(C17,'Cellsite - Repetitors and BDA'!$M$5:$O$28,2,FALSE) -> 24150 | G17: =VLOOKUP(C17,'Cellsite - Repetitors and BDA'!$M$5:$O$28,3,FALSE) -> 9193.548387 | H17: =+D17+F17 -> 94970.8074 | I17: =+E17+G17 -> 258081.7426 | J17: =SUM(H17:I17) -> 353052.55
B18: BTS Apurimac | C18: Apurimac | D18: =VLOOKUP(C18,'Cellsite - BTS'!$Q$8:$S$31,2,FALSE)+$A$1*VLOOKUP(C18,'Cellsite - BTS'!$Q$38:$R$61,2,FALSE) -> 181596.6335 | E18: =VLOOKUP(C18,'Cellsite - BTS'!$Q$8:$S$31,3,FALSE) -> 128478.4242 | F18: =VLOOKUP(C18,'Cellsite - Repetitors and BDA'!$M$5:$O$28,2,FALSE) -> 0 | G18: =VLOOKUP(C18,'Cellsite - Repetitors and BDA'!$M$5:$O$28,3,FALSE) -> 0 | H18: 181596.6335 | I18: 128478.4242 | J18: 310075.0577
B19: BTS Arequipa | C19: Arequipa | D19: =VLOOKUP(C19,'Cellsite - BTS'!$Q$8:$S$31,2,FALSE)+$A$1*VLOOKUP(C19,'Cellsite - BTS'!$Q$38:$R$61,2,FALSE) -> 141641.6148 | E19: =VLOOKUP(C19,'Cellsite - BTS'!$Q$8:$S$31,3,FALSE) -> 226693.9239 | F19: =VLOOKUP(C19,'Cellsite - Repetitors and BDA'!$M$5:$O$28,2,FALSE) -> 40736.85 | G19: =VLOOKUP(C19,'Cellsite - Repetitors and BDA'!$M$5:$O$28,3,FALSE) -> 88383.37004 | H19: 182378.4648 | I19: 315077.294 | J19: 497455.7588
B20: BTS Ayacucho | C20: Ayacucho | D20: =VLOOKUP(C20,'Cellsite - BTS'!$Q$8:$S$31,2,FALSE)+$A$1*VLOOKUP(C20,'Cellsite - BTS'!$Q$38:$R$61,2,FALSE) -> 181596.6335 | E20: =VLOOKUP(C20,'Cellsite - BTS'!$Q$8:$S$31,3,FALSE) -> 74097.89972 | F20: =VLOOKUP(C20,'Cellsite - Repetitors and BDA'!$M$5:$O$28,2,FALSE) -> 40736.85 | G20: =VLOOKUP(C20,'Cellsite - Repetitors and BDA'!$M$5:$O$28,3,FALSE) -> 88383.37004 | H20: 222333.4835 | I20: 162481.2698 | J20: 384814.7532
B21: BTS Cajamarca | C21: Cajamarca | D21: =VLOOKUP(C21,'Cellsite - BTS'!$Q$8:$S$31,2,FALSE)+$A$1*VLOOKUP(C21,'Cellsite - BTS'!$Q$38:$R$61,2,FALSE) -> 96872.52173 | E21: =VLOOKUP(C21,'Cellsite - BTS'!$Q$8:$S$31,3,FALSE) -> 248888.1942 | F21: =VLOOKUP(C21,'Cellsite - Repetitors and BDA'!$M$5:$O$28,2,FALSE) -> 24150 | G21: =VLOOKUP(C21,'Cellsite - Repetitors and BDA'!$M$5:$O$28,3,FALSE) -> 9193.548387 | H21: 121022.5217 | I21: 258081.7426 | J21: 379104.2643
B22: BTS Cusco | C22: Cusco | D22: =VLOOKUP(C22,'Cellsite - BTS'!$Q$8:$S$31,2,FALSE)+$A$1*VLOOKUP(C22,'Cellsite - BTS'!$Q$38:$R$61,2,FALSE) -> 96872.52173 | E22: =VLOOKUP(C22,'Cellsite - BTS'!$Q$8:$S$31,3,FALSE) -> 248888.1942 | F22: =VLOOKUP(C22,'Cellsite - Repetitors and BDA'!$M$5:$O$28,2,FALSE) -> 24150 | G22: =VLOOKUP(C22,'Cellsite - Repetitors and BDA'!$M$5:$O$28,3,FALSE) -> 9193.548387 | H22: 121022.5217 | I22: 258081.7426 | J22: 379104.2643
B23: BTS Huancavelica | C23: Huancavelica | D23: =VLOOKUP(C23,'Cellsite - BTS'!$Q$8:$S$31,2,FALSE)+$A$1*VLOOKUP(C23,'Cellsite - BTS'!$Q$38:$R$61,2,FALSE) -> 96872.52173 | E23: =VLOOKUP(C23,'Cellsite - BTS'!$Q$8:$S$31,3,FALSE) -> 128478.4242 | F23: =VLOOKUP(C23,'Cellsite - Repetitors and BDA'!$M$5:$O$28,2,FALSE) -> 0 | G23: =VLOOKUP(C23,'Cellsite - Repetitors and BDA'!$M$5:$O$28,3,FALSE) -> 0 | H23: 96872.52173 | I23: 128478.4242 | J23: 225350.9459
B24: BTS Huanuco | C24: Huanuco | D24: =VLOOKUP(C24,'Cellsite - BTS'!$Q$8:$S$31,2,FALSE)+$A$1*VLOOKUP(C24,'Cellsite - BTS'!$Q$38:$R$61,2,FALSE) -> 96872.52173 | E24: =VLOOKUP(C24,'Cellsite - BTS'!$Q$8:$S$31,3,FALSE) -> 128478.4242 | F24: =VLOOKUP(C24,'Cellsite - Repetitors and BDA'!$M$5:$O$28,2,FALSE) -> 0 | G24: =VLOOKUP(C24,'Cellsite - Repetitors and BDA'!$M$5:$O$28,3,FALSE) -> 0 | H24: 96872.52173 | I24: 128478.4242 | J24: 225350.9459
B25: BTS Ica | C25: Ica | D25: =VLOOKUP(C25,'Cellsite - BTS'!$Q$8:$S$31,2,FALSE)+$A$1*VLOOKUP(C25,'Cellsite - BTS'!$Q$38:$R$61,2,FALSE) -> 70820.8074 | E25: =VLOOKUP(C25,'Cellsite - BTS'!$Q$8:$S$31,3,FALSE) -> 128478.4242 | F25: =VLOOKUP(C25,'Cellsite - Repetitors and BDA'!$M$5:$O$28,2,FALSE) -> 0 | G25: =VLOOKUP(C25,'Cellsite - Repetitors and BDA'!$M$5:$O$28,3,FALSE) -> 0 | H25: 70820.8074 | I25: 128478.4242 | J25: 199299.2316
B26: BTS Junin | C26: Junin | D26: =VLOOKUP(C26,'Cellsite - BTS'!$Q$8:$S$31,2,FALSE)+$A$1*VLOOKUP(C26,'Cellsite - BTS'!$Q$38:$R$61,2,FALSE) -> 70820.8074 | E26: =VLOOKUP(C26,'Cellsite - BTS'!$Q$8:$S$31,3,FALSE) -> 248888.1942 | F26: =VLOOKUP(C26,'Cellsite - Repetitors and BDA'!$M$5:$O$28,2,FALSE) -> 0 | G26: =VLOOKUP(C26,'Cellsite - Repetitors and BDA'!$M$5:$O$28,3,FALSE) -> 0 | H26: 70820.8074 | I26: 248888.1942 | J26: 319709.0016
B27: BTS La Libertad | C27: La Libertad | D27: =VLOOKUP(C27,'Cellsite - BTS'!$Q$8:$S$31,2,FALSE)+$A$1*VLOOKUP(C27,'Cellsite - BTS'!$Q$38:$R$61,2,FALSE) -> 141641.6148 | E27: =VLOOKUP(C27,'Cellsite - BTS'!$Q$8:$S$31,3,FALSE) -> 256956.8484 | F27: =VLOOKUP(C27,'Cellsite - Repetitors and BDA'!$M$5:$O$28,2,FALSE) -> 81473.7 | G27: =VLOOKUP(C27,'Cellsite - Repetitors and BDA'!$M$5:$O$28,3,FALSE) -> 176766.7401 | H27: 223115.3148 | I27: 433723.5885 | J27: 656838.9033
B28: BTS Lambayeque | C28: Lambayeque | D28: =VLOOKUP(C28,'Cellsite - BTS'!$Q$8:$S$31,2,FALSE)+$A$1*VLOOKUP(C28,'Cellsite - BTS'!$Q$38:$R$61,2,FALSE) -> 295975.734 | E28: =VLOOKUP(C28,'Cellsite - BTS'!$Q$8:$S$31,3,FALSE) -> 148195.7994 | F28: =VLOOKUP(C28,'Cellsite - Repetitors and BDA'!$M$5:$O$28,2,FALSE) -> 40736.85 | G28: =VLOOKUP(C28,'Cellsite - Repetitors and BDA'!$M$5:$O$28,3,FALSE) -> 88383.37004 | H28: 336712.584 | I28: 236579.1695 | J28: 573291.7535
B29: BTS Lima | C29: Lima | D29: =VLOOKUP(C29,'Cellsite - BTS'!$Q$8:$S$31,2,FALSE)+$A$1*VLOOKUP(C29,'Cellsite - BTS'!$Q$38:$R$61,2,FALSE) -> 420110.77 | E29: =VLOOKUP(C29,'Cellsite - BTS'!$Q$8:$S$31,3,FALSE) -> 483650.7723 | F29: =VLOOKUP(C29,'Cellsite - Repetitors and BDA'!$M$5:$O$28,2,FALSE) -> 81473.7 | G29: =VLOOKUP(C29,'Cellsite - Repetitors and BDA'!$M$5:$O$28,3,FALSE) -> 176766.7401 | H29: 501584.47 | I29: 660417.5124 | J29: 1162001.982
B30: BTS Loreto | C30: Loreto | D30: =VLOOKUP(C30,'Cellsite - BTS'!$Q$8:$S$31,2,FALSE)+$A$1*VLOOKUP(C30,'Cellsite - BTS'!$Q$38:$R$61,2,FALSE) -> 138038.3403 | E30: =VLOOKUP(C30,'Cellsite - BTS'!$Q$8:$S$31,3,FALSE) -> 74097.89972 | F30: =VLOOKUP(C30,'Cellsite - Repetitors and BDA'!$M$5:$O$28,2,FALSE) -> 8400 | G30: =VLOOKUP(C30,'Cellsite - Repetitors and BDA'!$M$5:$O$28,3,FALSE) -> 3354.83871 | H30: 146438.3403 | I30: 77452.73843 | J30: 223891.0787
B31: BTS Madre de Dios | C31: Madre de Dios | D31: =VLOOKUP(C31,'Cellsite - BTS'!$Q$8:$S$31,2,FALSE)+$A$1*VLOOKUP(C31,'Cellsite - BTS'!$Q$38:$R$61,2,FALSE) -> 181596.6335 | E31: =VLOOKUP(C31,'Cellsite - BTS'!$Q$8:$S$31,3,FALSE) -> 74097.89972 | F31: =VLOOKUP(C31,'Cellsite - Repetitors and BDA'!$M$5:$O$28,2,FALSE) -> 0 | G31: =VLOOKUP(C31,'Cellsite - Repetitors and BDA'!$M$5:$O$28,3,FALSE) -> 0 | H31: 181596.6335 | I31: 74097.89972 | J31: 255694.5332
B32: BTS Moquegua | C32: Moquegua | D32: =VLOOKUP(C32,'Cellsite - BTS'!$Q$8:$S$31,2,FALSE)+$A$1*VLOOKUP(C32,'Cellsite - BTS'!$Q$38:$R$61,2,FALSE) -> 222765.3107 | E32: =VLOOKUP(C32,'Cellsite - BTS'!$Q$8:$S$31,3,FALSE) -> 152596.0242 | F32: =VLOOKUP(C32,'Cellsite - Repetitors and BDA'!$M$5:$O$28,2,FALSE) -> 0 | G32: =VLOOKUP(C32,'Cellsite - Repetitors and BDA'!$M$5:$O$28,3,FALSE) -> 0 | H32: 222765.3107 | I32: 152596.0242 | J32: 375361.3349
B33: BTS Pasco | C33: Pasco | D33: =VLOOKUP(C33,'Cellsite - BTS'!$Q$8:$S$31,2,FALSE)+$A$1*VLOOKUP(C33,'Cellsite - BTS'!$Q$38:$R$61,2,FALSE) -> 70820.8074 | E33: =VLOOKUP(C33,'Cellsite - BTS'!$Q$8:$S$31,3,FALSE) -> 74097.89972 | F33: =VLOOKUP(C33,'Cellsite - Repetitors and BDA'!$M$5:$O$28,2,FALSE) -> 0 | G33: =VLOOKUP(C33,'Cellsite - Repetitors and BDA'!$M$5:$O$28,3,FALSE) -> 0 | H33: 70820.8074 | I33: 74097.89972 | J33: 144918.7071
B34: BTS Piura | C34: Piura | D34: =VLOOKUP(C34,'Cellsite - BTS'!$Q$8:$S$31,2,FALSE)+$A$1*VLOOKUP(C34,'Cellsite - BTS'!$Q$38:$R$61,2,FALSE) -> 70820.8074 | E34: =VLOOKUP(C34,'Cellsite - BTS'!$Q$8:$S$31,3,FALSE) -> 248888.1942 | F34: =VLOOKUP(C34,'Cellsite - Repetitors and BDA'!$M$5:$O$28,2,FALSE) -> 40736.85 | G34: =VLOOKUP(C34,'Cellsite - Repetitors and BDA'!$M$5:$O$28,3,FALSE) -> 88383.37004 | H34: 111557.6574 | I34: 337271.5642 | J34: 448829.2216
B35: BTS Puno | C35: Puno | D35: =VLOOKUP(C35,'Cellsite - BTS'!$Q$8:$S$31,2,FALSE)+$A$1*VLOOKUP(C35,'Cellsite - BTS'!$Q$38:$R$61,2,FALSE) -> 181596.6335 | E35: =VLOOKUP(C35,'Cellsite - BTS'!$Q$8:$S$31,3,FALSE) -> 128478.4242 | F35: =VLOOKUP(C35,'Cellsite - Repetitors and BDA'!$M$5:$O$28,2,FALSE) -> 0 | G35: =VLOOKUP(C35,'Cellsite - Repetitors and BDA'!$M$5:$O$28,3,FALSE) -> 0 | H35: 181596.6335 | I35: 128478.4242 | J35: 310075.0577
B36: BTS San Martin | C36: San Martin | D36: =VLOOKUP(C36,'Cellsite - BTS'!$Q$8:$S$31,2,FALSE)+$A$1*VLOOKUP(C36,'Cellsite - BTS'!$Q$38:$R$61,2,FALSE) -> 70820.8074 | E36: =VLOOKUP(C36,'Cellsite - BTS'!$Q$8:$S$31,3,FALSE) -> 128478.4242 | F36: =VLOOKUP(C36,'Cellsite - Repetitors and BDA'!$M$5:$O$28,2,FALSE) -> 0 | G36: =VLOOKUP(C36,'Cellsite - Repetitors and BDA'!$M$5:$O$28,3,FALSE) -> 0 | H36: 70820.8074 | I36: 128478.4242 | J36: 199299.2316
B37: BTS Tacna | C37: Tacna | D37: =VLOOKUP(C37,'Cellsite - BTS'!$Q$8:$S$31,2,FALSE)+$A$1*VLOOKUP(C37,'Cellsite - BTS'!$Q$38:$R$61,2,FALSE) -> 96872.52173 | E37: =VLOOKUP(C37,'Cellsite - BTS'!$Q$8:$S$31,3,FALSE) -> 128478.4242 | F37: =VLOOKUP(C37,'Cellsite - Repetitors and BDA'!$M$5:$O$28,2,FALSE) -> 0 | G37: =VLOOKUP(C37,'Cellsite - Repetitors and BDA'!$M$5:$O$28,3,FALSE) -> 0 | H37: 96872.52173 | I37: 128478.4242 | J37: 225350.9459
B38: BTS Tumbes | C38: Tumbes | D38: =VLOOKUP(C38,'Cellsite - BTS'!$Q$8:$S$31,2,FALSE)+$A$1*VLOOKUP(C38,'Cellsite - BTS'!$Q$38:$R$61,2,FALSE) -> 96872.52173 | E38: =VLOOKUP(C38,'Cellsite - BTS'!$Q$8:$S$31,3,FALSE) -> 248888.1942 | F38: =VLOOKUP(C38,'Cellsite - Repetitors and BDA'!$M$5:$O$28,2,FALSE) -> 32550 | G38: =VLOOKUP(C38,'Cellsite - Repetitors and BDA'!$M$5:$O$28,3,FALSE) -> 12548.3871 | H38: 129422.5217 | I38: 261436.5813 | J38: 390859.103
B39: BTS Ucayali | C39: Ucayali | D39: =VLOOKUP(C39,'Cellsite - BTS'!$Q$8:$S$31,2,FALSE)+$A$1*VLOOKUP(C39,'Cellsite - BTS'!$Q$38:$R$61,2,FALSE) -> 70820.8074 | E39: =VLOOKUP(C39,'Cellsite - BTS'!$Q$8:$S$31,3,FALSE) -> 248888.1942 | F39: =VLOOKUP(C39,'Cellsite - Repetitors and BDA'!$M$5:$O$28,2,FALSE) -> 40736.85 | G39: =VLOOKUP(C39,'Cellsite - Repetitors and BDA'!$M$5:$O$28,3,FALSE) -> 88383.37004 | H39: 111557.6574 | I39: 337271.5642 | J39: 448829.2216
A40: AVM | D40: =SUM(D16:D39) -> 3303971.516 | E40: =SUM(E16:E39) -> 4334529.72 | F40: =SUM(F16:F39) -> 480031.65 | G40: =SUM(G16:G39) -> 838934.2014 | H40: 3784003.166 | I40: 5173463.921 | J40: =SUM(J16:J39) -> 8957467.087
A41: 1 | D41: PDH MW | F41: SDH | H41: ABIS ATER | J41: ATM | K41: AVM | L41: Total | M41: PDH MW Alquilado | O41: Tx Rented | P41: AVM Opex | Q41: Total Rent
B42: ="Transmission "&C42 -> Transmission Amazonas | C42: Amazonas | D42: =VLOOKUP(C42,'TX - PDH MW'!$P$8:$R$31,3,FALSE) -> 25000 | E42: =VLOOKUP(C42,'TX - SDH'!$R$5:$S$28,2,FALSE) -> 171000 | F42: =IF(ISERROR(E42),0,E42) -> 171000 | G42: =VLOOKUP(C42,'TX - ABIS ATER'!$L$5:$M$28,2,FALSE) -> 0 | H42: =IF(ISERROR(G42),0,G42) -> 0 | I42: =VLOOKUP(C42,'Red ATM'!$K$5:$L$28,2,FALSE) -> 0 | J42: =IF(ISERROR(I42),0,I42) -> 0 | K42: =VLOOKUP(C42,'AVM Cost Detailled'!$I$8:$K$31,3,FALSE) -> 0 | L42: =(D42+F42+H42+J42+K42*$A$41) -> 196000 | M42: =VLOOKUP(C42,'TX - PDH MW'!$T$8:$V$31,3,FALSE) -> 0 | N42: =VLOOKUP(C42,'TX - Rented'!$M$5:$N$28,2,FALSE) -> 0 | O42: =IF(ISERROR(N42),0,N42) -> 0 | P42: =VLOOKUP(C42,'AVM Cost Detailled'!$I$8:$K$31,2,FALSE) -> 0 | Q42: =((M42+O42)*12+P42*$A$41) -> 0
B43: ="Transmission "&C43 -> Transmission Ancash | C43: Ancash | D43: =VLOOKUP(C43,'TX - PDH MW'!$P$8:$R$31,3,FALSE) -> 27000 | E43: =VLOOKUP(C43,'TX - SDH'!$R$5:$S$28,2,FALSE) -> 0 | F43: =IF(ISERROR(E43),0,E43) -> 0 | G43: =VLOOKUP(C43,'TX - ABIS ATER'!$L$5:$M$28,2,FALSE) -> 0 | H43: =IF(ISERROR(G43),0,G43) -> 0 | I43: =VLOOKUP(C43,'Red ATM'!$K$5:$L$28,2,FALSE) -> 104400 | J43: =IF(ISERROR(I43),0,I43) -> 104400 | K43: =VLOOKUP(C43,'AVM Cost Detailled'!$I$8:$K$31,3,FALSE) -> 25000 | L43: =(D43+F43+H43+J43+K43*$A$41) -> 156400 | M43: =VLOOKUP(C43,'TX - PDH MW'!$T$8:$V$31,3,FALSE) -> 0 | N43: =VLOOKUP(C43,'TX - Rented'!$M$5:$N$28,2,FALSE) -> 0 | O43: =IF(ISERROR(N43),0,N43) -> 0 | P43: =VLOOKUP(C43,'AVM Cost Detailled'!$I$8:$K$31,2,FALSE) -> 60000 | Q43: =((M43+O43)*12+P43*$A$41) -> 60000
B44: Transmission Apurimac | C44: Apurimac | D44: =VLOOKUP(C44,'TX - PDH MW'!$P$8:$R$31,3,FALSE) -> 27000 | E44: =VLOOKUP(C44,'TX - SDH'!$R$5:$S$28,2,FALSE) -> 0 | F44: 0 | G44: =VLOOKUP(C44,'TX - ABIS ATER'!$L$5:$M$28,2,FALSE) -> 0 | H44: 0 | I44: =VLOOKUP(C44,'Red ATM'!$K$5:$L$28,2,FALSE) -> 0 | J44: 0 | K44: =VLOOKUP(C44,'AVM Cost Detailled'!$I$8:$K$31,3,FALSE) -> 0 | L44: 27000 | M44: =VLOOKUP(C44,'TX - PDH MW'!$T$8:$V$31,3,FALSE) -> 0 | N44: =VLOOKUP(C44,'TX - Rented'!$M$5:$N$28,2,FALSE) -> 0 | O44: 0 | P44: =VLOOKUP(C44,'AVM Cost Detailled'!$I$8:$K$31,2,FALSE) -> 0 | Q44: 0
B45: Transmission Arequipa | C45: Arequipa | D45: =VLOOKUP(C45,'TX - PDH MW'!$P$8:$R$31,3,FALSE) -> 50000 | E45: =VLOOKUP(C45,'TX - SDH'!$R$5:$S$28,2,FALSE) -> 0 | F45: 0 | G45: =VLOOKUP(C45,'TX - ABIS ATER'!$L$5:$M$28,2,FALSE) -> 0 | H45: 0 | I45: =VLOOKUP(C45,'Red ATM'!$K$5:$L$28,2,FALSE) -> 116000 | J45: 116000 | K45: =VLOOKUP(C45,'AVM Cost Detailled'!$I$8:$K$31,3,FALSE) -> 50000 | L45: 216000 | M45: =VLOOKUP(C45,'TX - PDH MW'!$T$8:$V$31,3,FALSE) -> 0 | N45: =VLOOKUP(C45,'TX - Rented'!$M$5:$N$28,2,FALSE) -> 0 | O45: 0 | P45: =VLOOKUP(C45,'AVM Cost Detailled'!$I$8:$K$31,2,FALSE) -> 120000 | Q45: 120000
B46: Transmission Ayacucho | C46: Ayacucho | D46: =VLOOKUP(C46,'TX - PDH MW'!$P$8:$R$31,3,FALSE) -> 23000 | E46: =VLOOKUP(C46,'TX - SDH'!$R$5:$S$28,2,FALSE) -> 0 | F46: 0 | G46: =VLOOKUP(C46,'TX - ABIS ATER'!$L$5:$M$28,2,FALSE) -> 0 | H46: 0 | I46: =VLOOKUP(C46,'Red ATM'!$K$5:$L$28,2,FALSE) -> 0 | J46: 0 | K46: =VLOOKUP(C46,'AVM Cost Detailled'!$I$8:$K$31,3,FALSE) -> 25000 | L46: 48000 | M46: =VLOOKUP(C46,'TX - PDH MW'!$T$8:$V$31,3,FALSE) -> 0 | N46: =VLOOKUP(C46,'TX - Rented'!$M$5:$N$28,2,FALSE) -> 0 | O46: 0 | P46: =VLOOKUP(C46,'AVM Cost Detailled'!$I$8:$K$31,2,FALSE) -> 60000 | Q46: 60000
B47: Transmission Cajamarca | C47: Cajamarca | D47: =VLOOKUP(C47,'TX - PDH MW'!$P$8:$R$31,3,FALSE) -> 2500 | E47: =VLOOKUP(C47,'TX - SDH'!$R$5:$S$28,2,FALSE) -> 0 | F47: 0 | G47: =VLOOKUP(C47,'TX - ABIS ATER'!$L$5:$M$28,2,FALSE) -> 0 | H47: 0 | I47: =VLOOKUP(C47,'Red ATM'!$K$5:$L$28,2,FALSE) -> 104400 | J47: 104400 | K47: =VLOOKUP(C47,'AVM Cost Detailled'!$I$8:$K$31,3,FALSE) -> 0 | L47: 106900 | M47: =VLOOKUP(C47,'TX - PDH MW'!$T$8:$V$31,3,FALSE) -> 11089.25 | N47: =VLOOKUP(C47,'TX - Rented'!$M$5:$N$28,2,FALSE) -> 0 | O47: 0 | P47: =VLOOKUP(C47,'AVM Cost Detailled'!$I$8:$K$31,2,FALSE) -> 0 | Q47: 133071
B48: Transmission Cusco | C48: Cusco | D48: =VLOOKUP(C48,'TX - PDH MW'!$P$8:$R$31,3,FALSE) -> 23000 | E48: =VLOOKUP(C48,'TX - SDH'!$R$5:$S$28,2,FALSE) -> 0 | F48: 0 | G48: =VLOOKUP(C48,'TX - ABIS ATER'!$L$5:$M$28,2,FALSE) -> 0 | H48: 0 | I48: =VLOOKUP(C48,'Red ATM'!$K$5:$L$28,2,FALSE) -> 0 | J48: 0 | K48: =VLOOKUP(C48,'AVM Cost Detailled'!$I$8:$K$31,3,FALSE) -> 25000 | L48: 48000 | M48: =VLOOKUP(C48,'TX - PDH MW'!$T$8:$V$31,3,FALSE) -> 0 | N48: =VLOOKUP(C48,'TX - Rented'!$M$5:$N$28,2,FALSE) -> 0 | O48: 0 | P48: =VLOOKUP(C48,'AVM Cost Detailled'!$I$8:$K$31,2,FALSE) -> 60000 | Q48: 60000
B49: Transmission Huancavelica | C49: Huancavelica | D49: =VLOOKUP(C49,'TX - PDH MW'!$P$8:$R$31,3,FALSE) -> 35000 | E49: =VLOOKUP(C49,'TX - SDH'!$R$5:$S$28,2,FALSE) -> 0 | F49: 0 | G49: =VLOOKUP(C49,'TX - ABIS ATER'!$L$5:$M$28,2,FALSE) -> 0 | H49: 0 | I49: =VLOOKUP(C49,'Red ATM'!$K$5:$L$28,2,FALSE) -> 0 | J49: 0 | K49: =VLOOKUP(C49,'AVM Cost Detailled'!$I$8:$K$31,3,FALSE) -> 0 | L49: 35000 | M49: =VLOOKUP(C49,'TX - PDH MW'!$T$8:$V$31,3,FALSE) -> 22178.5 | N49: =VLOOKUP(C49,'TX - Rented'!$M$5:$N$28,2,FALSE) -> 0 | O49: 0 | P49: =VLOOKUP(C49,'AVM Cost Detailled'!$I$8:$K$31,2,FALSE) -> 0 | Q49: 266142
B50: Transmission Huanuco | C50: Huanuco | D50: =VLOOKUP(C50,'TX - PDH MW'!$P$8:$R$31,3,FALSE) -> 25000 | E50: =VLOOKUP(C50,'TX - SDH'!$R$5:$S$28,2,FALSE) -> 0 | F50: 0 | G50: =VLOOKUP(C50,'TX - ABIS ATER'!$L$5:$M$28,2,FALSE) -> 0 | H50: 0 | I50: =VLOOKUP(C50,'Red ATM'!$K$5:$L$28,2,FALSE) -> 0 | J50: 0 | K50: =VLOOKUP(C50,'AVM Cost Detailled'!$I$8:$K$31,3,FALSE) -> 25000 | L50: 50000 | M50: =VLOOKUP(C50,'TX - PDH MW'!$T$8:$V$31,3,FALSE) -> 0 | N50: =VLOOKUP(C50,'TX - Rented'!$M$5:$N$28,2,FALSE) -> 0 | O50: 0 | P50: =VLOOKUP(C50,'AVM Cost Detailled'!$I$8:$K$31,2,FALSE) -> 60000 | Q50: 60000
B51: Transmission Ica | C51: Ica | D51: =VLOOKUP(C51,'TX - PDH MW'!$P$8:$R$31,3,FALSE) -> 35000 | E51: =VLOOKUP(C51,'TX - SDH'!$R$5:$S$28,2,FALSE) -> 0 | F51: 0 | G51: =VLOOKUP(C51,'TX - ABIS ATER'!$L$5:$M$28,2,FALSE) -> 0 | H51: 0 | I51: =VLOOKUP(C51,'Red ATM'!$K$5:$L$28,2,FALSE) -> 0 | J51: 0 | K51: =VLOOKUP(C51,'AVM Cost Detailled'!$I$8:$K$31,3,FALSE) -> 25000 | L51: 60000 | M51: =VLOOKUP(C51,'TX - PDH MW'!$T$8:$V$31,3,FALSE) -> 0 | N51: =VLOOKUP(C51,'TX - Rented'!$M$5:$N$28,2,FALSE) -> 0 | O51: 0 | P51: =VLOOKUP(C51,'AVM Cost Detailled'!$I$8:$K$31,2,FALSE) -> 60000 | Q51: 60000
B52: Transmission Junin | C52: Junin | D52: =VLOOKUP(C52,'TX - PDH MW'!$P$8:$R$31,3,FALSE) -> 35000 | E52: =VLOOKUP(C52,'TX - SDH'!$R$5:$S$28,2,FALSE) -> 0 | F52: 0 | G52: =VLOOKUP(C52,'TX - ABIS ATER'!$L$5:$M$28,2,FALSE) -> 0 | H52: 0 | I52: =VLOOKUP(C52,'Red ATM'!$K$5:$L$28,2,FALSE) -> 104400 | J52: 104400 | K52: =VLOOKUP(C52,'AVM Cost Detailled'!$I$8:$K$31,3,FALSE) -> 50000 | L52: 189400 | M52: =VLOOKUP(C52,'TX - PDH MW'!$T$8:$V$31,3,FALSE) -> 0 | N52: =VLOOKUP(C52,'TX - Rented'!$M$5:$N$28,2,FALSE) -> 0 | O52: 0 | P52: =VLOOKUP(C52,'AVM Cost Detailled'!$I$8:$K$31,2,FALSE) -> 120000 | Q52: 120000
B53: Transmission La Libertad | C53: La Libertad | D53: =VLOOKUP(C53,'TX - PDH MW'!$P$8:$R$31,3,FALSE) -> 5000 | E53: =VLOOKUP(C53,'TX - SDH'!$R$5:$S$28,2,FALSE) -> 0 | F53: 0 | G53: =VLOOKUP(C53,'TX - ABIS ATER'!$L$5:$M$28,2,FALSE) -> 0 | H53: 0 | I53: =VLOOKUP(C53,'Red ATM'!$K$5:$L$28,2,FALSE) -> 116000 | J53: 116000 | K53: =VLOOKUP(C53,'AVM Cost Detailled'!$I$8:$K$31,3,FALSE) -> 50000 | L53: 171000 | M53: =VLOOKUP(C53,'TX - PDH MW'!$T$8:$V$31,3,FALSE) -> 11089.25 | N53: =VLOOKUP(C53,'TX - Rented'!$M$5:$N$28,2,FALSE) -> 0 | O53: 0 | P53: =VLOOKUP(C53,'AVM Cost Detailled'!$I$8:$K$31,2,FALSE) -> 120000 | Q53: 253071
B54: Transmission Lambayeque | C54: Lambayeque | D54: =VLOOKUP(C54,'TX - PDH MW'!$P$8:$R$31,3,FALSE) -> 46000 | E54: =VLOOKUP(C54,'TX - SDH'!$R$5:$S$28,2,FALSE) -> 1905200 | F54: 1905200 | G54: =VLOOKUP(C54,'TX - ABIS ATER'!$L$5:$M$28,2,FALSE) -> 20000 | H54: 20000 | I54: =VLOOKUP(C54,'Red ATM'!$K$5:$L$28,2,FALSE) -> 0 | J54: 0 | K54: =VLOOKUP(C54,'AVM Cost Detailled'!$I$8:$K$31,3,FALSE) -> 25000 | L54: 1996200 | M54: =VLOOKUP(C54,'TX - PDH MW'!$T$8:$V$31,3,FALSE) -> 0 | N54: =VLOOKUP(C54,'TX - Rented'!$M$5:$N$28,2,FALSE) -> 0 | O54: 0 | P54: =VLOOKUP(C54,'AVM Cost Detailled'!$I$8:$K$31,2,FALSE) -> 60000 | Q54: 60000
B55: Transmission Lima | C55: Lima | D55: =VLOOKUP(C55,'TX - PDH MW'!$P$8:$R$31,3,FALSE) -> 110000 | E55: =VLOOKUP(C55,'TX - SDH'!$R$5:$S$28,2,FALSE) -> 1446000 | F55: 1446000 | G55: =VLOOKUP(C55,'TX - ABIS ATER'!$L$5:$M$28,2,FALSE) -> 145000 | H55: 145000 | I55: =VLOOKUP(C55,'Red ATM'!$K$5:$L$28,2,FALSE) -> 116000 | J55: 116000 | K55: =VLOOKUP(C55,'AVM Cost Detailled'!$I$8:$K$31,3,FALSE) -> 425000 | L55: 2242000 | M55: =VLOOKUP(C55,'TX - PDH MW'!$T$8:$V$31,3,FALSE) -> 0 | N55: =VLOOKUP(C55,'TX - Rented'!$M$5:$N$28,2,FALSE) -> 5398.8 | O55: 5398.8 | P55: =VLOOKUP(C55,'AVM Cost Detailled'!$I$8:$K$31,2,FALSE) -> 1020000 | Q55: 1084785.6
B56: Transmission Loreto | C56: Loreto | D56: =VLOOKUP(C56,'TX - PDH MW'!$P$8:$R$31,3,FALSE) -> 35000 | E56: =VLOOKUP(C56,'TX - SDH'!$R$5:$S$28,2,FALSE) -> 0 | F56: 0 | G56: =VLOOKUP(C56,'TX - ABIS ATER'!$L$5:$M$28,2,FALSE) -> 0 | H56: 0 | I56: =VLOOKUP(C56,'Red ATM'!$K$5:$L$28,2,FALSE) -> 0 | J56: 0 | K56: =VLOOKUP(C56,'AVM Cost Detailled'!$I$8:$K$31,3,FALSE) -> 25000 | L56: 60000 | M56: =VLOOKUP(C56,'TX - PDH MW'!$T$8:$V$31,3,FALSE) -> 0 | N56: =VLOOKUP(C56,'TX - Rented'!$M$5:$N$28,2,FALSE) -> 0 | O56: 0 | P56: =VLOOKUP(C56,'AVM Cost Detailled'!$I$8:$K$31,2,FALSE) -> 60000 | Q56: 60000
B57: Transmission Madre de Dios | C57: Madre de Dios | D57: =VLOOKUP(C57,'TX - PDH MW'!$P$8:$R$31,3,FALSE) -> 23000 | E57: =VLOOKUP(C57,'TX - SDH'!$R$5:$S$28,2,FALSE) -> 170000 | F57: 170000 | G57: =VLOOKUP(C57,'TX - ABIS ATER'!$L$5:$M$28,2,FALSE) -> 20000 | H57: 20000 | I57: =VLOOKUP(C57,'Red ATM'!$K$5:$L$28,2,FALSE) -> 104400 | J57: 104400 | K57: =VLOOKUP(C57,'AVM Cost Detailled'!$I$8:$K$31,3,FALSE) -> -25000 | L57: 292400 | M57: =VLOOKUP(C57,'TX - PDH MW'!$T$8:$V$31,3,FALSE) -> 0 | N57: =VLOOKUP(C57,'TX - Rented'!$M$5:$N$28,2,FALSE) -> 0 | O57: 0 | P57: =VLOOKUP(C57,'AVM Cost Detailled'!$I$8:$K$31,2,FALSE) -> -60000 | Q57: -60000
B58: Transmission Moquegua | C58: Moquegua | D58: =VLOOKUP(C58,'TX - PDH MW'!$P$8:$R$31,3,FALSE) -> 23000 | E58: =VLOOKUP(C58,'TX - SDH'!$R$5:$S$28,2,FALSE) -> 0 | F58: 0 | G58: =VLOOKUP(C58,'TX - ABIS ATER'!$L$5:$M$28,2,FALSE) -> 0 | H58: 0 | I58: =VLOOKUP(C58,'Red ATM'!$K$5:$L$28,2,FALSE) -> 0 | J58: 0 | K58: =VLOOKUP(C58,'AVM Cost Detailled'!$I$8:$K$31,3,FALSE) -> 25000 | L58: 48000 | M58: =VLOOKUP(C58,'TX - PDH MW'!$T$8:$V$31,3,FALSE) -> 0 | N58: =VLOOKUP(C58,'TX - Rented'!$M$5:$N$28,2,FALSE) -> 0 | O58: 0 | P58: =VLOOKUP(C58,'AVM Cost Detailled'!$I$8:$K$31,2,FALSE) -> 60000 | Q58: 60000
B59: Transmission Pasco | C59: Pasco | D59: =VLOOKUP(C59,'TX - PDH MW'!$P$8:$R$31,3,FALSE) -> 25000 | E59: =VLOOKUP(C59,'TX - SDH'!$R$5:$S$28,2,FALSE) -> 0 | F59: 0 | G59: =VLOOKUP(C59,'TX - ABIS ATER'!$L$5:$M$28,2,FALSE) -> 0 | H59: 0 | I59: =VLOOKUP(C59,'Red ATM'!$K$5:$L$28,2,FALSE) -> 0 | J59: 0 | K59: =VLOOKUP(C59,'AVM Cost Detailled'!$I$8:$K$31,3,FALSE) -> 0 | L59: 25000 | M59: =VLOOKUP(C59,'TX - PDH MW'!$T$8:$V$31,3,FALSE) -> 0 | N59: =VLOOKUP(C59,'TX - Rented'!$M$5:$N$28,2,FALSE) -> 0 | O59: 0 | P59: =VLOOKUP(C59,'AVM Cost Detailled'!$I$8:$K$31,2,FALSE) -> 0 | Q59: 0
B60: Transmission Piura | C60: Piura | D60: =VLOOKUP(C60,'TX - PDH MW'!$P$8:$R$31,3,FALSE) -> 37000 | E60: =VLOOKUP(C60,'TX - SDH'!$R$5:$S$28,2,FALSE) -> 0 | F60: 0 | G60: =VLOOKUP(C60,'TX - ABIS ATER'!$L$5:$M$28,2,FALSE) -> 0 | H60: 0 | I60: =VLOOKUP(C60,'Red ATM'!$K$5:$L$28,2,FALSE) -> 0 | J60: 0 | K60: =VLOOKUP(C60,'AVM Cost Detailled'!$I$8:$K$31,3,FALSE) -> 0 | L60: 37000 | M60: =VLOOKUP(C60,'TX - PDH MW'!$T$8:$V$31,3,FALSE) -> 0 | N60: =VLOOKUP(C60,'TX - Rented'!$M$5:$N$28,2,FALSE) -> 20245.5 | O60: 20245.5 | P60: =VLOOKUP(C60,'AVM Cost Detailled'!$I$8:$K$31,2,FALSE) -> 0 | Q60: 242946
B61: Transmission Puno | C61: Puno | D61: =VLOOKUP(C61,'TX - PDH MW'!$P$8:$R$31,3,FALSE) -> 25000 | E61: =VLOOKUP(C61,'TX - SDH'!$R$5:$S$28,2,FALSE) -> 0 | F61: 0 | G61: =VLOOKUP(C61,'TX - ABIS ATER'!$L$5:$M$28,2,FALSE) -> 0 | H61: 0 | I61: =VLOOKUP(C61,'Red ATM'!$K$5:$L$28,2,FALSE) -> 0 | J61: 0 | K61: =VLOOKUP(C61,'AVM Cost Detailled'!$I$8:$K$31,3,FALSE) -> 0 | L61: 25000 | M61: =VLOOKUP(C61,'TX - PDH MW'!$T$8:$V$31,3,FALSE) -> 0 | N61: =VLOOKUP(C61,'TX - Rented'!$M$5:$N$28,2,FALSE) -> 32392.8 | O61: 32392.8 | P61: =VLOOKUP(C61,'AVM Cost Detailled'!$I$8:$K$31,2,FALSE) -> 0 | Q61: 388713.6
B62: Transmission San Martin | C62: San Martin | D62: =VLOOKUP(C62,'TX - PDH MW'!$P$8:$R$31,3,FALSE) -> 35000 | E62: =VLOOKUP(C62,'TX - SDH'!$R$5:$S$28,2,FALSE) -> 0 | F62: 0 | G62: =VLOOKUP(C62,'TX - ABIS ATER'!$L$5:$M$28,2,FALSE) -> 0 | H62: 0 | I62: =VLOOKUP(C62,'Red ATM'!$K$5:$L$28,2,FALSE) -> 0 | J62: 0 | K62: =VLOOKUP(C62,'AVM Cost Detailled'!$I$8:$K$31,3,FALSE) -> 0 | L62: 35000 | M62: =VLOOKUP(C62,'TX - PDH MW'!$T$8:$V$31,3,FALSE) -> 0 | N62: =VLOOKUP(C62,'TX - Rented'!$M$5:$N$28,2,FALSE) -> 0 | O62: 0 | P62: =VLOOKUP(C62,'AVM Cost Detailled'!$I$8:$K$31,2,FALSE) -> 0 | Q62: 0
B63: Transmission Tacna | C63: Tacna | D63: =VLOOKUP(C63,'TX - PDH MW'!$P$8:$R$31,3,FALSE) -> 23000 | E63: =VLOOKUP(C63,'TX - SDH'!$R$5:$S$28,2,FALSE) -> 0 | F63: 0 | G63: =VLOOKUP(C63,'TX - ABIS ATER'!$L$5:$M$28,2,FALSE) -> 0 | H63: 0 | I63: =VLOOKUP(C63,'Red ATM'!$K$5:$L$28,2,FALSE) -> 0 | J63: 0 | K63: =VLOOKUP(C63,'AVM Cost Detailled'!$I$8:$K$31,3,FALSE) -> 0 | L63: 23000 | M63: =VLOOKUP(C63,'TX - PDH MW'!$T$8:$V$31,3,FALSE) -> 0 | N63: =VLOOKUP(C63,'TX - Rented'!$M$5:$N$28,2,FALSE) -> 0 | O63: 0 | P63: =VLOOKUP(C63,'AVM Cost Detailled'!$I$8:$K$31,2,FALSE) -> 0 | Q63: 0
B64: Transmission Tumbes | C64: Tumbes | D64: =VLOOKUP(C64,'TX - PDH MW'!$P$8:$R$31,3,FALSE) -> 27000 | E64: =VLOOKUP(C64,'TX - SDH'!$R$5:$S$28,2,FALSE) -> 0 | F64: 0 | G64: =VLOOKUP(C64,'TX - ABIS ATER'!$L$5:$M$28,2,FALSE) -> 0 | H64: 0 | I64: =VLOOKUP(C64,'Red ATM'!$K$5:$L$28,2,FALSE) -> 0 | J64: 0 | K64: =VLOOKUP(C64,'AVM Cost Detailled'!$I$8:$K$31,3,FALSE) -> 0 | L64: 27000 | M64: =VLOOKUP(C64,'TX - PDH MW'!$T$8:$V$31,3,FALSE) -> 0 | N64: =VLOOKUP(C64,'TX - Rented'!$M$5:$N$28,2,FALSE) -> 0 | O64: 0 | P64: =VLOOKUP(C64,'AVM Cost Detailled'!$I$8:$K$31,2,FALSE) -> 0 | Q64: 0
B65: Transmission Ucayali | C65: Ucayali | D65: =VLOOKUP(C65,'TX - PDH MW'!$P$8:$R$31,3,FALSE) -> 35000 | E65: =VLOOKUP(C65,'TX - SDH'!$R$5:$S$28,2,FALSE) -> 183000 | F65: 183000 | G65: =VLOOKUP(C65,'TX - ABIS ATER'!$L$5:$M$28,2,FALSE) -> 0 | H65: 0 | I65: =VLOOKUP(C65,'Red ATM'!$K$5:$L$28,2,FALSE) -> 104400 | J65: 104400 | K65: =VLOOKUP(C65,'AVM Cost Detailled'!$I$8:$K$31,3,FALSE) -> 0 | L65: 322400 | M65: =VLOOKUP(C65,'TX - PDH MW'!$T$8:$V$31,3,FALSE) -> 0 | N65: =VLOOKUP(C65,'TX - Rented'!$M$5:$N$28,2,FALSE) -> 0 | O65: 0 | P65: =VLOOKUP(C65,'AVM Cost Detailled'!$I$8:$K$31,2,FALSE) -> 0 | Q65: 0
D66: =SUM(D42:D65) -> 756500 | F66: =SUM(F42:F65) -> 3875200 | H66: =SUM(H42:H65) -> 185000 | J66: =SUM(J42:J65) -> 870000 | K66: =SUM(K42:K65) -> 750000 | L66: =SUM(L42:L65) -> 6436700 | M66: =SUM(M42:M65) -> 44357 | O66: =SUM(O42:O65) -> 58037.1 | P66: 1800000 | Q66: =SUM(Q42:Q65) -> 3028729.2
D68: Equipos | E68: Infraestructura | G68: Total
E69: Edificios | F69: Energía | G69: Total
B70: Switching and Signalling Trujillo | C70: Norte | D70: =+'Core Network'!H37+$A$1*'Core 3G'!F7 -> 11889193.77 | E70: =+'Core Network'!I37+$A$1*'Core 3G'!G7 -> 534144 | F70: =+'Core Network'!J37+$A$1*'Core 3G'!H7 -> 162128.655 | G70: =SUM(D70:F70) -> 12585466.42
B71: Switching and Signalling Lima | C71: Lima | D71: =+'Core Network'!H15+$A$1*'Core 3G'!F5+'Core 3G'!C19 -> 40371443.35 | E71: =+'Core Network'!I15+$A$1*'Core 3G'!G5 -> 1457664 | F71: =+'Core Network'!J15+$A$1*'Core 3G'!H5 -> 569146.1988 | G71: =SUM(D71:F71) -> 42398253.55
B72: Switching and Signalling Arequipa | C72: Sur | D72: =+'Core Network'!H26+$A$1*'Core 3G'!F6 -> 11952110.77 | E72: =+'Core Network'!I26+$A$1*'Core 3G'!G6 -> 534144 | F72: =+'Core Network'!J26+$A$1*'Core 3G'!H6 -> 162128.655 | G72: 12648383.42
D73: =SUM(D70:D72) -> 64212747.88 | E73: 2525952 | F73: 893403.5088 | G73: =SUM(G70:G72) -> 67632103.39
B75: IT CC | C75: ='IT Network'!C7+'IT Network'!C8+'IT Network'!C9+'IT Network'!C10+'AVM Cost Detailled'!G46*Summary!A41 -> 887300
B76: IT IC | C76: ='IT Network'!C4+'IT Network'!C5 -> 13835607
B78: Tasas | C78: 0
B79: Canon | C79: 0
B80: Spectrum | C80: =+Spectrum!C5 -> 234677763

Sheet Cellsite - BTS
L3: =SUM(L5:L34) -> 2911946.877 | M3: =SUM(M5:M34) -> 4334529.72 | N3: =SUM(N5:N34) -> 7246476.597 | O3: =SUM(O5:O34) -> 490030.7982
B4: ITEM | C4: CODIGO | D4: NOMBRE | E4: DEPARTAMENTO | F4: PROVINCIA | G4: DISTRITO | H4: TIPO CW | I4: ALTURA TORRE | J4: TRX | K4: 3G | L4: Equipment cost | M4: Installation Cost | N4: Replacement cost | O4: 3G cost
B5: 1 | C5: AM1 | D5: San Pablo | E5: Cusco | F5: Cusco | G5: Santiago | H5: Greenfield | I5: 45 | J5: 20 | K5: - | L5: =HLOOKUP(J5,'Cellsite - Input Cost'!$C$3:$F$6,4) -> 96872.52173 | M5: =IF(H5="Rooftop",'Cellsite - Installation Costs'!$F$8,IF(I5<=30,'Cellsite - Installation Costs'!$F$9,IF(I5<=42,'Cellsite - Installation Costs'!$F$10,'Cellsite - Installation Costs'!$F$11))) -> 248888.1942 | N5: =L5+M5 -> 345760.7159 | O5: =IF(K5="Si",'3G-Nodos B Input Cost'!$C$6,0) -> 0
B6: 2 | C6: AM2 | D6: La Negra | E6: Moquegua | F6: Mariscal Nieto | G6: Moquegua | H6: Greenfield | I6: 40 | J6: 46 | K6: Si | L6: =HLOOKUP(J6,'Cellsite - Input Cost'!$C$3:$F$6,4) -> 179207.0175 | M6: =IF(H6="Rooftop",'Cellsite - Installation Costs'!$F$8,IF(I6<=30,'Cellsite - Installation Costs'!$F$9,IF(I6<=42,'Cellsite - Installation Costs'!$F$10,'Cellsite - Installation Costs'!$F$11))) -> 152596.0242 | N6: 331803.0417 | O6: =IF(K6="Si",'3G-Nodos B Input Cost'!$C$6,0) -> 54447.86647 | R6: Equipment Cost | S6: Installation Cost
B7: 3 | C7: AM3 | D7: La Punta | E7: Puno | F7: Puno | G7: Chucuito | H7: Greenfield | I7: 24 | J7: 35 | K7: Si | L7: =HLOOKUP(J7,'Cellsite - Input Cost'!$C$3:$F$6,4) -> 138038.3403 | M7: =IF(H7="Rooftop",'Cellsite - Installation Costs'!$F$8,IF(I7<=30,'Cellsite - Installation Costs'!$F$9,IF(I7<=42,'Cellsite - Installation Costs'!$F$10,'Cellsite - Installation Costs'!$F$11))) -> 128478.4242 | N7: 266516.7645 | O7: =IF(K7="Si",'3G-Nodos B Input Cost'!$C$6,0) -> 54447.86647 | Q7: DEPARTAMENTO | R7: Total | S7: Total | U7: DPTO | V7: Nº BTS | W7: Nº TRX | AA7: Nº BTS | AC7: Nº TRX
B8: 4 | C8: AM4 | D8: Mariscal Castilla | E8: Arequipa | F8: Arequipa | G8: Cayma | H8: Greenfield | I8: 40 | J8: 8 | K8: - | L8: =HLOOKUP(J8,'Cellsite - Input Cost'!$C$3:$F$6,4) -> 70820.8074 | M8: =IF(H8="Rooftop",'Cellsite - Installation Costs'!$F$8,IF(I8<=30,'Cellsite - Installation Costs'!$F$9,IF(I8<=42,'Cellsite - Installation Costs'!$F$10,'Cellsite - Installation Costs'!$F$11))) -> 152596.0242 | N8: 223416.8316 | O8: =IF(K8="Si",'3G-Nodos B Input Cost'!$C$6,0) -> 0 | Q8: Amazonas | R8: =+SUMIF($E$5:$E$34,Q8,$L$5:$L$34) -> 96872.52173 | S8: =+SUMIF($E$5:$E$34,Q8,$M$5:$M$34) -> 128478.4242 | U8: Amazonas | V8: =+COUNTIF($E$5:$E$34,U8) -> 1 | W8: =+SUMIF($E$5:$E$34,U8,$J$5:$J$34) -> 16 | X8: =+IF(OR(U8="amazonas",U8="Ancash",U8="Cajamarca",U8="Lambayeque",U8="La Libertad",U8="Piura",U8="San Martin",U8="Tumbes"),"norte",IF(OR(U8="Apurimac",U8="Arequipa",U8="Cusco",U8="Moquegua",U8="Puno",U8="Tacna"),"sur","Lima y centro")) -> norte | Z8: Lima y centro | AA8: =+SUMIF($X$8:$X$31,Z8,$V$8:$V$31) -> 13 | AB8: =+AA8/AA11 -> 0.4333333333 | AC8: =+SUMIF($X$8:$X$31,Z8,$W$8:$W$31) -> 248 | AD8: =+AC8/AC11 -> 0.4550458716
B9: 5 | C9: AM5 | D9: Santa Rosa | E9: Arequipa | F9: Arequipa | G9: Arequipa | H9: Rooftop | I9: 3 | J9: 12 | K9: - | L9: =HLOOKUP(J9,'Cellsite - Input Cost'!$C$3:$F$6,4) -> 70820.8074 | M9: =IF(H9="Rooftop",'Cellsite - Installation Costs'!$F$8,IF(I9<=30,'Cellsite - Installation Costs'!$F$9,IF(I9<=42,'Cellsite - Installation Costs'!$F$10,'Cellsite - Installation Costs'!$F$11))) -> 74097.89972 | N9: 144918.7071 | O9: =IF(K9="Si",'3G-Nodos B Input Cost'!$C$6,0) -> 0 | Q9: Ancash | R9: 70820.8074 | S9: 248888.1942 | U9: Ancash | V9: 1 | W9: 9 | X9: =+IF(OR(U9="amazonas",U9="Ancash",U9="Cajamarca",U9="Lambayeque",U9="La Libertad",U9="Piura",U9="San Martin",U9="Tumbes"),"norte",IF(OR(U9="Apurimac",U9="Arequipa",U9="Cusco",U9="Moquegua",U9="Puno",U9="Tacna"),"sur","Lima y centro")) -> norte | Z9: Sur | AA9: =+SUMIF($X$8:$X$31,Z9,$V$8:$V$31) -> 7 | AB9: =+AA9/AA11 -> 0.2333333333 | AC9: =+SUMIF($X$8:$X$31,Z9,$W$8:$W$31) -> 167 | AD9: =+AC9/AC11 -> 0.3064220183
B10: 6 | C10: AM6 | D10: Pinto | E10: Amazonas | F10: Chachapoyas | G10: Lamud | H10: Greenfield | I10: 15 | J10: 16 | K10: Si | L10: =HLOOKUP(J10,'Cellsite - Input Cost'!$C$3:$F$6,4) -> 96872.52173 | M10: =IF(H10="Rooftop",'Cellsite - Installation Costs'!$F$8,IF(I10<=30,'Cellsite - Installation Costs'!$F$9,IF(I10<=42,'Cellsite - Installation Costs'!$F$10,'Cellsite - Installation Costs'!$F$11))) -> 128478.4242 | N10: 225350.9459 | O10: =IF(K10="Si",'3G-Nodos B Input Cost'!$C$6,0) -> 54447.86647 | Q10: Apurimac | R10: 138038.3403 | S10: 128478.4242 | U10: Apurimac | V10: 1 | W10: 27 | X10: sur | Z10: Norte | AA10: 10 | AB10: =+AA10/AA11 -> 0.3333333333 | AC10: 130 | AD10: =+AC10/AC11 -> 0.2385321101
B11: 7 | C11: AM7 | D11: Tambo | E11: Tacna | F11: Jorge Basadre | G11: Ilabaya | H11: Greenfield | I11: 18 | J11: 19 | K11: - | L11: =HLOOKUP(J11,'Cellsite - Input Cost'!$C$3:$F$6,4) -> 96872.52173 | M11: =IF(H11="Rooftop",'Cellsite - Installation Costs'!$F$8,IF(I11<=30,'Cellsite - Installation Costs'!$F$9,IF(I11<=42,'Cellsite - Installation Costs'!$F$10,'Cellsite - Installation Costs'!$F$11))) -> 128478.4242 | N11: 225350.9459 | O11: =IF(K11="Si",'3G-Nodos B Input Cost'!$C$6,0) -> 0 | Q11: Arequipa | R11: 141641.6148 | S11: 226693.9239 | U11: Arequipa | V11: 2 | W11: 20 | X11: sur | AA11: =SUM(AA8:AA10) -> 30 | AC11: =SUM(AC8:AC10) -> 545
B12: 8 | C12: AM8 | D12: San Antonio | E12: Ayacucho | F12: Huamanga | G12: San Juan Bautista | H12: Rooftop | I12: 15 | J12: 36 | K12: Si | L12: =HLOOKUP(J12,'Cellsite - Input Cost'!$C$3:$F$6,4) -> 138038.3403 | M12: =IF(H12="Rooftop",'Cellsite - Installation Costs'!$F$8,IF(I12<=30,'Cellsite - Installation Costs'!$F$9,IF(I12<=42,'Cellsite - Installation Costs'!$F$10,'Cellsite - Installation Costs'!$F$11))) -> 74097.89972 | N12: 212136.24 | O12: =IF(K12="Si",'3G-Nodos B Input Cost'!$C$6,0) -> 54447.86647 | Q12: Ayacucho | R12: 138038.3403 | S12: 74097.89972 | U12: Ayacucho | V12: 1 | W12: 36 | X12: Lima y centro
B13: 9 | C13: AM9 | D13: San Andres | E13: Ica | F13: Ica | G13: Ica | H13: Greenfield | I13: 30 | J13: 7 | K13: - | L13: =HLOOKUP(J13,'Cellsite - Input Cost'!$C$3:$F$6,4) -> 70820.8074 | M13: =IF(H13="Rooftop",'Cellsite - Installation Costs'!$F$8,IF(I13<=30,'Cellsite - Installation Costs'!$F$9,IF(I13<=42,'Cellsite - Installation Costs'!$F$10,'Cellsite - Installation Costs'!$F$11))) -> 128478.4242 | N13: 199299.2316 | O13: =IF(K13="Si",'3G-Nodos B Input Cost'!$C$6,0) -> 0 | Q13: Cajamarca | R13: 96872.52173 | S13: 248888.1942 | U13: Cajamarca | V13: 1 | W13: 15 | X13: norte
B14: 10 | C14: AM10 | D14: San Rafael | E14: Huanuco | F14: Ambo | G14: Ambo | H14: Greenfield | I14: 30 | J14: 23 | K14: - | L14: =HLOOKUP(J14,'Cellsite - Input Cost'!$C$3:$F$6,4) -> 96872.52173 | M14: =IF(H14="Rooftop",'Cellsite - Installation Costs'!$F$8,IF(I14<=30,'Cellsite - Installation Costs'!$F$9,IF(I14<=42,'Cellsite - Installation Costs'!$F$10,'Cellsite - Installation Costs'!$F$11))) -> 128478.4242 | N14: 225350.9459 | O14: =IF(K14="Si",'3G-Nodos B Input Cost'!$C$6,0) -> 0 | Q14: Cusco | R14: 96872.52173 | S14: 248888.1942 | U14: Cusco | V14: 1 | W14: 20 | X14: sur
B15: 11 | C15: AM11 | D15: Los Molinos | E15: Lima | F15: Lima | G15: Chorrillos | H15: Rooftop | I15: 6 | J15: 24 | K15: - | L15: =HLOOKUP(J15,'Cellsite - Input Cost'!$C$3:$F$6,4) -> 96872.52173 | M15: =IF(H15="Rooftop",'Cellsite - Installation Costs'!$F$8,IF(I15<=30,'Cellsite - Installation Costs'!$F$9,IF(I15<=42,'Cellsite - Installation Costs'!$F$10,'Cellsite - Installation Costs'!$F$11))) -> 74097.89972 | N15: 170970.4214 | O15: =IF(K15="Si",'3G-Nodos B Input Cost'!$C$6,0) -> 0 | Q15: Huancavelica | R15: 96872.52173 | S15: 128478.4242 | U15: Huancavelica | V15: 1 | W15: 17 | X15: Lima y centro
B16: 12 | C16: AM12 | D16: Cerro Lindo | E16: Lima | F16: Lima | G16: San Juan de Miraflores | H16: Greenfield | I16: 35 | J16: 33 | K16: Si | L16: =HLOOKUP(J16,'Cellsite - Input Cost'!$C$3:$F$6,4) -> 138038.3403 | M16: =IF(H16="Rooftop",'Cellsite - Installation Costs'!$F$8,IF(I16<=30,'Cellsite - Installation Costs'!$F$9,IF(I16<=42,'Cellsite - Installation Costs'!$F$10,'Cellsite - Installation Costs'!$F$11))) -> 152596.0242 | N16: 290634.3645 | O16: =IF(K16="Si",'3G-Nodos B Input Cost'!$C$6,0) -> 54447.86647 | Q16: Huanuco | R16: 96872.52173 | S16: 128478.4242 | U16: Huanuco | V16: 1 | W16: 23 | X16: Lima y centro
B17: 13 | C17: AM13 | D17: Tupac Amaru | E17: Lima | F17: Lima | G17: La Victoria | H17: Greenfield | I17: 30 | J17: 6 | K17: - | L17: =HLOOKUP(J17,'Cellsite - Input Cost'!$C$3:$F$6,4) -> 70820.8074 | M17: =IF(H17="Rooftop",'Cellsite - Installation Costs'!$F$8,IF(I17<=30,'Cellsite - Installation Costs'!$F$9,IF(I17<=42,'Cellsite - Installation Costs'!$F$10,'Cellsite - Installation Costs'!$F$11))) -> 128478.4242 | N17: 199299.2316 | O17: =IF(K17="Si",'3G-Nodos B Input Cost'!$C$6,0) -> 0 | Q17: Ica | R17: 70820.8074 | S17: 128478.4242 | U17: Ica | V17: 1 | W17: 7 | X17: Lima y centro
B18: 14 | C18: AM14 | D18: Dos Cruces | E18: Lima | F18: Callao | G18: Callao | H18: Greenfield | I18: 30 | J18: 7 | K18: - | L18: =HLOOKUP(J18,'Cellsite - Input Cost'!$C$3:$F$6,4) -> 70820.8074 | M18: =IF(H18="Rooftop",'Cellsite - Installation Costs'!$F$8,IF(I18<=30,'Cellsite - Installation Costs'!$F$9,IF(I18<=42,'Cellsite - Installation Costs'!$F$10,'Cellsite - Installation Costs'!$F$11))) -> 128478.4242 | N18: 199299.2316 | O18: =IF(K18="Si",'3G-Nodos B Input Cost'!$C$6,0) -> 0 | Q18: Junin | R18: 70820.8074 | S18: 248888.1942 | U18: Junin | V18: 1 | W18: 11 | X18: Lima y centro
B19: 15 | C19: AM15 | D19: Cosmos | E19: Junin | F19: Huancayo | G19: El Tambo | H19: Greenfield | I19: 60 | J19: 11 | K19: - | L19: =HLOOKUP(J19,'Cellsite - Input Cost'!$C$3:$F$6,4) -> 70820.8074 | M19: =IF(H19="Rooftop",'Cellsite - Installation Costs'!$F$8,IF(I19<=30,'Cellsite - Installation Costs'!$F$9,IF(I19<=42,'Cellsite - Installation Costs'!$F$10,'Cellsite - Installation Costs'!$F$11))) -> 248888.1942 | N19: 319709.0016 | O19: =IF(K19="Si",'3G-Nodos B Input Cost'!$C$6,0) -> 0 | Q19: La Libertad | R19: 141641.6148 | S19: 256956.8484 | U19: La Libertad | V19: 2 | W19: 17 | X19: norte
B20: 16 | C20: AM16 | D20: San Bernardo | E20: Loreto | F20: Maynas | G20: Iquitos | H20: Rooftop | I20: 27 | J20: 30 | K20: - | L20: =HLOOKUP(J20,'Cellsite - Input Cost'!$C$3:$F$6,4) -> 138038.3403 | M20: =IF(H20="Rooftop",'Cellsite - Installation Costs'!$F$8,IF(I20<=30,'Cellsite - Installation Costs'!$F$9,IF(I20<=42,'Cellsite - Installation Costs'!$F$10,'Cellsite - Installation Costs'!$F$11))) -> 74097.89972 | N20: 212136.24 | O20: =IF(K20="Si",'3G-Nodos B Input Cost'!$C$6,0) -> 0 | Q20: Lambayeque | R20: 208859.1477 | S20: 148195.7994 | U20: Lambayeque | V20: 2 | W20: 40 | X20: norte
B21: 17 | C21: AM17 | D21: Benavides | E21: Madre de Dios | F21: Tambopata | G21: Inambari | H21: Rooftop | I21: 24 | J21: 36 | K21: Si | L21: =HLOOKUP(J21,'Cellsite - Input Cost'!$C$3:$F$6,4) -> 138038.3403 | M21: =IF(H21="Rooftop",'Cellsite - Installation Costs'!$F$8,IF(I21<=30,'Cellsite - Installation Costs'!$F$9,IF(I21<=42,'Cellsite - Installation Costs'!$F$10,'Cellsite - Installation Costs'!$F$11))) -> 74097.89972 | N21: 212136.24 | O21: =IF(K21="Si",'3G-Nodos B Input Cost'!$C$6,0) -> 54447.86647 | Q21: Lima | R21: 376552.4768 | S21: 483650.7723 | U21: Lima | V21: 4 | W21: 70 | X21: Lima y centro
B22: 18 | C22: AM18 | D22: Santa Marina | E22: Pasco | F22: Oxapampa | G22: Pozuzo | H22: Rooftop | I22: 21 | J22: 12 | K22: - | L22: =HLOOKUP(J22,'Cellsite - Input Cost'!$C$3:$F$6,4) -> 70820.8074 | M22: =IF(H22="Rooftop",'Cellsite - Installation Costs'!$F$8,IF(I22<=30,'Cellsite - Installation Costs'!$F$9,IF(I22<=42,'Cellsite - Installation Costs'!$F$10,'Cellsite - Installation Costs'!$F$11))) -> 74097.89972 | N22: 144918.7071 | O22: =IF(K22="Si",'3G-Nodos B Input Cost'!$C$6,0) -> 0 | Q22: Loreto | R22: 138038.3403 | S22: 74097.89972 | U22: Loreto | V22: 1 | W22: 30 | X22: Lima y centro
B23: 19 | C23: AM19 | D23: Las Retamas | E23: Apurimac | F23: Abancay | G23: Tamburco | H23: Greenfield | I23: 30 | J23: 27 | K23: Si | L23: =HLOOKUP(J23,'Cellsite - Input Cost'!$C$3:$F$6,4) -> 138038.3403 | M23: =IF(H23="Rooftop",'Cellsite - Installation Costs'!$F$8,IF(I23<=30,'Cellsite - Installation Costs'!$F$9,IF(I23<=42,'Cellsite - Installation Costs'!$F$10,'Cellsite - Installation Costs'!$F$11))) -> 128478.4242 | N23: 266516.7645 | O23: =IF(K23="Si",'3G-Nodos B Input Cost'!$C$6,0) -> 54447.86647 | Q23: Madre de Dios | R23: 138038.3403 | S23: 74097.89972 | U23: Madre de Dios | V23: 1 | W23: 36 | X23: Lima y centro
B24: 20 | C24: AM20 | D24: La Capilla | E24: San Martin | F24: San Martin | G24: Tarapoto | H24: Greenfield | I24: 30 | J24: 8 | K24: - | L24: =HLOOKUP(J24,'Cellsite - Input Cost'!$C$3:$F$6,4) -> 70820.8074 | M24: =IF(H24="Rooftop",'Cellsite - Installation Costs'!$F$8,IF(I24<=30,'Cellsite - Installation Costs'!$F$9,IF(I24<=42,'Cellsite - Installation Costs'!$F$10,'Cellsite - Installation Costs'!$F$11))) -> 128478.4242 | N24: 199299.2316 | O24: =IF(K24="Si",'3G-Nodos B Input Cost'!$C$6,0) -> 0 | Q24: Moquegua | R24: 179207.0175 | S24: 152596.0242 | U24: Moquegua | V24: 1 | W24: 46 | X24: sur
B25: 21 | C25: AM21 | D25: Doña Rosa | E25: Ucayali | F25: Coronel Portillo | G25: Yarinococha | H25: Greenfield | I25: 72 | J25: 6 | K25: - | L25: =HLOOKUP(J25,'Cellsite - Input Cost'!$C$3:$F$6,4) -> 70820.8074 | M25: =IF(H25="Rooftop",'Cellsite - Installation Costs'!$F$8,IF(I25<=30,'Cellsite - Installation Costs'!$F$9,IF(I25<=42,'Cellsite - Installation Costs'!$F$10,'Cellsite - Installation Costs'!$F$11))) -> 248888.1942 | N25: 319709.0016 | O25: =IF(K25="Si",'3G-Nodos B Input Cost'!$C$6,0) -> 0 | Q25: Pasco | R25: 70820.8074 | S25: 74097.89972 | U25: Pasco | V25: 1 | W25: 12 | X25: Lima y centro
B26: 22 | C26: AM22 | D26: Credito | E26: Huancavelica | F26: Tayacaja | G26: Pampas | H26: Greenfield | I26: 30 | J26: 17 | K26: - | L26: =HLOOKUP(J26,'Cellsite - Input Cost'!$C$3:$F$6,4) -> 96872.52173 | M26: =IF(H26="Rooftop",'Cellsite - Installation Costs'!$F$8,IF(I26<=30,'Cellsite - Installation Costs'!$F$9,IF(I26<=42,'Cellsite - Installation Costs'!$F$10,'Cellsite - Installation Costs'!$F$11))) -> 128478.4242 | N26: 225350.9459 | O26: =IF(K26="Si",'3G-Nodos B Input Cost'!$C$6,0) -> 0 | Q26: Piura | R26: 70820.8074 | S26: 248888.1942 | U26: Piura | V26: 1 | W26: 5 | X26: norte
B27: 23 | C27: AM23 | D27: San Nicolas | E27: Ancash | F27: Santa | G27: Chimbote | H27: Greenfield | I27: 72 | J27: 9 | K27: - | L27: =HLOOKUP(J27,'Cellsite - Input Cost'!$C$3:$F$6,4) -> 70820.8074 | M27: =IF(H27="Rooftop",'Cellsite - Installation Costs'!$F$8,IF(I27<=30,'Cellsite - Installation Costs'!$F$9,IF(I27<=42,'Cellsite - Installation Costs'!$F$10,'Cellsite - Installation Costs'!$F$11))) -> 248888.1942 | N27: 319709.0016 | O27: =IF(K27="Si",'3G-Nodos B Input Cost'!$C$6,0) -> 0 | Q27: Puno | R27: 138038.3403 | S27: 128478.4242 | U27: Puno | V27: 1 | W27: 35 | X27: sur
B28: 24 | C28: AM24 | D28: Villaverde | E28: Cajamarca | F28: Cajamarca | G28: Cajamarca | H28: Greenfield | I28: 48 | J28: 15 | K28: - | L28: =HLOOKUP(J28,'Cellsite - Input Cost'!$C$3:$F$6,4) -> 96872.52173 | M28: =IF(H28="Rooftop",'Cellsite - Installation Costs'!$F$8,IF(I28<=30,'Cellsite - Installation Costs'!$F$9,IF(I28<=42,'Cellsite - Installation Costs'!$F$10,'Cellsite - Installation Costs'!$F$11))) -> 248888.1942 | N28: 345760.7159 | O28: =IF(K28="Si",'3G-Nodos B Input Cost'!$C$6,0) -> 0 | Q28: San Martin | R28: 70820.8074 | S28: 128478.4242 | U28: San Martin | V28: 1 | W28: 8 | X28: norte
B29: 25 | C29: AM25 | D29: San Marcos | E29: La Libertad | F29: Trujillo | G29: Trujillo | H29: Greenfield | I29: 30 | J29: 6 | K29: - | L29: =HLOOKUP(J29,'Cellsite - Input Cost'!$C$3:$F$6,4) -> 70820.8074 | M29: =IF(H29="Rooftop",'Cellsite - Installation Costs'!$F$8,IF(I29<=30,'Cellsite - Installation Costs'!$F$9,IF(I29<=42,'Cellsite - Installation Costs'!$F$10,'Cellsite - Installation Costs'!$F$11))) -> 128478.4242 | N29: 199299.2316 | O29: =IF(K29="Si",'3G-Nodos B Input Cost'!$C$6,0) -> 0 | Q29: Tacna | R29: 96872.52173 | S29: 128478.4242 | U29: Tacna | V29: 1 | W29: 19 | X29: sur
B30: 26 | C30: AM26 | D30: Los Osos | E30: La Libertad | F30: Trujillo | G30: El Porvenir | H30: Greenfield | I30: 30 | J30: 11 | K30: - | L30: =HLOOKUP(J30,'Cellsite - Input Cost'!$C$3:$F$6,4) -> 70820.8074 | M30: =IF(H30="Rooftop",'Cellsite - Installation Costs'!$F$8,IF(I30<=30,'Cellsite - Installation Costs'!$F$9,IF(I30<=42,'Cellsite - Installation Costs'!$F$10,'Cellsite - Installation Costs'!$F$11))) -> 128478.4242 | N30: 199299.2316 | O30: =IF(K30="Si",'3G-Nodos B Input Cost'!$C$6,0) -> 0 | Q30: Tumbes | R30: 96872.52173 | S30: 248888.1942 | U30: Tumbes | V30: 1 | W30: 20 | X30: norte
B31: 27 | C31: AM27 | D31: Gorriones | E31: Lambayeque | F31: Chiclayo | G31: Pimentel | H31: Rooftop | I31: 18 | J31: 28 | K31: Si | L31: =HLOOKUP(J31,'Cellsite - Input Cost'!$C$3:$F$6,4) -> 138038.3403 | M31: =IF(H31="Rooftop",'Cellsite - Installation Costs'!$F$8,IF(I31<=30,'Cellsite - Installation Costs'!$F$9,IF(I31<=42,'Cellsite - Installation Costs'!$F$10,'Cellsite - Installation Costs'!$F$11))) -> 74097.89972 | N31: 212136.24 | O31: =IF(K31="Si",'3G-Nodos B Input Cost'!$C$6,0) -> 54447.86647 | Q31: Ucayali | R31: 70820.8074 | S31: 248888.1942 | U31: Ucayali | V31: 1 | W31: 6 | X31: Lima y centro
B32: 28 | C32: AM28 | D32: San Juan | E32: Lambayeque | F32: Lambayeque | G32: Mochumi | H32: Rooftop | I32: 9 | J32: 12 | K32: Si | L32: =HLOOKUP(J32,'Cellsite - Input Cost'!$C$3:$F$6,4) -> 70820.8074 | M32: =IF(H32="Rooftop",'Cellsite - Installation Costs'!$F$8,IF(I32<=30,'Cellsite - Installation Costs'!$F$9,IF(I32<=42,'Cellsite - Installation Costs'!$F$10,'Cellsite - Installation Costs'!$F$11))) -> 74097.89972 | N32: 144918.7071 | O32: =IF(K32="Si",'3G-Nodos B Input Cost'!$C$6,0) -> 54447.86647 | Q32: Grand Total | R32: =SUM(R8:R31) -> 2911946.877 | S32: =SUM(S8:S31) -> 4334529.72 | V32: =SUM(V8:V31) -> 30 | W32: =SUM(W8:W31) -> 545
B33: 29 | C33: AM29 | D33: Los Heroes | E33: Piura | F33: Piura | G33: Piura | H33: Greenfield | I33: 72 | J33: 5 | K33: - | L33: =HLOOKUP(J33,'Cellsite - Input Cost'!$C$3:$F$6,4) -> 70820.8074 | M33: =IF(H33="Rooftop",'Cellsite - Installation Costs'!$F$8,IF(I33<=30,'Cellsite - Installation Costs'!$F$9,IF(I33<=42,'Cellsite - Installation Costs'!$F$10,'Cellsite - Installation Costs'!$F$11))) -> 248888.1942 | N33: 319709.0016 | O33: =IF(K33="Si",'3G-Nodos B Input Cost'!$C$6,0) -> 0
B34: 30 | C34: AM30 | D34: Jupiter | E34: Tumbes | F34: Contralmirante Villar | G34: Zorritos | H34: Greenfield | I34: 72 | J34: 20 | K34: - | L34: =HLOOKUP(J34,'Cellsite - Input Cost'!$C$3:$F$6,4) -> 96872.52173 | M34: =IF(H34="Rooftop",'Cellsite - Installation Costs'!$F$8,IF(I34<=30,'Cellsite - Installation Costs'!$F$9,IF(I34<=42,'Cellsite - Installation Costs'!$F$10,'Cellsite - Installation Costs'!$F$11))) -> 248888.1942 | N34: 345760.7159 | O34: =IF(K34="Si",'3G-Nodos B Input Cost'!$C$6,0) -> 0
J35: =SUM(J5:J34) -> 545
L36: =SUM(L5:L34) -> 2911946.877 | M36: =SUM(M5:M34) -> 4334529.72 | N36: =SUM(N5:N34) -> 7246476.597 | O36: =SUM(O5:O34) -> 490030.7982 | Q36: Sum of 3G cost
Q37: DEPARTAMENTO | R37: Total
Q38: Amazonas | R38: =+SUMIF($E$5:$E$34,Q38,$O$5:$O$34) -> 54447.86647
Q39: Ancash | R39: 0
Q40: Apurimac | R40: 54447.86647
Q41: Arequipa | R41: 0
Q42: Ayacucho | R42: 54447.86647
Q43: Cajamarca | R43: 0
Q44: Cusco | R44: 0
Q45: Huancavelica | R45: 0
Q46: Huanuco | R46: 0
Q47: Ica | R47: 0
Q48: Junin | R48: 0
Q49: La Libertad | R49: 0
Q50: Lambayeque | R50: 108895.7329
Q51: Lima | R51: 54447.86647
Q52: Loreto | R52: 0
Q53: Madre de Dios | R53: 54447.86647
Q54: Moquegua | R54: 54447.86647
Q55: Pasco | R55: 0
Q56: Piura | R56: 0
Q57: Puno | R57: 54447.86647
Q58: San Martin | R58: 0
Q59: Tacna | R59: 0
Q60: Tumbes | R60: 0
Q61: Ucayali | R61: 0
Q62: Grand Total | R62: =SUM(R38:R61) -> 490030.7982
R64: =+R32+S32+R62 -> 7736507.395
Q67: Modelo sólo considera 80% de 3G:
Q68: Por tanto, el total es: | R68: =+R32+S32+80%*R62 -> 7638501.236

Sheet Cellsite - Repetitors and BDA
B4: Item | C4: Cod | D4: Nombre | E4: Distrito | F4: Provincia | G4: Departamento | H4: Tipo | I4: Equipment cost | J4: Installation Cost | K4: Replacement cost | M4: Departamento | N4: Total Equipment | O4: Total Installation
B5: 1 | C5: REP_AM1 | D5: Repetidor 1 | E5: Monsefu | F5: Chiclayo | G5: Lambayeque | H5: Repetidor outdoor | I5: =VLOOKUP(H5,'Cellsite - Input Cost'!$B$9:$C$11,2,FALSE) -> 40736.85 | J5: =VLOOKUP(H5,'Cellsite - Installation Costs'!$B$5:$F$7,5,FALSE) -> 88383.37004 | K5: =I5+J5 -> 129120.22 | M5: Amazonas | N5: =+SUMIF($G$5:$G$19,M5,$I$5:$I$19) -> 0 | O5: =+SUMIF($G$5:$G$19,M5,$J$5:$J$19) -> 0
B6: 2 | C6: REP_AM2 | D6: Repetidor 2 | E6: Acari | F6: Caravelí | G6: Arequipa | H6: Repetidor outdoor | I6: =VLOOKUP(H6,'Cellsite - Input Cost'!$B$9:$C$11,2,FALSE) -> 40736.85 | J6: =VLOOKUP(H6,'Cellsite - Installation Costs'!$B$5:$F$7,5,FALSE) -> 88383.37004 | K6: =I6+J6 -> 129120.22 | M6: Ancash | N6: =+SUMIF($G$5:$G$19,M6,$I$5:$I$19) -> 24150 | O6: =+SUMIF($G$5:$G$19,M6,$J$5:$J$19) -> 9193.548387
B7: 3 | C7: REP_AM3 | D7: Repetidor 3 | E7: Machupicchu | F7: Urubamba | G7: Cusco | H7: Repetidor indoor | I7: =VLOOKUP(H7,'Cellsite - Input Cost'!$B$9:$C$11,2,FALSE) -> 24150 | J7: =VLOOKUP(H7,'Cellsite - Installation Costs'!$B$5:$F$7,5,FALSE) -> 9193.548387 | K7: 33343.54839 | M7: Apurimac | N7: =+SUMIF($G$5:$G$19,M7,$I$5:$I$19) -> 0 | O7: =+SUMIF($G$5:$G$19,M7,$J$5:$J$19) -> 0
B8: 4 | C8: REP_AM4 | D8: Repetidor 4 | E8: Parcoy | F8: Pataz | G8: La Libertad | H8: Repetidor outdoor | I8: =VLOOKUP(H8,'Cellsite - Input Cost'!$B$9:$C$11,2,FALSE) -> 40736.85 | J8: =VLOOKUP(H8,'Cellsite - Installation Costs'!$B$5:$F$7,5,FALSE) -> 88383.37004 | K8: 129120.22 | M8: Arequipa | N8: =+SUMIF($G$5:$G$19,M8,$I$5:$I$19) -> 40736.85 | O8: =+SUMIF($G$5:$G$19,M8,$J$5:$J$19) -> 88383.37004
B9: 5 | C9: REP_AM5 | D9: Repetidor 5 | E9: Chilete | F9: Contumaza | G9: Cajamarca | H9: Repetidor indoor | I9: =VLOOKUP(H9,'Cellsite - Input Cost'!$B$9:$C$11,2,FALSE) -> 24150 | J9: =VLOOKUP(H9,'Cellsite - Installation Costs'!$B$5:$F$7,5,FALSE) -> 9193.548387 | K9: 33343.54839 | M9: Ayacucho | N9: =+SUMIF($G$5:$G$19,M9,$I$5:$I$19) -> 40736.85 | O9: =+SUMIF($G$5:$G$19,M9,$J$5:$J$19) -> 88383.37004
B10: 6 | C10: REP_AM6 | D10: Repetidor 6 | E10: Iquitos | F10: Maynas | G10: Loreto | H10: BDA | I10: =VLOOKUP(H10,'Cellsite - Input Cost'!$B$9:$C$11,2,FALSE) -> 8400 | J10: =VLOOKUP(H10,'Cellsite - Installation Costs'!$B$5:$F$7,5,FALSE) -> 3354.83871 | K10: 11754.83871 | M10: Cajamarca | N10: =+SUMIF($G$5:$G$19,M10,$I$5:$I$19) -> 24150 | O10: =+SUMIF($G$5:$G$19,M10,$J$5:$J$19) -> 9193.548387
B11: 7 | C11: REP_AM7 | D11: Repetidor 7 | E11: Pativilca | F11: Barranca | G11: Lima | H11: Repetidor outdoor | I11: =VLOOKUP(H11,'Cellsite - Input Cost'!$B$9:$C$11,2,FALSE) -> 40736.85 | J11: =VLOOKUP(H11,'Cellsite - Installation Costs'!$B$5:$F$7,5,FALSE) -> 88383.37004 | K11: 129120.22 | M11: Cusco | N11: =+SUMIF($G$5:$G$19,M11,$I$5:$I$19) -> 24150 | O11: =+SUMIF($G$5:$G$19,M11,$J$5:$J$19) -> 9193.548387
B12: 8 | C12: REP_AM8 | D12: Repetidor 8 | E12: Nueva Requena | F12: Coronel Portillo | G12: Ucayali | H12: Repetidor outdoor | I12: =VLOOKUP(H12,'Cellsite - Input Cost'!$B$9:$C$11,2,FALSE) -> 40736.85 | J12: =VLOOKUP(H12,'Cellsite - Installation Costs'!$B$5:$F$7,5,FALSE) -> 88383.37004 | K12: 129120.22 | M12: Huancavelica | N12: =+SUMIF($G$5:$G$19,M12,$I$5:$I$19) -> 0 | O12: =+SUMIF($G$5:$G$19,M12,$J$5:$J$19) -> 0
B13: 9 | C13: REP_AM9 | D13: Repetidor 9 | E13: Zorritos | F13: Contralmirante Villar | G13: Tumbes | H13: Repetidor indoor | I13: =VLOOKUP(H13,'Cellsite - Input Cost'!$B$9:$C$11,2,FALSE) -> 24150 | J13: =VLOOKUP(H13,'Cellsite - Installation Costs'!$B$5:$F$7,5,FALSE) -> 9193.548387 | K13: 33343.54839 | M13: Huanuco | N13: =+SUMIF($G$5:$G$19,M13,$I$5:$I$19) -> 0 | O13: =+SUMIF($G$5:$G$19,M13,$J$5:$J$19) -> 0
B14: 10 | C14: REP_AM10 | D14: Repetidor 10 | E14: Zorritos | F14: Contralmirante Villar | G14: Tumbes | H14: BDA | I14: =VLOOKUP(H14,'Cellsite - Input Cost'!$B$9:$C$11,2,FALSE) -> 8400 | J14: =VLOOKUP(H14,'Cellsite - Installation Costs'!$B$5:$F$7,5,FALSE) -> 3354.83871 | K14: 11754.83871 | M14: Ica | N14: =+SUMIF($G$5:$G$19,M14,$I$5:$I$19) -> 0 | O14: =+SUMIF($G$5:$G$19,M14,$J$5:$J$19) -> 0
B15: 11 | C15: REP_AM11 | D15: Repetidor 11 | E15: Huaraz | F15: Huaraz | G15: Ancash | H15: Repetidor indoor | I15: =VLOOKUP(H15,'Cellsite - Input Cost'!$B$9:$C$11,2,FALSE) -> 24150 | J15: =VLOOKUP(H15,'Cellsite - Installation Costs'!$B$5:$F$7,5,FALSE) -> 9193.548387 | K15: 33343.54839 | M15: Junin | N15: =+SUMIF($G$5:$G$19,M15,$I$5:$I$19) -> 0 | O15: =+SUMIF($G$5:$G$19,M15,$J$5:$J$19) -> 0
B16: 12 | C16: REP_AM12 | D16: Repetidor 12 | E16: San Isidro | F16: Lima | G16: Lima | H16: Repetidor outdoor | I16: =VLOOKUP(H16,'Cellsite - Input Cost'!$B$9:$C$11,2,FALSE) -> 40736.85 | J16: =VLOOKUP(H16,'Cellsite - Installation Costs'!$B$5:$F$7,5,FALSE) -> 88383.37004 | K16: 129120.22 | M16: La Libertad | N16: =+SUMIF($G$5:$G$19,M16,$I$5:$I$19) -> 81473.7 | O16: =+SUMIF($G$5:$G$19,M16,$J$5:$J$19) -> 176766.7401
B17: 13 | C17: REP_AM13 | D17: Repetidor 13 | E17: Coronel Castañeda | F17: Parinacochas | G17: Ayacucho | H17: Repetidor outdoor | I17: =VLOOKUP(H17,'Cellsite - Input Cost'!$B$9:$C$11,2,FALSE) -> 40736.85 | J17: =VLOOKUP(H17,'Cellsite - Installation Costs'!$B$5:$F$7,5,FALSE) -> 88383.37004 | K17: 129120.22 | M17: Lambayeque | N17: =+SUMIF($G$5:$G$19,M17,$I$5:$I$19) -> 40736.85 | O17: =+SUMIF($G$5:$G$19,M17,$J$5:$J$19) -> 88383.37004
B18: 14 | C18: REP_AM14 | D18: Repetidor 14 | E18: Quiruvilca | F18: Santiago de Chuco | G18: La Libertad | H18: Repetidor outdoor | I18: =VLOOKUP(H18,'Cellsite - Input Cost'!$B$9:$C$11,2,FALSE) -> 40736.85 | J18: =VLOOKUP(H18,'Cellsite - Installation Costs'!$B$5:$F$7,5,FALSE) -> 88383.37004 | K18: 129120.22 | M18: Lima | N18: =+SUMIF($G$5:$G$19,M18,$I$5:$I$19) -> 81473.7 | O18: =+SUMIF($G$5:$G$19,M18,$J$5:$J$19) -> 176766.7401
B19: 15 | C19: REP_AM15 | D19: Repetidor 15 | E19: Piura | F19: Piura | G19: Piura | H19: Repetidor outdoor | I19: =VLOOKUP(H19,'Cellsite - Input Cost'!$B$9:$C$11,2,FALSE) -> 40736.85 | J19: =VLOOKUP(H19,'Cellsite - Installation Costs'!$B$5:$F$7,5,FALSE) -> 88383.37004 | K19: 129120.22 | M19: Loreto | N19: =+SUMIF($G$5:$G$19,M19,$I$5:$I$19) -> 8400 | O19: =+SUMIF($G$5:$G$19,M19,$J$5:$J$19) -> 3354.83871
M20: Madre de Dios | N20: =+SUMIF($G$5:$G$19,M20,$I$5:$I$19) -> 0 | O20: =+SUMIF($G$5:$G$19,M20,$J$5:$J$19) -> 0
B21: =SUBTOTAL(103,B5:B19) -> 15 | C21: Numero total de Repetidores | I21: =SUM(I5:I20) -> 480031.65 | J21: =SUM(J5:J20) -> 838934.2014 | K21: =SUM(K5:K20) -> 1318965.851 | M21: Moquegua | N21: =+SUMIF($G$5:$G$19,M21,$I$5:$I$19) -> 0 | O21: =+SUMIF($G$5:$G$19,M21,$J$5:$J$19) -> 0
M22: Pasco | N22: =+SUMIF($G$5:$G$19,M22,$I$5:$I$19) -> 0 | O22: =+SUMIF($G$5:$G$19,M22,$J$5:$J$19) -> 0
M23: Piura | N23: =+SUMIF($G$5:$G$19,M23,$I$5:$I$19) -> 40736.85 | O23: =+SUMIF($G$5:$G$19,M23,$J$5:$J$19) -> 88383.37004
M24: Puno | N24: =+SUMIF($G$5:$G$19,M24,$I$5:$I$19) -> 0 | O24: =+SUMIF($G$5:$G$19,M24,$J$5:$J$19) -> 0
M25: San Martin | N25: =+SUMIF($G$5:$G$19,M25,$I$5:$I$19) -> 0 | O25: =+SUMIF($G$5:$G$19,M25,$J$5:$J$19) -> 0
M26: Tacna | N26: =+SUMIF($G$5:$G$19,M26,$I$5:$I$19) -> 0 | O26: =+SUMIF($G$5:$G$19,M26,$J$5:$J$19) -> 0
M27: Tumbes | N27: =+SUMIF($G$5:$G$19,M27,$I$5:$I$19) -> 32550 | O27: =+SUMIF($G$5:$G$19,M27,$J$5:$J$19) -> 12548.3871
M28: Ucayali | N28: =+SUMIF($G$5:$G$19,M28,$I$5:$I$19) -> 40736.85 | O28: =+SUMIF($G$5:$G$19,M28,$J$5:$J$19) -> 88383.37004
M29: =SUM(N29:O29) -> 1318965.851 | N29: =SUM(N5:N28) -> 480031.65 | O29: =SUM(O5:O28) -> 838934.2014

Sheet Cellsite - Input Cost
C3: 1 | D3: 13 | E3: 25 | F3: 37
B4: Celdas Portadoras | C4: TRX
B5: BTS Standard | C5: 1-12 | D5: 13-24 | E5: 25-36 | F5: 37-48
B6: BTS | C6: =+C21 -> 70820.8074 | D6: =+D21 -> 96872.52173 | E6: =+E21 -> 138038.3403 | F6: =+F21 -> 179207.0175
B8: Repetidores & BDA
B9: Repetidor Outdoor | C9: =+C28 -> 40736.85
B10: Repetidor Indoor | C10: =+D28 -> 24150
B11: BDA | C11: =+E28 -> 8400
B13: Celdas Portadoras | C13: TRX
B14: BTS Standard | C14: 1-12 | D14: 13-24 | E14: 25-36 | F14: 37-48
B15: BTS outdoor, 3 sectores, incluye gabinetes y transporte hasta el site | C15: 46580.3604 | D15: 67166.82473 | E15: 104026.7403 | F15: 140995.4175
B16: MHA Dual, combinadores, multiacopladores. | C16: 4835.25 | D16: 7465.5 | E16: 7465.5 | F16: 7465.5
B17: Antenas / 3 sectores | C17: 2835 | D17: 5670 | E17: 5670 | F17: 5670
B18: Power System | C18: 11320.197 | D18: 11320.197 | E18: 15206.1 | F18: 19406.1
B19: Software de planificacion, optimizacion, base de datos de mapas | C19: 210 | D19: 210 | E19: 210 | F19: 210
B20: Servicios de Planificación de Radiofrecuencia | C20: 5040 | D20: 5040 | E20: 5460 | F20: 5460
B21: Total | C21: =SUM(C15:C20) -> 70820.8074 | D21: =SUM(D15:D20) -> 96872.52173 | E21: =SUM(E15:E20) -> 138038.3403 | F21: =SUM(F15:F20) -> 179207.0175
B23: Repetidores & BDA | C23: Outdoor | D23: Indoor | E23: BDA
B24: Repetidor (Equipo) | C24: 27296.85 | D24: 13650 | E24: 4725
B25: Equipos para Sistema Radiante | C25: 3150 | D25: 3150 | E25: 2100
B26: Power System | C26: 7350 | D26: 5250 | E26: 0
B27: Servicios de Planificación de Radiofrecuencia | C27: 2940 | D27: 2100 | E27: 1575
B28: Total | C28: =SUM(C24:C27) -> 40736.85 | D28: =SUM(D24:D27) -> 24150 | E28: =SUM(E24:E27) -> 8400

Sheet Cellsite - Installation Costs
B4: Elementos de Red | C4: Site Adquisition | D4: Infraestructura | E4: Telecom Implementation | F4: Total
B5: BDA | C5: 0 | D5: 0 | E5: 3354.83871 | F5: =SUM(C5:E5) -> 3354.83871
B6: Repetidor Indoor | C6: 0 | D6: 5000 | E6: 4193.548387 | F6: =SUM(C6:E6) -> 9193.548387
B7: Repetidor Outdoor | C7: 7180 | D7: 76042.07972 | E7: 5161.290323 | F7: 88383.37004
B8: Rooftop | C8: 6121.18 | D8: 61346.54972 | E8: 6630.17 | F8: 74097.89972
B9: Greenfiled 30 M | C9: 7180 | D9: 112835.8642 | E9: 8462.56 | F9: 128478.4242
B10: Greenfield 42 M | C10: 7180 | D10: 136953.4642 | E10: 8462.56 | F10: 152596.0242
B11: Greenfield 72 M | C11: 7180 | D11: 229011.4642 | E11: 12696.73 | F11: 248888.1942
B12: Delta para Dorsales y Fibra óptica. | C12: 0 | D12: 110000 | E12: 0 | F12: 110000
B13: Notas:
B14: El servicio de Telecom Implementation (TI) incluye: la instalacion y comisionamiento (pruebas de verificacion) de las BTS, MHA y equipos de energía. Instalacion de sistema Rooftop (hasta 50m, 3 sectores), Antena Line hasta 50m, 1 sector y 2 feeders. Proyect Management fee. Costos estiamados para NSN
B17: BDA: Bi-Directional Amplifier

Sheet Traffic data
H6: Días/mes = | I6: 20
H7: Porcentaje en HC = | I7: 0.1
G10: Switching | I10: Tráfico Anual (min) | J10: Tráfico HC (min) | K10: Tráfico HC (Erlang)
A11: city | B11: geo | C11: sens | D11: type | E11: Complete | F11: min
A12: Amazonas | B12: Incoming | C12: LDI | E12: =B12&" "&" "&C12&" "&D12 -> Incoming LDI | F12: 150000 | G12: =+IF(OR(A12="amazonas",A12="Ancash",A12="Cajamarca",A12="Lambayeque",A12="Libertad",A12="Piura",A12="San Martin",A12="Tumbes"),"norte",IF(OR(A12="Apurimac",A12="Arequipa",A12="Cusco",A12="Moquegua",A12="Puno",A12="Tacna"),"sur","Lima y centro")) -> norte | H12: NORTE | I12: =+SUMIF($G$12:$G$299,H12,$F$12:$F$299) -> 661638000 | J12: =+(I12/12/I6)*I7 -> 275682.5 | K12: =+J12/60 -> 4594.708333
A13: Amazonas | B13: Incoming | C13: LDN | D13: Fixed - Mobile | E13: Incoming LDN Fixed - Mobile | F13: 120000 | G13: =+IF(OR(A13="amazonas",A13="Ancash",A13="Cajamarca",A13="Lambayeque",A13="Libertad",A13="Piura",A13="San Martin",A13="Tumbes"),"norte",IF(OR(A13="Apurimac",A13="Arequipa",A13="Cusco",A13="Moquegua",A13="Puno",A13="Tacna"),"sur","Lima y centro")) -> norte | H13: SUR | I13: =+SUMIF($G$12:$G$299,H13,$F$12:$F$299) -> 771915000 | J13: =+(I13/12/I6)*I7 -> 321631.25 | K13: =+J13/60 -> 5360.520833
A14: Amazonas | B14: Incoming | C14: LDN | D14: Mobile - Mobile | E14: Incoming LDN Mobile - Mobile | F14: 500000 | G14: norte | H14: LIMA Y CENTRO | I14: =+SUMIF($G$12:$G$299,H14,$F$12:$F$299) -> 4417917200 | J14: =+(I14/12/I6)*I7 -> 1840798.833 | K14: 30679.98056
A15: Amazonas | B15: Incoming | C15: Local | D15: Fixed - Mobile | E15: Incoming Local Fixed - Mobile | F15: 150000 | G15: norte | I15: =SUM(I12:I14) -> 5851470200 | J15: =SUM(J12:J14) -> 2438112.583 | K15: 40635.20972
A16: Amazonas | B16: Incoming | C16: Local | D16: Mobile - Mobile | E16: Incoming Local Mobile - Mobile | F16: 400000 | G16: norte
A17: Amazonas | B17: On-net | C17: LDN | D17: Mobile - Mobile | E17: On-net LDN Mobile - Mobile | F17: 1000000 | G17: norte | H17: NORTE | I17: =+I12/$I$15 -> 0.113072096
A18: Amazonas | B18: On-net | C18: Local | D18: Mobile - Mobile | E18: On-net Local Mobile - Mobile | F18: 7000000 | G18: norte | H18: SUR | I18: =+I13/$I$15 -> 0.1319181289
A19: Amazonas | B19: Outgoing | C19: LDI | E19: Outgoing LDI | F19: 8000 | G19: norte | H19: LIMA Y CENTRO | I19: 0.7550097752
A20: Amazonas | B20: Outgoing | C20: LDN | D20: Mobile - Fixed | E20: Outgoing LDN Mobile - Fixed | F20: 100000 | G20: norte | I20: =SUM(I17:I19) -> 1
A21: Amazonas | B21: Outgoing | C21: LDN | D21: Mobile - Mobile | E21: Outgoing LDN Mobile - Mobile | F21: 400000 | G21: norte
A22: Amazonas | B22: Outgoing | C22: Local | D22: Mobile - Fixed | E22: Outgoing Local Mobile - Fixed | F22: 150000 | G22: norte
A23: Amazonas | B23: Outgoing | C23: Local | D23: Mobile - Mobile | E23: Outgoing Local Mobile - Mobile | F23: 600000 | G23: norte
A24: Ancash | B24: Incoming | C24: LDI | E24: Incoming LDI | F24: 1400000 | G24: norte
A25: Ancash | B25: Incoming | C25: LDN | D25: Fixed - Mobile | E25: Incoming LDN Fixed - Mobile | F25: 2000000 | G25: norte | H25: CLARO | I25: Tráfico | J25: %
A26: Ancash | B26: Incoming | C26: LDN | D26: Mobile - Mobile | E26: Incoming LDN Mobile - Mobile | F26: 2400000 | G26: norte | H26: Amazonas | I26: =+SUMIF($A$12:$A$299,H26,$F$12:$F$299) -> 10578000 | J26: =+I26/$I$50 -> 0.001807750811
A27: Ancash | B27: Incoming | C27: Local | D27: Fixed - Mobile | E27: Incoming Local Fixed - Mobile | F27: 2200000 | G27: norte | H27: Ancash | I27: =+SUMIF($A$12:$A$299,H27,$F$12:$F$299) -> 79850000 | J27: =+I27/$I$50 -> 0.01364614315
A28: Ancash | B28: Incoming | C28: Local | D28: Mobile - Mobile | E28: Incoming Local Mobile - Mobile | F28: 5000000 | G28: norte | H28: Apurimac | I28: 27070000 | J28: 0.004626187791
A29: Ancash | B29: On-net | C29: LDN | D29: Mobile - Mobile | E29: On-net LDN Mobile - Mobile | F29: 6000000 | G29: norte | H29: Arequipa | I29: 329600000 | J29: 0.05632772427
A30: Ancash | B30: On-net | C30: Local | D30: Mobile - Mobile | E30: On-net Local Mobile - Mobile | F30: 50000000 | G30: norte | H30: Ayacucho | I30: 69370000 | J30: 0.01185514027
A31: Ancash | B31: Outgoing | C31: LDI | E31: Outgoing LDI | F31: 150000 | G31: norte | H31: Cajamarca | I31: 31690000 | J31: 0.005415732955
A32: Ancash | B32: Outgoing | C32: LDN | D32: Mobile - Fixed | E32: Outgoing LDN Mobile - Fixed | F32: 700000 | G32: norte | H32: Cusco | I32: 213900000 | J32: 0.03655491572
A33: Ancash | B33: Outgoing | C33: LDN | D33: Mobile - Mobile | E33: Outgoing LDN Mobile - Mobile | F33: 3000000 | G33: norte | H33: Huancavelica | I33: 9492200 | J33: 0.001622190608
A34: Ancash | B34: Outgoing | C34: Local | D34: Mobile - Fixed | E34: Outgoing Local Mobile - Fixed | F34: 2000000 | G34: norte | H34: Huanuco | I34: 40970000 | J34: 0.007001659173
A35: Ancash | B35: Outgoing | C35: Local | D35: Mobile - Mobile | E35: Outgoing Local Mobile - Mobile | F35: 5000000 | G35: norte | H35: Ica | I35: 109800000 | J35: 0.01876451494
A36: Apurimac | B36: Incoming | C36: LDI | E36: Incoming LDI | F36: 600000 | G36: sur | H36: Junin | I36: 118590000 | J36: 0.02026670152
A37: Apurimac | B37: Incoming | C37: LDN | D37: Fixed - Mobile | E37: Incoming LDN Fixed - Mobile | F37: 200000 | G37: sur | H37: Libertad | I37: 283250000 | J37: 0.04840663804
A38: Apurimac | B38: Incoming | C38: LDN | D38: Mobile - Mobile | E38: Incoming LDN Mobile - Mobile | F38: 700000 | G38: sur | H38: Lambayeque | I38: 114550000 | J38: 0.01957627674
A39: Apurimac | B39: Incoming | C39: Local | D39: Fixed - Mobile | E39: Incoming Local Fixed - Mobile | F39: 500000 | G39: sur | H39: Lima | I39: 3840000000 | J39: 0.6562453313
A40: Apurimac | B40: Incoming | C40: Local | D40: Mobile - Mobile | E40: Incoming Local Mobile - Mobile | F40: 700000 | G40: sur | H40: Loreto | I40: 54065000 | J40: 0.009239558291
A41: Apurimac | B41: On-net | C41: LDN | D41: Mobile - Mobile | E41: On-net LDN Mobile - Mobile | F41: 2000000 | G41: sur | H41: Madre de Dios | I41: 47980000 | J41: 0.008199648697
A42: Apurimac | B42: On-net | C42: Local | D42: Mobile - Mobile | E42: On-net Local Mobile - Mobile | F42: 20000000 | G42: sur | H42: Moquegua | I42: 29745000 | J42: 0.005083337859
A43: Apurimac | B43: Outgoing | C43: LDI | E43: Outgoing LDI | F43: 20000 | G43: sur | H43: Pasco | I43: 11380000 | J43: 0.001944810383
A44: Apurimac | B44: Outgoing | C44: LDN | D44: Mobile - Fixed | E44: Outgoing LDN Mobile - Fixed | F44: 250000 | G44: sur | H44: Piura | I44: 101280000 | J44: 0.01730847061
A45: Apurimac | B45: Outgoing | C45: LDN | D45: Mobile - Mobile | E45: Outgoing LDN Mobile - Mobile | F45: 900000 | G45: sur | H45: Puno | I45: 127750000 | J45: 0.02183212007
A46: Apurimac | B46: Outgoing | C46: Local | D46: Mobile - Fixed | E46: Outgoing Local Mobile - Fixed | F46: 200000 | G46: sur | H46: San Martin | I46: 34110000 | J46: 0.005829304232
A47: Apurimac | B47: Outgoing | C47: Local | D47: Mobile - Mobile | E47: Outgoing Local Mobile - Mobile | F47: 1000000 | G47: sur | H47: Tacna | I47: 43850000 | J47: 0.007493843171
A48: Arequipa | B48: Incoming | C48: LDI | E48: Incoming LDI | F48: 3000000 | G48: sur | H48: Tumbes | I48: 6330000 | J48: 0.001081779413
A49: Arequipa | B49: Incoming | C49: LDN | D49: Fixed - Mobile | E49: Incoming LDN Fixed - Mobile | F49: 3000000 | G49: sur | H49: Ucayalli | I49: 116270000 | J49: 0.01987021997
A50: Arequipa | B50: Incoming | C50: LDN | D50: Mobile - Mobile | E50: Incoming LDN Mobile - Mobile | F50: 5000000 | G50: sur | H50: TOTAL | I50: =SUM(I26:I49) -> 5851470200 | J50: =SUM(J26:J49) -> 1
A51: Arequipa | B51: Incoming | C51: Local | D51: Fixed - Mobile | E51: Incoming Local Fixed - Mobile | F51: 9500000 | G51: sur
A52: Arequipa | B52: Incoming | C52: Local | D52: Mobile - Mobile | E52: Incoming Local Mobile - Mobile | F52: 20000000 | G52: sur
A53: Arequipa | B53: On-net | C53: LDN | D53: Mobile - Mobile | E53: On-net LDN Mobile - Mobile | F53: 8000000 | G53: sur
A54: Arequipa | B54: On-net | C54: Local | D54: Mobile - Mobile | E54: On-net Local Mobile - Mobile | F54: 250000000 | G54: sur
A55: Arequipa | B55: Outgoing | C55: LDI | E55: Outgoing LDI | F55: 600000 | G55: sur
A56: Arequipa | B56: Outgoing | C56: LDN | D56: Mobile - Fixed | E56: Outgoing LDN Mobile - Fixed | F56: 1500000 | G56: sur
A57: Arequipa | B57: Outgoing | C57: LDN | D57: Mobile - Mobile | E57: Outgoing LDN Mobile - Mobile | F57: 4000000 | G57: sur
A58: Arequipa | B58: Outgoing | C58: Local | D58: Mobile - Fixed | E58: Outgoing Local Mobile - Fixed | F58: 7000000 | G58: sur
A59: Arequipa | B59: Outgoing | C59: Local | D59: Mobile - Mobile | E59: Outgoing Local Mobile - Mobile | F59: 18000000 | G59: sur
A60: Ayacucho | B60: Incoming | C60: LDI | E60: Incoming LDI | F60: 450000 | G60: Lima y centro
A61: Ayacucho | B61: Incoming | C61: LDN | D61: Fixed - Mobile | E61: Incoming LDN Fixed - Mobile | F61: 500000 | G61: Lima y centro
A62: Ayacucho | B62: Incoming | C62: LDN | D62: Mobile - Mobile | E62: Incoming LDN Mobile - Mobile | F62: 1600000 | G62: Lima y centro
A63: Ayacucho | B63: Incoming | C63: Local | D63: Fixed - Mobile | E63: Incoming Local Fixed - Mobile | F63: 1800000 | G63: Lima y centro
A64: Ayacucho | B64: Incoming | C64: Local | D64: Mobile - Mobile | E64: Incoming Local Mobile - Mobile | F64: 4000000 | G64: Lima y centro
A65: Ayacucho | B65: On-net | C65: LDN | D65: Mobile - Mobile | E65: On-net LDN Mobile - Mobile | F65: 4000000 | G65: Lima y centro
A66: Ayacucho | B66: On-net | C66: Local | D66: Mobile - Mobile | E66: On-net Local Mobile - Mobile | F66: 50000000 | G66: Lima y centro
A67: Ayacucho | B67: Outgoing | C67: LDI | E67: Outgoing LDI | F67: 70000 | G67: Lima y centro
A68: Ayacucho | B68: Outgoing | C68: LDN | D68: Mobile - Fixed | E68: Outgoing LDN Mobile - Fixed | F68: 250000 | G68: Lima y centro
A69: Ayacucho | B69: Outgoing | C69: LDN | D69: Mobile - Mobile | E69: Outgoing LDN Mobile - Mobile | F69: 1500000 | G69: Lima y centro
A70: Ayacucho | B70: Outgoing | C70: Local | D70: Mobile - Fixed | E70: Outgoing Local Mobile - Fixed | F70: 1200000 | G70: Lima y centro
A71: Ayacucho | B71: Outgoing | C71: Local | D71: Mobile - Mobile | E71: Outgoing Local Mobile - Mobile | F71: 4000000 | G71: Lima y centro
A72: Cajamarca | B72: Incoming | C72: LDI | E72: Incoming LDI | F72: 400000 | G72: norte
A73: Cajamarca | B73: Incoming | C73: LDN | D73: Fixed - Mobile | E73: Incoming LDN Fixed - Mobile | F73: 300000 | G73: norte
A74: Cajamarca | B74: Incoming | C74: LDN | D74: Mobile - Mobile | E74: Incoming LDN Mobile - Mobile | F74: 1000000 | G74: norte
A75: Cajamarca | B75: Incoming | C75: Local | D75: Fixed - Mobile | E75: Incoming Local Fixed - Mobile | F75: 650000 | G75: norte
A76: Cajamarca | B76: Incoming | C76: Local | D76: Mobile - Mobile | E76: =B76&" "&" "&C76&" "&D76 -> Incoming Local Mobile - Mobile | F76: 2000000 | G76: norte
A77: Cajamarca | B77: On-net | C77: LDN | D77: Mobile - Mobile | E77: On-net LDN Mobile - Mobile | F77: 2000000 | G77: =+IF(OR(A77="amazonas",A77="Ancash",A77="Cajamarca",A77="Lambayeque",A77="Libertad",A77="Piura",A77="San Martin",A77="Tumbes"),"norte",IF(OR(A77="Apurimac",A77="Arequipa",A77="Cusco",A77="Moquegua",A77="Puno",A77="Tacna"),"sur","Lima y centro")) -> norte
A78: Cajamarca | B78: On-net | C78: Local | D78: Mobile - Mobile | E78: On-net Local Mobile - Mobile | F78: 20000000 | G78: norte
A79: Cajamarca | B79: Outgoing | C79: LDI | E79: Outgoing LDI | F79: 90000 | G79: norte
A80: Cajamarca | B80: Outgoing | C80: LDN | D80: Mobile - Fixed | E80: Outgoing LDN Mobile - Fixed | F80: 250000 | G80: norte
A81: Cajamarca | B81: Outgoing | C81: LDN | D81: Mobile - Mobile | E81: Outgoing LDN Mobile - Mobile | F81: 1200000 | G81: norte
A82: Cajamarca | B82: Outgoing | C82: Local | D82: Mobile - Fixed | E82: Outgoing Local Mobile - Fixed | F82: 800000 | G82: norte
A83: Cajamarca | B83: Outgoing | C83: Local | D83: Mobile - Mobile | E83: Outgoing Local Mobile - Mobile | F83: 3000000 | G83: norte
A84: Cusco | B84: Incoming | C84: LDI | E84: Incoming LDI | F84: 2400000 | G84: sur
A85: Cusco | B85: Incoming | C85: LDN | D85: Fixed - Mobile | E85: Incoming LDN Fixed - Mobile | F85: 2000000 | G85: sur
A86: Cusco | B86: Incoming | C86: LDN | D86: Mobile - Mobile | E86: Incoming LDN Mobile - Mobile | F86: 4000000 | G86: sur
A87: Cusco | B87: Incoming | C87: Local | D87: Fixed - Mobile | E87: Incoming Local Fixed - Mobile | F87: 8000000 | G87: sur
A88: Cusco | B88: Incoming | C88: Local | D88: Mobile - Mobile | E88: Incoming Local Mobile - Mobile | F88: 9000000 | G88: sur
A89: Cusco | B89: On-net | C89: LDN | D89: Mobile - Mobile | E89: On-net LDN Mobile - Mobile | F89: 9000000 | G89: sur
A90: Cusco | B90: On-net | C90: Local | D90: Mobile - Mobile | E90: On-net Local Mobile - Mobile | F90: 160000000 | G90: sur
A91: Cusco | B91: Outgoing | C91: LDI | E91: Outgoing LDI | F91: 400000 | G91: sur
A92: Cusco | B92: Outgoing | C92: LDN | D92: Mobile - Fixed | E92: Outgoing LDN Mobile - Fixed | F92: 1100000 | G92: sur
A93: Cusco | B93: Outgoing | C93: LDN | D93: Mobile - Mobile | E93: Outgoing LDN Mobile - Mobile | F93: 4000000 | G93: sur
A94: Cusco | B94: Outgoing | C94: Local | D94: Mobile - Fixed | E94: Outgoing Local Mobile - Fixed | F94: 4000000 | G94: sur
A95: Cusco | B95: Outgoing | C95: Local | D95: Mobile - Mobile | E95: Outgoing Local Mobile - Mobile | F95: 10000000 | G95: sur
A96: Huancavelica | B96: Incoming | C96: LDI | E96: Incoming LDI | F96: 60000 | G96: Lima y centro
A97: Huancavelica | B97: Incoming | C97: LDN | D97: Fixed - Mobile | E97: Incoming LDN Fixed - Mobile | F97: 140000 | G97: Lima y centro
A98: Huancavelica | B98: Incoming | C98: LDN | D98: Mobile - Mobile | E98: Incoming LDN Mobile - Mobile | F98: 500000 | G98: Lima y centro
A99: Huancavelica | B99: Incoming | C99: Local | D99: Fixed - Mobile | E99: Incoming Local Fixed - Mobile | F99: 300000 | G99: Lima y centro
A100: Huancavelica | B100: Incoming | C100: Local | D100: Mobile - Mobile | E100: Incoming Local Mobile - Mobile | F100: 300000 | G100: Lima y centro
A101: Huancavelica | B101: On-net | C101: LDN | D101: Mobile - Mobile | E101: On-net LDN Mobile - Mobile | F101: 100000 | G101: Lima y centro
A102: Huancavelica | B102: On-net | C102: Local | D102: Mobile - Mobile | E102: On-net Local Mobile - Mobile | F102: 7000000 | G102: Lima y centro
A103: Huancavelica | B103: Outgoing | C103: LDI | E103: Outgoing LDI | F103: 2200 | G103: Lima y centro
A104: Huancavelica | B104: Outgoing | C104: LDN | D104: Mobile - Fixed | E104: Outgoing LDN Mobile - Fixed | F104: 20000 | G104: Lima y centro
A105: Huancavelica | B105: Outgoing | C105: LDN | D105: Mobile - Mobile | E105: Outgoing LDN Mobile - Mobile | F105: 70000 | G105: Lima y centro
A106: Huancavelica | B106: Outgoing | C106: Local | D106: Mobile - Fixed | E106: Outgoing Local Mobile - Fixed | F106: 250000 | G106: Lima y centro
A107: Huancavelica | B107: Outgoing | C107: Local | D107: Mobile - Mobile | E107: Outgoing Local Mobile - Mobile | F107: 750000 | G107: Lima y centro
A108: Huanuco | B108: Incoming | C108: LDI | E108: Incoming LDI | F108: 400000 | G108: Lima y centro
A109: Huanuco | B109: Incoming | C109: LDN | D109: Fixed - Mobile | E109: Incoming LDN Fixed - Mobile | F109: 450000 | G109: Lima y centro
A110: Huanuco | B110: Incoming | C110: LDN | D110: Mobile - Mobile | E110: Incoming LDN Mobile - Mobile | F110: 1600000 | G110: Lima y centro
A111: Huanuco | B111: Incoming | C111: Local | D111: Fixed - Mobile | E111: Incoming Local Fixed - Mobile | F111: 700000 | G111: Lima y centro
A112: Huanuco | B112: Incoming | C112: Local | D112: Mobile - Mobile | E112: Incoming Local Mobile - Mobile | F112: 1700000 | G112: Lima y centro
A113: Huanuco | B113: On-net | C113: LDN | D113: Mobile - Mobile | E113: On-net LDN Mobile - Mobile | F113: 1500000 | G113: Lima y centro
A114: Huanuco | B114: On-net | C114: Local | D114: Mobile - Mobile | E114: On-net Local Mobile - Mobile | F114: 30000000 | G114: Lima y centro
A115: Huanuco | B115: Outgoing | C115: LDI | E115: Outgoing LDI | F115: 40000 | G115: Lima y centro
A116: Huanuco | B116: Outgoing | C116: LDN | D116: Mobile - Fixed | E116: Outgoing LDN Mobile - Fixed | F116: 180000 | G116: Lima y centro
A117: Huanuco | B117: Outgoing | C117: LDN | D117: Mobile - Mobile | E117: Outgoing LDN Mobile - Mobile | F117: 800000 | G117: Lima y centro
A118: Huanuco | B118: Outgoing | C118: Local | D118: Mobile - Fixed | E118: Outgoing Local Mobile - Fixed | F118: 1000000 | G118: Lima y centro
A119: Huanuco | B119: Outgoing | C119: Local | D119: Mobile - Mobile | E119: Outgoing Local Mobile - Mobile | F119: 2600000 | G119: Lima y centro
A120: Ica | B120: Incoming | C120: LDI | E120: Incoming LDI | F120: 1600000 | G120: Lima y centro
A121: Ica | B121: Incoming | C121: LDN | D121: Fixed - Mobile | E121: Incoming LDN Fixed - Mobile | F121: 1800000 | G121: Lima y centro
A122: Ica | B122: Incoming | C122: LDN | D122: Mobile - Mobile | E122: Incoming LDN Mobile - Mobile | F122: 2500000 | G122: Lima y centro
A123: Ica | B123: Incoming | C123: Local | D123: Fixed - Mobile | E123: Incoming Local Fixed - Mobile | F123: 3200000 | G123: Lima y centro
A124: Ica | B124: Incoming | C124: Local | D124: Mobile - Mobile | E124: Incoming Local Mobile - Mobile | F124: 6500000 | G124: Lima y centro
A125: Ica | B125: On-net | C125: LDN | D125: Mobile - Mobile | E125: On-net LDN Mobile - Mobile | F125: 2000000 | G125: Lima y centro
A126: Ica | B126: On-net | C126: Local | D126: Mobile - Mobile | E126: On-net Local Mobile - Mobile | F126: 80000000 | G126: Lima y centro
A127: Ica | B127: Outgoing | C127: LDI | E127: Outgoing LDI | F127: 130000 | G127: Lima y centro
A128: Ica | B128: Outgoing | C128: LDN | D128: Mobile - Fixed | E128: Outgoing LDN Mobile - Fixed | F128: 370000 | G128: Lima y centro
A129: Ica | B129: Outgoing | C129: LDN | D129: Mobile - Mobile | E129: Outgoing LDN Mobile - Mobile | F129: 1400000 | G129: Lima y centro
A130: Ica | B130: Outgoing | C130: Local | D130: Mobile - Fixed | E130: Outgoing Local Mobile - Fixed | F130: 2700000 | G130: Lima y centro
A131: Ica | B131: Outgoing | C131: Local | D131: Mobile - Mobile | E131: Outgoing Local Mobile - Mobile | F131: 7600000 | G131: Lima y centro
A132: Junin | B132: Incoming | C132: LDI | E132: Incoming LDI | F132: 4000000 | G132: Lima y centro
A133: Junin | B133: Incoming | C133: LDN | D133: Fixed - Mobile | E133: Incoming LDN Fixed - Mobile | F133: 4500000 | G133: Lima y centro
A134: Junin | B134: Incoming | C134: LDN | D134: Mobile - Mobile | E134: Incoming LDN Mobile - Mobile | F134: 140000 | G134: Lima y centro
A135: Junin | B135: Incoming | C135: Local | D135: Fixed - Mobile | E135: Incoming Local Fixed - Mobile | F135: 17000000 | G135: Lima y centro
A136: Junin | B136: Incoming | C136: Local | D136: Mobile - Mobile | E136: Incoming Local Mobile - Mobile | F136: 150000 | G136: Lima y centro
A137: Junin | B137: On-net | C137: LDN | D137: Mobile - Mobile | E137: On-net LDN Mobile - Mobile | F137: 1500000 | G137: Lima y centro
A138: Junin | B138: On-net | C138: Local | D138: Mobile - Mobile | E138: On-net Local Mobile - Mobile | F138: 80000000 | G138: Lima y centro
A139: Junin | B139: Outgoing | C139: LDI | E139: Outgoing LDI | F139: 100000 | G139: Lima y centro
A140: Junin | B140: Outgoing | C140: LDN | D140: Mobile - Fixed | E140: =B140&" "&" "&C140&" "&D140 -> Outgoing LDN Mobile - Fixed | F140: 300000 | G140: Lima y centro
A141: Junin | B141: Outgoing | C141: LDN | D141: Mobile - Mobile | E141: Outgoing LDN Mobile - Mobile | F141: 900000 | G141: =+IF(OR(A141="amazonas",A141="Ancash",A141="Cajamarca",A141="Lambayeque",A141="Libertad",A141="Piura",A141="San Martin",A141="Tumbes"),"norte",IF(OR(A141="Apurimac",A141="Arequipa",A141="Cusco",A141="Moquegua",A141="Puno",A141="Tacna"),"sur","Lima y centro")) -> Lima y centro
A142: Junin | B142: Outgoing | C142: Local | D142: Mobile - Fixed | E142: Outgoing Local Mobile - Fixed | F142: 3000000 | G142: Lima y centro
A143: Junin | B143: Outgoing | C143: Local | D143: Mobile - Mobile | E143: Outgoing Local Mobile - Mobile | F143: 7000000 | G143: Lima y centro
A144: Lambayeque | B144: Incoming | C144: LDI | E144: Incoming LDI | F144: 1400000 | G144: norte
A145: Lambayeque | B145: Incoming | C145: LDN | D145: Fixed - Mobile | E145: Incoming LDN Fixed - Mobile | F145: 1600000 | G145: norte
A146: Lambayeque | B146: Incoming | C146: LDN | D146: Mobile - Mobile | E146: Incoming LDN Mobile - Mobile | F146: 3000000 | G146: norte
A147: Lambayeque | B147: Incoming | C147: Local | D147: Fixed - Mobile | E147: Incoming Local Fixed - Mobile | F147: 3000000 | G147: norte
A148: Lambayeque | B148: Incoming | C148: Local | D148: Mobile - Mobile | E148: Incoming Local Mobile - Mobile | F148: 7000000 | G148: norte
A149: Lambayeque | B149: On-net | C149: LDN | D149: Mobile - Mobile | E149: On-net LDN Mobile - Mobile | F149: 5000000 | G149: norte
A150: Lambayeque | B150: On-net | C150: Local | D150: Mobile - Mobile | E150: On-net Local Mobile - Mobile | F150: 80000000 | G150: norte
A151: Lambayeque | B151: Outgoing | C151: LDI | E151: Outgoing LDI | F151: 250000 | G151: norte
A152: Lambayeque | B152: Outgoing | C152: LDN | D152: Mobile - Fixed | E152: Outgoing LDN Mobile - Fixed | F152: 800000 | G152: norte
A153: Lambayeque | B153: Outgoing | C153: LDN | D153: Mobile - Mobile | E153: Outgoing LDN Mobile - Mobile | F153: 2500000 | G153: norte
A154: Lambayeque | B154: Outgoing | C154: Local | D154: Mobile - Fixed | E154: Outgoing Local Mobile - Fixed | F154: 2500000 | G154: norte
A155: Lambayeque | B155: Outgoing | C155: Local | D155: Mobile - Mobile | E155: Outgoing Local Mobile - Mobile | F155: 7500000 | G155: norte
A156: Libertad | B156: Incoming | C156: LDI | E156: Incoming LDI | F156: 6000000 | G156: norte
A157: Libertad | B157: Incoming | C157: LDN | D157: Fixed - Mobile | E157: Incoming LDN Fixed - Mobile | F157: 4000000 | G157: norte
A158: Libertad | B158: Incoming | C158: LDN | D158: Mobile - Mobile | E158: Incoming LDN Mobile - Mobile | F158: 5000000 | G158: norte
A159: Libertad | B159: Incoming | C159: Local | D159: Fixed - Mobile | E159: Incoming Local Fixed - Mobile | F159: 10000000 | G159: norte
A160: Libertad | B160: Incoming | C160: Local | D160: Mobile - Mobile | E160: Incoming Local Mobile - Mobile | F160: 17000000 | G160: norte
A161: Libertad | B161: On-net | C161: LDN | D161: Mobile - Mobile | E161: On-net LDN Mobile - Mobile | F161: 9000000 | G161: norte
A162: Libertad | B162: On-net | C162: Local | D162: Mobile - Mobile | E162: On-net Local Mobile - Mobile | F162: 200000000 | G162: norte
A163: Libertad | B163: Outgoing | C163: LDI | E163: Outgoing LDI | F163: 750000 | G163: norte
A164: Libertad | B164: Outgoing | C164: LDN | D164: Mobile - Fixed | E164: Outgoing LDN Mobile - Fixed | F164: 1500000 | G164: norte
A165: Libertad | B165: Outgoing | C165: LDN | D165: Mobile - Mobile | E165: Outgoing LDN Mobile - Mobile | F165: 5000000 | G165: norte
A166: Libertad | B166: Outgoing | C166: Local | D166: Mobile - Fixed | E166: Outgoing Local Mobile - Fixed | F166: 7000000 | G166: norte
A167: Libertad | B167: Outgoing | C167: Local | D167: Mobile - Mobile | E167: Outgoing Local Mobile - Mobile | F167: 18000000 | G167: norte
A168: Lima | B168: Incoming | C168: LDI | E168: Incoming LDI | F168: 60000000 | G168: Lima y centro
A169: Lima | B169: Incoming | C169: LDN | D169: Fixed - Mobile | E169: Incoming LDN Fixed - Mobile | F169: 12000000 | G169: Lima y centro
A170: Lima | B170: Incoming | C170: LDN | D170: Mobile - Mobile | E170: Incoming LDN Mobile - Mobile | F170: 40000000 | G170: Lima y centro
A171: Lima | B171: Incoming | C171: Local | D171: Fixed - Mobile | E171: Incoming Local Fixed - Mobile | F171: 300000000 | G171: Lima y centro
A172: Lima | B172: Incoming | C172: Local | D172: Mobile - Mobile | E172: Incoming Local Mobile - Mobile | F172: 400000000 | G172: Lima y centro
A173: Lima | B173: On-net | C173: LDN | D173: Mobile - Mobile | E173: On-net LDN Mobile - Mobile | F173: 80000000 | G173: Lima y centro
A174: Lima | B174: On-net | C174: Local | D174: Mobile - Mobile | E174: On-net Local Mobile - Mobile | F174: 2500000000 | G174: Lima y centro
A175: Lima | B175: Outgoing | C175: LDI | E175: Outgoing LDI | F175: 20000000 | G175: Lima y centro
A176: Lima | B176: Outgoing | C176: LDN | D176: Mobile - Fixed | E176: Outgoing LDN Mobile - Fixed | F176: 18000000 | G176: Lima y centro
A177: Lima | B177: Outgoing | C177: LDN | D177: Mobile - Mobile | E177: Outgoing LDN Mobile - Mobile | F177: 40000000 | G177: Lima y centro
A178: Lima | B178: Outgoing | C178: Local | D178: Mobile - Fixed | E178: Outgoing Local Mobile - Fixed | F178: 150000000 | G178: Lima y centro
A179: Lima | B179: Outgoing | C179: Local | D179: Mobile - Mobile | E179: Outgoing Local Mobile - Mobile | F179: 220000000 | G179: Lima y centro
A180: Loreto | B180: Incoming | C180: LDI | E180: Incoming LDI | F180: 15000 | G180: Lima y centro
A181: Loreto | B181: Incoming | C181: LDN | D181: Fixed - Mobile | E181: Incoming LDN Fixed - Mobile | F181: 2500000 | G181: Lima y centro
A182: Loreto | B182: Incoming | C182: LDN | D182: Mobile - Mobile | E182: Incoming LDN Mobile - Mobile | F182: 1000000 | G182: Lima y centro
A183: Loreto | B183: Incoming | C183: Local | D183: Fixed - Mobile | E183: Incoming Local Fixed - Mobile | F183: 15000000 | G183: Lima y centro
A184: Loreto | B184: Incoming | C184: Local | D184: Mobile - Mobile | E184: Incoming Local Mobile - Mobile | F184: 40000 | G184: Lima y centro
A185: Loreto | B185: On-net | C185: LDN | D185: Mobile - Mobile | E185: On-net LDN Mobile - Mobile | F185: 4000000 | G185: Lima y centro
A186: Loreto | B186: On-net | C186: Local | D186: Mobile - Mobile | E186: On-net Local Mobile - Mobile | F186: 25000000 | G186: Lima y centro
A187: Loreto | B187: Outgoing | C187: LDI | E187: Outgoing LDI | F187: 110000 | G187: Lima y centro
A188: Loreto | B188: Outgoing | C188: LDN | D188: Mobile - Fixed | E188: Outgoing LDN Mobile - Fixed | F188: 500000 | G188: Lima y centro
A189: Loreto | B189: Outgoing | C189: LDN | D189: Mobile - Mobile | E189: Outgoing LDN Mobile - Mobile | F189: 1400000 | G189: Lima y centro
A190: Loreto | B190: Outgoing | C190: Local | D190: Mobile - Fixed | E190: Outgoing Local Mobile - Fixed | F190: 2000000 | G190: Lima y centro
A191: Loreto | B191: Outgoing | C191: Local | D191: Mobile - Mobile | E191: Outgoing Local Mobile - Mobile | F191: 2500000 | G191: Lima y centro
A192: Madre De Dios | B192: Incoming | C192: LDI | E192: Incoming LDI | F192: 390000 | G192: Lima y centro
A193: Madre De Dios | B193: Incoming | C193: LDN | D193: Fixed - Mobile | E193: Incoming LDN Fixed - Mobile | F193: 400000 | G193: Lima y centro
A194: Madre De Dios | B194: Incoming | C194: LDN | D194: Mobile - Mobile | E194: Incoming LDN Mobile - Mobile | F194: 600000 | G194: Lima y centro
A195: Madre De Dios | B195: Incoming | C195: Local | D195: Fixed - Mobile | E195: Incoming Local Fixed - Mobile | F195: 1600000 | G195: Lima y centro
A196: Madre De Dios | B196: Incoming | C196: Local | D196: Mobile - Mobile | E196: Incoming Local Mobile - Mobile | F196: 300000 | G196: Lima y centro
A197: Madre De Dios | B197: On-net | C197: LDN | D197: Mobile - Mobile | E197: On-net LDN Mobile - Mobile | F197: 8000000 | G197: Lima y centro
A198: Madre De Dios | B198: On-net | C198: Local | D198: Mobile - Mobile | E198: On-net Local Mobile - Mobile | F198: 25000000 | G198: Lima y centro
A199: Madre De Dios | B199: Outgoing | C199: LDI | E199: Outgoing LDI | F199: 90000 | G199: Lima y centro
A200: Madre De Dios | B200: Outgoing | C200: LDN | D200: Mobile - Fixed | E200: Outgoing LDN Mobile - Fixed | F200: 700000 | G200: Lima y centro
A201: Madre De Dios | B201: Outgoing | C201: LDN | D201: Mobile - Mobile | E201: Outgoing LDN Mobile - Mobile | F201: 3000000 | G201: Lima y centro
A202: Madre De Dios | B202: Outgoing | C202: Local | D202: Mobile - Fixed | E202: Outgoing Local Mobile - Fixed | F202: 7000000 | G202: Lima y centro
A203: Madre De Dios | B203: Outgoing | C203: Local | D203: Mobile - Mobile | E203: Outgoing Local Mobile - Mobile | F203: 900000 | G203: Lima y centro
A204: Moquegua | B204: Incoming | C204: LDI | E204: =B204&" "&" "&C204&" "&D204 -> Incoming LDI | F204: 800000 | G204: sur
A205: Moquegua | B205: Incoming | C205: LDN | D205: Fixed - Mobile | E205: Incoming LDN Fixed - Mobile | F205: 1200000 | G205: =+IF(OR(A205="amazonas",A205="Ancash",A205="Cajamarca",A205="Lambayeque",A205="Libertad",A205="Piura",A205="San Martin",A205="Tumbes"),"norte",IF(OR(A205="Apurimac",A205="Arequipa",A205="Cusco",A205="Moquegua",A205="Puno",A205="Tacna"),"sur","Lima y centro")) -> sur
A206: Moquegua | B206: Incoming | C206: LDN | D206: Mobile - Mobile | E206: Incoming LDN Mobile - Mobile | F206: 5000 | G206: sur
A207: Moquegua | B207: Incoming | C207: Local | D207: Fixed - Mobile | E207: Incoming Local Fixed - Mobile | F207: 3800000 | G207: sur
... 93 more rows

Sheet Usuarios
B1: Líneas móviles en servicio a 2008
C3: LÍNEAS
B4: CLARO | C4: 2008 | D4: POSTPAGO | E4: CONTROL | F4: PREPAGO | G4: TOTAL | H4: DISTRIBUCIÓN | L4: POSTPAGO | M4: CONTROL | N4: PREPAGO | O4: TOTAL | P4: DISTRIBUCIÓN
B5: Amazonas | C5: =+G5 -> 15570 | D5: 500 | E5: 70 | F5: 15000 | G5: =SUM(D5:F5) -> 15570 | H5: =+C5/$C$29 -> 0.002174925774 | I5: =+IF(OR(B5="amazonas",B5="Ancash",B5="Cajamarca",B5="Lambayeque",B5="Libertad",B5="Piura",B5="San Martin",B5="Tumbes"),"norte",IF(OR(B5="Apurimac",B5="Arequipa",B5="Cusco",B5="Moquegua",B5="Puno",B5="Tacna"),"sur","Lima y centro")) -> norte | K5: Lima y centro | L5: =+SUMIF($I$5:$I$28,K5,$D$5:$D$28) -> 526950 | M5: =+SUMIF($I$5:$I$28,K5,$E$5:$E$28) -> 62785 | N5: =+SUMIF($I$5:$I$28,K5,$F$5:$F$28) -> 4668000 | O5: =SUM(L5:N5) -> 5257735 | P5: =+O5/O8 -> 0.7344369533
B6: Ancash | C6: =+G6 -> 116900 | D6: 6000 | E6: 900 | F6: 110000 | G6: =SUM(D6:F6) -> 116900 | H6: =+C6/$C$29 -> 0.01632940417 | I6: =+IF(OR(B6="amazonas",B6="Ancash",B6="Cajamarca",B6="Lambayeque",B6="Libertad",B6="Piura",B6="San Martin",B6="Tumbes"),"norte",IF(OR(B6="Apurimac",B6="Arequipa",B6="Cusco",B6="Moquegua",B6="Puno",B6="Tacna"),"sur","Lima y centro")) -> norte | K6: Sur | L6: =+SUMIF($I$5:$I$28,K6,$D$5:$D$28) -> 88000 | M6: =+SUMIF($I$5:$I$28,K6,$E$5:$E$28) -> 13730 | N6: =+SUMIF($I$5:$I$28,K6,$F$5:$F$28) -> 930000 | O6: =SUM(L6:N6) -> 1031730 | P6: =+O6/O8 -> 0.1441192144
B7: Apurimac | C7: 31130 | D7: 1000 | E7: 130 | F7: 30000 | G7: 31130 | H7: 0.004348454678 | I7: sur | K7: Norte | L7: 71400 | M7: 13000 | N7: 785000 | O7: 869400 | P7: =+O7/O8 -> 0.1214438322
B8: Arequipa | C8: 386500 | D8: 50000 | E8: 6500 | F8: 330000 | G8: 386500 | H8: 0.05398900524 | I8: sur | L8: =SUM(L5:L7) -> 686350 | M8: 89515 | N8: 6383000 | O8: =SUM(O5:O7) -> 7158865
B9: Ayacucho | C9: 102300 | D9: 2000 | E9: 300 | F9: 100000 | G9: 102300 | H9: 0.01428997474 | I9: Lima y centro
B10: Cajamarca | C10: 55500 | D10: 15000 | E10: 500 | F10: 40000 | G10: 55500 | H10: 0.007752625591 | I10: norte
B11: Cusco | C11: 324400 | D11: 20000 | E11: 4400 | F11: 300000 | G11: 324400 | H11: 0.0453144458 | I11: sur
B12: Huancavelica | C12: 20370 | D12: 350 | E12: 20 | F12: 20000 | G12: 20370 | H12: 0.002845423122 | I12: Lima y centro
B13: Huanuco | C13: 71680 | D13: 1600 | E13: 80 | F13: 70000 | G13: 71680 | H13: 0.0100127604 | I13: Lima y centro
B14: Ica | C14: 136300 | D14: 5400 | E14: 900 | F14: 130000 | G14: 136300 | H14: 0.01903933096 | I14: Lima y centro
B15: Junin | C15: 168500 | D15: 8000 | E15: 500 | F15: 160000 | G15: 168500 | H15: 0.02353725067 | I15: Lima y centro
B16: Libertad | C16: 332800 | D16: 26000 | E16: 6800 | F16: 300000 | G16: 332800 | H16: 0.04648781616 | I16: norte
B17: Lambayeque | C17: 155400 | D17: 13000 | E17: 2400 | F17: 140000 | G17: 155400 | H17: 0.02170735165 | I17: norte
B18: Lima | C18: 4559000 | D18: 500000 | E18: 59000 | F18: 4000000 | G18: 4559000 | H18: 0.636832794 | I18: Lima y centro
B19: Loreto | C19: 75000 | D19: 3800 | E19: 1200 | F19: 70000 | G19: 75000 | H19: 0.01047652107 | I19: Lima y centro
B20: Madre de Dios | C20: 62800 | D20: 2200 | E20: 600 | F20: 60000 | G20: 62800 | H20: 0.008772340308 | I20: Lima y centro
B21: Moquegua | C21: 33500 | D21: 3000 | E21: 500 | F21: 30000 | G21: 33500 | H21: 0.004679512744 | I21: sur
B22: Pasco | C22: 20615 | D22: 600 | E22: 15 | F22: 20000 | G22: 20615 | H22: 0.002879646424 | I22: Lima y centro
B23: Piura | C23: 130000 | D23: 8000 | E23: 2000 | F23: 120000 | G23: 130000 | H23: 0.01815930319 | I23: norte
B24: Puno | C24: 198700 | D24: 8000 | E24: 700 | F24: 190000 | G24: 198700 | H24: 0.02775579648 | I24: sur
B25: San Martin | C25: 52230 | D25: 2000 | E25: 230 | F25: 50000 | G25: 52230 | H25: 0.007295849272 | I25: norte
B26: Tacna | C26: 57500 | D26: 6000 | E26: 1500 | F26: 50000 | G26: 57500 | H26: 0.008031999486 | I26: sur
B27: Tumbes | C27: 11000 | D27: 900 | E27: 100 | F27: 10000 | G27: 11000 | H27: 0.001536556423 | I27: norte
B28: Ucayali | C28: 41170 | D28: 3000 | E28: 170 | F28: 38000 | G28: 41170 | H28: 0.005750911632 | I28: Lima y centro
B29: PERÚ | C29: =SUM(C5:C28) -> 7158865 | D29: =SUM(D5:D28) -> 686350 | E29: =SUM(E5:E28) -> 89515 | F29: =SUM(F5:F28) -> 6383000 | G29: 7158865 | H29: 1

Sheet Core Network
H4: Costo
C5: Lima y centro | D5: Numero de equipos | E5: Cost drivers | F5: Total | H5: Equipos LIMA Y CENTRO | I5: Edificios | J5: Energía | K5: Total
C6: MGW/OSR | D6: =I64 -> 5 | E6: per Erlang | F6: =J64 -> 49500 | H6: =+F6*'Core Network - Input Cost'!F5 -> 7441579.327 | I6: =+D6*SUM('Core Network - Input Cost'!D30:E30) -> 374400 | J6: =+D6*SUM('Core Network - Input Cost'!F30:H30) -> 271345.0292 | K6: =SUM(H6:J6) -> 8087324.356
C7: MSS | D7: 3 | E7: per BHCA/User | F7: =J65 -> 3300000 | H7: =+F7*'Core Network - Input Cost'!F6 -> 12107903.5 | I7: =+D7*SUM('Core Network - Input Cost'!D31:E31) -> 374400 | J7: =+D7*SUM('Core Network - Input Cost'!F31:H31) -> 101754.386 | K7: =SUM(H7:J7) -> 12584057.89
C8: Transcoder | D8: 2 | E8: per TCSM | F8: =+D8 -> 2 | H8: =+F8*'Core Network - Input Cost'!F7 -> 125834 | K8: 125834
C9: BSC | D9: =I67 -> 1 | E9: per TRX | F9: =J67 -> 540 | H9: =+F9*'Core Network - Input Cost'!F8 -> 1595885.564 | I9: =+D9*SUM('Core Network - Input Cost'!D32:E32) -> 74880 | J9: =+D9*SUM('Core Network - Input Cost'!F32:H32) -> 11871.34503 | K9: 1682636.909
C10: HLR | D10: =I68 -> 4 | E10: per BHCA/User | F10: =J68 -> 8400000 | H10: =+F10*'Core Network - Input Cost'!F9 -> 10096800 | I10: =+D10*SUM('Core Network - Input Cost'!D33:E33) -> 499200 | J10: =+D10*SUM('Core Network - Input Cost'!F33:H33) -> 162807.0175 | K10: 10758807.02
C11: IN Prepago | D11: 1 | E11: per BHCA/User | F11: 2300000 | H11: 0 | I11: 0 | J11: 0 | K11: 0
C12: IN Corporativo | D12: 1 | E12: per BHCA | F12: 1300000 | H12: 0 | I12: 0 | J12: 0 | K12: 0
C13: VMS | D13: 3 | E13: per User | F13: 5400000 | H13: 0 | I13: 0 | J13: 0 | K13: 0
C14: STP | D14: 1 | E14: per MSU/seg | F14: 23000 | H14: =+F14*'Core Network - Input Cost'!F13 -> 1840000 | I14: =+D14*SUM('Core Network - Input Cost'!D37:E37) -> 74880 | J14: =+D14*SUM('Core Network - Input Cost'!F37:H37) -> 11871.34503 | K14: 1926751.345
H15: =SUM(H6:H14) -> 33208002.39 | I15: 1397760 | J15: 559649.1228 | K15: =SUM(K6:K14) -> 35165411.51
C17: Sur | D17: Numero de equipos | E17: Cost drivers | F17: Total | H17: Equipos SUR | I17: Edificios | J17: Energía | K17: Total
C18: MGW/OSR | D18: =I76 -> 1 | E18: per Erlang | F18: =J76 -> 9900 | H18: =+F18*'Core Network - Input Cost'!F5 -> 1488315.865 | I18: =+D18*SUM('Core Network - Input Cost'!D30:E30) -> 74880 | J18: =+D18*SUM('Core Network - Input Cost'!F30:H30) -> 54269.00585 | K18: =SUM(H18:J18) -> 1617464.871
C19: MSS | D19: =I77 -> 1 | E19: per BHCA/User | F19: =J77 -> 1100000 | H19: =+F19*'Core Network - Input Cost'!F6 -> 4035967.833 | I19: =+D19*SUM('Core Network - Input Cost'!D31:E31) -> 124800 | J19: =+D19*SUM('Core Network - Input Cost'!F31:H31) -> 33918.12865 | K19: 4194685.962
C20: Transcoder | D20: =I78 -> 2 | E20: per TCSM | F20: =+D20 -> 2 | H20: =+F20*'Core Network - Input Cost'!F7 -> 125834 | K20: 125834
C21: BSC | D21: =I79 -> 1 | E21: per TRX | F21: =J79 -> 540 | H21: =+F21*'Core Network - Input Cost'!F8 -> 1595885.564 | I21: =+D21*SUM('Core Network - Input Cost'!D32:E32) -> 74880 | J21: =+D21*SUM('Core Network - Input Cost'!F32:H32) -> 11871.34503 | K21: 1682636.909
C22: HLR | D22: 1 | E22: per BHCA/User | F22: =J80 -> 2100000 | H22: =+F22*'Core Network - Input Cost'!F9 -> 2524200 | I22: =+D22*SUM('Core Network - Input Cost'!D33:E33) -> 124800 | J22: =+D22*SUM('Core Network - Input Cost'!F33:H33) -> 40701.75439 | K22: 2689701.754
B23: Se utiliza parte de la capacidad de HLR de Lima | C23: IN Prepago | D23: 1 | E23: per BHCA/User | F23: 2300000 | H23: 0 | I23: 0 | J23: 0 | K23: 0
C24: VMS | D24: 1 | E24: per User | F24: 1800000 | H24: 0 | I24: 0 | J24: 0 | K24: 0
C25: STP | D25: 1 | E25: per MSU/seg | F25: 23000 | H25: =+F25*'Core Network - Input Cost'!F13 -> 1840000 | I25: =+D25*SUM('Core Network - Input Cost'!D37:E37) -> 74880 | J25: =+D25*SUM('Core Network - Input Cost'!F37:H37) -> 11871.34503 | K25: 1926751.345
H26: =SUM(H18:H25) -> 11610203.26 | I26: 474240 | J26: 152631.5789 | K26: =SUM(K18:K25) -> 12237074.84
C28: Norte | D28: Numero de equipos | E28: Cost drivers | F28: Total | H28: Equipos NORTE | I28: Edificios | J28: Energía | K28: Total
C29: MGW/OSR | D29: =I87 -> 1 | E29: per Erlang | F29: =J87 -> 9900 | H29: =+F29*'Core Network - Input Cost'!F5 -> 1488315.865 | I29: =+D29*SUM('Core Network - Input Cost'!D30:E30) -> 74880 | J29: =+D29*SUM('Core Network - Input Cost'!F30:H30) -> 54269.00585 | K29: =SUM(H29:J29) -> 1617464.871
C30: MSS | D30: 1 | E30: per BHCA/User | F30: =J88 -> 1100000 | H30: =+F30*'Core Network - Input Cost'!F6 -> 4035967.833 | I30: =+D30*SUM('Core Network - Input Cost'!D31:E31) -> 124800 | J30: =+D30*SUM('Core Network - Input Cost'!F31:H31) -> 33918.12865 | K30: 4194685.962
C31: Transcoder | D31: 1 | E31: per TCSM | F31: =+D31 -> 1 | H31: =+F31*'Core Network - Input Cost'!F7 -> 62917 | K31: 62917
C32: BSC | D32: 1 | E32: per TRX | F32: =J90 -> 540 | H32: =+F32*'Core Network - Input Cost'!F8 -> 1595885.564 | I32: =+D32*SUM('Core Network - Input Cost'!D32:E32) -> 74880 | J32: =+D32*SUM('Core Network - Input Cost'!F32:H32) -> 11871.34503 | K32: 1682636.909
C33: HLR | D33: 1 | E33: per BHCA/User | F33: =J91 -> 2100000 | H33: =+F33*'Core Network - Input Cost'!F9 -> 2524200 | I33: =+D33*SUM('Core Network - Input Cost'!D33:E33) -> 124800 | J33: =+D33*SUM('Core Network - Input Cost'!F33:H33) -> 40701.75439 | K33: 2689701.754
B34: Se utiliza parte de la capacidad de HLR de Lima | C34: IN Prepago | D34: 1 | E34: per BHCA/User | F34: =J92 -> 2300000 | H34: 0 | I34: 0 | J34: 0 | K34: 0
B35: Se utiliza la IN de Lima | C35: VMS | D35: 1 | E35: per User | F35: =J93 -> 1800000 | H35: 0 | I35: 0 | J35: 0 | K35: 0
C36: STP | D36: 1 | E36: per MSU/seg | F36: =J94 -> 23000 | H36: =+F36*'Core Network - Input Cost'!F13 -> 1840000 | I36: =+D36*SUM('Core Network - Input Cost'!D37:E37) -> 74880 | J36: =+D36*SUM('Core Network - Input Cost'!F37:H37) -> 11871.34503 | K36: 1926751.345
H37: =SUM(H29:H36) -> 11547286.26 | I37: =SUM(I29:I36) -> 474240 | J37: =SUM(J29:J36) -> 152631.5789 | K37: =SUM(K29:K36) -> 12174157.84
H38: =SUM(H15,H26,H37) -> 56365491.92 | I38: 2346240 | J38: 864912.2807 | K38: =SUM(K15,K26,K37) -> 59576644.2
C41: TOTAL | D41: Total Equipos | E41: Cost drivers | F41: Cap. Utilizada | G41: Capacidad Total | H41: % uso
C42: MGW/OSR | D42: =SUM(I64,I76,I87) -> 7 | E42: per Erlang | F42: =SUM(F64,F76,F87) -> 40635.20972 | G42: =SUM(J64,J76,J87) -> 69300 | H42: =+F42/G42 -> 0.5863666627
C43: MSS | D43: 5 | E43: per User | F43: 2786414.381 | G43: 5500000 | H43: 0.5066207965
C44: Transcoder | D44: 5 | E44: per Channel | F44: 2918.475 | G44: 4750 | H44: 0.6144157895
C45: BSC | D45: 3 | E45: per TRX | F45: 545 | G45: 1620 | H45: 0.3364197531
C46: HLR | D46: 6 | E46: per User | F46: 7158865 | G46: 12600000 | H46: 0.5681638889
C47: IN Prepago | D47: 3 | E47: per User | F47: 2519269.308 | G47: 6900000 | H47: 0.365111494
C48: IN Corporativo | D48: =+I70 -> 1 | E48: per BHCA | G48: =+J70 -> 1300000
C49: VMS | D49: =SUM(I71,I82,I93) -> 5 | E49: per casilla | F49: =SUM(F71,F82,F93) -> 7158865 | G49: =SUM(J71,J82,J93) -> 9000000 | H49: =+F49/G49 -> 0.7954294444
C50: STP | D50: =SUM(I72,I83,I94) -> 3 | E50: per MSU/seg | F50: =SUM(F72,F83,F94) -> 22996.90614 | G50: =SUM(J72,J83,J94) -> 69000 | H50: =+F50/G50 -> 0.3332884948
C54: Concepto | D54: Parámetro | F54: Duración Ll. (seg) | G54: 52.5
C55: Líneas en servicio | D55: =+Usuarios!C29 -> 7158865 | G55: BHCA | H55: Erlangs
C56: Erlangs (red de acceso) | D56: ='Traffic data'!K15 -> 40635.20972 | F56: BHCA a Erlangs | G56: 1 | H56: =+G56*G54/3600 -> 0.01458333333
C57: TRX | D57: =+'Cellsite - BTS'!W32 -> 545 | G57: Erlangs | H57: BHCA
C58: MSU/Seg/User | D58: =0.008248*D59/14.5741 -> 0.003212367623 | F58: Erlangs a BHCA | G58: =+D59/1000 -> 0.00567620841 | H58: =+G58*3600/G54 -> 0.3892257196
C59: mErl/Sub | D59: =+(D56/D55)*1000 -> 5.67620841
C60: BHCA/Sub | D60: =+H58 -> 0.3892257196
C61: % uso | D61: 0.77
C63: Lima y Centro | D63: Cost drivers | E63: Capacidad | F63: Cap. Utilizada | G63: % uso | H63: Cap. Requerida | I63: Cantidad | J63: Capacidad Total | K63: % uso
C64: MGW/OSR | D64: per Erlang | E64: =+D101 -> 9900 | F64: =+$D$56*'Traffic data'!$I$19 -> 30679.98056 | G64: 0.7 | H64: =+F64/G64 -> 43828.54365 | I64: =+ROUNDUP(H64/E64,0) -> 5 | J64: =+I64*E64 -> 49500 | K64: =+F64/J64 -> 0.619797587
C65: MSS | D65: per BHCA/User | E65: 1100000 | F65: =+Usuarios!O5*D60 -> 2046445.689 | G65: 0.88 | H65: =+F65/G65 -> 2325506.464 | I65: 3 | J65: 3300000 | K65: 0.6201350572
C66: Transcoder | D66: per Channel | E66: 950 | F66: =+'Cellsite - BTS'!AC8*Erlangs_x_TRX*Utilización*(100%-Factor_Compensación) -> 1328.04 | G66: 0.82 | H66: =+F66/G66 -> 1619.560976 | I66: 2 | J66: 1900 | K66: 0.6989684211
C67: BSC | D67: per TRX | E67: 540 | F67: =+'Cellsite - BTS'!AC8 -> 248 | G67: 0.85 | H67: =+F67/G67 -> 291.7647059 | I67: 1 | J67: 540 | K67: 0.4592592593
C68: HLR | D68: per User | E68: 2100000 | F68: =+Usuarios!O5 -> 5257735 | H68: =+F68*(100%+Margen_adicional) -> 6835055.5 | I68: 4 | J68: 8400000 | K68: 0.6259208333
C69: IN Prepago | D69: per BHCA/User | E69: 2300000 | F69: =(Usuarios!M5+Usuarios!N5)*D60 -> 1841343.196 | H69: =+F69*(100%+Margen_tráfico) -> 2209611.835 | I69: 1 | J69: 2300000 | K69: 0.8005839982
C70: IN Corporativo | D70: per BHCA | E70: 1300000 | F70: =+Usuarios!L5*D60 -> 205102.4929 | H70: =+F70 -> 205102.4929 | I70: 1 | J70: 1300000 | K70: 0.1577711484
C71: VMS | D71: per casilla | E71: 1800000 | F71: =+Usuarios!O5 -> 5257735 | H71: =+F71 -> 5257735 | I71: 3 | J71: 5400000 | K71: 0.9736546296
C72: STP | D72: per MSU/seg | E72: 23000 | F72: =+$D$58*$D$55*Usuarios!P5 -> 16889.77768 | H72: =+F72 -> 16889.77768 | I72: 1 | J72: 23000 | K72: 0.7343381601
C75: Sur | D75: Cost drivers | E75: Capacidad | F75: Cap. Utilizada | G75: % uso | H75: Cap. Requerida | I75: Cantidad | J75: Capacidad Total | K75: % uso
C76: MGW/OSR | D76: per Erlang | E76: =+D101 -> 9900 | F76: =+$D$56*'Traffic data'!$I$18 -> 5360.520833 | G76: 0.7 | H76: =+F76/G76 -> 7657.886905 | I76: =+ROUNDUP(H76/E76,0) -> 1 | J76: =+I76*E76 -> 9900 | K76: =+F76/J76 -> 0.5414667508
C77: MSS | D77: per BHCA/User | E77: =+D102 -> 1100000 | F77: =+Usuarios!O6*D60 -> 401575.8517 | G77: 0.88 | H77: =+F77/G77 -> 456336.1951 | I77: 1 | J77: 1100000 | K77: 0.3650689561
C78: Transcoder | D78: per TCSM | E78: 950 | F78: ='Cellsite - BTS'!AC9*Erlangs_x_TRX*Utilización*(100%-Factor_Compensación) -> 894.285 | G78: 0.91 | H78: =+F78/G78 -> 982.7307692 | I78: 2 | J78: 1900 | K78: 0.4706763158
C79: BSC | D79: per TRX | E79: 540 | F79: =+'Cellsite - BTS'!AC9 -> 167 | G79: 0.93 | H79: =+F79/G79 -> 179.5698925 | I79: 1 | J79: 540 | K79: 0.3092592593
C80: HLR | D80: per User | E80: 2100000 | F80: =+Usuarios!O6 -> 1031730 | H80: =+F80*(100%+Margen_adicional) -> 1341249 | I80: 1 | J80: 2100000 | K80: 0.4913
C81: IN Prepago | D81: per BHCA/User | E81: 2300000 | F81: =(Usuarios!M6+Usuarios!N6)*D60 -> 367323.9883 | H81: =+F81*(100%+Margen_tráfico) -> 440788.786 | I81: 1 | J81: 2300000 | K81: 0.1597060819
C82: VMS | D82: per User | E82: =+D108 -> 1800000 | F82: =+Usuarios!O6 -> 1031730 | H82: =+F82 -> 1031730 | I82: 1 | J82: 1800000 | K82: 0.5731833333
C83: STP | D83: per MSU/seg | E83: =+D109 -> 23000 | F83: =+$D$58*$D$55*Usuarios!P6 -> 3314.296047 | H83: =+F83 -> 3314.296047 | I83: 1 | J83: 23000 | K83: 0.1440998281
C86: Norte | D86: Cost drivers | E86: Capacidad | F86: Cap. Utilizada | G86: % uso | H86: Cap. Requerida | I86: Cantidad | J86: Capacidad Total | K86: % uso
C87: MGW/OSR | D87: per Erlang | E87: =+D101 -> 9900 | F87: =+$D$56*'Traffic data'!$I$17 -> 4594.708333 | G87: 0.7 | H87: =+F87/G87 -> 6563.869048 | I87: =+ROUNDUP(H87/E87,0) -> 1 | J87: =+I87*E87 -> 9900 | K87: =+F87/J87 -> 0.4641119529
C88: MSS | D88: per BHCA/User | E88: =+D102 -> 1100000 | F88: =+Usuarios!O7*D60 -> 338392.8406 | G88: 0.88 | H88: =+F88/G88 -> 384537.3189 | I88: 1 | J88: 1100000 | K88: 0.3076298551
C89: Transcoder | D89: per TCSM | E89: 950 | F89: ='Cellsite - BTS'!AC10*Erlangs_x_TRX*Utilización*(100%-Factor_Compensación) -> 696.15 | G89: 0.99 | H89: =+F89/G89 -> 703.1818182 | I89: 1 | J89: 950 | K89: 0.7327894737
C90: BSC | D90: per TRX | E90: 540 | F90: =+'Cellsite - BTS'!AC10 -> 130 | G90: 0.89 | H90: =+F90/G90 -> 146.0674157 | I90: 1 | J90: 540 | K90: 0.2407407407
C91: HLR | D91: per User | E91: 2100000 | F91: =+Usuarios!O7 -> 869400 | H91: =+F91*(100%+Margen_adicional) -> 1130220 | I91: 1 | J91: 2100000 | K91: 0.414
C92: IN Prepago | D92: per BHCA/User | E92: 2300000 | F92: =(Usuarios!M7+Usuarios!N7)*D60 -> 310602.1242 | H92: =+F92*(100%+Margen_tráfico) -> 372722.5491 | I92: 1 | J92: 2300000 | K92: 0.1350444018
C93: VMS | D93: per User | E93: =+D108 -> 1800000 | F93: =+$D$55*Usuarios!P7 -> 869400 | H93: =+F93 -> 869400 | I93: 1 | J93: 1800000 | K93: 0.483
C94: STP | D94: per MSU/seg | E94: =+D109 -> 23000 | F94: =+$D$58*$D$55*Usuarios!P7 -> 2792.832411 | H94: =+F94 -> 2792.832411 | I94: 1 | J94: 23000 | K94: 0.1214274961
C99: CAPACIDADES
C100: Equipo | D100: Capacidad | E100: Unidad
C101: MGW/OSR + ODF | D101: 9900 | E101: Erlang
C102: MSS | D102: 1100000 | E102: User
C103: Transcoder | D103: 950 | E103: TCH | F103: 0.85 | G103: 0.1 | H103: 7
C104: BSC | D104: 540 | E104: TRX
C105: HLR | D105: 2100000 | E105: User | F105: 0.3
C106: IN Prepago | D106: 2300000 | E106: User | F106: 0.2
C107: IN Corporativa | D107: 1300000 | E107: BHCA
C108: VMS | D108: 1800000 | E108: Casillas
C109: STP | D109: 23000 | E109: MSU/seg

Sheet Core Network - Input Cost
B2: Unit Costs
B4: ELEMENTO DE RED (NE) | C4: Unit | D4: HW/SW | E4: Instalación | F4: Subtotal per unit
B5: MGW/OSR, incluye ODF | C5: per Erlang | D5: 98.9594351 | E5: 51.3755008 | F5: 150.3349359
B6: MSS | C6: per BHCA/User | D6: 3.011380833 | E6: 0.6576808333 | F6: 3.669061667
B7: Transcoder | C7: per TCSM | D7: 52866 | E7: 10051 | F7: 62917
B8: BSC , Incluye DDF | C8: per TRX | D8: 2809.161818 | E8: 146.1818182 | F8: 2955.343636
B9: HLR | C9: per BHCA/User | D9: 1.074 | E9: 0.128 | F9: 1.202
B10: IN Prepago | C10: per BHCA/User | D10: 1.68 | E10: 1.692 | F10: 3.372
B11: IN Corporativo | C11: per BHCA | D11: 1.439394286 | E11: 0.3598485714 | F11: 1.799242857
B12: VMS | C12: per User | D12: 0.616 | E12: 0.1 | F12: 0.716
B13: STP | C13: per MSU/seg | F13: 80
B15: Nota:
B16: En los costos de Instalcion se incluye:
B17: - Servicios de Instalación del equipamiento.
B18: - Servicios de Comisionamiento del equipamiento.
B19: - Cableados coaxiales, UTP, opticos, etc
B20: - Paneles de Crossconexiones (DDF, ODF, Patch Pannels)
B21: - Servicios de Diseño, Configuración e integración
B22: - Servicios para la puesta en Operación
B26: Installation cost
D28: Installation
B29: ELEMENTO DE RED | C29: Land (m2) | D29: Land | E29: Building | F29: Power Supply DC | G29: Air Condition | H29: Power Supply AC | I29: Total
B30: MGW/OSR, incluye ODF | C30: 48 | D30: 26880 | E30: 48000 | F30: 28070.17544 | G30: 11228.07018 | H30: 14970.76023 | I30: =SUM(D30:H30) -> 129149.0058
B31: MSS | C31: 80 | D31: 44800 | E31: 80000 | F31: 17543.85965 | G31: 7017.54386 | H31: 9356.725146 | I31: =SUM(D31:H31) -> 158718.1287
B32: BSC/Transcoder , Incluye DDF | C32: 48 | D32: 26880 | E32: 48000 | F32: 6140.350877 | G32: 2456.140351 | H32: 3274.853801 | I32: 86751.34503
B33: HLR | C33: 80 | D33: 44800 | E33: 80000 | F33: 21052.63158 | G33: 8421.052632 | H33: 11228.07018 | I33: 165501.7544
B34: IN Prepago | C34: 80 | D34: 44800 | E34: 80000 | F34: 63157.89474 | G34: 25263.15789 | H34: 33684.21053 | I34: 246905.2632
B35: IN Corporativo | C35: 80 | D35: 44800 | E35: 80000 | F35: 14035.08772 | G35: 5614.035088 | H35: 7485.380117 | I35: 151934.5029
B36: VMS | C36: 48 | D36: 26880 | E36: 48000 | F36: 6140.350877 | G36: 2456.140351 | H36: 3274.853801 | I36: 86751.34503
B37: STP | C37: 48 | D37: 26880 | E37: 48000 | F37: 6140.350877 | G37: 2456.140351 | H37: 3274.853801 | I37: 86751.34503

Sheet Core 3G
B2: Equipamiento por Region
F3: Costo
B4: Equipamiento | C4: Region | D4: Numero de equipos | F4: Equipos | G4: CW - Edificios | H4: CW - Energía | I4: Total
B5: RNC Tipo 1 | C5: Lima& Centro | D5: 1 | F5: =+D5*'Core 3G Input Cost & CW'!H5 -> 641801.2 | G5: =+D5*SUM('Core 3G Input Cost & CW'!$D$25:$E$25) -> 74880 | H5: =+D5*SUM('Core 3G Input Cost & CW'!$F$25:$H$25) -> 11871.34503 | I5: =SUM(F5:H5) -> 728552.545
B6: RNC Tipo 2 | C6: Sur | D6: 1 | F6: =+D6*'Core 3G Input Cost & CW'!H6 -> 427384.38 | G6: =+D6*SUM('Core 3G Input Cost & CW'!$D$25:$E$25) -> 74880 | H6: =+D6*SUM('Core 3G Input Cost & CW'!$F$25:$H$25) -> 11871.34503 | I6: =SUM(F6:H6) -> 514135.725
B7: RNC Tipo 2 | C7: Norte | D7: 1 | F7: =+D7*'Core 3G Input Cost & CW'!H6 -> 427384.38 | G7: =+D7*SUM('Core 3G Input Cost & CW'!$D$25:$E$25) -> 74880 | H7: =+D7*SUM('Core 3G Input Cost & CW'!$F$25:$H$25) -> 11871.34503 | I7: 514135.725
F8: =+SUM(F5:F7) -> 1496569.96 | G8: =+SUM(G5:G7) -> 224640 | H8: =+SUM(H5:H7) -> 35614.03509 | I8: =+SUM(I5:I7) -> 1756823.995
B10: Equipamiento Comun e Interfuncionamiento de la Red 3G con la Red 2G
B12: Lima y centro | C12: Costo
B13: OSS - Sistema de Gestión | C13: 500000
B14: GSM / WCDMA Feature - BSC + Servicios de Implementacion | C14: 5000000
B15: Products - Video Call Features | C15: 0
B16: Products - 3G RAN Connectivity (HW) | C16: 250000
B17: Services Network Planning + Services Integration | C17: 550000
B18: Products - 3G CORE Features | C18: 350000
B19: Sub Total | C19: =SUM(C13:C18) -> 6650000
B24: Total | C24: =+C19+I8 -> 8406823.995

Sheet Core 3G Input Cost & CW
B2: Costos Unitarios
B4: ELEMENTO DE RED (NE) | C4: HW/SW | D4: ODF | E4: Instalación & Integration & Interoperability Test | F4: Miscellaneous /Installation Material RNC | G4: Diseno, Planificacion e Integración del Core Network | H4: Subtotal per unit
B5: RNC 500 Mbps | C5: 470221.88 | D5: 6802.04 | E5: 80491.6 | F5: 1785.68 | G5: 82500 | H5: =+SUM(C5:G5) -> 641801.2
B6: RNC 150 Mbps | C6: 234671.74 | D6: 6802.04 | E6: 101599.2 | F6: 1811.4 | G6: 82500 | H6: =+SUM(C6:G6) -> 427384.38
B7: OSS - Sistema de Gestión | C7: 459814.86 | D7: 0 | E7: 18683.2 | F7: 0 | G7: 27500 | H7: =+SUM(C7:G7) -> 505998.06
B10: Nota:
B11: En los costos de Instalcion se incluye:
B12: - Servicios de Instalación del equipamiento.
B13: - Servicios de Comisionamiento del equipamiento.
B14: - Cableados coaxiales, UTP, opticos, etc
B15: - Paneles de Crossconexiones (DDF, ODF, Patch Pannels)
B16: - Servicios de Diseño, Configuración e integración
B17: - Servicios para la puesta en Operación
B21: Costos de Civil Work CW
D23: Civil Work
B24: ELEMENTO DE RED | C24: Land (m2) | D24: Land | E24: Building | F24: Power Supply DC | G24: Air Condition | H24: Power Supply AC | I24: Total
B25: RNC , Incluye ODFs, OSS | C25: 48 | D25: 26880 | E25: 48000 | F25: 6140.350877 | G25: 2456.140351 | H25: 3274.853801 | I25: =SUM(D25:H25) -> 86751.34503

Sheet 3G-Nodos B Input Cost
B2: Costos de los Nodos B
B4: Nodo B | C4: Sectores
B5: Nodo B Standard | C5: 3
B6: Nodo B 1+1+1 | C6: =+C30 -> 54447.86647
B9: Nodo B | C9: Sectores
B10: Nodo B Standard | C10: 3
B11: Node B (1/1/1) - 40W - Indoor Base Band | C11: 14312.72
B12: Site Survey / Inspection | C12: 464.44
B13: Instalation & commissioning Node B | C13: 1399.71
B14: Project Management & Servicios Profesionales | C14: 797.7622184
B15: Miscellaneous/Installation Material Node | C15: 1012.183993
B16: Cluster Tunning | C16: 673.3657143
B17: Project Tunning | C17: 541.9776109
B18: Statistical analysis | C18: 328.4712969
B19: Drive Test Measurement Analysis | C19: 164.2356314
B20: RF Design Verification | C20: 315
B21: Network Dimensioning Verification | C21: 284.78
B22: Channel Elements UL Activation | C22: 7493.76
B23: Channel Elements DL Activation | C23: 9991.68
B24: Feature Package HSPA, including 45 codes | C24: 3343.92
B25: Filtro rechaza-banda para banda B | C25: 623
B26: Antenas / 3 sectores | C26: 1800
B27: Power System | C27: 3700.86
B28: Servicios de Planificación de Radiofrecuencia | C28: 3000
B29: Adecuacion del Site para soportar red 3G, soportes, refuerzo de torres/mastil, aterramiento, cableados coaxiales e incremento por Site Adquisition | C29: 4200
B30: Total | C30: =SUM(C11:C29) -> 54447.86647

Sheet Red ATM
B4: ITEM | C4: DEPARTAMENTO | D4: Ciudad | E4: Costo equipo US$ | F4: Costo Instalación US$ | G4: Costo Total US$ | K4: DEPARTAMENTO | L4: Total
B5: 1 | C5: Lima | D5: Lima | E5: 100000 | F5: =+E5*16% -> 16000 | G5: =+E5+F5 -> 116000 | K5: Amazonas | L5: =+SUMIF($C$5:$C$12,K5,$G$5:$G$12) -> 0
B6: 2 | C6: Arequipa | D6: Arequipa | E6: 100000 | F6: =+E6*16% -> 16000 | G6: =+E6+F6 -> 116000 | K6: Ancash | L6: =+SUMIF($C$5:$C$12,K6,$G$5:$G$12) -> 104400
B7: 3 | C7: Ancash | D7: Huaraz | E7: 90000 | F7: 14400 | G7: 104400 | K7: Apurimac | L7: =+SUMIF($C$5:$C$12,K7,$G$5:$G$12) -> 0
B8: 4 | C8: Madre de Dios | D8: Puerto Maldonado | E8: 90000 | F8: 14400 | G8: 104400 | K8: Arequipa | L8: =+SUMIF($C$5:$C$12,K8,$G$5:$G$12) -> 116000
B9: 5 | C9: Ucayali | D9: Pucallpa | E9: 90000 | F9: 14400 | G9: 104400 | K9: Ayacucho | L9: =+SUMIF($C$5:$C$12,K9,$G$5:$G$12) -> 0
B10: 6 | C10: Junin | D10: Huancayo | E10: 90000 | F10: 14400 | G10: 104400 | K10: Cajamarca | L10: =+SUMIF($C$5:$C$12,K10,$G$5:$G$12) -> 104400
B11: 7 | C11: La Libertad | D11: Trujillo | E11: 100000 | F11: 16000 | G11: 116000 | K11: Cusco | L11: =+SUMIF($C$5:$C$12,K11,$G$5:$G$12) -> 0
B12: 8 | C12: Cajamarca | D12: Cajamarca | E12: 90000 | F12: 14400 | G12: 104400 | K12: Huancavelica | L12: =+SUMIF($C$5:$C$12,K12,$G$5:$G$12) -> 0
F13: Total Red ATM | G13: =SUM(G5:G12) -> 870000 | K13: Huanuco | L13: =+SUMIF($C$5:$C$12,K13,$G$5:$G$12) -> 0
K14: Ica | L14: =+SUMIF($C$5:$C$12,K14,$G$5:$G$12) -> 0
K15: Junin | L15: =+SUMIF($C$5:$C$12,K15,$G$5:$G$12) -> 104400
K16: La Libertad | L16: =+SUMIF($C$5:$C$12,K16,$G$5:$G$12) -> 116000
K17: Lambayeque | L17: =+SUMIF($C$5:$C$12,K17,$G$5:$G$12) -> 0
K18: Lima | L18: =+SUMIF($C$5:$C$12,K18,$G$5:$G$12) -> 116000
K19: Loreto | L19: =+SUMIF($C$5:$C$12,K19,$G$5:$G$12) -> 0
K20: Madre de Dios | L20: =+SUMIF($C$5:$C$12,K20,$G$5:$G$12) -> 104400
K21: Moquegua | L21: =+SUMIF($C$5:$C$12,K21,$G$5:$G$12) -> 0
K22: Pasco | L22: =+SUMIF($C$5:$C$12,K22,$G$5:$G$12) -> 0
K23: Piura | L23: =+SUMIF($C$5:$C$12,K23,$G$5:$G$12) -> 0
K24: Puno | L24: =+SUMIF($C$5:$C$12,K24,$G$5:$G$12) -> 0
K25: San Martin | L25: =+SUMIF($C$5:$C$12,K25,$G$5:$G$12) -> 0
K26: Tacna | L26: =+SUMIF($C$5:$C$12,K26,$G$5:$G$12) -> 0
K27: Tumbes | L27: =+SUMIF($C$5:$C$12,K27,$G$5:$G$12) -> 0
K28: Ucayali | L28: =+SUMIF($C$5:$C$12,K28,$G$5:$G$12) -> 104400
L29: =SUM(L5:L28) -> 870000

Sheet TX - PDH MW
L3: PROPIO | M3: ALQUILADO
C4: ITEM | D4: CODIGO | E4: DEPARTAMENTO | F4: NOMBRE | G4: Site A | H4: Site B | I4: Configuración | J4: Capacidad (Mbps) | K4: Diameter Antenna | L4: Costo Enlace US$ | M4: Renta Mensual US$
C5: 1 | D5: AM1 | E5: Cusco | F5: San Pablo | G5: San Pablo | H5: Cultura | I5: 1+1 | J5: 4X2 | K5: 0.3 | L5: 23000 | P5: PROPIO | T5: ALQUILADO
C6: 2 | D6: AM2 | E6: Moquegua | F6: La Negra | G6: La Negra | H6: Almudena | I6: 1+1 | J6: 16X2 | K6: 0.3 | L6: 23000 | P6: Sum of Costo Enlace US$ | T6: Sum of Renta Mensual US$
C7: 3 | D7: AM3 | E7: Puno | F7: La Punta | G7: La Punta | H7: San Jeronimo | I7: 1+1 | J7: 4x2 | K7: 0.6 | L7: 25000 | P7: DEPARTAMENTO | Q7: Total | T7: DEPARTAMENTO | U7: Total
C8: 4 | D8: AM4 | E8: Arequipa | F8: Mariscal Castilla | G8: Mariscal Castilla | H8: La Cultura | I8: 1+1 | J8: 16x2 | K8: 1.2 | L8: 27000 | P8: Amazonas | Q8: 25000 | R8: =+SUMIF($E$5:$E$34,P8,$L$5:$L$34) -> 25000 | T8: Amazonas | V8: =+SUMIF($E$5:$E$34,T8,$M$5:$M$34) -> 0
C9: 5 | D9: AM5 | E9: Arequipa | F9: Santa Rosa | G9: Santa Rosa | H9: La Cultura | I9: 1+1 | J9: 4x2 | K9: 0.3 | L9: 23000 | P9: Ancash | Q9: 27000 | R9: 27000 | T9: Ancash | V9: 0
C10: 6 | D10: AM6 | E10: Amazonas | F10: Pinto | G10: Pinto | H10: Chircama | I10: 1+1 | J10: 16X2 | K10: 0.6 | L10: 25000 | P10: Apurimac | Q10: 27000 | R10: 27000 | T10: Apurimac | V10: 0
C11: 7 | D11: AM7 | E11: Tacna | F11: Tambo | G11: Tambo | H11: Centro | I11: 1+1 | J11: 8X2 | K11: 0.3 | L11: 23000 | P11: Arequipa | Q11: 50000 | R11: 50000 | T11: Arequipa | V11: 0
C12: 8 | D12: AM8 | E12: Ayacucho | F12: San Antonio | G12: San Antonio | H12: Mirador | I12: 1+1 | J12: 8X2 | K12: 0.3 | L12: 23000 | P12: Ayacucho | Q12: 23000 | R12: 23000 | T12: Ayacucho | V12: 0
C13: 9 | D13: AM9 | E13: Ica | F13: San Andres | G13: San Andres | H13: Curi | I13: 1+1 | J13: 16x2 | K13: 1.2 | L13: 35000 | P13: Cajamarca | Q13: 2500 | R13: 2500 | T13: Cajamarca | U13: 11089.25 | V13: 11089.25
C14: 10 | D14: AM10 | E14: Huanuco | F14: San Rafael | G14: San Rafael | H14: Cantuta | I14: 1+1 | J14: 4x2 | K14: 0.6 | L14: 25000 | P14: Cusco | Q14: 23000 | R14: 23000 | T14: Cusco | V14: 0
C15: 11 | D15: AM11 | E15: Lima | F15: Los Molinos | G15: Los Molinos | H15: Huancaro | I15: 1+1 | J15: 8x2 | K15: 0.3 | L15: 23000 | P15: Huancavelica | Q15: 35000 | R15: 35000 | T15: Huancavelica | U15: 22178.5 | V15: 22178.5
C16: 12 | D16: AM12 | E16: Lima | F16: Cerro Lindo | G16: Cerro Lindo | H16: Cultura | I16: 1+1 | J16: 16X2 | K16: 1.2 | L16: 27000 | P16: Huanuco | Q16: 25000 | R16: 25000 | T16: Huanuco | V16: 0
C17: 13 | D17: AM13 | E17: Lima | F17: Tupac Amaru | G17: Tupac Amaru | H17: Kuri | I17: 1+1 | J17: 16X2 | K17: 0.6 | L17: 25000 | P17: Ica | Q17: 35000 | R17: 35000 | T17: Ica | V17: 0
C18: 14 | D18: AM14 | E18: Lima | F18: Dos Cruces | G18: Dos Cruces | H18: Santos | I18: 1+1 | J18: 16x2 | K18: 1.2 | L18: 35000 | P18: Junin | Q18: 35000 | R18: 35000 | T18: Junin | V18: 0
C19: 15 | D19: AM15 | E19: Junin | F19: Cosmos | G19: Cosmos | H19: Yuri | I19: 1+1 | J19: 16X2 | K19: 1.2 | L19: 35000 | P19: La Libertad | Q19: 5000 | R19: 5000 | T19: La Libertad | U19: 11089.25 | V19: 11089.25
C20: 16 | D20: AM16 | E20: Loreto | F20: San Bernardo | G20: San Bernardo | H20: Tinabaya | I20: 1+1 | J20: 16X2 | K20: 1.2 | L20: 35000 | P20: Lambayeque | Q20: 46000 | R20: 46000 | T20: Lambayeque | V20: 0
C21: 17 | D21: AM17 | E21: Madre de Dios | F21: Benavides | G21: Benavides | H21: Yanaoca | I21: 1+1 | J21: 8X2 | K21: 0.3 | L21: 23000 | P21: Lima | Q21: 110000 | R21: 110000 | T21: Lima | V21: 0
C22: 18 | D22: AM18 | E22: Pasco | F22: Santa Marina | G22: Santa Marina | H22: Quilla | I22: 1+1 | J22: 4X2 | K22: 0.6 | L22: 25000 | P22: Loreto | Q22: 35000 | R22: 35000 | T22: Loreto | V22: 0
C23: 19 | D23: AM19 | E23: Apurimac | F23: Las Retamas | G23: Las Retamas | H23: Chorito | I23: 1+1 | J23: 16X2 | K23: 1.2 | L23: 27000 | P23: Madre de Dios | Q23: 23000 | R23: 23000 | T23: Madre de Dios | V23: 0
C24: 20 | D24: AM20 | E24: San Martin | F24: La Capilla | G24: La Capilla | H24: Pisaco | I24: 1+1 | J24: 16x2 | K24: 1.2 | L24: 35000 | P24: Moquegua | Q24: 23000 | R24: 23000 | T24: Moquegua | V24: 0
C25: 21 | D25: AM21 | E25: Ucayali | F25: Doña Rosa | G25: Doña Rosa | H25: Huayna | I25: 1+1 | J25: 16x2 | K25: 1.2 | L25: 35000 | P25: Pasco | Q25: 25000 | R25: 25000 | T25: Pasco | V25: 0
C26: 22 | D26: AM22 | E26: Huancavelica | F26: Credito | G26: Credito | H26: SAT | I26: No Aplica | J26: 4096 | K26: No Aplica | L26: 35000 | M26: 22178.5 | P26: Piura | Q26: 37000 | R26: 37000 | T26: Piura | V26: 0
C27: 23 | D27: AM23 | E27: Ancash | F27: San Nicolas | G27: San Nicolas | H27: Carlinho | I27: 1+1 | J27: 16x2 | K27: 1.2 | L27: 27000 | P27: Puno | Q27: 25000 | R27: 25000 | T27: Puno | V27: 0
C28: 24 | D28: AM24 | E28: Cajamarca | F28: Villaverde | G28: Villaverde | H28: SAT | I28: No Aplica | J28: 2048 | K28: No Aplica | L28: 2500 | M28: 11089.25 | P28: San Martin | Q28: 35000 | R28: 35000 | T28: San Martin | V28: 0
C29: 25 | D29: AM25 | E29: La Libertad | F29: San Marcos | G29: San Marcos | H29: SAT | I29: No Aplica | J29: 1536 | K29: No Aplica | L29: 2500 | P29: Tacna | Q29: 23000 | R29: 23000 | T29: Tacna | V29: 0
C30: 26 | D30: AM26 | E30: La Libertad | F30: Los Osos | G30: Los Osos | H30: SAT | I30: No Aplica | J30: 2048 | K30: No Aplica | L30: 2500 | M30: 11089.25 | P30: Tumbes | Q30: 27000 | R30: 27000 | T30: Tumbes | V30: 0
C31: 27 | D31: AM27 | E31: Lambayeque | F31: Gorriones | G31: Gorriones | H31: Regional | I31: 1+1 | J31: 16X2 | K31: 0.3 | L31: 23000 | P31: Ucayali | Q31: 35000 | R31: 35000 | T31: Ucayali | V31: 0
C32: 28 | D32: AM28 | E32: Lambayeque | F32: San Juan | G32: San Juan | H32: Socos | I32: 1+1 | J32: 8X2 | K32: 0.3 | L32: 23000 | P32: Total general | Q32: 756500 | R32: =SUM(R8:R31) -> 756500 | T32: Total general | U32: 44357 | V32: =SUM(V8:V31) -> 44357
C33: 29 | D33: AM29 | E33: Piura | F33: Los Heroes | G33: Los Heroes | H33: Limatambo | I33: 1+1 | J33: 16X2 | K33: 1.8 | L33: 37000
C34: 30 | D34: AM30 | E34: Tumbes | F34: Jupiter | G34: Jupiter | H34: Silvina | I34: 1+1 | J34: 16x2 | K34: 1.2 | L34: 27000
L35: =SUM(L5:L34) -> 756500 | M35: =SUM(M5:M34) -> 44357

Sheet TX - SDH
L3: PROPIO | M3: ALQUILADO
C4: ITEM | D4: CODIGO | E4: DEPARTAMENTO | F4: NOMBRE | G4: Site A | H4: Site B | I4: Configuración | J4: Capacidad (Mbps) | K4: Diameter Antenna | L4: Costo Enlace US$ | M4: Renta Mensual US$ | N4: Installation cost | O4: Replacement cost | R4: DEPARTAMENTO | S4: Total
C5: 1 | D5: AM6 | E5: Amazonas | F5: Pinto | G5: Pinto | H5: Huamachata | I5: 1+1 | J5: 155 | K5: 1.2 | L5: 61000 | N5: =+'Cellsite - Installation Costs'!$F$12 -> 110000 | O5: =L5+N5 -> 171000 | R5: Amazonas | S5: =+SUMIF($E$5:$E$14,R5,$O$5:$O$14) -> 171000
C6: 2 | D6: AM13 | E6: Lima | F6: Tupac Amaru | G6: Tupac Amaru | H6: Tercer Polo | I6: 1+1 | J6: 155 | K6: 0.6 | L6: 60000 | N6: =+'Cellsite - Installation Costs'!$F$12 -> 110000 | O6: 170000 | R6: Ancash | S6: 0
C7: 3 | D7: AM13 | E7: Lima | F7: Tupac Amaru | G7: Tupac Amaru | H7: Fuji | I7: 2+1 | J7: 155 | K7: 0.6 | L7: 65000 | N7: =+'Cellsite - Installation Costs'!$F$12 -> 110000 | O7: 175000 | R7: Apurimac | S7: 0
C8: 4 | D8: AM14 | E8: Lima | F8: Dos Cruces | G8: Dos Cruces | H8: Segundo Polo | I8: 1+1 | J8: 155 | K8: 2.4 | L8: 61000 | N8: =+'Cellsite - Installation Costs'!$F$12 -> 110000 | O8: 171000 | R8: Arequipa | S8: 0
C9: 5 | D9: AM14 | E9: Lima | F9: Dos Cruces | G9: Dos Cruces | H9: El Plomo | I9: 1+1 | J9: 155 | K9: 1.2 | L9: 61000 | N9: =+'Cellsite - Installation Costs'!$F$12 -> 110000 | O9: 171000 | R9: Ayacucho | S9: 0
C10: 6 | D10: AM17 | E10: Madre de Dios | F10: Benavides | G10: Benavides | H10: Huiracocha | I10: 1+1 | J10: 155 | K10: 0.6 | L10: 60000 | N10: =+'Cellsite - Installation Costs'!$F$12 -> 110000 | O10: 170000 | R10: Cajamarca | S10: 0
C11: 7 | D11: AM21 | E11: Ucayali | F11: Doña Rosa | G11: Doña Rosa | H11: Llacahuari | I11: 2+1 | J11: 300 | K11: 2.4 | L11: 73000 | N11: =+'Cellsite - Installation Costs'!$F$12 -> 110000 | O11: =L11+N11 -> 183000 | R11: Cusco | S11: 0
C12: 8 | D12: AM12 | E12: Lima | F12: Cerro Lindo | G12: Cerro Lindo | H12: Casapalca | I12: 3+1 | J12: 450 | K12: 2.4 | L12: 73000 | N12: =+'Cellsite - Installation Costs'!$F$12 -> 110000 | O12: =L12+N12 -> 183000 | R12: Huancavelica | S12: 0
C13: 9 | D13: AM14 | E13: Lima | F13: Dos Cruces | G13: Dos Cruces | H13: Altillo | I13: 1+1 | J13: STM-64 | K13: 21 | L13: =130000+K13*1000*16 -> 466000 | N13: =+'Cellsite - Installation Costs'!$F$12 -> 110000 | O13: 576000 | R13: Huanuco | S13: 0
C14: 10 | D14: AM27 | E14: Lambayeque | F14: Gorriones | G14: Gorriones | H14: Atuquipa | I14: 1+1 | J14: STM-64 | K14: 104.7 | L14: =120000+K14*1000*16 -> 1795200 | N14: =+'Cellsite - Installation Costs'!$F$12 -> 110000 | O14: 1905200 | R14: Ica | S14: 0
L15: =SUM(L5:L14) -> 2775200 | M15: =SUM(M5:M14) -> 0 | N15: =SUM(N5:N14) -> 1100000 | O15: =SUM(O5:O14) -> 3875200 | R15: Junin | S15: 0
R16: La Libertad | S16: 0
R17: Lambayeque | S17: 1905200
R18: Lima | S18: 1446000
R19: Loreto | S19: 0
R20: Madre de Dios | S20: 170000
R21: Moquegua | S21: 0
R22: Pasco | S22: 0
R23: Piura | S23: 0
R24: Puno | S24: 0
R25: San Martin | S25: 0
R26: Tacna | S26: 0
R27: Tumbes | S27: 0
R28: Ucayali | S28: 183000
S29: =SUM(S5:S28) -> 3875200

Sheet TX - ABIS ATER
H3: PROPIO | I3: ALQUILADO
B4: ITEM | C4: CODIGO | D4: Dpto | E4: NOMBRE | F4: Site A | G4: Site B | H4: Costo Enlace US$ | I4: Renta Mensual US$ | L4: DEPARTAMENTO | M4: Total
B5: 1 | C5: AM13 | D5: Lima | E5: Tupac Amaru | F5: =E5 -> Tupac Amaru | G5: Fuji | H5: 20000 | L5: Amazonas | M5: =+SUMIF($D$5:$D$9,L5,$H$5:$H$9) -> 0
B6: 2 | C6: AM14 | D6: Lima | E6: Dos Cruces | F6: Dos Cruces | G6: Fuji | H6: 20000 | L6: Ancash | M6: 0
B7: 3 | C7: AM17 | D7: Madre de Dios | E7: Benavides | F7: Benavides | G7: Fuji | H7: 20000 | L7: Apurimac | M7: 0
B8: 4 | C8: AM14 | D8: Lima | E8: Dos Cruces | F8: Dos Cruces | G8: Hacia Provincias | H8: =105000 -> 105000 | L8: Arequipa | M8: 0
B9: 5 | C9: AM27 | D9: Lambayeque | E9: Gorriones | F9: Gorriones | G9: Sede Trujillo | H9: 20000 | L9: Ayacucho | M9: 0
H10: =SUM(H5:H9) -> 185000 | I10: =SUM(I5:I9) -> 0 | L10: Cajamarca | M10: 0
L11: Cusco | M11: 0
L12: Huancavelica | M12: 0
L13: Huanuco | M13: 0
L14: Ica | M14: 0
L15: Junin | M15: 0
L16: La Libertad | M16: 0
L17: Lambayeque | M17: 20000
L18: Lima | M18: 145000
L19: Loreto | M19: 0
L20: Madre de Dios | M20: 20000
L21: Moquegua | M21: 0
L22: Pasco | M22: 0
L23: Piura | M23: 0
L24: Puno | M24: 0
L25: San Martin | M25: 0
L26: Tacna | M26: 0
L27: Tumbes | M27: 0
L28: Ucayali | M28: 0
M29: =SUM(M5:M28) -> 185000

Sheet TX - Rented
I3: PROPIO | J3: ALQUILADO
B4: ITEM | C4: CODIGO | D4: DEPARTAMENTO | E4: NOMBRE | F4: Site A | G4: Site B | H4: Capacidad E1 | I4: Costo Enlace US$ | J4: Renta Mensual US$ | M4: DEPARTAMENTO | N4: Total
B5: 1 | C5: AM29 | D5: Piura | E5: Los Heroes | F5: =E5 -> Los Heroes | G5: Trujillo | H5: 5 | J5: 20245.5 | K5: =#REF!/#REF! ->  | M5: Amazonas | N5: =+SUMIF($D$2:$D$7,M5,$J$2:$J$7) -> 0
B6: 2 | C6: AM12 | D6: Lima | E6: Cerro Lindo | F6: Cerro Lindo | G6: Fuji | H6: 1 | J6: 5398.8 | K6: =J5/H5 -> 4049.1 | M6: Ancash | N6: 0
B7: 3 | C7: AM3 | D7: Puno | E7: La Punta | F7: La Punta | G7: Arequipa | H7: 12 | J7: 32392.8 | K7: =#REF!/#REF! ->  | M7: Apurimac | N7: 0
I8: =SUM(I5:I7) -> 0 | J8: =SUM(J5:J7) -> 58037.1 | K8: =#REF!/#REF! ->  | M8: Arequipa | N8: 0
K9: =#REF!/#REF! ->  | M9: Ayacucho | N9: 0
K10: =#REF!/#REF! ->  | M10: Cajamarca | N10: 0
K11: =#REF!/#REF! ->  | M11: Cusco | N11: 0
K12: =#REF!/#REF! ->  | M12: Huancavelica | N12: 0
K13: =#REF!/#REF! ->  | M13: Huanuco | N13: 0
K14: =J6/H6 -> 5398.8 | M14: Ica | N14: 0
K15: =#REF!/#REF! ->  | M15: Junin | N15: 0
K16: =#REF!/#REF! ->  | M16: La Libertad | N16: 0
K17: =#REF!/#REF! ->  | M17: Lambayeque | N17: 0
K18: =#REF!/#REF! ->  | M18: Lima | N18: 5398.8
K19: =#REF!/#REF! ->  | M19: Loreto | N19: 0
K20: =#REF!/#REF! ->  | M20: Madre de Dios | N20: 0
K21: =#REF!/#REF! ->  | M21: Moquegua | N21: 0
K22: =#REF!/#REF! ->  | M22: Pasco | N22: 0
K23: =J7/H7 -> 2699.4 | M23: Piura | N23: 20245.5
K24: =#REF!/#REF! ->  | M24: Puno | N24: 32392.8
K25: =#REF!/#REF! ->  | M25: San Martin | N25: 0
K26: =#REF!/#REF! ->  | M26: Tacna | N26: 0
K27: =#REF!/#REF! ->  | M27: Tumbes | N27: 0
K28: =#REF!/#REF! ->  | M28: Ucayali | N28: 0
K29: =#REF!/#REF! ->  | N29: =SUM(N5:N28) -> 58037.1
K30: =#REF!/#REF! -> 
K31: =#REF!/#REF! -> 
K32: =#REF!/#REF! -> 
K33: =#REF!/#REF! -> 
K34: =#REF!/#REF! -> 
K35: =#REF!/#REF! -> 
K36: =#REF!/#REF! -> 
K37: =#REF!/#REF! -> 
K38: =#REF!/#REF! -> 

Sheet IT Network
B4: Interconnection billing | C4: 1802607
B5: Data Ware House | C5: 12033000
C6: =SUM(C4:C5) -> 13835607
B7: Mediation | C7: 887300
B8: Provisioning | C8: 0
B9: BSCS | C9: 0
B10: Number portability project costs | C10: 0
C11: =SUM(C7:C10) -> 887300
C12: =SUM(C11,C6) -> 14722907

Sheet Spectrum
B5: Valor de Mercado del Espectro Radioeléctrico | C5: 234677763

Sheet Tasas-Canon
B3: Pagos Recurrentes Anuales
E4: T.C. | F4: 2.924906555
B5: Tax/Royalties (Fitel, Osiptel, MTC pago anual) | E5: 25000000 | F5: =+E5/F4 -> 8547281.606
B6: Recurring Spectrum Fees (Canon pago anual) | E6: 30000000 | F6: =+E6/F4 -> 10256737.93
F7: =SUM(F5:F6) -> 18804019.53

Sheet LDN call distribution
AP4: 1 | AQ4: 2 | AR4: 3 | AS4: 4 | AT4: 5 | AU4: 6 | AV4: 7 | AW4: 9 | AX4: 8 | AY4: 10 | AZ4: 11 | BA4: 12 | BB4: 13 | BC4: 14 | BD4: 15 | BE4: 16 | BF4: 17 | BG4: 18 | BH4: 19 | BI4: 20 | BJ4: 21 | BK4: 22 | BL4: 23 | BM4: 24
D5: To | AN5: Minutos | AP5: LOC_DEST
D6: AMAZONAS | E6: SAN MARTIN | F6: ANCASH | G6: LIBERTAD | H6: PUNO | I6: TACNA | J6: MOQUEGUA | K6: AREQUIPA | L6: ICA | M6: UCAYALLI | N6: HUANUCO | O6: PASCO | P6: JUNIN | Q6: LORETO | R6: AYACUCHO | S6: HUANCAVELICA | T6: TUMBES | U6: PIURA | V6: LAMBAYEQUE | W6: CAJAMARCA | X6: MADRE DE DIOS | Y6: APURIMAC | Z6: CUSCO | AA6: LIMA | AN6: TIP_TRAFICO | AO6: LOC_ORIG | AP6: AMZ | AQ6: ANC | AR6: APU | AS6: ARQ | AT6: AYA | AU6: CAJ | AV6: CUZ | AW6: HUV | AX6: HUA | AY6: ICA | AZ6: JUN | BA6: LAM | BB6: LIB | BC6: LIM | BD6: LOR | BE6: MAD | BF6: MOQ | BG6: PAS | BH6: PIU | BI6: PUN | BJ6: SMA | BK6: TAC | BL6: TUM | BM6: UCA | BN6: Total general
B7: From | C7: AMAZONAS | D7: =+AP74 -> 0 | E7: =+AQ74 -> 0.08611711629 | F7: 0.007317587584 | G7: 0.0538041262 | H7: 0.001234937204 | I7: 0.001165120085 | J7: 0.001292376143 | K7: 0.004543195022 | L7: 0.001286669267 | M7: 0.0140652339 | N7: 0.001833503705 | O7: 0.0002412181006 | P7: 0.0007492703832 | Q7: 0.02076064276 | R7: 0.002581657516 | S7: 2.643763159e-05 | T7: 0.001917236056 | U7: 0.01695046112 | V7: 0.1487174216 | W7: 0.03752315147 | X7: 0.007826782669 | Y7: 0.0004749758476 | Z7: 0.004044645203 | AA7: 0.5855262342 | AD7: 2 | AO7: AMZ | AP7: =+AP$31*'AVM Traffic %'!D7 -> 0 | AQ7: =+AQ$31*'AVM Traffic %'!E7 -> 12217.47098 | AR7: =+AR$31*'AVM Traffic %'!F7 -> 793.0214116 | AS7: =+AS$31*'AVM Traffic %'!G7 -> 7585.335019 | AT7: =+AT$31*'AVM Traffic %'!H7 -> 4310.344828 | AU7: =+AU$31*'AVM Traffic %'!I7 -> 62648.79088 | AV7: =+AV$31*'AVM Traffic %'!J7 -> 6752.954418 | AW7: =+AW$31*'AVM Traffic %'!K7 -> 44.14036637 | AX7: =+AX$31*'AVM Traffic %'!L7 -> 3061.22449 | AY7: =+AY$31*'AVM Traffic %'!M7 -> 2148.227712 | AZ7: =+AZ$31*'AVM Traffic %'!N7 -> 1250.984571 | BA7: =+BA$31*'AVM Traffic %'!O7 -> 248299.1508 | BB7: =+BB$31*'AVM Traffic %'!P7 -> 89831.56581 | BC7: =+BC$31*'AVM Traffic %'!Q7 -> 977596.7413 | BD7: =+BD$31*'AVM Traffic %'!R7 -> 34662.04506 | BE7: =+BE$31*'AVM Traffic %'!S7 -> 13067.62496 | BF7: =+BF$31*'AVM Traffic %'!T7 -> 2157.755934 | BG7: =+BG$31*'AVM Traffic %'!U7 -> 402.7386226 | BH7: =+BH$31*'AVM Traffic %'!V7 -> 28300.55186 | BI7: =+BI$31*'AVM Traffic %'!W7 -> 2061.85567 | BJ7: =+BJ$31*'AVM Traffic %'!X7 -> 143781.4522 | BK7: =+BK$31*'AVM Traffic %'!Y7 -> 1945.288754 | BL7: =+BL$31*'AVM Traffic %'!Z7 -> 3201.024328 | BM7: =+BM$31*'AVM Traffic %'!AA7 -> 23483.36595 | BN7: =SUM(AP7:BM7) -> 1669603.656 | BO7: 1
C8: SAN MARTIN | D8: =+AP75 -> 0.02978008856 | E8: 0 | F8: 0.005064919359 | G8: 0.04468908212 | H8: 0.0007692933703 | I8: 0.002419338016 | J8: 0.0005367163049 | K8: 0.005660287504 | L8: 0.001335865681 | M8: 0.04380907451 | N8: 0.01713247735 | O8: 0.0005008823797 | P8: 0.001728709098 | Q8: 0.08621774341 | R8: 0.003216442109 | S8: 5.489697412e-05 | T8: 0.0007962169966 | U8: 0.01055914206 | V8: 0.04940918503 | W8: 0.02181640557 | X8: 0.02275292164 | Y8: 0.0007890188414 | Z8: 0.002519576486 | AA8: 0.6484417166 | AD8: 3 | AO8: ANC | AP8: =+AP$31*'AVM Traffic %'!D8 -> 5986.231667 | AQ8: =+AQ$31*'AVM Traffic %'!E8 -> 0 | AR8: =+AR$31*'AVM Traffic %'!F8 -> 11895.32117 | AS8: =+AS$31*'AVM Traffic %'!G8 -> 75853.35019 | AT8: =+AT$31*'AVM Traffic %'!H8 -> 43103.44828 | AU8: =+AU$31*'AVM Traffic %'!I8 -> 45107.12943 | AV8: =+AV$31*'AVM Traffic %'!J8 -> 60776.58976 | AW8: =+AW$31*'AVM Traffic %'!K8 -> 772.4564114 | AX8: =+AX$31*'AVM Traffic %'!L8 -> 27551.02041 | AY8: =+AY$31*'AVM Traffic %'!M8 -> 26852.8464 | AZ8: =+AZ$31*'AVM Traffic %'!N8 -> 17374.78571 | BA8: =+BA$31*'AVM Traffic %'!O8 -> 99319.66033 | BB8: =+BB$31*'AVM Traffic %'!P8 -> 673736.7436 | BC8: =+BC$31*'AVM Traffic %'!Q8 -> 6517311.609 | BD8: =+BD$31*'AVM Traffic %'!R8 -> 41594.45407 | BE8: =+BE$31*'AVM Traffic %'!S8 -> 65338.1248 | BF8: =+BF$31*'AVM Traffic %'!T8 -> 17262.04747 | BG8: =+BG$31*'AVM Traffic %'!U8 -> 2013.693113 | BH8: =+BH$31*'AVM Traffic %'!V8 -> 84901.65558 | BI8: =+BI$31*'AVM Traffic %'!W8 -> 14432.98969 | BJ8: =+BJ$31*'AVM Traffic %'!X8 -> 43134.43566 | BK8: =+BK$31*'AVM Traffic %'!Y8 -> 7781.155015 | BL8: =+BL$31*'AVM Traffic %'!Z8 -> 9603.072983 | BM8: =+BM$31*'AVM Traffic %'!AA8 -> 35225.04892 | BN8: 7926927.87 | BO8: 2
C9: ANCASH | D9: =+AP76 -> 0.0007551767552 | E9: 0.005441507273 | F9: 0 | G9: 0.08499342427 | H9: 0.001820754513 | I9: 0.0009816104225 | J9: 0.002177646593 | K9: 0.009569072841 | L9: 0.003387547716 | M9: 0.004443720128 | N9: 0.003475623957 | O9: 0.0002540319713 | P9: 0.002191868779 | Q9: 0.00524723509 | R9: 0.005437598145 | S9: 9.744713514e-05 | T9: 0.001211449523 | U9: 0.01071053717 | V9: 0.0125294013 | W9: 0.005690367085 | X9: 0.008242553215 | Y9: 0.001500621851 | Z9: 0.007667105183 | AA9: 0.8221736991 | AD9: 4 | AO9: APU | AP9: =+AP$31*'AVM Traffic %'!D9 -> 598.6231667 | AQ9: =+AQ$31*'AVM Traffic %'!E9 -> 4072.490328 | AR9: =+AR$31*'AVM Traffic %'!F9 -> 0 | AS9: =+AS$31*'AVM Traffic %'!G9 -> 75853.35019 | AT9: =+AT$31*'AVM Traffic %'!H9 -> 129310.3448 | AU9: =+AU$31*'AVM Traffic %'!I9 -> 1002.380654 | AV9: =+AV$31*'AVM Traffic %'!J9 -> 844119.3022 | AW9: =+AW$31*'AVM Traffic %'!K9 -> 551.7545796 | AX9: =+AX$31*'AVM Traffic %'!L9 -> 1530.612245 | AY9: =+AY$31*'AVM Traffic %'!M9 -> 21482.27712 | AZ9: =+AZ$31*'AVM Traffic %'!N9 -> 4864.939999 | BA9: =+BA$31*'AVM Traffic %'!O9 -> 2482.991508 | BB9: =+BB$31*'AVM Traffic %'!P9 -> 4491.578291 | BC9: =+BC$31*'AVM Traffic %'!Q9 -> 1140529.532 | BD9: =+BD$31*'AVM Traffic %'!R9 -> 3466.204506 | BE9: =+BE$31*'AVM Traffic %'!S9 -> 130676.2496 | BF9: =+BF$31*'AVM Traffic %'!T9 -> 1294.65356 | BG9: =+BG$31*'AVM Traffic %'!U9 -> 402.7386226 | BH9: =+BH$31*'AVM Traffic %'!V9 -> 1698.033112 | BI9: =+BI$31*'AVM Traffic %'!W9 -> 30927.83505 | BJ9: =+BJ$31*'AVM Traffic %'!X9 -> 7189.07261 | BK9: =+BK$31*'AVM Traffic %'!Y9 -> 3890.577508 | BL9: =+BL$31*'AVM Traffic %'!Z9 -> 640.2048656 | BM9: =+BM$31*'AVM Traffic %'!AA9 -> 5870.841487 | BN9: 2416946.588 | BO9: 3
C10: LIBERTAD | D10: =+AP77 -> 0.006365915318 | E10: 0.02675766742 | F10: 0.06063109816 | G10: 0 | H10: 0.005481578112 | I10: 0.002068670937 | J10: 0.001147307047 | K10: 0.01075525819 | L10: 0.002855601917 | M10: 0.01872961915 | N10: 0.004069232731 | O10: 0.0002569696707 | P10: 0.002956288247 | Q10: 0.01105815758 | R10: 0.003666986737 | S10: 9.388004006e-05 | T10: 0.003404052989 | U10: 0.03611465642 | V10: 0.05280956219 | W10: 0.03997341763 | X10: 0.00833787249 | Y10: 0.0004216598548 | Z10: 0.008976585429 | AA10: 0.6930679617 | AD10: 5 | AO10: ARQ | AP10: =+AP$31*'AVM Traffic %'!D10 -> 2993.115834 | AQ10: =+AQ$31*'AVM Traffic %'!E10 -> 61087.35492 | AR10: =+AR$31*'AVM Traffic %'!F10 -> 79302.14116 | AS10: =+AS$31*'AVM Traffic %'!G10 -> 0 | AT10: =+AT$31*'AVM Traffic %'!H10 -> 64655.17241 | AU10: =+AU$31*'AVM Traffic %'!I10 -> 22553.56472 | AV10: =+AV$31*'AVM Traffic %'!J10 -> 1519414.744 | AW10: =+AW$31*'AVM Traffic %'!K10 -> 662.1054955 | AX10: =+AX$31*'AVM Traffic %'!L10 -> 9183.673469 | AY10: =+AY$31*'AVM Traffic %'!M10 -> 85929.10849 | AZ10: =+AZ$31*'AVM Traffic %'!N10 -> 17374.78571 | BA10: =+BA$31*'AVM Traffic %'!O10 -> 24829.91508 | BB10: =+BB$31*'AVM Traffic %'!P10 -> 56144.72863 | BC10: =+BC$31*'AVM Traffic %'!Q10 -> 3258655.804 | BD10: =+BD$31*'AVM Traffic %'!R10 -> 34662.04506 | BE10: =+BE$31*'AVM Traffic %'!S10 -> 849395.6223 | BF10: =+BF$31*'AVM Traffic %'!T10 -> 258930.7121 | BG10: =+BG$31*'AVM Traffic %'!U10 -> 1610.954491 | BH10: =+BH$31*'AVM Traffic %'!V10 -> 28300.55186 | BI10: =+BI$31*'AVM Traffic %'!W10 -> 824742.268 | BJ10: =+BJ$31*'AVM Traffic %'!X10 -> 35945.36305 | BK10: =+BK$31*'AVM Traffic %'!Y10 -> 291793.3131 | BL10: =+BL$31*'AVM Traffic %'!Z10 -> 4801.536492 | BM10: =+BM$31*'AVM Traffic %'!AA10 -> 58708.41487 | BN10: 7591676.996 | BO10: 4
C11: PUNO | D11: =+AP78 -> 0.0004077300715 | E11: 0.003264380946 | F11: 0.003698435264 | G11: 0.004079030324 | H11: 0 | I11: 0.02649923246 | J11: 0.01469675799 | K11: 0.2583235465 | L11: 0.003657965007 | M11: 0.003998706953 | N11: 0.001042520027 | O11: 0.000182873697 | P11: 0.001420103266 | Q11: 0.001573918161 | R11: 0.0146791613 | S11: 0.0001503229054 | T11: 0.0001453506369 | U11: 0.001285058411 | V11: 0.002818663341 | W11: 0.001137890965 | X11: 0.1928448241 | Y11: 0.01350343149 | Z11: 0.1916469005 | AA11: 0.2589431957 | AD11: 6 | AO11: AYA | AP11: =+AP$31*'AVM Traffic %'!D11 -> 5986.231667 | AQ11: =+AQ$31*'AVM Traffic %'!E11 -> 16289.96131 | AR11: =+AR$31*'AVM Traffic %'!F11 -> 158604.2823 | AS11: =+AS$31*'AVM Traffic %'!G11 -> 50568.90013 | AT11: =+AT$31*'AVM Traffic %'!H11 -> 0 | AU11: =+AU$31*'AVM Traffic %'!I11 -> 5011.90327 | AV11: =+AV$31*'AVM Traffic %'!J11 -> 101294.3163 | AW11: =+AW$31*'AVM Traffic %'!K11 -> 3972.632973 | AX11: =+AX$31*'AVM Traffic %'!L11 -> 9183.673469 | AY11: =+AY$31*'AVM Traffic %'!M11 -> 85929.10849 | AZ11: =+AZ$31*'AVM Traffic %'!N11 -> 34749.57142 | BA11: =+BA$31*'AVM Traffic %'!O11 -> 7448.974525 | BB11: =+BB$31*'AVM Traffic %'!P11 -> 11228.94573 | BC11: =+BC$31*'AVM Traffic %'!Q11 -> 3258655.804 | BD11: =+BD$31*'AVM Traffic %'!R11 -> 13864.81802 | BE11: =+BE$31*'AVM Traffic %'!S11 -> 130676.2496 | BF11: =+BF$31*'AVM Traffic %'!T11 -> 4315.511868 | BG11: =+BG$31*'AVM Traffic %'!U11 -> 1208.215868 | BH11: =+BH$31*'AVM Traffic %'!V11 -> 5660.110372 | BI11: =+BI$31*'AVM Traffic %'!W11 -> 20618.5567 | BJ11: =+BJ$31*'AVM Traffic %'!X11 -> 3594.536305 | BK11: =+BK$31*'AVM Traffic %'!Y11 -> 9726.443769 | BL11: =+BL$31*'AVM Traffic %'!Z11 -> 320.1024328 | BM11: =+BM$31*'AVM Traffic %'!AA11 -> 58708.41487 | BN11: 3997617.266 | BO11: 5
C12: TACNA | D12: =+AP79 -> 0.001397276934 | E12: 0.004474768498 | F12: 0.006337205233 | G12: 0.01048402249 | H12: 0.1155043852 | I12: 0 | J12: 0.06715371232 | K12: 0.1967257579 | L12: 0.005014288115 | M12: 0.01827124162 | N12: 0.003810858967 | O12: 0.0002506807483 | P12: 0.001730362687 | Q12: 0.006472516097 | R12: 0.009390263117 | S12: 3.434342849e-05 | T12: 0.0009962232683 | U12: 0.003523080787 | V12: 0.006182055897 | W12: 0.002339707924 | X12: 0.0610036228 | Y12: 0.004936084838 | Z12: 0.0683038031 | AA12: 0.405663738 | AD12: 7 | AO12: CAJ | AP12: =+AP$31*'AVM Traffic %'!D12 -> 149655.7917 | AQ12: =+AQ$31*'AVM Traffic %'!E12 -> 101812.2582 | AR12: =+AR$31*'AVM Traffic %'!F12 -> 19825.53529 | AS12: =+AS$31*'AVM Traffic %'!G12 -> 75853.35019 | AT12: =+AT$31*'AVM Traffic %'!H12 -> 38793.10345 | AU12: =+AU$31*'AVM Traffic %'!I12 -> 0 | AV12: =+AV$31*'AVM Traffic %'!J12 -> 60776.58976 | AW12: =+AW$31*'AVM Traffic %'!K12 -> 882.8073273 | AX12: =+AX$31*'AVM Traffic %'!L12 -> 29081.63265 | AY12: =+AY$31*'AVM Traffic %'!M12 -> 16111.70784 | AZ12: =+AZ$31*'AVM Traffic %'!N12 -> 20849.74285 | BA12: =+BA$31*'AVM Traffic %'!O12 -> 695237.6223 | BB12: =+BB$31*'AVM Traffic %'!P12 -> 673736.7436 | BC12: =+BC$31*'AVM Traffic %'!Q12 -> 4887983.707 | BD12: =+BD$31*'AVM Traffic %'!R12 -> 69324.09012 | BE12: =+BE$31*'AVM Traffic %'!S12 -> 65338.1248 | BF12: =+BF$31*'AVM Traffic %'!T12 -> 4315.511868 | BG12: =+BG$31*'AVM Traffic %'!U12 -> 2416.431736 | BH12: =+BH$31*'AVM Traffic %'!V12 -> 113202.2074 | BI12: =+BI$31*'AVM Traffic %'!W12 -> 51546.39175 | BJ12: =+BJ$31*'AVM Traffic %'!X12 -> 287562.9044 | BK12: =+BK$31*'AVM Traffic %'!Y12 -> 17507.59878 | BL12: =+BL$31*'AVM Traffic %'!Z12 -> 9603.072983 | BM12: =+BM$31*'AVM Traffic %'!AA12 -> 117416.8297 | BN12: 7508833.755 | BO12: 6
C13: MOQUEGUA | D13: =+AP80 -> 0.0001788369832 | E13: 0.002147715172 | F13: 0.01216645003 | G13: 0.008051078101 | H13: 0.07391682816 | I13: 0.09298392487 | J13: 0 | K13: 0.3776829083 | L13: 0.00641776972 | M13: 0.01052338405 | N13: 0.004572660926 | O13: 4.812681119e-05 | P13: 0.001245760378 | Q13: 0.004142075293 | R13: 0.002575406728 | S13: 2.637361999e-05 | T13: 0.0001912593985 | U13: 0.005072826045 | V13: 0.004450720273 | W13: 0.002994583942 | X13: 0.05465482557 | Y13: 0.003553693661 | Z13: 0.04034852184 | AA13: 0.2920542701 | AD13: 8 | AO13: CUZ | AP13: =+AP$31*'AVM Traffic %'!D13 -> 299.3115834 | AQ13: =+AQ$31*'AVM Traffic %'!E13 -> 16289.96131 | AR13: =+AR$31*'AVM Traffic %'!F13 -> 277557.4941 | AS13: =+AS$31*'AVM Traffic %'!G13 -> 581542.3515 | AT13: =+AT$31*'AVM Traffic %'!H13 -> 64655.17241 | AU13: =+AU$31*'AVM Traffic %'!I13 -> 2505.951635 | AV13: =+AV$31*'AVM Traffic %'!J13 -> 0 | AW13: =+AW$31*'AVM Traffic %'!K13 -> 198.6316486 | AX13: =+AX$31*'AVM Traffic %'!L13 -> 3061.22449 | AY13: =+AY$31*'AVM Traffic %'!M13 -> 10741.13856 | AZ13: =+AZ$31*'AVM Traffic %'!N13 -> 5559.931428 | BA13: =+BA$31*'AVM Traffic %'!O13 -> 7448.974525 | BB13: =+BB$31*'AVM Traffic %'!P13 -> 22457.89145 | BC13: =+BC$31*'AVM Traffic %'!Q13 -> 1629327.902 | BD13: =+BD$31*'AVM Traffic %'!R13 -> 13864.81802 | BE13: =+BE$31*'AVM Traffic %'!S13 -> 1960143.744 | BF13: =+BF$31*'AVM Traffic %'!T13 -> 6473.267801 | BG13: =+BG$31*'AVM Traffic %'!U13 -> 322.1908981 | BH13: =+BH$31*'AVM Traffic %'!V13 -> 5660.110372 | BI13: =+BI$31*'AVM Traffic %'!W13 -> 268041.2371 | BJ13: =+BJ$31*'AVM Traffic %'!X13 -> 1437.814522 | BK13: =+BK$31*'AVM Traffic %'!Y13 -> 25288.7538 | BL13: =+BL$31*'AVM Traffic %'!Z13 -> 640.2048656 | BM13: =+BM$31*'AVM Traffic %'!AA13 -> 23483.36595 | BN13: 4927001.444 | BO13: 7
C14: AREQUIPA | D14: =+AP81 -> 0.0003942628006 | E14: 0.004734838306 | F14: 0.008046621972 | G14: 0.007395563413 | H14: 0.1086376921 | I14: 0.03843594943 | J14: 0.03410718241 | K14: 0 | L14: 0.01131885729 | M14: 0.007733260373 | N14: 0.001209702873 | O14: 0.0002122000833 | P14: 0.002288662402 | Q14: 0.004565795552 | R14: 0.008516586316 | S14: 8.721465571e-05 | T14: 0.0006324737597 | U14: 0.0037278393 | V14: 0.003270675912 | W14: 0.002970827754 | X14: 0.1118851109 | Y14: 0.01044593193 | Z14: 0.2001421748 | AA14: 0.4292405757 | AD14: 9 | AO14: HUV | AP14: =+AP$31*'AVM Traffic %'!D14 -> 299.3115834 | AQ14: =+AQ$31*'AVM Traffic %'!E14 -> 1221.747098 | AR14: =+AR$31*'AVM Traffic %'!F14 -> 1189.532117 | AS14: =+AS$31*'AVM Traffic %'!G14 -> 10113.78003 | AT14: =+AT$31*'AVM Traffic %'!H14 -> 86206.89655 | AU14: =+AU$31*'AVM Traffic %'!I14 -> 751.7854905 | AV14: =+AV$31*'AVM Traffic %'!J14 -> 6752.954418 | AW14: =+AW$31*'AVM Traffic %'!K14 -> 0 | AX14: =+AX$31*'AVM Traffic %'!L14 -> 1530.612245 | AY14: =+AY$31*'AVM Traffic %'!M14 -> 16111.70784 | AZ14: =+AZ$31*'AVM Traffic %'!N14 -> 104248.7143 | BA14: =+BA$31*'AVM Traffic %'!O14 -> 496.5983016 | BB14: =+BB$31*'AVM Traffic %'!P14 -> 2245.789145 | BC14: =+BC$31*'AVM Traffic %'!Q14 -> 651731.1609 | BD14: =+BD$31*'AVM Traffic %'!R14 -> 3466.204506 | BE14: =+BE$31*'AVM Traffic %'!S14 -> 2613.524992 | BF14: =+BF$31*'AVM Traffic %'!T14 -> 431.5511868 | BG14: =+BG$31*'AVM Traffic %'!U14 -> 241.6431736 | BH14: =+BH$31*'AVM Traffic %'!V14 -> 849.0165558 | BI14: =+BI$31*'AVM Traffic %'!W14 -> 4123.71134 | BJ14: =+BJ$31*'AVM Traffic %'!X14 -> 1437.814522 | BK14: =+BK$31*'AVM Traffic %'!Y14 -> 972.6443769 | BL14: =+BL$31*'AVM Traffic %'!Z14 -> 960.3072983 | BM14: =+BM$31*'AVM Traffic %'!AA14 -> 5870.841487 | BN14: 903867.8494 | BO14: 8
C15: ICA | D15: =+AP82 -> 0.0005518962232 | E15: 0.004418608391 | F15: 0.0100122733 | G15: 0.006901629252 | H15: 0.004562190388 | I15: 0.002391259535 | J15: 0.002652436272 | K15: 0.03729730026 | L15: 0 | M15: 0.01154683542 | N15: 0.002257818712 | O15: 0.0002475346062 | P15: 0.002135807443 | Q15: 0.006817369037 | R15: 0.05298520924 | S15: 0.0006782480989 | T15: 0.0003934881096 | U15: 0.004174637683 | V15: 0.003052234331 | W15: 0.001540229112 | X15: 0.01606346755 | Y15: 0.01364757808 | Z15: 0.01452695214 | AA15: 0.8011449968 | AD15: 10 | AO15: HUA | AP15: =+AP$31*'AVM Traffic %'!D15 -> 5986.231667 | AQ15: =+AQ$31*'AVM Traffic %'!E15 -> 69232.33557 | AR15: =+AR$31*'AVM Traffic %'!F15 -> 3965.107058 | AS15: =+AS$31*'AVM Traffic %'!G15 -> 20227.56005 | AT15: =+AT$31*'AVM Traffic %'!H15 -> 34482.75862 | AU15: =+AU$31*'AVM Traffic %'!I15 -> 7517.854905 | AV15: =+AV$31*'AVM Traffic %'!J15 -> 33764.77209 | AW15: =+AW$31*'AVM Traffic %'!K15 -> 441.4036637 | AX15: =+AX$31*'AVM Traffic %'!L15 -> 0 | AY15: =+AY$31*'AVM Traffic %'!M15 -> 10741.13856 | AZ15: =+AZ$31*'AVM Traffic %'!N15 -> 41699.48571 | BA15: =+BA$31*'AVM Traffic %'!O15 -> 24829.91508 | BB15: =+BB$31*'AVM Traffic %'!P15 -> 33686.83718 | BC15: =+BC$31*'AVM Traffic %'!Q15 -> 3258655.804 | BD15: =+BD$31*'AVM Traffic %'!R15 -> 48526.86308 | BE15: =+BE$31*'AVM Traffic %'!S15 -> 65338.1248 | BF15: =+BF$31*'AVM Traffic %'!T15 -> 3236.633901 | BG15: =+BG$31*'AVM Traffic %'!U15 -> 72492.95207 | BH15: =+BH$31*'AVM Traffic %'!V15 -> 5660.110372 | BI15: =+BI$31*'AVM Traffic %'!W15 -> 8247.42268 | BJ15: =+BJ$31*'AVM Traffic %'!X15 -> 179726.8152 | BK15: =+BK$31*'AVM Traffic %'!Y15 -> 9726.443769 | BL15: =+BL$31*'AVM Traffic %'!Z15 -> 1280.409731 | BM15: =+BM$31*'AVM Traffic %'!AA15 -> 704500.9785 | BN15: 4643967.959 | BO15: 9
C16: UCAYALLI | D16: =+AP83 -> 0.0009765013621 | E16: 0.03518142758 | F16: 0.007971877949 | G16: 0.01099030048 | H16: 0.001345357134 | I16: 0.003173243575 | J16: 0.002111897827 | K16: 0.008249029205 | L16: 0.003504286843 | M16: 0 | N16: 0.03745206563 | O16: 0.001708110498 | P16: 0.005668508289 | Q16: 0.1470099953 | R16: 0.009843722998 | S16: 7.200377512e-05 | T16: 0.0006265987933 | U16: 0.002769908915 | V16: 0.006480590059 | W16: 0.001635128957 | X16: 0.06394951422 | Y16: 0.002587225258 | Z16: 0.008812581341 | AA16: 0.637880124 | AD16: 11 | AO16: ICA | AP16: =+AP$31*'AVM Traffic %'!D16 -> 4489.67375 | AQ16: =+AQ$31*'AVM Traffic %'!E16 -> 81449.80656 | AR16: =+AR$31*'AVM Traffic %'!F16 -> 111022.9976 | AS16: =+AS$31*'AVM Traffic %'!G16 -> 303413.4008 | AT16: =+AT$31*'AVM Traffic %'!H16 -> 431034.4828 | AU16: =+AU$31*'AVM Traffic %'!I16 -> 12529.75818 | AV16: =+AV$31*'AVM Traffic %'!J16 -> 118176.7023 | AW16: =+AW$31*'AVM Traffic %'!K16 -> 5517.545796 | AX16: =+AX$31*'AVM Traffic %'!L16 -> 18367.34694 | AY16: =+AY$31*'AVM Traffic %'!M16 -> 0 | AZ16: =+AZ$31*'AVM Traffic %'!N16 -> 17374.78571 | BA16: =+BA$31*'AVM Traffic %'!O16 -> 24829.91508 | BB16: =+BB$31*'AVM Traffic %'!P16 -> 56144.72863 | BC16: =+BC$31*'AVM Traffic %'!Q16 -> 6517311.609 | BD16: =+BD$31*'AVM Traffic %'!R16 -> 55459.2721 | BE16: =+BE$31*'AVM Traffic %'!S16 -> 130676.2496 | BF16: =+BF$31*'AVM Traffic %'!T16 -> 21577.55934 | BG16: =+BG$31*'AVM Traffic %'!U16 -> 2013.693113 | BH16: =+BH$31*'AVM Traffic %'!V16 -> 33960.66223 | BI16: =+BI$31*'AVM Traffic %'!W16 -> 37113.40206 | BJ16: =+BJ$31*'AVM Traffic %'!X16 -> 35945.36305 | BK16: =+BK$31*'AVM Traffic %'!Y16 -> 19452.88754 | BL16: =+BL$31*'AVM Traffic %'!Z16 -> 3201.024328 | BM16: =+BM$31*'AVM Traffic %'!AA16 -> 93933.4638 | BN16: 8134996.33 | BO16: 10
C17: HUANUCO | D17: =+AP84 -> 0.0012890338 | E17: 0.03870113163 | F17: 0.01490801319 | G17: 0.007253890957 | H17: 0.001775943063 | I17: 0.002094425253 | J17: 0.0006969543997 | K17: 0.004355663138 | L17: 0.002312922625 | M17: 0.1517023771 | N17: 0 | O17: 0.01561013184 | P17: 0.008979279374 | Q17: 0.01044943969 | R17: 0.007425279185 | S17: 9.504881764e-05 | T17: 0.000275714592 | U17: 0.001218809092 | V17: 0.005346702497 | W17: 0.001618842975 | X17: 0.01406946072 | Y17: 0.0008538187802 | Z17: 0.007270672922 | AA17: 0.7016964444 | AD17: 12 | AN17: INGRESO | AO17: JUN | AP17: =+AP$31*'AVM Traffic %'!D17 -> 2993.115834 | AQ17: =+AQ$31*'AVM Traffic %'!E17 -> 61087.35492 | AR17: =+AR$31*'AVM Traffic %'!F17 -> 35685.96352 | AS17: =+AS$31*'AVM Traffic %'!G17 -> 75853.35019 | AT17: =+AT$31*'AVM Traffic %'!H17 -> 387931.0345 | AU17: =+AU$31*'AVM Traffic %'!I17 -> 15035.70981 | AV17: =+AV$31*'AVM Traffic %'!J17 -> 84411.93022 | AW17: =+AW$31*'AVM Traffic %'!K17 -> 41933.34805 | AX17: =+AX$31*'AVM Traffic %'!L17 -> 96428.57143 | AY17: =+AY$31*'AVM Traffic %'!M17 -> 32223.41568 | AZ17: =+AZ$31*'AVM Traffic %'!N17 -> 0 | BA17: =+BA$31*'AVM Traffic %'!O17 -> 24829.91508 | BB17: =+BB$31*'AVM Traffic %'!P17 -> 67373.67436 | BC17: =+BC$31*'AVM Traffic %'!Q17 -> 8146639.511 | BD17: =+BD$31*'AVM Traffic %'!R17 -> 34662.04506 | BE17: =+BE$31*'AVM Traffic %'!S17 -> 104540.9997 | BF17: =+BF$31*'AVM Traffic %'!T17 -> 4315.511868 | BG17: =+BG$31*'AVM Traffic %'!U17 -> 24164.31736 | BH17: =+BH$31*'AVM Traffic %'!V17 -> 16980.33112 | BI17: =+BI$31*'AVM Traffic %'!W17 -> 20618.5567 | BJ17: =+BJ$31*'AVM Traffic %'!X17 -> 35945.36305 | BK17: =+BK$31*'AVM Traffic %'!Y17 -> 15562.31003 | BL17: =+BL$31*'AVM Traffic %'!Z17 -> 3201.024328 | BM17: =+BM$31*'AVM Traffic %'!AA17 -> 410958.9041 | BN17: 9743376.258 | BO17: 11
C18: PASCO | D18: =+AP85 -> 0.0003276522535 | E18: 0.003934889213 | F18: 0.004458098876 | G18: 0.004916868677 | H18: 0.002821356132 | I18: 0.001064740357 | J18: 0.0002362065598 | K18: 0.01107141521 | L18: 0.003527452779 | M18: 0.03213364518 | N18: 0.03769965157 | O18: 0 | P18: 0.04564785068 | Q18: 0.00569160925 | R18: 0.007077712364 | S18: 0.0006039981125 | T18: 0.001752058545 | U18: 0.001549011149 | V18: 0.002038572365 | W18: 0.00137161531 | X18: 0.01430494844 | Y18: 0.008681095789 | Z18: 0.006468320135 | AA18: 0.8026212311 | AD18: 13 | AO18: LAM | AP18: =+AP$31*'AVM Traffic %'!D18 -> 269380.425 | AQ18: =+AQ$31*'AVM Traffic %'!E18 -> 203624.5164 | AR18: =+AR$31*'AVM Traffic %'!F18 -> 39651.07058 | AS18: =+AS$31*'AVM Traffic %'!G18 -> 202275.6005 | AT18: =+AT$31*'AVM Traffic %'!H18 -> 86206.89655 | AU18: =+AU$31*'AVM Traffic %'!I18 -> 426011.778 | AV18: =+AV$31*'AVM Traffic %'!J18 -> 168823.8604 | AW18: =+AW$31*'AVM Traffic %'!K18 -> 3310.527477 | AX18: =+AX$31*'AVM Traffic %'!L18 -> 104081.6327 | AY18: =+AY$31*'AVM Traffic %'!M18 -> 53705.6928 | AZ18: =+AZ$31*'AVM Traffic %'!N18 -> 69499.14284 | BA18: =+BA$31*'AVM Traffic %'!O18 -> 0 | BB18: =+BB$31*'AVM Traffic %'!P18 -> 673736.7436 | BC18: =+BC$31*'AVM Traffic %'!Q18 -> 13034623.22 | BD18: =+BD$31*'AVM Traffic %'!R18 -> 173310.2253 | BE18: =+BE$31*'AVM Traffic %'!S18 -> 196014.3744 | BF18: =+BF$31*'AVM Traffic %'!T18 -> 19419.8034 | BG18: =+BG$31*'AVM Traffic %'!U18 -> 6041.07934 | BH18: =+BH$31*'AVM Traffic %'!V18 -> 452808.8298 | BI18: =+BI$31*'AVM Traffic %'!W18 -> 185567.0103 | BJ18: =+BJ$31*'AVM Traffic %'!X18 -> 467289.7196 | BK18: =+BK$31*'AVM Traffic %'!Y18 -> 77811.55015 | BL18: =+BL$31*'AVM Traffic %'!Z18 -> 48015.36492 | BM18: =+BM$31*'AVM Traffic %'!AA18 -> 352250.4892 | BN18: 17313459.55 | BO18: 12
C19: JUNIN | D19: =+AP86 -> 0.0003071949347 | E19: 0.003689210197 | F19: 0.006269629059 | G19: 0.006914818085 | H19: 0.002116161396 | I19: 0.001597219446 | J19: 0.0004429175014 | K19: 0.007785119673 | L19: 0.003307212493 | M19: 0.04217828535 | N19: 0.009896833384 | O19: 0.002480076384 | P19: 0 | Q19: 0.00355749836 | R19: 0.03981484695 | S19: 0.004303780018 | T19: 0.0003285333793 | U19: 0.001742756378 | V19: 0.002548389226 | W19: 0.00154317245 | X19: 0.01072944295 | Y19: 0.003662587031 | Z19: 0.008663519501 | AA19: 0.8361207959 | AD19: 14 | AO19: LIB | AP19: =+AP$31*'AVM Traffic %'!D19 -> 59862.31667 | AQ19: =+AQ$31*'AVM Traffic %'!E19 -> 570148.6459 | AR19: =+AR$31*'AVM Traffic %'!F19 -> 3965.107058 | AS19: =+AS$31*'AVM Traffic %'!G19 -> 101137.8003 | AT19: =+AT$31*'AVM Traffic %'!H19 -> 34482.75862 | AU19: =+AU$31*'AVM Traffic %'!I19 -> 375892.7453 | AV19: =+AV$31*'AVM Traffic %'!J19 -> 84411.93022 | AW19: =+AW$31*'AVM Traffic %'!K19 -> 882.8073273 | AX19: =+AX$31*'AVM Traffic %'!L19 -> 38265.30612 | AY19: =+AY$31*'AVM Traffic %'!M19 -> 26852.8464 | AZ19: =+AZ$31*'AVM Traffic %'!N19 -> 27799.65714 | BA19: =+BA$31*'AVM Traffic %'!O19 -> 496598.3016 | BB19: =+BB$31*'AVM Traffic %'!P19 -> 0 | BC19: =+BC$31*'AVM Traffic %'!Q19 -> 6517311.609 | BD19: =+BD$31*'AVM Traffic %'!R19 -> 103986.1352 | BE19: =+BE$31*'AVM Traffic %'!S19 -> 78405.74975 | BF19: =+BF$31*'AVM Traffic %'!T19 -> 10788.77967 | BG19: =+BG$31*'AVM Traffic %'!U19 -> 2416.431736 | BH19: =+BH$31*'AVM Traffic %'!V19 -> 339606.6223 | BI19: =+BI$31*'AVM Traffic %'!W19 -> 51546.39175 | BJ19: =+BJ$31*'AVM Traffic %'!X19 -> 251617.5413 | BK19: =+BK$31*'AVM Traffic %'!Y19 -> 19452.88754 | BL19: =+BL$31*'AVM Traffic %'!Z19 -> 32010.24328 | BM19: =+BM$31*'AVM Traffic %'!AA19 -> 176125.2446 | BN19: 9403567.859 | BO19: 13
C20: LORETO | D20: =+AP87 -> 0.002093215624 | E20: 0.1077349296 | F20: 0.008137339964 | G20: 0.01869735335 | H20: 0.001373280982 | I20: 0.001295642604 | J20: 0.0003592886289 | K20: 0.008420243692 | L20: 0.002503914572 | M20: 0.1368577964 | N20: 0.003058352798 | O20: 0.0001341202731 | P20: 0.001851571911 | Q20: 0 | R20: 0.004306301354 | S20: 4.409895891e-05 | T20: 0.000533003582 | U20: 0.009424667837 | V20: 0.008268874162 | W20: 0.002503600837 | X20: 0.02175894401 | Y20: 0.0005281849929 | Z20: 0.008995492754 | AA20: 0.651119781 | AD20: 15 | AO20: LIM | AP20: =+AP$31*'AVM Traffic %'!D20 -> 329242.7417 | AQ20: =+AQ$31*'AVM Traffic %'!E20 -> 4479739.361 | AR20: =+AR$31*'AVM Traffic %'!F20 -> 1110229.976 | AS20: =+AS$31*'AVM Traffic %'!G20 -> 3792667.509 | AT20: =+AT$31*'AVM Traffic %'!H20 -> 2370689.655 | AU20: =+AU$31*'AVM Traffic %'!I20 -> 826964.0396 | AV20: =+AV$31*'AVM Traffic %'!J20 -> 4389420.371 | AW20: =+AW$31*'AVM Traffic %'!K20 -> 37519.31141 | AX20: =+AX$31*'AVM Traffic %'!L20 -> 849489.7959 | AY20: =+AY$31*'AVM Traffic %'!M20 -> 1503759.398 | AZ20: =+AZ$31*'AVM Traffic %'!N20 -> 972987.9998 | BA20: =+BA$31*'AVM Traffic %'!O20 -> 2482991.508 | BB20: =+BB$31*'AVM Traffic %'!P20 -> 5614472.863 | BC20: =+BC$31*'AVM Traffic %'!Q20 -> 0 | BD20: =+BD$31*'AVM Traffic %'!R20 -> 2426343.154 | BE20: =+BE$31*'AVM Traffic %'!S20 -> 2613524.992 | BF20: =+BF$31*'AVM Traffic %'!T20 -> 237353.1527 | BG20: =+BG$31*'AVM Traffic %'!U20 -> 72492.95207 | BH20: =+BH$31*'AVM Traffic %'!V20 -> 2547049.667 | BI20: =+BI$31*'AVM Traffic %'!W20 -> 927835.0515 | BJ20: =+BJ$31*'AVM Traffic %'!X20 -> 1797268.152 | BK20: =+BK$31*'AVM Traffic %'!Y20 -> 778115.5015 | BL20: =+BL$31*'AVM Traffic %'!Z20 -> 208066.5813 | BM20: =+BM$31*'AVM Traffic %'!AA20 -> 3052837.573 | BN20: 43421061.31 | BO20: 14
C21: AYACUCHO | D21: =+AP88 -> 0.001497449923 | E21: 0.0008991696968 | F21: 0.004074917689 | G21: 0.002808909653 | H21: 0.005157711539 | I21: 0.002433060276 | J21: 0.00107952102 | K21: 0.01264976029 | L21: 0.02149508139 | M21: 0.01468585184 | N21: 0.002297286823 | O21: 0.0003022340028 | P21: 0.008692570877 | Q21: 0.003468270498 | R21: 0 | S21: 0.0009937502039 | T21: 8.007330655e-05 | U21: 0.001415871004 | V21: 0.0018633536 | W21: 0.00125372264 | X21: 0.03268853442 | Y21: 0.03967470415 | Z21: 0.0253386729 | AA21: 0.8151495223 | AD21: 16 | AO21: LOR | AP21: =+AP$31*'AVM Traffic %'!D21 -> 6285.543251 | AQ21: =+AQ$31*'AVM Traffic %'!E21 -> 24434.94197 | AR21: =+AR$31*'AVM Traffic %'!F21 -> 1586.042823 | AS21: =+AS$31*'AVM Traffic %'!G21 -> 25284.45006 | AT21: =+AT$31*'AVM Traffic %'!H21 -> 12931.03448 | AU21: =+AU$31*'AVM Traffic %'!I21 -> 7517.854905 | AV21: =+AV$31*'AVM Traffic %'!J21 -> 27011.81767 | AW21: =+AW$31*'AVM Traffic %'!K21 -> 132.4210991 | AX21: =+AX$31*'AVM Traffic %'!L21 -> 9183.673469 | AY21: =+AY$31*'AVM Traffic %'!M21 -> 7518.796992 | AZ21: =+AZ$31*'AVM Traffic %'!N21 -> 5559.931428 | BA21: =+BA$31*'AVM Traffic %'!O21 -> 24829.91508 | BB21: =+BB$31*'AVM Traffic %'!P21 -> 56144.72863 | BC21: =+BC$31*'AVM Traffic %'!Q21 -> 1955193.483 | BD21: =+BD$31*'AVM Traffic %'!R21 -> 0 | BE21: =+BE$31*'AVM Traffic %'!S21 -> 65338.1248 | BF21: =+BF$31*'AVM Traffic %'!T21 -> 1078.877967 | BG21: =+BG$31*'AVM Traffic %'!U21 -> 402.7386226 | BH21: =+BH$31*'AVM Traffic %'!V21 -> 28300.55186 | BI21: =+BI$31*'AVM Traffic %'!W21 -> 4123.71134 | BJ21: =+BJ$31*'AVM Traffic %'!X21 -> 323508.2674 | BK21: =+BK$31*'AVM Traffic %'!Y21 -> 3890.577508 | BL21: =+BL$31*'AVM Traffic %'!Z21 -> 1600.512164 | BM21: =+BM$31*'AVM Traffic %'!AA21 -> 410958.9041 | BN21: 3002816.9 | BO21: 15
C22: HUANCAVELICA | D22: =+AP89 -> 0.0003311452925 | E22: 0.00159073533 | F22: 0.001351687749 | G22: 0.002484643244 | H22: 0.004562294524 | I22: 0.001076091353 | J22: 0.000477449427 | K22: 0.01118944548 | L22: 0.01782529144 | M22: 0.006495243183 | N22: 0.001693402687 | O22: 0.000267343477 | P22: 0.1153362345 | Q22: 0.003834857616 | R22: 0.09537555364 | S22: 0 | T22: 0.001062442147 | U22: 0.0009393149191 | V22: 0.0005494147203 | W22: 0.0008317427056 | X22: 0.002891490159 | Y22: 0.001316046497 | Z22: 0.007471174489 | AA22: 0.7210469554 | AD22: 17 | AO22: MAD | AP22: =+AP$31*'AVM Traffic %'!D22 -> 598.6231667 | AQ22: =+AQ$31*'AVM Traffic %'!E22 -> 4072.490328 | AR22: =+AR$31*'AVM Traffic %'!F22 -> 13877.8747 | AS22: =+AS$31*'AVM Traffic %'!G22 -> 37926.67509 | AT22: =+AT$31*'AVM Traffic %'!H22 -> 8620.689655 | AU22: =+AU$31*'AVM Traffic %'!I22 -> 1002.380654 | AV22: =+AV$31*'AVM Traffic %'!J22 -> 253235.7907 | AW22: =+AW$31*'AVM Traffic %'!K22 -> 44.14036637 | AX22: =+AX$31*'AVM Traffic %'!L22 -> 1530.612245 | AY22: =+AY$31*'AVM Traffic %'!M22 -> 2148.227712 | AZ22: =+AZ$31*'AVM Traffic %'!N22 -> 1042.487143 | BA22: =+BA$31*'AVM Traffic %'!O22 -> 2482.991508 | BB22: =+BB$31*'AVM Traffic %'!P22 -> 3368.683718 | BC22: =+BC$31*'AVM Traffic %'!Q22 -> 162932.7902 | BD22: =+BD$31*'AVM Traffic %'!R22 -> 6932.409012 | BE22: =+BE$31*'AVM Traffic %'!S22 -> 0 | BF22: =+BF$31*'AVM Traffic %'!T22 -> 3236.633901 | BG22: =+BG$31*'AVM Traffic %'!U22 -> 201.3693113 | BH22: =+BH$31*'AVM Traffic %'!V22 -> 1415.027593 | BI22: =+BI$31*'AVM Traffic %'!W22 -> 16494.84536 | BJ22: =+BJ$31*'AVM Traffic %'!X22 -> 7189.07261 | BK22: =+BK$31*'AVM Traffic %'!Y22 -> 1945.288754 | BL22: =+BL$31*'AVM Traffic %'!Z22 -> 320.1024328 | BM22: =+BM$31*'AVM Traffic %'!AA22 -> 23483.36595 | BN22: 554102.5721 | BO22: 16
C23: TUMBES | D23: =+AP90 -> 0.00286943555 | E23: 0.0321627075 | F23: 0.01301402861 | G23: 0.07176631944 | H23: 0.003953313061 | I23: 0.001243270896 | J23: 0.0008274376174 | K23: 0.01131183973 | L23: 0.003432432572 | M23: 0.007504332033 | N23: 0.0009782432829 | O23: 0.0001286989418 | P23: 0.0008883643768 | Q23: 0.006645950899 | R23: 0.002754823038 | S23: 7.052736094e-05 | T23: 0 | U23: 0.1446993507 | V23: 0.04760780738 | W23: 0.008008005824 | X23: 0.008351766675 | Y23: 0.0005068350078 | Z23: 0.006473911653 | AA23: 0.6248005978 | AD23: 18 | AO23: MOQ | AP23: =+AP$31*'AVM Traffic %'!D23 -> 299.3115834 | AQ23: =+AQ$31*'AVM Traffic %'!E23 -> 20362.45164 | AR23: =+AR$31*'AVM Traffic %'!F23 -> 5947.660587 | AS23: =+AS$31*'AVM Traffic %'!G23 -> 632111.2516 | AT23: =+AT$31*'AVM Traffic %'!H23 -> 4310.344828 | AU23: =+AU$31*'AVM Traffic %'!I23 -> 5011.90327 | AV23: =+AV$31*'AVM Traffic %'!J23 -> 67529.54418 | AW23: =+AW$31*'AVM Traffic %'!K23 -> 44.14036637 | AX23: =+AX$31*'AVM Traffic %'!L23 -> 7653.061224 | AY23: =+AY$31*'AVM Traffic %'!M23 -> 10741.13856 | AZ23: =+AZ$31*'AVM Traffic %'!N23 -> 2084.974285 | BA23: =+BA$31*'AVM Traffic %'!O23 -> 7448.974525 | BB23: =+BB$31*'AVM Traffic %'!P23 -> 13474.73487 | BC23: =+BC$31*'AVM Traffic %'!Q23 -> 488798.3707 | BD23: =+BD$31*'AVM Traffic %'!R23 -> 6932.409012 | BE23: =+BE$31*'AVM Traffic %'!S23 -> 91473.37471 | BF23: =+BF$31*'AVM Traffic %'!T23 -> 0 | BG23: =+BG$31*'AVM Traffic %'!U23 -> 80.54772453 | BH23: =+BH$31*'AVM Traffic %'!V23 -> 8490.165558 | BI23: =+BI$31*'AVM Traffic %'!W23 -> 123711.3402 | BJ23: =+BJ$31*'AVM Traffic %'!X23 -> 3594.536305 | BK23: =+BK$31*'AVM Traffic %'!Y23 -> 155623.1003 | BL23: =+BL$31*'AVM Traffic %'!Z23 -> 320.1024328 | BM23: =+BM$31*'AVM Traffic %'!AA23 -> 17612.52446 | BN23: 1673655.963 | BO23: 17
C24: PIURA | D24: =+AP91 -> 0.00202009226 | E24: 0.01732856178 | F24: 0.01570614828 | G24: 0.05413256766 | H24: 0.001789165071 | I24: 0.001875571895 | J24: 0.001248254701 | K24: 0.007313485543 | L24: 0.0025890472 | M24: 0.01018878739 | N24: 0.001918483975 | O24: 0.0001941524723 | P24: 0.003350418769 | Q24: 0.008020751562 | R24: 0.004155867144 | S24: 6.383764141e-05 | T24: 0.01543151692 | U24: 0 | V24: 0.04788008032 | W24: 0.006040353197 | X24: 0.006299648333 | Y24: 0.002102651259 | Z24: 0.004883202361 | AA24: 0.7854673543 | AD24: 19 | AO24: PAS | AP24: =+AP$31*'AVM Traffic %'!D24 -> 598.6231667 | AQ24: =+AQ$31*'AVM Traffic %'!E24 -> 8144.980656 | AR24: =+AR$31*'AVM Traffic %'!F24 -> 15860.42823 | AS24: =+AS$31*'AVM Traffic %'!G24 -> 20227.56005 | AT24: =+AT$31*'AVM Traffic %'!H24 -> 12931.03448 | AU24: =+AU$31*'AVM Traffic %'!I24 -> 2505.951635 | AV24: =+AV$31*'AVM Traffic %'!J24 -> 11817.67023 | AW24: =+AW$31*'AVM Traffic %'!K24 -> 1103.509159 | AX24: =+AX$31*'AVM Traffic %'!L24 -> 68877.55102 | AY24: =+AY$31*'AVM Traffic %'!M24 -> 6444.683136 | AZ24: =+AZ$31*'AVM Traffic %'!N24 -> 83398.97141 | BA24: =+BA$31*'AVM Traffic %'!O24 -> 3724.487262 | BB24: =+BB$31*'AVM Traffic %'!P24 -> 8983.156581 | BC24: =+BC$31*'AVM Traffic %'!Q24 -> 1466395.112 | BD24: =+BD$31*'AVM Traffic %'!R24 -> 10398.61352 | BE24: =+BE$31*'AVM Traffic %'!S24 -> 26135.24992 | BF24: =+BF$31*'AVM Traffic %'!T24 -> 431.5511868 | BG24: =+BG$31*'AVM Traffic %'!U24 -> 0 | BH24: =+BH$31*'AVM Traffic %'!V24 -> 2830.055186 | BI24: =+BI$31*'AVM Traffic %'!W24 -> 5154.639175 | BJ24: =+BJ$31*'AVM Traffic %'!X24 -> 7189.07261 | BK24: =+BK$31*'AVM Traffic %'!Y24 -> 1945.288754 | BL24: =+BL$31*'AVM Traffic %'!Z24 -> 3201.024328 | BM24: =+BM$31*'AVM Traffic %'!AA24 -> 58708.41487 | BN24: 1827007.629 | BO24: 18
C25: LAMBAYEQUE | D25: =+AP92 -> 0.01555901778 | E25: 0.02698996802 | F25: 0.01176105306 | G25: 0.03891404497 | H25: 0.01071807802 | I25: 0.004494280876 | J25: 0.001121659328 | K25: 0.01168314166 | L25: 0.003101961953 | M25: 0.020345471 | N25: 0.006011602265 | O25: 0.0003489238717 | P25: 0.004014168436 | Q25: 0.01001014412 | R25: 0.004979183756 | S25: 0.0001912112058 | T25: 0.00277329697 | U25: 0.02615357309 | V25: 0 | W25: 0.02460581473 | X25: 0.01132150243 | Y25: 0.002290187612 | Z25: 0.009751018272 | AA25: 0.7528606966 | AD25: 20 | AO25: PIU | AP25: =+AP$31*'AVM Traffic %'!D25 -> 20951.81084 | AQ25: =+AQ$31*'AVM Traffic %'!E25 -> 162899.6131 | AR25: =+AR$31*'AVM Traffic %'!F25 -> 21808.08882 | AS25: =+AS$31*'AVM Traffic %'!G25 -> 75853.35019 | AT25: =+AT$31*'AVM Traffic %'!H25 -> 43103.44828 | AU25: =+AU$31*'AVM Traffic %'!I25 -> 62648.79088 | AV25: =+AV$31*'AVM Traffic %'!J25 -> 50647.15813 | AW25: =+AW$31*'AVM Traffic %'!K25 -> 662.1054955 | AX25: =+AX$31*'AVM Traffic %'!L25 -> 19897.95918 | AY25: =+AY$31*'AVM Traffic %'!M25 -> 26852.8464 | AZ25: =+AZ$31*'AVM Traffic %'!N25 -> 34749.57142 | BA25: =+BA$31*'AVM Traffic %'!O25 -> 496598.3016 | BB25: =+BB$31*'AVM Traffic %'!P25 -> 561447.2863 | BC25: =+BC$31*'AVM Traffic %'!Q25 -> 8146639.511 | BD25: =+BD$31*'AVM Traffic %'!R25 -> 83188.90815 | BE25: =+BE$31*'AVM Traffic %'!S25 -> 65338.1248 | BF25: =+BF$31*'AVM Traffic %'!T25 -> 12946.5356 | BG25: =+BG$31*'AVM Traffic %'!U25 -> 2013.693113 | BH25: =+BH$31*'AVM Traffic %'!V25 -> 0 | BI25: =+BI$31*'AVM Traffic %'!W25 -> 18556.70103 | BJ25: =+BJ$31*'AVM Traffic %'!X25 -> 179726.8152 | BK25: =+BK$31*'AVM Traffic %'!Y25 -> 19452.88754 | BL25: =+BL$31*'AVM Traffic %'!Z25 -> 160051.2164 | BM25: =+BM$31*'AVM Traffic %'!AA25 -> 105675.1468 | BN25: 10371709.87 | BO25: 19
C26: CAJAMARCA | D26: =+AP93 -> 0.01993063058 | E26: 0.03829661353 | F26: 0.01355899751 | G26: 0.08972588361 | H26: 0.006864766678 | I26: 0.002331600266 | J26: 0.0005747246521 | K26: 0.01010188168 | L26: 0.002145700433 | M26: 0.01563715932 | N26: 0.003872989282 | O26: 0.0003218118571 | P26: 0.002776695228 | Q26: 0.009232337854 | R26: 0.005166328715 | S26: 0.0001175691667 | T26: 0.001278903395 | U26: 0.01507587078 | V26: 0.09258929481 | W26: 0 | X26: 0.008701501048 | Y26: 0.002640294876 | Z26: 0.008094011898 | AA26: 0.6509644328 | AD26: 21 | AO26: PUN | AP26: =+AP$31*'AVM Traffic %'!D26 -> 1795.8695 | AQ26: =+AQ$31*'AVM Traffic %'!E26 -> 16289.96131 | AR26: =+AR$31*'AVM Traffic %'!F26 -> 59476.60587 | AS26: =+AS$31*'AVM Traffic %'!G26 -> 1137800.253 | AT26: =+AT$31*'AVM Traffic %'!H26 -> 64655.17241 | AU26: =+AU$31*'AVM Traffic %'!I26 -> 5011.90327 | AV26: =+AV$31*'AVM Traffic %'!J26 -> 844119.3022 | AW26: =+AW$31*'AVM Traffic %'!K26 -> 662.1054955 | AX26: =+AX$31*'AVM Traffic %'!L26 -> 4591.836735 | AY26: =+AY$31*'AVM Traffic %'!M26 -> 16111.70784 | AZ26: =+AZ$31*'AVM Traffic %'!N26 -> 6254.922856 | BA26: =+BA$31*'AVM Traffic %'!O26 -> 12414.95754 | BB26: =+BB$31*'AVM Traffic %'!P26 -> 17966.31316 | BC26: =+BC$31*'AVM Traffic %'!Q26 -> 1140529.532 | BD26: =+BD$31*'AVM Traffic %'!R26 -> 6932.409012 | BE26: =+BE$31*'AVM Traffic %'!S26 -> 849395.6223 | BF26: =+BF$31*'AVM Traffic %'!T26 -> 64732.67801 | BG26: =+BG$31*'AVM Traffic %'!U26 -> 805.4772453 | BH26: =+BH$31*'AVM Traffic %'!V26 -> 5660.110372 | BI26: =+BI$31*'AVM Traffic %'!W26 -> 0 | BJ26: =+BJ$31*'AVM Traffic %'!X26 -> 14378.14522 | BK26: =+BK$31*'AVM Traffic %'!Y26 -> 116717.3252 | BL26: =+BL$31*'AVM Traffic %'!Z26 -> 640.2048656 | BM26: =+BM$31*'AVM Traffic %'!AA26 -> 17612.52446 | BN26: 4404554.939 | BO26: 20
C27: MADRE DE DIOS | D27: =+AP94 -> 0.001080347208 | E27: 0.0129742632 | F27: 0.007349704789 | G27: 0.006079530917 | H27: 0.0297685775 | I27: 0.003510701541 | J27: 0.005841217969 | K27: 0.06844702949 | L27: 0.00387694954 | M27: 0.04238090045 | N27: 0.002762326547 | O27: 0.0003634152257 | P27: 0.001881397408 | Q27: 0.01251105727 | R27: 0.01555793113 | S27: 7.966100247e-05 | T27: 0.000577695266 | U27: 0.002553728613 | V27: 0.004481104462 | W27: 0.001809016425 | X27: 0 | Y27: 0.02504567819 | Z27: 0.4570196989 | AA27: 0.294048067 | AD27: 22 | AO27: SMA | AP27: =+AP$31*'AVM Traffic %'!D27 -> 119724.6333 | AQ27: =+AQ$31*'AVM Traffic %'!E27 -> 20362.45164 | AR27: =+AR$31*'AVM Traffic %'!F27 -> 3172.085646 | AS27: =+AS$31*'AVM Traffic %'!G27 -> 22756.00506 | AT27: =+AT$31*'AVM Traffic %'!H27 -> 12931.03448 | AU27: =+AU$31*'AVM Traffic %'!I27 -> 87708.30723 | AV27: =+AV$31*'AVM Traffic %'!J27 -> 10129.43163 | AW27: =+AW$31*'AVM Traffic %'!K27 -> 220.7018318 | AX27: =+AX$31*'AVM Traffic %'!L27 -> 68877.55102 | AY27: =+AY$31*'AVM Traffic %'!M27 -> 5370.56928 | AZ27: =+AZ$31*'AVM Traffic %'!N27 -> 6949.914284 | BA27: =+BA$31*'AVM Traffic %'!O27 -> 198639.3207 | BB27: =+BB$31*'AVM Traffic %'!P27 -> 179663.1316 | BC27: =+BC$31*'AVM Traffic %'!Q27 -> 2606924.644 | BD27: =+BD$31*'AVM Traffic %'!R27 -> 346620.4506 | BE27: =+BE$31*'AVM Traffic %'!S27 -> 91473.37471 | BF27: =+BF$31*'AVM Traffic %'!T27 -> 2157.755934 | BG27: =+BG$31*'AVM Traffic %'!U27 -> 2013.693113 | BH27: =+BH$31*'AVM Traffic %'!V27 -> 42450.82779 | BI27: =+BI$31*'AVM Traffic %'!W27 -> 3092.783505 | BJ27: =+BJ$31*'AVM Traffic %'!X27 -> 0 | BK27: =+BK$31*'AVM Traffic %'!Y27 -> 9726.443769 | BL27: =+BL$31*'AVM Traffic %'!Z27 -> 3201.024328 | BM27: =+BM$31*'AVM Traffic %'!AA27 -> 176125.2446 | BN27: 4020291.38 | BO27: 21
C28: APURIMAC | D28: =+AP95 -> 0.0002476774496 | E28: 0.002974444138 | F28: 0.001684973242 | G28: 0.001858368867 | H28: 0.01279624267 | I28: 0.00160970769 | J28: 0.0005356566698 | K28: 0.031383958 | L28: 0.008888188606 | M28: 0.002429032366 | N28: 0.0006332834382 | O28: 0.0001666311638 | P28: 0.002012845474 | Q28: 0.001434125406 | R28: 0.05350153185 | S28: 0.0002282857976 | T28: 0.0002648816771 | U28: 0.0007025530148 | V28: 0.001027325768 | W28: 0.0004147301638 | X28: 0.05406666836 | Y28: 0 | Z28: 0.3492502923 | AA28: 0.4718885959 | AD28: 23 | AO28: TAC | AP28: =+AP$31*'AVM Traffic %'!D28 -> 4489.67375 | AQ28: =+AQ$31*'AVM Traffic %'!E28 -> 20362.45164 | AR28: =+AR$31*'AVM Traffic %'!F28 -> 15860.42823 | AS28: =+AS$31*'AVM Traffic %'!G28 -> 632111.2516 | AT28: =+AT$31*'AVM Traffic %'!H28 -> 30172.41379 | AU28: =+AU$31*'AVM Traffic %'!I28 -> 7517.854905 | AV28: =+AV$31*'AVM Traffic %'!J28 -> 219471.0186 | AW28: =+AW$31*'AVM Traffic %'!K28 -> 110.3509159 | AX28: =+AX$31*'AVM Traffic %'!L28 -> 12244.89796 | AY28: =+AY$31*'AVM Traffic %'!M28 -> 16111.70784 | AZ28: =+AZ$31*'AVM Traffic %'!N28 -> 5559.931428 | BA28: =+BA$31*'AVM Traffic %'!O28 -> 19863.93207 | BB28: =+BB$31*'AVM Traffic %'!P28 -> 33686.83718 | BC28: =+BC$31*'AVM Traffic %'!Q28 -> 1303462.322 | BD28: =+BD$31*'AVM Traffic %'!R28 -> 20797.22704 | BE28: =+BE$31*'AVM Traffic %'!S28 -> 196014.3744 | BF28: =+BF$31*'AVM Traffic %'!T28 -> 215775.5934 | BG28: =+BG$31*'AVM Traffic %'!U28 -> 805.4772453 | BH28: =+BH$31*'AVM Traffic %'!V28 -> 11320.22074 | BI28: =+BI$31*'AVM Traffic %'!W28 -> 371134.0206 | BJ28: =+BJ$31*'AVM Traffic %'!X28 -> 14378.14522 | BK28: =+BK$31*'AVM Traffic %'!Y28 -> 0 | BL28: =+BL$31*'AVM Traffic %'!Z28 -> 3201.024328 | BM28: =+BM$31*'AVM Traffic %'!AA28 -> 58708.41487 | BN28: 3213159.569 | BO28: 22
C29: CUSCO | D29: =+AP96 -> 6.0749238e-05 | E29: 0.0002918234424 | F29: 0.003306262743 | G29: 0.004558125608 | H29: 0.05440250833 | I29: 0.0051326865 | J29: 0.001313835174 | K29: 0.118031699 | L29: 0.002180055899 | M29: 0.004766259198 | N29: 0.0006213159311 | O29: 6.539289703e-05 | P29: 0.001128461497 | Q29: 0.002814047891 | R29: 0.01312262096 | S29: 4.031491586e-05 | T29: 0.0001299380308 | U29: 0.001148794137 | V29: 0.001511867737 | W29: 0.0005086159733 | X29: 0.3978370549 | Y29: 0.05633395833 | Z29: 0 | AA29: 0.3306936117 | AD29: 24 | AO29: TUM | AP29: =+AP$31*'AVM Traffic %'!D29 -> 4489.67375 | AQ29: =+AQ$31*'AVM Traffic %'!E29 -> 20362.45164 | AR29: =+AR$31*'AVM Traffic %'!F29 -> 793.0214116 | AS29: =+AS$31*'AVM Traffic %'!G29 -> 17699.11504 | AT29: =+AT$31*'AVM Traffic %'!H29 -> 4310.344828 | AU29: =+AU$31*'AVM Traffic %'!I29 -> 12529.75818 | AV29: =+AV$31*'AVM Traffic %'!J29 -> 10129.43163 | AW29: =+AW$31*'AVM Traffic %'!K29 -> 110.3509159 | AX29: =+AX$31*'AVM Traffic %'!L29 -> 1530.612245 | AY29: =+AY$31*'AVM Traffic %'!M29 -> 5370.56928 | AZ29: =+AZ$31*'AVM Traffic %'!N29 -> 1389.982857 | BA29: =+BA$31*'AVM Traffic %'!O29 -> 74489.74525 | BB29: =+BB$31*'AVM Traffic %'!P29 -> 112289.4573 | BC29: =+BC$31*'AVM Traffic %'!Q29 -> 977596.7413 | BD29: =+BD$31*'AVM Traffic %'!R29 -> 10398.61352 | BE29: =+BE$31*'AVM Traffic %'!S29 -> 13067.62496 | BF29: =+BF$31*'AVM Traffic %'!T29 -> 1294.65356 | BG29: =+BG$31*'AVM Traffic %'!U29 -> 201.3693113 | BH29: =+BH$31*'AVM Traffic %'!V29 -> 226404.4149 | BI29: =+BI$31*'AVM Traffic %'!W29 -> 6185.56701 | BJ29: =+BJ$31*'AVM Traffic %'!X29 -> 50323.50827 | BK29: =+BK$31*'AVM Traffic %'!Y29 -> 1945.288754 | BL29: =+BL$31*'AVM Traffic %'!Z29 -> 0 | BM29: =+BM$31*'AVM Traffic %'!AA29 -> 11741.68297 | BN29: 1564653.979 | BO29: 23
C30: LIMA | D30: =+AP97 -> 0.007582558596 | E30: 0.0413916219 | F30: 0.1031697344 | G30: 0.1293029856 | H30: 0.02136831813 | I30: 0.01792023221 | J30: 0.00546631394 | K30: 0.08734626458 | L30: 0.03463202771 | M30: 0.07030776037 | N30: 0.01956400351 | O30: 0.00166953432 | P30: 0.022408204 | Q30: 0.05587940693 | R30: 0.05459769024 | S30: 0.0008640809386 | T30: 0.00479183546 | U30: 0.05865931395 | V30: 0.05718403543 | W30: 0.01904522862 | X30: 0.06019026051 | Y30: 0.02556892768 | Z30: 0.1010896611 | AA30: 0 | AD30: 25 | AO30: UCA | AP30: =+AP$31*'AVM Traffic %'!D30 -> 2993.115834 | AQ30: =+AQ$31*'AVM Traffic %'!E30 -> 24434.94197 | AR30: =+AR$31*'AVM Traffic %'!F30 -> 7930.214116 | AS30: =+AS$31*'AVM Traffic %'!G30 -> 25284.45006 | AT30: =+AT$31*'AVM Traffic %'!H30 -> 30172.41379 | AU30: =+AU$31*'AVM Traffic %'!I30 -> 5011.90327 | AV30: =+AV$31*'AVM Traffic %'!J30 -> 27011.81767 | AW30: =+AW$31*'AVM Traffic %'!K30 -> 220.7018318 | AX30: =+AX$31*'AVM Traffic %'!L30 -> 114795.9184 | AY30: =+AY$31*'AVM Traffic %'!M30 -> 10741.13856 | AZ30: =+AZ$31*'AVM Traffic %'!N30 -> 17374.78571 | BA30: =+BA$31*'AVM Traffic %'!O30 -> 19863.93207 | BB30: =+BB$31*'AVM Traffic %'!P30 -> 33686.83718 | BC30: =+BC$31*'AVM Traffic %'!Q30 -> 1955193.483 | BD30: =+BD$31*'AVM Traffic %'!R30 -> 450606.5858 | BE30: =+BE$31*'AVM Traffic %'!S30 -> 196014.3744 | BF30: =+BF$31*'AVM Traffic %'!T30 -> 6473.267801 | BG30: =+BG$31*'AVM Traffic %'!U30 -> 5235.602094 | BH30: =+BH$31*'AVM Traffic %'!V30 -> 8490.165558 | BI30: =+BI$31*'AVM Traffic %'!W30 -> 4123.71134 | BJ30: =+BJ$31*'AVM Traffic %'!X30 -> 107836.0891 | BK30: =+BK$31*'AVM Traffic %'!Y30 -> 9726.443769 | BL30: =+BL$31*'AVM Traffic %'!Z30 -> 1920.614597 | BM30: =+BM$31*'AVM Traffic %'!AA30 -> 0 | BN30: 3065142.508 | BO30: 24
AN31: Total INGRESO | AP31: ='AVM Traffic Net'!M12 -> 1000000 | AQ31: ='AVM Traffic Net'!M24 -> 6000000 | AR31: ='AVM Traffic Net'!M36 -> 2000000 | AS31: ='AVM Traffic Net'!M48 -> 8000000 | AT31: ='AVM Traffic Net'!M60 -> 4000000 | AU31: ='AVM Traffic Net'!M72 -> 2000000 | AV31: ='AVM Traffic Net'!M84 -> 9000000 | AW31: ='AVM Traffic Net'!M96 -> 100000 | AX31: ='AVM Traffic Net'!M108 -> 1500000 | AY31: ='AVM Traffic Net'!M120 -> 2000000 | AZ31: ='AVM Traffic Net'!M132 -> 1500000 | BA31: ='AVM Traffic Net'!M144 -> 5000000 | BB31: ='AVM Traffic Net'!M156 -> 9000000 | BC31: ='AVM Traffic Net'!M168 -> 80000000 | BD31: ='AVM Traffic Net'!M180 -> 4000000 | BE31: ='AVM Traffic Net'!M192 -> 8000000 | BF31: ='AVM Traffic Net'!M204 -> 900000 | BG31: ='AVM Traffic Net'!M216 -> 200000 | BH31: ='AVM Traffic Net'!M228 -> 4000000 | BI31: ='AVM Traffic Net'!M240 -> 3000000 | BJ31: ='AVM Traffic Net'!M252 -> 4000000 | BK31: ='AVM Traffic Net'!M264 -> 1600000 | BL31: ='AVM Traffic Net'!M276 -> 500000 | BM31: ='AVM Traffic Net'!M288 -> 6000000 | BN31: 163300000
D33: 2 | E33: 3 | F33: 4 | G33: 5 | H33: 6 | I33: 7 | J33: 8 | K33: 9 | L33: 10 | M33: 11 | N33: 12 | O33: 13 | P33: 14 | Q33: 15 | R33: 16 | S33: 17 | T33: 18 | U33: 19 | V33: 20 | W33: 21 | X33: 22 | Y33: 23 | Z33: 24 | AA33: 25 | AB33: 26 | AC33: 27
AT34: LDN | AU34: On-Net
AP42: AMZ | AQ42: ANC | AR42: APU | AS42: ARQ | AT42: AYA | AU42: CAJ | AV42: CUZ | AW42: HUV | AX42: HUA | AY42: ICA | AZ42: JUN | BA42: LAM | BB42: LIB | BC42: LIM | BD42: LOR | BE42: MAD | BF42: MOQ | BG42: PAS | BH42: PIU | BI42: PUN | BJ42: SMA | BK42: TAC | BL42: TUM | BM42: UCA
AO43: AMZ | AP43: =AP7/$BN7 -> 0 | AQ43: =AQ7/$BN7 -> 0.007317587584 | AR43: 0.0004749758476 | AS43: 0.004543195022 | AT43: 0.002581657516 | AU43: 0.03752315147 | AV43: 0.004044645203 | AW43: 2.643763159e-05 | AX43: 0.001833503705 | AY43: 0.001286669267 | AZ43: 0.0007492703832 | BA43: 0.1487174216 | BB43: 0.0538041262 | BC43: 0.5855262342 | BD43: 0.02076064276 | BE43: 0.007826782669 | BF43: 0.001292376143 | BG43: 0.0002412181006 | BH43: 0.01695046112 | BI43: 0.001234937204 | BJ43: 0.08611711629 | BK43: 0.001165120085 | BL43: 0.001917236056 | BM43: 0.0140652339 | BN43: 1
AO44: ANC | AP44: =AP8/$BN8 -> 0.0007551767552 | AQ44: 0 | AR44: 0.001500621851 | AS44: 0.009569072841 | AT44: 0.005437598145 | AU44: 0.005690367085 | AV44: 0.007667105183 | AW44: 9.744713514e-05 | AX44: 0.003475623957 | AY44: 0.003387547716 | AZ44: 0.002191868779 | BA44: 0.0125294013 | BB44: 0.08499342427 | BC44: 0.8221736991 | BD44: 0.00524723509 | BE44: 0.008242553215 | BF44: 0.002177646593 | BG44: 0.0002540319713 | BH44: 0.01071053717 | BI44: 0.001820754513 | BJ44: 0.005441507273 | BK44: 0.0009816104225 | BL44: 0.001211449523 | BM44: 0.004443720128 | BN44: =BN43+1 -> 2
L45: AMAZONAS | M45: SAN MARTIN | N45: ANCASH | O45: LIBERTAD | P45: PUNO | Q45: TACNA | R45: MOQUEGUA | S45: AREQUIPA | T45: ICA | U45: UCAYALLI | V45: HUANUCO | W45: PASCO | X45: JUNIN | Y45: LORETO | Z45: AYACUCHO | AA45: HUANCAVELICA | AB45: TUMBES | AC45: PIURA | AD45: LAMBAYEQUE | AE45: CAJAMARCA | AF45: MADRE DE DIOS | AG45: APURIMAC | AH45: CUSCO | AI45: LIMA | AO45: APU | AP45: =AP9/$BN9 -> 0.0002476774496 | AQ45: 0.001684973242 | AR45: 0 | AS45: 0.031383958 | AT45: 0.05350153185 | AU45: 0.0004147301638 | AV45: 0.3492502923 | AW45: 0.0002282857976 | AX45: 0.0006332834382 | AY45: 0.008888188606 | AZ45: 0.002012845474 | BA45: 0.001027325768 | BB45: 0.001858368867 | BC45: 0.4718885959 | BD45: 0.001434125406 | BE45: 0.05406666836 | BF45: 0.0005356566698 | BG45: 0.0001666311638 | BH45: 0.0007025530148 | BI45: 0.01279624267 | BJ45: 0.002974444138 | BK45: 0.00160970769 | BL45: 0.0002648816771 | BM45: 0.002429032366 | BN45: 3
C46: Amazonas | D46: San Martin | E46: Tumbes | F46: Cajamarca | G46: Ancash | H46: Lambayeque | I46: Piura | J46: Libertad | K46: Switching and SignallingTrujillo | L46: =HLOOKUP($C46,$C$6:$AD$33,VLOOKUP(L$45,$C$6:$AD$33,28,FALSE),FALSE) + HLOOKUP($D46,$C$6:$AD$33,VLOOKUP(L$45,$C$6:$AD$33,28,FALSE),FALSE) + HLOOKUP($E46,$C$6:$AD$33,VLOOKUP(L$45,$C$6:$AD$33,28,FALSE),FALSE) + HLOOKUP($F46,$C$6:$AD$33,VLOOKUP(L$45,$C$6:$AD$33,28,FALSE),FALSE) + HLOOKUP($G46,$C$6:$AD$33,VLOOKUP(L$45,$C$6:$AD$33,28,FALSE),FALSE) + HLOOKUP($H46,$C$6:$AD$33,VLOOKUP(L$45,$C$6:$AD$33,28,FALSE),FALSE) + HLOOKUP($I46,$C$6:$AD$33,VLOOKUP(L$45,$C$6:$AD$33,28,FALSE),FALSE) + HLOOKUP($J46,$C$6:$AD$33,VLOOKUP(L$45,$C$6:$AD$33,28,FALSE),FALSE) -> 0.3523471003 | M46: 0.1621150397 | N46: 0.1213318634 | O46: 0.2260563701 | P46: 0.01683653996 | Q46: 0.03573434103 | R46: 0.03525346994 | S46: 0.03117310322 | T46: 0.0310449964 | U46: 0.0666323341 | V46: 0.07061213873 | W46: 0.02034876639 | X46: 0.02334370371 | Y46: 0.157392985 | Z46: 0.01389346751 | AA46: 0.009141126107 | AB46: 0.3201276551 | AC46: 0.1585393204 | AD46: 0.1467567686 | AE46: 0.2704561942 | AF46: 0.03690539088 | AG46: 0.00917495432 | AH46: 0.01151617691 | AI46: 0.4211273139 | AJ46: 2 | AO46: ARQ | AP46: =AP10/$BN10 -> 0.0003942628006 | AQ46: 0.008046621972 | AR46: 0.01044593193 | AS46: 0 | AT46: 0.008516586316 | AU46: 0.002970827754 | AV46: 0.2001421748 | AW46: 8.721465571e-05 | AX46: 0.001209702873 | AY46: 0.01131885729 | AZ46: 0.002288662402 | BA46: 0.003270675912 | BB46: 0.007395563413 | BC46: 0.4292405757 | BD46: 0.004565795552 | BE46: 0.1118851109 | BF46: 0.03410718241 | BG46: 0.0002122000833 | BH46: 0.0037278393 | BI46: 0.1086376921 | BJ46: 0.004734838306 | BK46: 0.03843594943 | BL46: 0.0006324737597 | BM46: 0.007733260373 | BN46: 4
A47: Loreto | B47: Huancavelica | C47: Madre de Dios | D47: Pasco | E47: Ayacucho | F47: Huanuco | G47: Ucayalli | H47: Ica | I47: Junin | J47: Lima | K47: Switching and Signalling Lima | L47: =HLOOKUP($A47,$C$6:$AD$33,VLOOKUP(L$45,$C$6:$AD$33,28,FALSE),FALSE)+HLOOKUP($B47,$C$6:$AD$33,VLOOKUP(L$45,$C$6:$AD$33,28,FALSE),FALSE) + HLOOKUP($C47,$C$6:$AD$33,VLOOKUP(L$45,$C$6:$AD$33,28,FALSE),FALSE) + HLOOKUP($D47,$C$6:$AD$33,VLOOKUP(L$45,$C$6:$AD$33,28,FALSE),FALSE) + HLOOKUP($E47,$C$6:$AD$33,VLOOKUP(L$45,$C$6:$AD$33,28,FALSE),FALSE) + HLOOKUP($F47,$C$6:$AD$33,VLOOKUP(L$45,$C$6:$AD$33,28,FALSE),FALSE) + HLOOKUP($G47,$C$6:$AD$33,VLOOKUP(L$45,$C$6:$AD$33,28,FALSE),FALSE) + HLOOKUP($H47,$C$6:$AD$33,VLOOKUP(L$45,$C$6:$AD$33,28,FALSE),FALSE) + HLOOKUP($I47,$C$6:$AD$33,VLOOKUP(L$45,$C$6:$AD$33,28,FALSE),FALSE) + HLOOKUP($J47,$C$6:$AD$33,VLOOKUP(L$45,$C$6:$AD$33,28,FALSE),FALSE) -> 0.6348976502 | M47: =HLOOKUP($A47,$C$6:$AD$33,VLOOKUP(M$45,$C$6:$AD$33,28,FALSE),FALSE)+HLOOKUP($B47,$C$6:$AD$33,VLOOKUP(M$45,$C$6:$AD$33,28,FALSE),FALSE) + HLOOKUP($C47,$C$6:$AD$33,VLOOKUP(M$45,$C$6:$AD$33,28,FALSE),FALSE) + HLOOKUP($D47,$C$6:$AD$33,VLOOKUP(M$45,$C$6:$AD$33,28,FALSE),FALSE) + HLOOKUP($E47,$C$6:$AD$33,VLOOKUP(M$45,$C$6:$AD$33,28,FALSE),FALSE) + HLOOKUP($F47,$C$6:$AD$33,VLOOKUP(M$45,$C$6:$AD$33,28,FALSE),FALSE) + HLOOKUP($G47,$C$6:$AD$33,VLOOKUP(M$45,$C$6:$AD$33,28,FALSE),FALSE) + HLOOKUP($H47,$C$6:$AD$33,VLOOKUP(M$45,$C$6:$AD$33,28,FALSE),FALSE) + HLOOKUP($I47,$C$6:$AD$33,VLOOKUP(M$45,$C$6:$AD$33,28,FALSE),FALSE) + HLOOKUP($J47,$C$6:$AD$33,VLOOKUP(M$45,$C$6:$AD$33,28,FALSE),FALSE) -> 0.8251907298 | N47: 0.8549513252 | O47: 0.7450925703 | P47: 0.4784935911 | Q47: 0.5116419156 | R47: 0.3762606532 | S47: 0.5770579662 | T47: 0.8938772869 | U47: 0.9070883316 | V47: 0.9123403837 | W47: 0.9493080994 | X47: 0.9523887717 | Y47: 0.8216348814 | Z47: 0.8997731023 | AA47: 0.9647663721 | AB47: 0.655555737 | AC47: 0.8222483488 | AD47: 0.8131848656 | AE47: 0.6989365257 | AF47: 0.3734617055 | AG47: 0.5952491884 | AH47: 0.7532691357 | AI47: 0.3201129685 | AJ47: 3 | AO47: AYA | AP47: =AP11/$BN11 -> 0.001497449923 | AQ47: 0.004074917689 | AR47: 0.03967470415 | AS47: 0.01264976029 | AT47: 0 | AU47: 0.00125372264 | AV47: 0.0253386729 | AW47: 0.0009937502039 | AX47: 0.002297286823 | AY47: 0.02149508139 | AZ47: 0.008692570877 | BA47: 0.0018633536 | BB47: 0.002808909653 | BC47: 0.8151495223 | BD47: 0.003468270498 | BE47: 0.03268853442 | BF47: 0.00107952102 | BG47: 0.0003022340028 | BH47: 0.001415871004 | BI47: 0.005157711539 | BJ47: 0.0008991696968 | BK47: 0.002433060276 | BL47: 8.007330655e-05 | BM47: 0.01468585184 | BN47: 5
E48: Apurimac | F48: Moquegua | G48: Puno | H48: Tacna | I48: Cusco | J48: Arequipa | K48: Switching and Signalling Arequipa | L48: =HLOOKUP($E48,$C$6:$AD$33,VLOOKUP(L$45,$C$6:$AD$33,28,FALSE),FALSE) + HLOOKUP($F48,$C$6:$AD$33,VLOOKUP(L$45,$C$6:$AD$33,28,FALSE),FALSE) + HLOOKUP($G48,$C$6:$AD$33,VLOOKUP(L$45,$C$6:$AD$33,28,FALSE),FALSE) + HLOOKUP($H48,$C$6:$AD$33,VLOOKUP(L$45,$C$6:$AD$33,28,FALSE),FALSE) + HLOOKUP($I48,$C$6:$AD$33,VLOOKUP(L$45,$C$6:$AD$33,28,FALSE),FALSE) + HLOOKUP($J48,$C$6:$AD$33,VLOOKUP(L$45,$C$6:$AD$33,28,FALSE),FALSE) -> 0.0127552495 | M48: 0.01269423052 | N48: 0.0237168114 | O48: 0.02885105957 | P48: 0.504669869 | Q48: 0.4526237434 | R48: 0.5884858768 | S48: 0.3917689306 | T48: 0.07507771667 | U48: 0.02627933434 | V48: 0.01704747756 | W48: 0.03034313418 | X48: 0.02426752455 | Y48: 0.02097213365 | Z48: 0.08633343016 | AA48: 0.02609250177 | AB48: 0.02431660797 | AC48: 0.01921233083 | AD48: 0.04005836577 | AE48: 0.03060728006 | AF48: 0.5896329036 | AG48: 0.3955758573 | AH48: 0.2352146873 | AI48: 0.2587597176 | AJ48: 4 | AO48: CAJ | AP48: =AP12/$BN12 -> 0.01993063058 | AQ48: 0.01355899751 | AR48: 0.002640294876 | AS48: 0.01010188168 | AT48: 0.005166328715 | AU48: 0 | AV48: 0.008094011898 | AW48: 0.0001175691667 | AX48: 0.003872989282 | AY48: 0.002145700433 | AZ48: 0.002776695228 | BA48: 0.09258929481 | BB48: 0.08972588361 | BC48: 0.6509644328 | BD48: 0.009232337854 | BE48: 0.008701501048 | BF48: 0.0005747246521 | BG48: 0.0003218118571 | BH48: 0.01507587078 | BI48: 0.006864766678 | BJ48: 0.03829661353 | BK48: 0.002331600266 | BL48: 0.001278903395 | BM48: 0.01563715932 | BN48: 6
AJ49: 5 | AO49: CUZ | AP49: =AP13/$BN13 -> 6.0749238e-05 | AQ49: 0.003306262743 | AR49: 0.05633395833 | AS49: 0.118031699 | AT49: 0.01312262096 | AU49: 0.0005086159733 | AV49: 0 | AW49: 4.031491586e-05 | AX49: 0.0006213159311 | AY49: 0.002180055899 | AZ49: 0.001128461497 | BA49: 0.001511867737 | BB49: 0.004558125608 | BC49: 0.3306936117 | BD49: 0.002814047891 | BE49: 0.3978370549 | BF49: 0.001313835174 | BG49: 6.539289703e-05 | BH49: 0.001148794137 | BI49: 0.05440250833 | BJ49: 0.0002918234424 | BK49: 0.0051326865 | BL49: 0.0001299380308 | BM49: 0.004766259198 | BN49: 7
L50: 2 | M50: 3 | N50: 4 | O50: 5 | P50: 6 | Q50: 7 | R50: 8 | S50: 9 | T50: 10 | U50: 11 | V50: 12 | W50: 13 | X50: 14 | Y50: 15 | Z50: 16 | AA50: 17 | AB50: 18 | AC50: 19 | AD50: 20 | AE50: 21 | AF50: 22 | AG50: 23 | AH50: 24 | AI50: 25 | AO50: HUV | AP50: =AP14/$BN14 -> 0.0003311452925 | AQ50: 0.001351687749 | AR50: 0.001316046497 | AS50: 0.01118944548 | AT50: 0.09537555364 | AU50: 0.0008317427056 | AV50: 0.007471174489 | AW50: 0 | AX50: 0.001693402687 | AY50: 0.01782529144 | AZ50: 0.1153362345 | BA50: 0.0005494147203 | BB50: 0.002484643244 | BC50: 0.7210469554 | BD50: 0.003834857616 | BE50: 0.002891490159 | BF50: 0.000477449427 | BG50: 0.000267343477 | BH50: 0.0009393149191 | BI50: 0.004562294524 | BJ50: 0.00159073533 | BK50: 0.001076091353 | BL50: 0.001062442147 | BM50: 0.006495243183 | BN50: 8
AO51: HUA | AP51: =AP15/$BN15 -> 0.0012890338 | AQ51: 0.01490801319 | AR51: 0.0008538187802 | AS51: 0.004355663138 | AT51: 0.007425279185 | AU51: 0.001618842975 | AV51: 0.007270672922 | AW51: 9.504881764e-05 | AX51: 0 | AY51: 0.002312922625 | AZ51: 0.008979279374 | BA51: 0.005346702497 | BB51: 0.007253890957 | BC51: 0.7016964444 | BD51: 0.01044943969 | BE51: 0.01406946072 | BF51: 0.0006969543997 | BG51: 0.01561013184 | BH51: 0.001218809092 | BI51: 0.001775943063 | BJ51: 0.03870113163 | BK51: 0.002094425253 | BL51: 0.000275714592 | BM51: 0.1517023771 | BN51: 9
AO52: ICA | AP52: =AP16/$BN16 -> 0.0005518962232 | AQ52: 0.0100122733 | AR52: 0.01364757808 | AS52: 0.03729730026 | AT52: 0.05298520924 | AU52: 0.001540229112 | AV52: 0.01452695214 | AW52: 0.0006782480989 | AX52: 0.002257818712 | AY52: 0 | AZ52: 0.002135807443 | BA52: 0.003052234331 | BB52: 0.006901629252 | BC52: 0.8011449968 | BD52: 0.006817369037 | BE52: 0.01606346755 | BF52: 0.002652436272 | BG52: 0.0002475346062 | BH52: 0.004174637683 | BI52: 0.004562190388 | BJ52: 0.004418608391 | BK52: 0.002391259535 | BL52: 0.0003934881096 | BM52: 0.01154683542 | BN52: 10
AO53: JUN | AP53: =AP17/$BN17 -> 0.0003071949347 | AQ53: 0.006269629059 | AR53: 0.003662587031 | AS53: 0.007785119673 | AT53: 0.03981484695 | AU53: 0.00154317245 | AV53: 0.008663519501 | AW53: 0.004303780018 | AX53: 0.009896833384 | AY53: 0.003307212493 | AZ53: 0 | BA53: 0.002548389226 | BB53: 0.006914818085 | BC53: 0.8361207959 | BD53: 0.00355749836 | BE53: 0.01072944295 | BF53: 0.0004429175014 | BG53: 0.002480076384 | BH53: 0.001742756378 | BI53: 0.002116161396 | BJ53: 0.003689210197 | BK53: 0.001597219446 | BL53: 0.0003285333793 | BM53: 0.04217828535 | BN53: 11
AO54: LAM | AP54: =AP18/$BN18 -> 0.01555901778 | AQ54: 0.01176105306 | AR54: 0.002290187612 | AS54: 0.01168314166 | AT54: 0.004979183756 | AU54: 0.02460581473 | AV54: 0.009751018272 | AW54: 0.0001912112058 | AX54: 0.006011602265 | AY54: 0.003101961953 | AZ54: 0.004014168436 | BA54: 0 | BB54: 0.03891404497 | BC54: 0.7528606966 | BD54: 0.01001014412 | BE54: 0.01132150243 | BF54: 0.001121659328 | BG54: 0.0003489238717 | BH54: 0.02615357309 | BI54: 0.01071807802 | BJ54: 0.02698996802 | BK54: 0.004494280876 | BL54: 0.00277329697 | BM54: 0.020345471 | BN54: 12
AO55: LIB | AP55: =AP19/$BN19 -> 0.006365915318 | AQ55: 0.06063109816 | AR55: 0.0004216598548 | AS55: 0.01075525819 | AT55: 0.003666986737 | AU55: 0.03997341763 | AV55: 0.008976585429 | AW55: 9.388004006e-05 | AX55: 0.004069232731 | AY55: 0.002855601917 | AZ55: 0.002956288247 | BA55: 0.05280956219 | BB55: 0 | BC55: 0.6930679617 | BD55: 0.01105815758 | BE55: 0.00833787249 | BF55: 0.001147307047 | BG55: 0.0002569696707 | BH55: 0.03611465642 | BI55: 0.005481578112 | BJ55: 0.02675766742 | BK55: 0.002068670937 | BL55: 0.003404052989 | BM55: 0.01872961915 | BN55: 13
AO56: LIM | AP56: =AP20/$BN20 -> 0.007582558596 | AQ56: 0.1031697344 | AR56: 0.02556892768 | AS56: 0.08734626458 | AT56: 0.05459769024 | AU56: 0.01904522862 | AV56: 0.1010896611 | AW56: 0.0008640809386 | AX56: 0.01956400351 | AY56: 0.03463202771 | AZ56: 0.022408204 | BA56: 0.05718403543 | BB56: 0.1293029856 | BC56: 0 | BD56: 0.05587940693 | BE56: 0.06019026051 | BF56: 0.00546631394 | BG56: 0.00166953432 | BH56: 0.05865931395 | BI56: 0.02136831813 | BJ56: 0.0413916219 | BK56: 0.01792023221 | BL56: 0.00479183546 | BM56: 0.07030776037 | BN56: 14
AO57: LOR | AP57: =AP21/$BN21 -> 0.002093215624 | AQ57: 0.008137339964 | AR57: 0.0005281849929 | AS57: 0.008420243692 | AT57: 0.004306301354 | AU57: 0.002503600837 | AV57: 0.008995492754 | AW57: 4.409895891e-05 | AX57: 0.003058352798 | AY57: 0.002503914572 | AZ57: 0.001851571911 | BA57: 0.008268874162 | BB57: 0.01869735335 | BC57: 0.651119781 | BD57: 0 | BE57: 0.02175894401 | BF57: 0.0003592886289 | BG57: 0.0001341202731 | BH57: 0.009424667837 | BI57: 0.001373280982 | BJ57: 0.1077349296 | BK57: 0.001295642604 | BL57: 0.000533003582 | BM57: 0.1368577964 | BN57: 15
AO58: MAD | AP58: =AP22/$BN22 -> 0.001080347208 | AQ58: 0.007349704789 | AR58: 0.02504567819 | AS58: 0.06844702949 | AT58: 0.01555793113 | AU58: 0.001809016425 | AV58: 0.4570196989 | AW58: 7.966100247e-05 | AX58: 0.002762326547 | AY58: 0.00387694954 | AZ58: 0.001881397408 | BA58: 0.004481104462 | BB58: 0.006079530917 | BC58: 0.294048067 | BD58: 0.01251105727 | BE58: 0 | BF58: 0.005841217969 | BG58: 0.0003634152257 | BH58: 0.002553728613 | BI58: 0.0297685775 | BJ58: 0.0129742632 | BK58: 0.003510701541 | BL58: 0.000577695266 | BM58: 0.04238090045 | BN58: 16
AO59: MOQ | AP59: =AP23/$BN23 -> 0.0001788369832 | AQ59: 0.01216645003 | AR59: 0.003553693661 | AS59: 0.3776829083 | AT59: 0.002575406728 | AU59: 0.002994583942 | AV59: 0.04034852184 | AW59: 2.637361999e-05 | AX59: 0.004572660926 | AY59: 0.00641776972 | AZ59: 0.001245760378 | BA59: 0.004450720273 | BB59: 0.008051078101 | BC59: 0.2920542701 | BD59: 0.004142075293 | BE59: 0.05465482557 | BF59: 0 | BG59: 4.812681119e-05 | BH59: 0.005072826045 | BI59: 0.07391682816 | BJ59: 0.002147715172 | BK59: 0.09298392487 | BL59: 0.0001912593985 | BM59: 0.01052338405 | BN59: 17
AO60: PAS | AP60: =AP24/$BN24 -> 0.0003276522535 | AQ60: 0.004458098876 | AR60: 0.008681095789 | AS60: 0.01107141521 | AT60: 0.007077712364 | AU60: 0.00137161531 | AV60: 0.006468320135 | AW60: 0.0006039981125 | AX60: 0.03769965157 | AY60: 0.003527452779 | AZ60: 0.04564785068 | BA60: 0.002038572365 | BB60: 0.004916868677 | BC60: 0.8026212311 | BD60: 0.00569160925 | BE60: 0.01430494844 | BF60: 0.0002362065598 | BG60: 0 | BH60: 0.001549011149 | BI60: 0.002821356132 | BJ60: 0.003934889213 | BK60: 0.001064740357 | BL60: 0.001752058545 | BM60: 0.03213364518 | BN60: 18
AO61: PIU | AP61: =AP25/$BN25 -> 0.00202009226 | AQ61: 0.01570614828 | AR61: 0.002102651259 | AS61: 0.007313485543 | AT61: 0.004155867144 | AU61: 0.006040353197 | AV61: 0.004883202361 | AW61: 6.383764141e-05 | AX61: 0.001918483975 | AY61: 0.0025890472 | AZ61: 0.003350418769 | BA61: 0.04788008032 | BB61: 0.05413256766 | BC61: 0.7854673543 | BD61: 0.008020751562 | BE61: 0.006299648333 | BF61: 0.001248254701 | BG61: 0.0001941524723 | BH61: 0 | BI61: 0.001789165071 | BJ61: 0.01732856178 | BK61: 0.001875571895 | BL61: 0.01543151692 | BM61: 0.01018878739 | BN61: 19
AO62: PUN | AP62: =AP26/$BN26 -> 0.0004077300715 | AQ62: 0.003698435264 | AR62: 0.01350343149 | AS62: 0.2583235465 | AT62: 0.0146791613 | AU62: 0.001137890965 | AV62: 0.1916469005 | AW62: 0.0001503229054 | AX62: 0.001042520027 | AY62: 0.003657965007 | AZ62: 0.001420103266 | BA62: 0.002818663341 | BB62: 0.004079030324 | BC62: 0.2589431957 | BD62: 0.001573918161 | BE62: 0.1928448241 | BF62: 0.01469675799 | BG62: 0.000182873697 | BH62: 0.001285058411 | BI62: 0 | BJ62: 0.003264380946 | BK62: 0.02649923246 | BL62: 0.0001453506369 | BM62: 0.003998706953 | BN62: 20
AO63: SMA | AP63: =AP27/$BN27 -> 0.02978008856 | AQ63: 0.005064919359 | AR63: 0.0007890188414 | AS63: 0.005660287504 | AT63: 0.003216442109 | AU63: 0.02181640557 | AV63: 0.002519576486 | AW63: 5.489697412e-05 | AX63: 0.01713247735 | AY63: 0.001335865681 | AZ63: 0.001728709098 | BA63: 0.04940918503 | BB63: 0.04468908212 | BC63: 0.6484417166 | BD63: 0.08621774341 | BE63: 0.02275292164 | BF63: 0.0005367163049 | BG63: 0.0005008823797 | BH63: 0.01055914206 | BI63: 0.0007692933703 | BJ63: 0 | BK63: 0.002419338016 | BL63: 0.0007962169966 | BM63: 0.04380907451 | BN63: 21
AO64: TAC | AP64: =AP28/$BN28 -> 0.001397276934 | AQ64: 0.006337205233 | AR64: 0.004936084838 | AS64: 0.1967257579 | AT64: 0.009390263117 | AU64: 0.002339707924 | AV64: 0.0683038031 | AW64: 3.434342849e-05 | AX64: 0.003810858967 | AY64: 0.005014288115 | AZ64: 0.001730362687 | BA64: 0.006182055897 | BB64: 0.01048402249 | BC64: 0.405663738 | BD64: 0.006472516097 | BE64: 0.0610036228 | BF64: 0.06715371232 | BG64: 0.0002506807483 | BH64: 0.003523080787 | BI64: 0.1155043852 | BJ64: 0.004474768498 | BK64: 0 | BL64: 0.0009962232683 | BM64: 0.01827124162 | BN64: 22
AO65: TUM | AP65: =AP29/$BN29 -> 0.00286943555 | AQ65: 0.01301402861 | AR65: 0.0005068350078 | AS65: 0.01131183973 | AT65: 0.002754823038 | AU65: 0.008008005824 | AV65: 0.006473911653 | AW65: 7.052736094e-05 | AX65: 0.0009782432829 | AY65: 0.003432432572 | AZ65: 0.0008883643768 | BA65: 0.04760780738 | BB65: 0.07176631944 | BC65: 0.6248005978 | BD65: 0.006645950899 | BE65: 0.008351766675 | BF65: 0.0008274376174 | BG65: 0.0001286989418 | BH65: 0.1446993507 | BI65: 0.003953313061 | BJ65: 0.0321627075 | BK65: 0.001243270896 | BL65: 0 | BM65: 0.007504332033 | BN65: 23
AO66: UCA | AP66: =AP30/$BN30 -> 0.0009765013621 | AQ66: 0.007971877949 | AR66: 0.002587225258 | AS66: 0.008249029205 | AT66: 0.009843722998 | AU66: 0.001635128957 | AV66: 0.008812581341 | AW66: 7.200377512e-05 | AX66: 0.03745206563 | AY66: 0.003504286843 | AZ66: 0.005668508289 | BA66: 0.006480590059 | BB66: 0.01099030048 | BC66: 0.637880124 | BD66: 0.1470099953 | BE66: 0.06394951422 | BF66: 0.002111897827 | BG66: 0.001708110498 | BH66: 0.002769908915 | BI66: 0.001345357134 | BJ66: 0.03518142758 | BK66: 0.003173243575 | BL66: 0.0006265987933 | BM66: 0 | BN66: 24
AP67: 1 | AQ67: =AP67+1 -> 2 | AR67: 3 | AS67: 4 | AT67: 5 | AU67: 6 | AV67: 7 | AW67: 8 | AX67: 9 | AY67: 10 | AZ67: 11 | BA67: 12 | BB67: 13 | BC67: 14 | BD67: 15 | BE67: 16 | BF67: 17 | BG67: 18 | BH67: 19 | BI67: 20 | BJ67: 21 | BK67: 22 | BL67: 23 | BM67: 24
AP73: AMZ | AQ73: SMA | AR73: ANC | AS73: LIB | AT73: PUN | AU73: TAC | AV73: MOQ | AW73: ARQ | AX73: ICA | AY73: UCA | AZ73: HUA | BA73: PAS | BB73: JUN | BC73: LOR | BD73: AYA | BE73: HUV | BF73: TUM | BG73: PIU | BH73: LAM | BI73: CAJ | BJ73: MAD | BK73: APU | BL73: CUZ | BM73: LIM
AO74: AMZ | AP74: =INDEX($AP$43:$BM$66,VLOOKUP($AO74,$AO$43:$BN$66,26,FALSE),HLOOKUP(AP$73,$AP$42:$BN$67,26,FALSE)) -> 0 | AQ74: =INDEX($AP$43:$BM$66,VLOOKUP($AO74,$AO$43:$BN$66,26,FALSE),HLOOKUP(AQ$73,$AP$42:$BN$67,26,FALSE)) -> 0.08611711629 | AR74: 0.007317587584 | AS74: 0.0538041262 | AT74: 0.001234937204 | AU74: 0.001165120085 | AV74: 0.001292376143 | AW74: 0.004543195022 | AX74: 0.001286669267 | AY74: 0.0140652339 | AZ74: 0.001833503705 | BA74: 0.0002412181006 | BB74: 0.0007492703832 | BC74: 0.02076064276 | BD74: 0.002581657516 | BE74: 2.643763159e-05 | BF74: 0.001917236056 | BG74: 0.01695046112 | BH74: 0.1487174216 | BI74: 0.03752315147 | BJ74: 0.007826782669 | BK74: 0.0004749758476 | BL74: 0.004044645203 | BM74: 0.5855262342 | BO74: =+D7-AP74 -> 0 | BP74: =+E7-AQ74 -> 0 | BQ74: 0 | BR74: 0 | BS74: 0 | BT74: 0 | BU74: 0 | BV74: 0 | BW74: 0 | BX74: 0 | BY74: 0 | BZ74: 0 | CA74: 0 | CB74: 0 | CC74: 0 | CD74: 0 | CE74: 0 | CF74: 0 | CG74: 0 | CH74: 0 | CI74: 0 | CJ74: 0
AO75: SMA | AP75: =INDEX($AP$43:$BM$66,VLOOKUP($AO75,$AO$43:$BN$66,26,FALSE),HLOOKUP(AP$73,$AP$42:$BN$67,26,FALSE)) -> 0.02978008856 | AQ75: 0 | AR75: 0.005064919359 | AS75: 0.04468908212 | AT75: 0.0007692933703 | AU75: 0.002419338016 | AV75: 0.0005367163049 | AW75: 0.005660287504 | AX75: 0.001335865681 | AY75: 0.04380907451 | AZ75: 0.01713247735 | BA75: 0.0005008823797 | BB75: 0.001728709098 | BC75: 0.08621774341 | BD75: 0.003216442109 | BE75: 5.489697412e-05 | BF75: 0.0007962169966 | BG75: 0.01055914206 | BH75: 0.04940918503 | BI75: 0.02181640557 | BJ75: 0.02275292164 | BK75: 0.0007890188414 | BL75: 0.002519576486 | BM75: 0.6484417166 | BO75: =+D8-AP75 -> 0 | BP75: 0 | BQ75: 0 | BR75: 0 | BS75: 0 | BT75: 0 | BU75: 0 | BV75: 0 | BW75: 0 | BX75: 0 | BY75: 0 | BZ75: 0 | CA75: 0 | CB75: 0 | CC75: 0 | CD75: 0 | CE75: 0 | CF75: 0 | CG75: 0 | CH75: 0 | CI75: 0 | CJ75: 0
AO76: ANC | AP76: 0.0007551767552 | AQ76: 0.005441507273 | AR76: 0 | AS76: 0.08499342427 | AT76: 0.001820754513 | AU76: 0.0009816104225 | AV76: 0.002177646593 | AW76: 0.009569072841 | AX76: 0.003387547716 | AY76: 0.004443720128 | AZ76: 0.003475623957 | BA76: 0.0002540319713 | BB76: 0.002191868779 | BC76: 0.00524723509 | BD76: 0.005437598145 | BE76: 9.744713514e-05 | BF76: 0.001211449523 | BG76: 0.01071053717 | BH76: 0.0125294013 | BI76: 0.005690367085 | BJ76: 0.008242553215 | BK76: 0.001500621851 | BL76: 0.007667105183 | BM76: 0.8221736991 | BO76: =+D9-AP76 -> 0 | BP76: 0 | BQ76: 0 | BR76: 0 | BS76: 0 | BT76: 0 | BU76: 0 | BV76: 0 | BW76: 0 | BX76: 0 | BY76: 0 | BZ76: 0 | CA76: 0 | CB76: 0 | CC76: 0 | CD76: 0 | CE76: 0 | CF76: 0 | CG76: 0 | CH76: 0 | CI76: 0 | CJ76: 0
AO77: LIB | AP77: 0.006365915318 | AQ77: 0.02675766742 | AR77: 0.06063109816 | AS77: 0 | AT77: 0.005481578112 | AU77: 0.002068670937 | AV77: 0.001147307047 | AW77: 0.01075525819 | AX77: 0.002855601917 | AY77: 0.01872961915 | AZ77: 0.004069232731 | BA77: 0.0002569696707 | BB77: 0.002956288247 | BC77: 0.01105815758 | BD77: 0.003666986737 | BE77: 9.388004006e-05 | BF77: 0.003404052989 | BG77: 0.03611465642 | BH77: 0.05280956219 | BI77: 0.03997341763 | BJ77: 0.00833787249 | BK77: 0.0004216598548 | BL77: 0.008976585429 | BM77: 0.6930679617 | BO77: =+D10-AP77 -> 0 | BP77: 0 | BQ77: 0 | BR77: 0 | BS77: 0 | BT77: 0 | BU77: 0 | BV77: 0 | BW77: 0 | BX77: 0 | BY77: 0 | BZ77: 0 | CA77: 0 | CB77: 0 | CC77: 0 | CD77: 0 | CE77: 0 | CF77: 0 | CG77: 0 | CH77: 0 | CI77: 0 | CJ77: 0
AO78: PUN | AP78: 0.0004077300715 | AQ78: 0.003264380946 | AR78: 0.003698435264 | AS78: 0.004079030324 | AT78: 0 | AU78: 0.02649923246 | AV78: 0.01469675799 | AW78: 0.2583235465 | AX78: 0.003657965007 | AY78: 0.003998706953 | AZ78: 0.001042520027 | BA78: 0.000182873697 | BB78: 0.001420103266 | BC78: 0.001573918161 | BD78: 0.0146791613 | BE78: 0.0001503229054 | BF78: 0.0001453506369 | BG78: 0.001285058411 | BH78: 0.002818663341 | BI78: 0.001137890965 | BJ78: 0.1928448241 | BK78: 0.01350343149 | BL78: 0.1916469005 | BM78: 0.2589431957 | BO78: =+D11-AP78 -> 0 | BP78: 0 | BQ78: 0 | BR78: 0 | BS78: 0 | BT78: 0 | BU78: 0 | BV78: 0 | BW78: 0 | BX78: 0 | BY78: 0 | BZ78: 0 | CA78: 0 | CB78: 0 | CC78: 0 | CD78: 0 | CE78: 0 | CF78: 0 | CG78: 0 | CH78: 0 | CI78: 0 | CJ78: 0
AO79: TAC | AP79: 0.001397276934 | AQ79: 0.004474768498 | AR79: 0.006337205233 | AS79: 0.01048402249 | AT79: 0.1155043852 | AU79: 0 | AV79: 0.06715371232 | AW79: 0.1967257579 | AX79: 0.005014288115 | AY79: 0.01827124162 | AZ79: 0.003810858967 | BA79: 0.0002506807483 | BB79: 0.001730362687 | BC79: 0.006472516097 | BD79: 0.009390263117 | BE79: 3.434342849e-05 | BF79: 0.0009962232683 | BG79: 0.003523080787 | BH79: 0.006182055897 | BI79: 0.002339707924 | BJ79: 0.0610036228 | BK79: 0.004936084838 | BL79: 0.0683038031 | BM79: 0.405663738 | BO79: =+D12-AP79 -> 0 | BP79: 0 | BQ79: 0 | BR79: 0 | BS79: 0 | BT79: 0 | BU79: 0 | BV79: 0 | BW79: 0 | BX79: 0 | BY79: 0 | BZ79: 0 | CA79: 0 | CB79: 0 | CC79: 0 | CD79: 0 | CE79: 0 | CF79: 0 | CG79: 0 | CH79: 0 | CI79: 0 | CJ79: 0
AO80: MOQ | AP80: 0.0001788369832 | AQ80: 0.002147715172 | AR80: 0.01216645003 | AS80: 0.008051078101 | AT80: 0.07391682816 | AU80: 0.09298392487 | AV80: 0 | AW80: 0.3776829083 | AX80: 0.00641776972 | AY80: 0.01052338405 | AZ80: 0.004572660926 | BA80: 4.812681119e-05 | BB80: 0.001245760378 | BC80: 0.004142075293 | BD80: 0.002575406728 | BE80: 2.637361999e-05 | BF80: 0.0001912593985 | BG80: 0.005072826045 | BH80: 0.004450720273 | BI80: 0.002994583942 | BJ80: 0.05465482557 | BK80: 0.003553693661 | BL80: 0.04034852184 | BM80: 0.2920542701 | BO80: =+D13-AP80 -> 0 | BP80: 0 | BQ80: 0 | BR80: 0 | BS80: 0 | BT80: 0 | BU80: 0 | BV80: 0 | BW80: 0 | BX80: 0 | BY80: 0 | BZ80: 0 | CA80: 0 | CB80: 0 | CC80: 0 | CD80: 0 | CE80: 0 | CF80: 0 | CG80: 0 | CH80: 0 | CI80: 0 | CJ80: 0
AO81: ARQ | AP81: 0.0003942628006 | AQ81: 0.004734838306 | AR81: 0.008046621972 | AS81: 0.007395563413 | AT81: 0.1086376921 | AU81: 0.03843594943 | AV81: 0.03410718241 | AW81: 0 | AX81: 0.01131885729 | AY81: 0.007733260373 | AZ81: 0.001209702873 | BA81: 0.0002122000833 | BB81: 0.002288662402 | BC81: 0.004565795552 | BD81: 0.008516586316 | BE81: 8.721465571e-05 | BF81: 0.0006324737597 | BG81: 0.0037278393 | BH81: 0.003270675912 | BI81: 0.002970827754 | BJ81: 0.1118851109 | BK81: 0.01044593193 | BL81: 0.2001421748 | BM81: 0.4292405757 | BO81: =+D14-AP81 -> 0 | BP81: 0 | BQ81: 0 | BR81: 0 | BS81: 0 | BT81: 0 | BU81: 0 | BV81: 0 | BW81: 0 | BX81: 0 | BY81: 0 | BZ81: 0 | CA81: 0 | CB81: 0 | CC81: 0 | CD81: 0 | CE81: 0 | CF81: 0 | CG81: 0 | CH81: 0 | CI81: 0 | CJ81: 0
AO82: ICA | AP82: 0.0005518962232 | AQ82: 0.004418608391 | AR82: 0.0100122733 | AS82: 0.006901629252 | AT82: 0.004562190388 | AU82: 0.002391259535 | AV82: 0.002652436272 | AW82: 0.03729730026 | AX82: 0 | AY82: 0.01154683542 | AZ82: 0.002257818712 | BA82: 0.0002475346062 | BB82: 0.002135807443 | BC82: 0.006817369037 | BD82: 0.05298520924 | BE82: 0.0006782480989 | BF82: 0.0003934881096 | BG82: 0.004174637683 | BH82: 0.003052234331 | BI82: 0.001540229112 | BJ82: 0.01606346755 | BK82: 0.01364757808 | BL82: 0.01452695214 | BM82: 0.8011449968 | BO82: =+D15-AP82 -> 0 | BP82: 0 | BQ82: 0 | BR82: 0 | BS82: 0 | BT82: 0 | BU82: 0 | BV82: 0 | BW82: 0 | BX82: 0 | BY82: 0 | BZ82: 0 | CA82: 0 | CB82: 0 | CC82: 0 | CD82: 0 | CE82: 0 | CF82: 0 | CG82: 0 | CH82: 0 | CI82: 0 | CJ82: 0
AO83: UCA | AP83: 0.0009765013621 | AQ83: 0.03518142758 | AR83: 0.007971877949 | AS83: 0.01099030048 | AT83: 0.001345357134 | AU83: 0.003173243575 | AV83: 0.002111897827 | AW83: 0.008249029205 | AX83: 0.003504286843 | AY83: 0 | AZ83: 0.03745206563 | BA83: 0.001708110498 | BB83: 0.005668508289 | BC83: 0.1470099953 | BD83: 0.009843722998 | BE83: 7.200377512e-05 | BF83: 0.0006265987933 | BG83: 0.002769908915 | BH83: 0.006480590059 | BI83: 0.001635128957 | BJ83: 0.06394951422 | BK83: 0.002587225258 | BL83: 0.008812581341 | BM83: 0.637880124 | BO83: =+D16-AP83 -> 0 | BP83: 0 | BQ83: 0 | BR83: 0 | BS83: 0 | BT83: 0 | BU83: 0 | BV83: 0 | BW83: 0 | BX83: 0 | BY83: 0 | BZ83: 0 | CA83: 0 | CB83: 0 | CC83: 0 | CD83: 0 | CE83: 0 | CF83: 0 | CG83: 0 | CH83: 0 | CI83: 0 | CJ83: 0
AO84: HUA | AP84: 0.0012890338 | AQ84: 0.03870113163 | AR84: 0.01490801319 | AS84: 0.007253890957 | AT84: 0.001775943063 | AU84: 0.002094425253 | AV84: 0.0006969543997 | AW84: 0.004355663138 | AX84: 0.002312922625 | AY84: 0.1517023771 | AZ84: 0 | BA84: 0.01561013184 | BB84: 0.008979279374 | BC84: 0.01044943969 | BD84: 0.007425279185 | BE84: 9.504881764e-05 | BF84: 0.000275714592 | BG84: 0.001218809092 | BH84: 0.005346702497 | BI84: 0.001618842975 | BJ84: 0.01406946072 | BK84: 0.0008538187802 | BL84: 0.007270672922 | BM84: 0.7016964444 | BO84: =+D17-AP84 -> 0 | BP84: 0 | BQ84: 0 | BR84: 0 | BS84: 0 | BT84: 0 | BU84: 0 | BV84: 0 | BW84: 0 | BX84: 0 | BY84: 0 | BZ84: 0 | CA84: 0 | CB84: 0 | CC84: 0 | CD84: 0 | CE84: 0 | CF84: 0 | CG84: 0 | CH84: 0 | CI84: 0 | CJ84: 0
AO85: PAS | AP85: 0.0003276522535 | AQ85: 0.003934889213 | AR85: 0.004458098876 | AS85: 0.004916868677 | AT85: 0.002821356132 | AU85: 0.001064740357 | AV85: 0.0002362065598 | AW85: 0.01107141521 | AX85: 0.003527452779 | AY85: 0.03213364518 | AZ85: 0.03769965157 | BA85: 0 | BB85: 0.04564785068 | BC85: 0.00569160925 | BD85: 0.007077712364 | BE85: 0.0006039981125 | BF85: 0.001752058545 | BG85: 0.001549011149 | BH85: =INDEX($AP$43:$BM$66,VLOOKUP($AO85,$AO$43:$BN$66,26,FALSE),HLOOKUP(BH$73,$AP$42:$BN$67,26,FALSE)) -> 0.002038572365 | BI85: 0.00137161531 | BJ85: 0.01430494844 | BK85: 0.008681095789 | BL85: 0.006468320135 | BM85: 0.8026212311 | BO85: =+D18-AP85 -> 0 | BP85: 0 | BQ85: 0 | BR85: 0 | BS85: 0 | BT85: 0 | BU85: 0 | BV85: 0 | BW85: 0 | BX85: 0 | BY85: 0 | BZ85: 0 | CA85: 0 | CB85: 0 | CC85: 0 | CD85: 0 | CE85: 0 | CF85: 0 | CG85: 0 | CH85: 0 | CI85: 0 | CJ85: 0
AO86: JUN | AP86: 0.0003071949347 | AQ86: 0.003689210197 | AR86: 0.006269629059 | AS86: 0.006914818085 | AT86: 0.002116161396 | AU86: 0.001597219446 | AV86: 0.0004429175014 | AW86: 0.007785119673 | AX86: 0.003307212493 | AY86: 0.04217828535 | AZ86: 0.009896833384 | BA86: 0.002480076384 | BB86: 0 | BC86: 0.00355749836 | BD86: 0.03981484695 | BE86: 0.004303780018 | BF86: 0.0003285333793 | BG86: 0.001742756378 | BH86: 0.002548389226 | BI86: 0.00154317245 | BJ86: 0.01072944295 | BK86: 0.003662587031 | BL86: 0.008663519501 | BM86: 0.8361207959 | BO86: =+D19-AP86 -> 0 | BP86: 0 | BQ86: 0 | BR86: 0 | BS86: 0 | BT86: 0 | BU86: 0 | BV86: 0 | BW86: 0 | BX86: 0 | BY86: 0 | BZ86: 0 | CA86: 0 | CB86: 0 | CC86: 0 | CD86: 0 | CE86: 0 | CF86: 0 | CG86: 0 | CH86: 0 | CI86: 0 | CJ86: 0
AO87: LOR | AP87: 0.002093215624 | AQ87: 0.1077349296 | AR87: 0.008137339964 | AS87: 0.01869735335 | AT87: 0.001373280982 | AU87: 0.001295642604 | AV87: 0.0003592886289 | AW87: 0.008420243692 | AX87: 0.002503914572 | AY87: 0.1368577964 | AZ87: 0.003058352798 | BA87: 0.0001341202731 | BB87: 0.001851571911 | BC87: 0 | BD87: 0.004306301354 | BE87: 4.409895891e-05 | BF87: 0.000533003582 | BG87: 0.009424667837 | BH87: 0.008268874162 | BI87: 0.002503600837 | BJ87: 0.02175894401 | BK87: 0.0005281849929 | BL87: 0.008995492754 | BM87: 0.651119781 | BO87: =+D20-AP87 -> 0 | BP87: 0 | BQ87: 0 | BR87: 0 | BS87: 0 | BT87: 0 | BU87: 0 | BV87: 0 | BW87: 0 | BX87: 0 | BY87: 0 | BZ87: 0 | CA87: 0 | CB87: 0 | CC87: 0 | CD87: 0 | CE87: 0 | CF87: 0 | CG87: 0 | CH87: 0 | CI87: 0 | CJ87: 0
AO88: AYA | AP88: 0.001497449923 | AQ88: 0.0008991696968 | AR88: 0.004074917689 | AS88: 0.002808909653 | AT88: 0.005157711539 | AU88: 0.002433060276 | AV88: 0.00107952102 | AW88: 0.01264976029 | AX88: 0.02149508139 | AY88: 0.01468585184 | AZ88: 0.002297286823 | BA88: 0.0003022340028 | BB88: 0.008692570877 | BC88: 0.003468270498 | BD88: 0 | BE88: 0.0009937502039 | BF88: 8.007330655e-05 | BG88: 0.001415871004 | BH88: 0.0018633536 | BI88: 0.00125372264 | BJ88: 0.03268853442 | BK88: 0.03967470415 | BL88: 0.0253386729 | BM88: 0.8151495223 | BO88: =+D21-AP88 -> 0 | BP88: 0 | BQ88: 0 | BR88: 0 | BS88: 0 | BT88: 0 | BU88: 0 | BV88: 0 | BW88: 0 | BX88: 0 | BY88: 0 | BZ88: 0 | CA88: 0 | CB88: 0 | CC88: 0 | CD88: 0 | CE88: 0 | CF88: 0 | CG88: 0 | CH88: 0 | CI88: 0 | CJ88: 0
AO89: HUV | AP89: 0.0003311452925 | AQ89: 0.00159073533 | AR89: 0.001351687749 | AS89: 0.002484643244 | AT89: 0.004562294524 | AU89: 0.001076091353 | AV89: 0.000477449427 | AW89: 0.01118944548 | AX89: 0.01782529144 | AY89: 0.006495243183 | AZ89: 0.001693402687 | BA89: 0.000267343477 | BB89: 0.1153362345 | BC89: 0.003834857616 | BD89: 0.09537555364 | BE89: 0 | BF89: 0.001062442147 | BG89: 0.0009393149191 | BH89: 0.0005494147203 | BI89: 0.0008317427056 | BJ89: 0.002891490159 | BK89: 0.001316046497 | BL89: 0.007471174489 | BM89: 0.7210469554 | BO89: =+D22-AP89 -> 0 | BP89: 0 | BQ89: 0 | BR89: 0 | BS89: 0 | BT89: 0 | BU89: 0 | BV89: 0 | BW89: 0 | BX89: 0 | BY89: 0 | BZ89: 0 | CA89: 0 | CB89: 0 | CC89: 0 | CD89: 0 | CE89: 0 | CF89: 0 | CG89: 0 | CH89: 0 | CI89: 0 | CJ89: 0
AO90: TUM | AP90: 0.00286943555 | AQ90: 0.0321627075 | AR90: 0.01301402861 | AS90: 0.07176631944 | AT90: 0.003953313061 | AU90: 0.001243270896 | AV90: 0.0008274376174 | AW90: 0.01131183973 | AX90: 0.003432432572 | AY90: 0.007504332033 | AZ90: 0.0009782432829 | BA90: 0.0001286989418 | BB90: 0.0008883643768 | BC90: 0.006645950899 | BD90: 0.002754823038 | BE90: 7.052736094e-05 | BF90: 0 | BG90: 0.1446993507 | BH90: 0.04760780738 | BI90: 0.008008005824 | BJ90: 0.008351766675 | BK90: 0.0005068350078 | BL90: 0.006473911653 | BM90: 0.6248005978 | BO90: =+D23-AP90 -> 0 | BP90: 0 | BQ90: 0 | BR90: 0 | BS90: 0 | BT90: 0 | BU90: 0 | BV90: 0 | BW90: 0 | BX90: 0 | BY90: 0 | BZ90: 0 | CA90: 0 | CB90: 0 | CC90: 0 | CD90: 0 | CE90: 0 | CF90: 0 | CG90: 0 | CH90: 0 | CI90: 0 | CJ90: 0
AO91: PIU | AP91: 0.00202009226 | AQ91: 0.01732856178 | AR91: 0.01570614828 | AS91: 0.05413256766 | AT91: 0.001789165071 | AU91: 0.001875571895 | AV91: 0.001248254701 | AW91: 0.007313485543 | AX91: 0.0025890472 | AY91: 0.01018878739 | AZ91: 0.001918483975 | BA91: 0.0001941524723 | BB91: 0.003350418769 | BC91: 0.008020751562 | BD91: 0.004155867144 | BE91: 6.383764141e-05 | BF91: 0.01543151692 | BG91: 0 | BH91: 0.04788008032 | BI91: 0.006040353197 | BJ91: 0.006299648333 | BK91: 0.002102651259 | BL91: 0.004883202361 | BM91: 0.7854673543 | BO91: =+D24-AP91 -> 0 | BP91: 0 | BQ91: 0 | BR91: 0 | BS91: 0 | BT91: 0 | BU91: 0 | BV91: 0 | BW91: 0 | BX91: 0 | BY91: 0 | BZ91: 0 | CA91: 0 | CB91: 0 | CC91: 0 | CD91: 0 | CE91: 0 | CF91: 0 | CG91: 0 | CH91: 0 | CI91: 0 | CJ91: 0
AO92: LAM | AP92: 0.01555901778 | AQ92: 0.02698996802 | AR92: 0.01176105306 | AS92: 0.03891404497 | AT92: 0.01071807802 | AU92: 0.004494280876 | AV92: 0.001121659328 | AW92: 0.01168314166 | AX92: 0.003101961953 | AY92: 0.020345471 | AZ92: 0.006011602265 | BA92: 0.0003489238717 | BB92: 0.004014168436 | BC92: 0.01001014412 | BD92: 0.004979183756 | BE92: 0.0001912112058 | BF92: 0.00277329697 | BG92: 0.02615357309 | BH92: 0 | BI92: 0.02460581473 | BJ92: 0.01132150243 | BK92: 0.002290187612 | BL92: 0.009751018272 | BM92: 0.7528606966 | BO92: =+D25-AP92 -> 0 | BP92: 0 | BQ92: 0 | BR92: 0 | BS92: 0 | BT92: 0 | BU92: 0 | BV92: 0 | BW92: 0 | BX92: 0 | BY92: 0 | BZ92: 0 | CA92: 0 | CB92: 0 | CC92: 0 | CD92: 0 | CE92: 0 | CF92: 0 | CG92: 0 | CH92: 0 | CI92: 0 | CJ92: 0
AO93: CAJ | AP93: 0.01993063058 | AQ93: 0.03829661353 | AR93: 0.01355899751 | AS93: 0.08972588361 | AT93: 0.006864766678 | AU93: 0.002331600266 | AV93: 0.0005747246521 | AW93: 0.01010188168 | AX93: 0.002145700433 | AY93: 0.01563715932 | AZ93: 0.003872989282 | BA93: 0.0003218118571 | BB93: 0.002776695228 | BC93: 0.009232337854 | BD93: 0.005166328715 | BE93: 0.0001175691667 | BF93: 0.001278903395 | BG93: 0.01507587078 | BH93: 0.09258929481 | BI93: 0 | BJ93: 0.008701501048 | BK93: 0.002640294876 | BL93: 0.008094011898 | BM93: 0.6509644328 | BO93: =+D26-AP93 -> 0 | BP93: 0 | BQ93: 0 | BR93: 0 | BS93: 0 | BT93: 0 | BU93: 0 | BV93: 0 | BW93: 0 | BX93: 0 | BY93: 0 | BZ93: 0 | CA93: 0 | CB93: 0 | CC93: 0 | CD93: 0 | CE93: 0 | CF93: 0 | CG93: 0 | CH93: 0 | CI93: 0 | CJ93: 0
AO94: MAD | AP94: 0.001080347208 | AQ94: 0.0129742632 | AR94: 0.007349704789 | AS94: 0.006079530917 | AT94: 0.0297685775 | AU94: 0.003510701541 | AV94: 0.005841217969 | AW94: 0.06844702949 | AX94: 0.00387694954 | AY94: 0.04238090045 | AZ94: 0.002762326547 | BA94: 0.0003634152257 | BB94: 0.001881397408 | BC94: 0.01251105727 | BD94: 0.01555793113 | BE94: 7.966100247e-05 | BF94: 0.000577695266 | BG94: 0.002553728613 | BH94: 0.004481104462 | BI94: 0.001809016425 | BJ94: 0 | BK94: 0.02504567819 | BL94: 0.4570196989 | BM94: 0.294048067 | BO94: =+D27-AP94 -> 0 | BP94: 0 | BQ94: 0 | BR94: 0 | BS94: 0 | BT94: 0 | BU94: 0 | BV94: 0 | BW94: 0 | BX94: 0 | BY94: 0 | BZ94: 0 | CA94: 0 | CB94: 0 | CC94: 0 | CD94: 0 | CE94: 0 | CF94: 0 | CG94: 0 | CH94: 0 | CI94: 0 | CJ94: 0
AO95: APU | AP95: 0.0002476774496 | AQ95: 0.002974444138 | AR95: 0.001684973242 | AS95: 0.001858368867 | AT95: 0.01279624267 | AU95: 0.00160970769 | AV95: 0.0005356566698 | AW95: 0.031383958 | AX95: 0.008888188606 | AY95: 0.002429032366 | AZ95: 0.0006332834382 | BA95: 0.0001666311638 | BB95: 0.002012845474 | BC95: 0.001434125406 | BD95: 0.05350153185 | BE95: 0.0002282857976 | BF95: 0.0002648816771 | BG95: 0.0007025530148 | BH95: 0.001027325768 | BI95: 0.0004147301638 | BJ95: 0.05406666836 | BK95: 0 | BL95: 0.3492502923 | BM95: 0.4718885959 | BO95: =+D28-AP95 -> 0 | BP95: 0 | BQ95: 0 | BR95: 0 | BS95: 0 | BT95: 0 | BU95: 0 | BV95: 0 | BW95: 0 | BX95: 0 | BY95: 0 | BZ95: 0 | CA95: 0 | CB95: 0 | CC95: 0 | CD95: 0 | CE95: 0 | CF95: 0 | CG95: 0 | CH95: 0 | CI95: 0 | CJ95: 0
AO96: CUZ | AP96: 6.0749238e-05 | AQ96: 0.0002918234424 | AR96: 0.003306262743 | AS96: 0.004558125608 | AT96: 0.05440250833 | AU96: 0.0051326865 | AV96: 0.001313835174 | AW96: 0.118031699 | AX96: 0.002180055899 | AY96: 0.004766259198 | AZ96: 0.0006213159311 | BA96: 6.539289703e-05 | BB96: 0.001128461497 | BC96: 0.002814047891 | BD96: 0.01312262096 | BE96: 4.031491586e-05 | BF96: 0.0001299380308 | BG96: 0.001148794137 | BH96: 0.001511867737 | BI96: 0.0005086159733 | BJ96: =INDEX($AP$43:$BM$66,VLOOKUP($AO96,$AO$43:$BN$66,26,FALSE),HLOOKUP(BJ$73,$AP$42:$BN$67,26,FALSE)) -> 0.3978370549 | BK96: 0.05633395833 | BL96: 0 | BM96: 0.3306936117 | BO96: =+D29-AP96 -> 0 | BP96: 0 | BQ96: 0 | BR96: 0 | BS96: 0 | BT96: 0 | BU96: 0 | BV96: 0 | BW96: 0 | BX96: 0 | BY96: 0 | BZ96: 0 | CA96: 0 | CB96: 0 | CC96: 0 | CD96: 0 | CE96: 0 | CF96: 0 | CG96: 0 | CH96: 0 | CI96: 0 | CJ96: 0
AO97: LIM | AP97: 0.007582558596 | AQ97: 0.0413916219 | AR97: 0.1031697344 | AS97: 0.1293029856 | AT97: 0.02136831813 | AU97: 0.01792023221 | AV97: 0.00546631394 | AW97: 0.08734626458 | AX97: 0.03463202771 | AY97: 0.07030776037 | AZ97: 0.01956400351 | BA97: 0.00166953432 | BB97: 0.022408204 | BC97: 0.05587940693 | BD97: 0.05459769024 | BE97: 0.0008640809386 | BF97: 0.00479183546 | BG97: 0.05865931395 | BH97: 0.05718403543 | BI97: 0.01904522862 | BJ97: 0.06019026051 | BK97: 0.02556892768 | BL97: 0.1010896611 | BM97: 0 | BO97: =+D30-AP97 -> 0 | BP97: 0 | BQ97: 0 | BR97: 0 | BS97: 0 | BT97: 0 | BU97: 0 | BV97: 0 | BW97: 0 | BX97: 0 | BY97: 0 | BZ97: 0 | CA97: 0 | CB97: 0 | CC97: 0 | CD97: 0 | CE97: 0 | CF97: 0 | CG97: 0 | CH97: 0 | CI97: 0 | CJ97: 0

Sheet Routing Table
BC2: Switching and SignallingTrujillo | BD2: Switching and Signalling Lima | BE2: Switching and Signalling Arequipa
BD3: Loreto
BD4: Huancavelica
BC5: Amazonas | BD5: Madre de Dios
BC6: San Martin | BD6: Pasco
BC7: Tumbes | BD7: Ayacucho | BE7: Apurimac
BC8: Cajamarca | BD8: Huanuco | BE8: Moquegua
BC9: Ancash | BD9: Ucayalli | BE9: Puno
G10: BTS Amazonas | H10: BTS Ancash | I10: BTS Apurimac | J10: BTS Arequipa | K10: BTS Ayacucho | L10: BTS Cajamarca | M10: BTS Cusco | N10: BTS Huancavelica | O10: BTS Huanuco | P10: BTS Ica | Q10: BTS Junin | R10: BTS Lambayeque | S10: BTS Libertad | T10: BTS Lima | U10: BTS Loreto | V10: BTS Madre de Dios | W10: BTS Moquegua | X10: BTS Pasco | Y10: BTS Piura | Z10: BTS Puno | AA10: BTS San Martin | AB10: BTS Tacna | AC10: BTS Tumbes | AD10: BTS Ucayalli | AE10: =CONCATENATE(AE11," ",AE12) -> Transmission Amazonas | AF10: Transmission Ancash | AG10: Transmission Apurimac | AH10: Transmission Arequipa | AI10: Transmission Ayacucho | AJ10: Transmission Cajamarca | AK10: Transmission Cusco | AL10: Transmission Huancavelica | AM10: Transmission Huanuco | AN10: Transmission ICA | AO10: Transmission Junin | AP10: Transmission Lambayeque | AQ10: Transmission Libertad | AR10: Transmission Lima | AS10: Transmission Loreto | AT10: Transmission Madre de Dios | AU10: Transmission Moquegua | AV10: Transmission Pasco | AW10: Transmission Piura | AX10: Transmission Puno | AY10: Transmission San Martin | AZ10: Transmission Tacna | BA10: Transmission Tumbes | BB10: Transmission Ucayalli | BC10: Lambayeque | BD10: Ica | BE10: Tacna | BF10: IT CC | BG10: IT IC | BH10: Tasas | BI10: Spectrum | BJ10: Handset Subsidy | BK10: Customer Acquisition Cost | BL10: Admin Overheads
G11: BTS | H11: BTS | I11: BTS | J11: BTS | K11: BTS | L11: BTS | M11: BTS | N11: BTS | O11: BTS | P11: BTS | Q11: BTS | R11: BTS | S11: BTS | T11: BTS | U11: BTS | V11: BTS | W11: BTS | X11: BTS | Y11: BTS | Z11: BTS | AA11: BTS | AB11: BTS | AC11: BTS | AD11: BTS | AE11: Transmission | AF11: Transmission | AG11: Transmission | AH11: Transmission | AI11: Transmission | AJ11: Transmission | AK11: Transmission | AL11: Transmission | AM11: Transmission | AN11: Transmission | AO11: Transmission | AP11: Transmission | AQ11: Transmission | AR11: Transmission | AS11: Transmission | AT11: Transmission | AU11: Transmission | AV11: Transmission | AW11: Transmission | AX11: Transmission | AY11: Transmission | AZ11: Transmission | BA11: Transmission | BB11: Transmission | BC11: Piura | BD11: Junin | BE11: Cusco
C12: Cities | D12: Index | G12: Amazonas | H12: Ancash | I12: Apurimac | J12: Arequipa | K12: Ayacucho | L12: Cajamarca | M12: Cusco | N12: Huancavelica | O12: Huanuco | P12: Ica | Q12: Junin | R12: Lambayeque | S12: Libertad | T12: Lima | U12: Loreto | V12: Madre de Dios | W12: Moquegua | X12: Pasco | Y12: Piura | Z12: Puno | AA12: San Martin | AB12: Tacna | AC12: Tumbes | AD12: Ucayalli | AE12: Amazonas | AF12: Ancash | AG12: Apurimac | AH12: Arequipa | AI12: Ayacucho | AJ12: Cajamarca | AK12: Cusco | AL12: Huancavelica | AM12: Huanuco | AN12: ICA | AO12: Junin | AP12: Lambayeque | AQ12: Libertad | AR12: Lima | AS12: Loreto | AT12: Madre de Dios | AU12: Moquegua | AV12: Pasco | AW12: Piura | AX12: Puno | AY12: San Martin | AZ12: Tacna | BA12: Tumbes | BB12: Ucayalli | BC12: Libertad | BD12: Lima | BE12: Arequipa
C13: Amazonas | D13: LDI | E13: Incoming | F13: 0 | G13: =IF($C13=G$12,IF($E13="On-net",IF($D13="Local",2,1),1),IF(AND($D13="LDN",$E13="On-net"),INDEX('LDN call distribution'!$C$6:$AD$33,VLOOKUP($C13,'LDN call distribution'!$C$6:$AD$33,28,FALSE),HLOOKUP(G$12,'LDN call distribution'!$C$6:$AD$33,28,FALSE)),0)) -> 1 | H13: =IF($C13=H$12,IF($E13="On-net",IF($D13="Local",2,1),1),IF(AND($D13="LDN",$E13="On-net"),INDEX('LDN call distribution'!$C$6:$AD$33,VLOOKUP($C13,'LDN call distribution'!$C$6:$AD$33,28,FALSE),HLOOKUP(H$12,'LDN call distribution'!$C$6:$AD$33,28,FALSE)),0)) -> 0 | I13: =IF($C13=I$12,IF($E13="On-net",IF($D13="Local",2,1),1),IF(AND($D13="LDN",$E13="On-net"),INDEX('LDN call distribution'!$C$6:$AD$33,VLOOKUP($C13,'LDN call distribution'!$C$6:$AD$33,28,FALSE),HLOOKUP(I$12,'LDN call distribution'!$C$6:$AD$33,28,FALSE)),0)) -> 0 | J13: =IF($C13=J$12,IF($E13="On-net",IF($D13="Local",2,1),1),IF(AND($D13="LDN",$E13="On-net"),INDEX('LDN call distribution'!$C$6:$AD$33,VLOOKUP($C13,'LDN call distribution'!$C$6:$AD$33,28,FALSE),HLOOKUP(J$12,'LDN call distribution'!$C$6:$AD$33,28,FALSE)),0)) -> 0 | K13: =IF($C13=K$12,IF($E13="On-net",IF($D13="Local",2,1),1),IF(AND($D13="LDN",$E13="On-net"),INDEX('LDN call distribution'!$C$6:$AD$33,VLOOKUP($C13,'LDN call distribution'!$C$6:$AD$33,28,FALSE),HLOOKUP(K$12,'LDN call distribution'!$C$6:$AD$33,28,FALSE)),0)) -> 0 | L13: =IF($C13=L$12,IF($E13="On-net",IF($D13="Local",2,1),1),IF(AND($D13="LDN",$E13="On-net"),INDEX('LDN call distribution'!$C$6:$AD$33,VLOOKUP($C13,'LDN call distribution'!$C$6:$AD$33,28,FALSE),HLOOKUP(L$12,'LDN call distribution'!$C$6:$AD$33,28,FALSE)),0)) -> 0 | M13: =IF($C13=M$12,IF($E13="On-net",IF($D13="Local",2,1),1),IF(AND($D13="LDN",$E13="On-net"),INDEX('LDN call distribution'!$C$6:$AD$33,VLOOKUP($C13,'LDN call distribution'!$C$6:$AD$33,28,FALSE),HLOOKUP(M$12,'LDN call distribution'!$C$6:$AD$33,28,FALSE)),0)) -> 0 | N13: =IF($C13=N$12,IF($E13="On-net",IF($D13="Local",2,1),1),IF(AND($D13="LDN",$E13="On-net"),INDEX('LDN call distribution'!$C$6:$AD$33,VLOOKUP($C13,'LDN call distribution'!$C$6:$AD$33,28,FALSE),HLOOKUP(N$12,'LDN call distribution'!$C$6:$AD$33,28,FALSE)),0)) -> 0 | O13: =IF($C13=O$12,IF($E13="On-net",IF($D13="Local",2,1),1),IF(AND($D13="LDN",$E13="On-net"),INDEX('LDN call distribution'!$C$6:$AD$33,VLOOKUP($C13,'LDN call distribution'!$C$6:$AD$33,28,FALSE),HLOOKUP(O$12,'LDN call distribution'!$C$6:$AD$33,28,FALSE)),0)) -> 0 | P13: =IF($C13=P$12,IF($E13="On-net",IF($D13="Local",2,1),1),IF(AND($D13="LDN",$E13="On-net"),INDEX('LDN call distribution'!$C$6:$AD$33,VLOOKUP($C13,'LDN call distribution'!$C$6:$AD$33,28,FALSE),HLOOKUP(P$12,'LDN call distribution'!$C$6:$AD$33,28,FALSE)),0)) -> 0 | Q13: =IF($C13=Q$12,IF($E13="On-net",IF($D13="Local",2,1),1),IF(AND($D13="LDN",$E13="On-net"),INDEX('LDN call distribution'!$C$6:$AD$33,VLOOKUP($C13,'LDN call distribution'!$C$6:$AD$33,28,FALSE),HLOOKUP(Q$12,'LDN call distribution'!$C$6:$AD$33,28,FALSE)),0)) -> 0 | R13: =IF($C13=R$12,IF($E13="On-net",IF($D13="Local",2,1),1),IF(AND($D13="LDN",$E13="On-net"),INDEX('LDN call distribution'!$C$6:$AD$33,VLOOKUP($C13,'LDN call distribution'!$C$6:$AD$33,28,FALSE),HLOOKUP(R$12,'LDN call distribution'!$C$6:$AD$33,28,FALSE)),0)) -> 0 | S13: =IF($C13=S$12,IF($E13="On-net",IF($D13="Local",2,1),1),IF(AND($D13="LDN",$E13="On-net"),INDEX('LDN call distribution'!$C$6:$AD$33,VLOOKUP($C13,'LDN call distribution'!$C$6:$AD$33,28,FALSE),HLOOKUP(S$12,'LDN call distribution'!$C$6:$AD$33,28,FALSE)),0)) -> 0 | T13: =IF($C13=T$12,IF($E13="On-net",IF($D13="Local",2,1),1),IF(AND($D13="LDN",$E13="On-net"),INDEX('LDN call distribution'!$C$6:$AD$33,VLOOKUP($C13,'LDN call distribution'!$C$6:$AD$33,28,FALSE),HLOOKUP(T$12,'LDN call distribution'!$C$6:$AD$33,28,FALSE)),0)) -> 0 | U13: =IF($C13=U$12,IF($E13="On-net",IF($D13="Local",2,1),1),IF(AND($D13="LDN",$E13="On-net"),INDEX('LDN call distribution'!$C$6:$AD$33,VLOOKUP($C13,'LDN call distribution'!$C$6:$AD$33,28,FALSE),HLOOKUP(U$12,'LDN call distribution'!$C$6:$AD$33,28,FALSE)),0)) -> 0 | V13: =IF($C13=V$12,IF($E13="On-net",IF($D13="Local",2,1),1),IF(AND($D13="LDN",$E13="On-net"),INDEX('LDN call distribution'!$C$6:$AD$33,VLOOKUP($C13,'LDN call distribution'!$C$6:$AD$33,28,FALSE),HLOOKUP(V$12,'LDN call distribution'!$C$6:$AD$33,28,FALSE)),0)) -> 0 | W13: =IF($C13=W$12,IF($E13="On-net",IF($D13="Local",2,1),1),IF(AND($D13="LDN",$E13="On-net"),INDEX('LDN call distribution'!$C$6:$AD$33,VLOOKUP($C13,'LDN call distribution'!$C$6:$AD$33,28,FALSE),HLOOKUP(W$12,'LDN call distribution'!$C$6:$AD$33,28,FALSE)),0)) -> 0 | X13: =IF($C13=X$12,IF($E13="On-net",IF($D13="Local",2,1),1),IF(AND($D13="LDN",$E13="On-net"),INDEX('LDN call distribution'!$C$6:$AD$33,VLOOKUP($C13,'LDN call distribution'!$C$6:$AD$33,28,FALSE),HLOOKUP(X$12,'LDN call distribution'!$C$6:$AD$33,28,FALSE)),0)) -> 0 | Y13: =IF($C13=Y$12,IF($E13="On-net",IF($D13="Local",2,1),1),IF(AND($D13="LDN",$E13="On-net"),INDEX('LDN call distribution'!$C$6:$AD$33,VLOOKUP($C13,'LDN call distribution'!$C$6:$AD$33,28,FALSE),HLOOKUP(Y$12,'LDN call distribution'!$C$6:$AD$33,28,FALSE)),0)) -> 0 | Z13: =IF($C13=Z$12,IF($E13="On-net",IF($D13="Local",2,1),1),IF(AND($D13="LDN",$E13="On-net"),INDEX('LDN call distribution'!$C$6:$AD$33,VLOOKUP($C13,'LDN call distribution'!$C$6:$AD$33,28,FALSE),HLOOKUP(Z$12,'LDN call distribution'!$C$6:$AD$33,28,FALSE)),0)) -> 0 | AA13: =IF($C13=AA$12,IF($E13="On-net",IF($D13="Local",2,1),1),IF(AND($D13="LDN",$E13="On-net"),INDEX('LDN call distribution'!$C$6:$AD$33,VLOOKUP($C13,'LDN call distribution'!$C$6:$AD$33,28,FALSE),HLOOKUP(AA$12,'LDN call distribution'!$C$6:$AD$33,28,FALSE)),0)) -> 0 | AB13: =IF($C13=AB$12,IF($E13="On-net",IF($D13="Local",2,1),1),IF(AND($D13="LDN",$E13="On-net"),INDEX('LDN call distribution'!$C$6:$AD$33,VLOOKUP($C13,'LDN call distribution'!$C$6:$AD$33,28,FALSE),HLOOKUP(AB$12,'LDN call distribution'!$C$6:$AD$33,28,FALSE)),0)) -> 0 | AC13: =IF($C13=AC$12,IF($E13="On-net",IF($D13="Local",2,1),1),IF(AND($D13="LDN",$E13="On-net"),INDEX('LDN call distribution'!$C$6:$AD$33,VLOOKUP($C13,'LDN call distribution'!$C$6:$AD$33,28,FALSE),HLOOKUP(AC$12,'LDN call distribution'!$C$6:$AD$33,28,FALSE)),0)) -> 0 | AD13: =IF($C13=AD$12,IF($E13="On-net",IF($D13="Local",2,1),1),IF(AND($D13="LDN",$E13="On-net"),INDEX('LDN call distribution'!$C$6:$AD$33,VLOOKUP($C13,'LDN call distribution'!$C$6:$AD$33,28,FALSE),HLOOKUP(AD$12,'LDN call distribution'!$C$6:$AD$33,28,FALSE)),0)) -> 0 | AE13: 1 | AF13: 1 | AG13: 1 | AH13: 1 | AI13: 1 | AJ13: 1 | AK13: 1 | AL13: 1 | AM13: 1 | AN13: 1 | AO13: 1 | AP13: 1 | AQ13: 1 | AR13: 1 | AS13: 1 | AT13: 1 | AU13: 1 | AV13: 1 | AW13: 1 | AX13: 1 | AY13: 1 | AZ13: 1 | BA13: 1 | BB13: 1 | BC13: =IF($E13&$D13="On-netLDN",INDEX('LDN call distribution'!$K$45:$AJ$50,VLOOKUP(BC$2,'LDN call distribution'!$K$45:$AJ$50,26,FALSE),HLOOKUP($C13,'LDN call distribution'!$K$45:$AJ$50,6,FALSE)),IF(ISERROR(VLOOKUP($C13,BC$3:BC$12,1,FALSE)),0,1)) -> 1 | BD13: =IF($E13&$D13="On-netLDN",INDEX('LDN call distribution'!$K$45:$AJ$50,VLOOKUP(BD$2,'LDN call distribution'!$K$45:$AJ$50,26,FALSE),HLOOKUP($C13,'LDN call distribution'!$K$45:$AJ$50,6,FALSE)),IF(ISERROR(VLOOKUP($C13,BD$3:BD$12,1,FALSE)),0,1)) -> 0 | BE13: =IF($E13&$D13="On-netLDN",INDEX('LDN call distribution'!$K$45:$AJ$50,VLOOKUP(BE$2,'LDN call distribution'!$K$45:$AJ$50,26,FALSE),HLOOKUP($C13,'LDN call distribution'!$K$45:$AJ$50,6,FALSE)),IF(ISERROR(VLOOKUP($C13,BE$3:BE$12,1,FALSE)),0,1)) -> 0 | BF13: 1 | BG13: =IF(E13="Incoming",1,0) -> 1 | BH13: 1 | BI13: 1 | BJ13: 1 | BK13: 1 | BL13: 1
C14: Amazonas | D14: LDN | E14: Incoming | F14: Fixed - Mobile | G14: =IF($C14=G$12,IF($E14="On-net",IF($D14="Local",2,1),1),IF(AND($D14="LDN",$E14="On-net"),INDEX('LDN call distribution'!$C$6:$AD$33,VLOOKUP($C14,'LDN call distribution'!$C$6:$AD$33,28,FALSE),HLOOKUP(G$12,'LDN call distribution'!$C$6:$AD$33,28,FALSE)),0)) -> 1 | H14: =IF($C14=H$12,IF($E14="On-net",IF($D14="Local",2,1),1),IF(AND($D14="LDN",$E14="On-net"),INDEX('LDN call distribution'!$C$6:$AD$33,VLOOKUP($C14,'LDN call distribution'!$C$6:$AD$33,28,FALSE),HLOOKUP(H$12,'LDN call distribution'!$C$6:$AD$33,28,FALSE)),0)) -> 0 | I14: =IF($C14=I$12,IF($E14="On-net",IF($D14="Local",2,1),1),IF(AND($D14="LDN",$E14="On-net"),INDEX('LDN call distribution'!$C$6:$AD$33,VLOOKUP($C14,'LDN call distribution'!$C$6:$AD$33,28,FALSE),HLOOKUP(I$12,'LDN call distribution'!$C$6:$AD$33,28,FALSE)),0)) -> 0 | J14: =IF($C14=J$12,IF($E14="On-net",IF($D14="Local",2,1),1),IF(AND($D14="LDN",$E14="On-net"),INDEX('LDN call distribution'!$C$6:$AD$33,VLOOKUP($C14,'LDN call distribution'!$C$6:$AD$33,28,FALSE),HLOOKUP(J$12,'LDN call distribution'!$C$6:$AD$33,28,FALSE)),0)) -> 0 | K14: =IF($C14=K$12,IF($E14="On-net",IF($D14="Local",2,1),1),IF(AND($D14="LDN",$E14="On-net"),INDEX('LDN call distribution'!$C$6:$AD$33,VLOOKUP($C14,'LDN call distribution'!$C$6:$AD$33,28,FALSE),HLOOKUP(K$12,'LDN call distribution'!$C$6:$AD$33,28,FALSE)),0)) -> 0 | L14: =IF($C14=L$12,IF($E14="On-net",IF($D14="Local",2,1),1),IF(AND($D14="LDN",$E14="On-net"),INDEX('LDN call distribution'!$C$6:$AD$33,VLOOKUP($C14,'LDN call distribution'!$C$6:$AD$33,28,FALSE),HLOOKUP(L$12,'LDN call distribution'!$C$6:$AD$33,28,FALSE)),0)) -> 0 | M14: =IF($C14=M$12,IF($E14="On-net",IF($D14="Local",2,1),1),IF(AND($D14="LDN",$E14="On-net"),INDEX('LDN call distribution'!$C$6:$AD$33,VLOOKUP($C14,'LDN call distribution'!$C$6:$AD$33,28,FALSE),HLOOKUP(M$12,'LDN call distribution'!$C$6:$AD$33,28,FALSE)),0)) -> 0 | N14: =IF($C14=N$12,IF($E14="On-net",IF($D14="Local",2,1),1),IF(AND($D14="LDN",$E14="On-net"),INDEX('LDN call distribution'!$C$6:$AD$33,VLOOKUP($C14,'LDN call distribution'!$C$6:$AD$33,28,FALSE),HLOOKUP(N$12,'LDN call distribution'!$C$6:$AD$33,28,FALSE)),0)) -> 0 | O14: =IF($C14=O$12,IF($E14="On-net",IF($D14="Local",2,1),1),IF(AND($D14="LDN",$E14="On-net"),INDEX('LDN call distribution'!$C$6:$AD$33,VLOOKUP($C14,'LDN call distribution'!$C$6:$AD$33,28,FALSE),HLOOKUP(O$12,'LDN call distribution'!$C$6:$AD$33,28,FALSE)),0)) -> 0 | P14: =IF($C14=P$12,IF($E14="On-net",IF($D14="Local",2,1),1),IF(AND($D14="LDN",$E14="On-net"),INDEX('LDN call distribution'!$C$6:$AD$33,VLOOKUP($C14,'LDN call distribution'!$C$6:$AD$33,28,FALSE),HLOOKUP(P$12,'LDN call distribution'!$C$6:$AD$33,28,FALSE)),0)) -> 0 | Q14: =IF($C14=Q$12,IF($E14="On-net",IF($D14="Local",2,1),1),IF(AND($D14="LDN",$E14="On-net"),INDEX('LDN call distribution'!$C$6:$AD$33,VLOOKUP($C14,'LDN call distribution'!$C$6:$AD$33,28,FALSE),HLOOKUP(Q$12,'LDN call distribution'!$C$6:$AD$33,28,FALSE)),0)) -> 0 | R14: =IF($C14=R$12,IF($E14="On-net",IF($D14="Local",2,1),1),IF(AND($D14="LDN",$E14="On-net"),INDEX('LDN call distribution'!$C$6:$AD$33,VLOOKUP($C14,'LDN call distribution'!$C$6:$AD$33,28,FALSE),HLOOKUP(R$12,'LDN call distribution'!$C$6:$AD$33,28,FALSE)),0)) -> 0 | S14: =IF($C14=S$12,IF($E14="On-net",IF($D14="Local",2,1),1),IF(AND($D14="LDN",$E14="On-net"),INDEX('LDN call distribution'!$C$6:$AD$33,VLOOKUP($C14,'LDN call distribution'!$C$6:$AD$33,28,FALSE),HLOOKUP(S$12,'LDN call distribution'!$C$6:$AD$33,28,FALSE)),0)) -> 0 | T14: =IF($C14=T$12,IF($E14="On-net",IF($D14="Local",2,1),1),IF(AND($D14="LDN",$E14="On-net"),INDEX('LDN call distribution'!$C$6:$AD$33,VLOOKUP($C14,'LDN call distribution'!$C$6:$AD$33,28,FALSE),HLOOKUP(T$12,'LDN call distribution'!$C$6:$AD$33,28,FALSE)),0)) -> 0 | U14: =IF($C14=U$12,IF($E14="On-net",IF($D14="Local",2,1),1),IF(AND($D14="LDN",$E14="On-net"),INDEX('LDN call distribution'!$C$6:$AD$33,VLOOKUP($C14,'LDN call distribution'!$C$6:$AD$33,28,FALSE),HLOOKUP(U$12,'LDN call distribution'!$C$6:$AD$33,28,FALSE)),0)) -> 0 | V14: =IF($C14=V$12,IF($E14="On-net",IF($D14="Local",2,1),1),IF(AND($D14="LDN",$E14="On-net"),INDEX('LDN call distribution'!$C$6:$AD$33,VLOOKUP($C14,'LDN call distribution'!$C$6:$AD$33,28,FALSE),HLOOKUP(V$12,'LDN call distribution'!$C$6:$AD$33,28,FALSE)),0)) -> 0 | W14: =IF($C14=W$12,IF($E14="On-net",IF($D14="Local",2,1),1),IF(AND($D14="LDN",$E14="On-net"),INDEX('LDN call distribution'!$C$6:$AD$33,VLOOKUP($C14,'LDN call distribution'!$C$6:$AD$33,28,FALSE),HLOOKUP(W$12,'LDN call distribution'!$C$6:$AD$33,28,FALSE)),0)) -> 0 | X14: =IF($C14=X$12,IF($E14="On-net",IF($D14="Local",2,1),1),IF(AND($D14="LDN",$E14="On-net"),INDEX('LDN call distribution'!$C$6:$AD$33,VLOOKUP($C14,'LDN call distribution'!$C$6:$AD$33,28,FALSE),HLOOKUP(X$12,'LDN call distribution'!$C$6:$AD$33,28,FALSE)),0)) -> 0 | Y14: =IF($C14=Y$12,IF($E14="On-net",IF($D14="Local",2,1),1),IF(AND($D14="LDN",$E14="On-net"),INDEX('LDN call distribution'!$C$6:$AD$33,VLOOKUP($C14,'LDN call distribution'!$C$6:$AD$33,28,FALSE),HLOOKUP(Y$12,'LDN call distribution'!$C$6:$AD$33,28,FALSE)),0)) -> 0 | Z14: =IF($C14=Z$12,IF($E14="On-net",IF($D14="Local",2,1),1),IF(AND($D14="LDN",$E14="On-net"),INDEX('LDN call distribution'!$C$6:$AD$33,VLOOKUP($C14,'LDN call distribution'!$C$6:$AD$33,28,FALSE),HLOOKUP(Z$12,'LDN call distribution'!$C$6:$AD$33,28,FALSE)),0)) -> 0 | AA14: =IF($C14=AA$12,IF($E14="On-net",IF($D14="Local",2,1),1),IF(AND($D14="LDN",$E14="On-net"),INDEX('LDN call distribution'!$C$6:$AD$33,VLOOKUP($C14,'LDN call distribution'!$C$6:$AD$33,28,FALSE),HLOOKUP(AA$12,'LDN call distribution'!$C$6:$AD$33,28,FALSE)),0)) -> 0 | AB14: =IF($C14=AB$12,IF($E14="On-net",IF($D14="Local",2,1),1),IF(AND($D14="LDN",$E14="On-net"),INDEX('LDN call distribution'!$C$6:$AD$33,VLOOKUP($C14,'LDN call distribution'!$C$6:$AD$33,28,FALSE),HLOOKUP(AB$12,'LDN call distribution'!$C$6:$AD$33,28,FALSE)),0)) -> 0 | AC14: =IF($C14=AC$12,IF($E14="On-net",IF($D14="Local",2,1),1),IF(AND($D14="LDN",$E14="On-net"),INDEX('LDN call distribution'!$C$6:$AD$33,VLOOKUP($C14,'LDN call distribution'!$C$6:$AD$33,28,FALSE),HLOOKUP(AC$12,'LDN call distribution'!$C$6:$AD$33,28,FALSE)),0)) -> 0 | AD14: =IF($C14=AD$12,IF($E14="On-net",IF($D14="Local",2,1),1),IF(AND($D14="LDN",$E14="On-net"),INDEX('LDN call distribution'!$C$6:$AD$33,VLOOKUP($C14,'LDN call distribution'!$C$6:$AD$33,28,FALSE),HLOOKUP(AD$12,'LDN call distribution'!$C$6:$AD$33,28,FALSE)),0)) -> 0 | AE14: 1 | AF14: 1 | AG14: 1 | AH14: 1 | AI14: 1 | AJ14: 1 | AK14: 1 | AL14: 1 | AM14: 1 | AN14: 1 | AO14: 1 | AP14: 1 | AQ14: 1 | AR14: 1 | AS14: 1 | AT14: 1 | AU14: 1 | AV14: 1 | AW14: 1 | AX14: 1 | AY14: 1 | AZ14: 1 | BA14: 1 | BB14: 1 | BC14: =IF($E14&$D14="On-netLDN",INDEX('LDN call distribution'!$K$45:$AJ$50,VLOOKUP(BC$2,'LDN call distribution'!$K$45:$AJ$50,26,FALSE),HLOOKUP($C14,'LDN call distribution'!$K$45:$AJ$50,6,FALSE)),IF(ISERROR(VLOOKUP($C14,BC$3:BC$12,1,FALSE)),0,1)) -> 1 | BD14: =IF($E14&$D14="On-netLDN",INDEX('LDN call distribution'!$K$45:$AJ$50,VLOOKUP(BD$2,'LDN call distribution'!$K$45:$AJ$50,26,FALSE),HLOOKUP($C14,'LDN call distribution'!$K$45:$AJ$50,6,FALSE)),IF(ISERROR(VLOOKUP($C14,BD$3:BD$12,1,FALSE)),0,1)) -> 0 | BE14: =IF($E14&$D14="On-netLDN",INDEX('LDN call distribution'!$K$45:$AJ$50,VLOOKUP(BE$2,'LDN call distribution'!$K$45:$AJ$50,26,FALSE),HLOOKUP($C14,'LDN call distribution'!$K$45:$AJ$50,6,FALSE)),IF(ISERROR(VLOOKUP($C14,BE$3:BE$12,1,FALSE)),0,1)) -> 0 | BF14: 1 | BG14: =IF(E14="Incoming",1,0) -> 1 | BH14: 1 | BI14: 1 | BJ14: 1 | BK14: 1 | BL14: 1
C15: Amazonas | D15: LDN | E15: Incoming | F15: Mobile - Mobile | G15: =IF($C15=G$12,IF($E15="On-net",IF($D15="Local",2,1),1),IF(AND($D15="LDN",$E15="On-net"),INDEX('LDN call distribution'!$C$6:$AD$33,VLOOKUP($C15,'LDN call distribution'!$C$6:$AD$33,28,FALSE),HLOOKUP(G$12,'LDN call distribution'!$C$6:$AD$33,28,FALSE)),0)) -> 1 | H15: =IF($C15=H$12,IF($E15="On-net",IF($D15="Local",2,1),1),IF(AND($D15="LDN",$E15="On-net"),INDEX('LDN call distribution'!$C$6:$AD$33,VLOOKUP($C15,'LDN call distribution'!$C$6:$AD$33,28,FALSE),HLOOKUP(H$12,'LDN call distribution'!$C$6:$AD$33,28,FALSE)),0)) -> 0 | I15: =IF($C15=I$12,IF($E15="On-net",IF($D15="Local",2,1),1),IF(AND($D15="LDN",$E15="On-net"),INDEX('LDN call distribution'!$C$6:$AD$33,VLOOKUP($C15,'LDN call distribution'!$C$6:$AD$33,28,FALSE),HLOOKUP(I$12,'LDN call distribution'!$C$6:$AD$33,28,FALSE)),0)) -> 0 | J15: =IF($C15=J$12,IF($E15="On-net",IF($D15="Local",2,1),1),IF(AND($D15="LDN",$E15="On-net"),INDEX('LDN call distribution'!$C$6:$AD$33,VLOOKUP($C15,'LDN call distribution'!$C$6:$AD$33,28,FALSE),HLOOKUP(J$12,'LDN call distribution'!$C$6:$AD$33,28,FALSE)),0)) -> 0 | K15: =IF($C15=K$12,IF($E15="On-net",IF($D15="Local",2,1),1),IF(AND($D15="LDN",$E15="On-net"),INDEX('LDN call distribution'!$C$6:$AD$33,VLOOKUP($C15,'LDN call distribution'!$C$6:$AD$33,28,FALSE),HLOOKUP(K$12,'LDN call distribution'!$C$6:$AD$33,28,FALSE)),0)) -> 0 | L15: =IF($C15=L$12,IF($E15="On-net",IF($D15="Local",2,1),1),IF(AND($D15="LDN",$E15="On-net"),INDEX('LDN call distribution'!$C$6:$AD$33,VLOOKUP($C15,'LDN call distribution'!$C$6:$AD$33,28,FALSE),HLOOKUP(L$12,'LDN call distribution'!$C$6:$AD$33,28,FALSE)),0)) -> 0 | M15: =IF($C15=M$12,IF($E15="On-net",IF($D15="Local",2,1),1),IF(AND($D15="LDN",$E15="On-net"),INDEX('LDN call distribution'!$C$6:$AD$33,VLOOKUP($C15,'LDN call distribution'!$C$6:$AD$33,28,FALSE),HLOOKUP(M$12,'LDN call distribution'!$C$6:$AD$33,28,FALSE)),0)) -> 0 | N15: =IF($C15=N$12,IF($E15="On-net",IF($D15="Local",2,1),1),IF(AND($D15="LDN",$E15="On-net"),INDEX('LDN call distribution'!$C$6:$AD$33,VLOOKUP($C15,'LDN call distribution'!$C$6:$AD$33,28,FALSE),HLOOKUP(N$12,'LDN call distribution'!$C$6:$AD$33,28,FALSE)),0)) -> 0 | O15: =IF($C15=O$12,IF($E15="On-net",IF($D15="Local",2,1),1),IF(AND($D15="LDN",$E15="On-net"),INDEX('LDN call distribution'!$C$6:$AD$33,VLOOKUP($C15,'LDN call distribution'!$C$6:$AD$33,28,FALSE),HLOOKUP(O$12,'LDN call distribution'!$C$6:$AD$33,28,FALSE)),0)) -> 0 | P15: =IF($C15=P$12,IF($E15="On-net",IF($D15="Local",2,1),1),IF(AND($D15="LDN",$E15="On-net"),INDEX('LDN call distribution'!$C$6:$AD$33,VLOOKUP($C15,'LDN call distribution'!$C$6:$AD$33,28,FALSE),HLOOKUP(P$12,'LDN call distribution'!$C$6:$AD$33,28,FALSE)),0)) -> 0 | Q15: =IF($C15=Q$12,IF($E15="On-net",IF($D15="Local",2,1),1),IF(AND($D15="LDN",$E15="On-net"),INDEX('LDN call distribution'!$C$6:$AD$33,VLOOKUP($C15,'LDN call distribution'!$C$6:$AD$33,28,FALSE),HLOOKUP(Q$12,'LDN call distribution'!$C$6:$AD$33,28,FALSE)),0)) -> 0 | R15: =IF($C15=R$12,IF($E15="On-net",IF($D15="Local",2,1),1),IF(AND($D15="LDN",$E15="On-net"),INDEX('LDN call distribution'!$C$6:$AD$33,VLOOKUP($C15,'LDN call distribution'!$C$6:$AD$33,28,FALSE),HLOOKUP(R$12,'LDN call distribution'!$C$6:$AD$33,28,FALSE)),0)) -> 0 | S15: =IF($C15=S$12,IF($E15="On-net",IF($D15="Local",2,1),1),IF(AND($D15="LDN",$E15="On-net"),INDEX('LDN call distribution'!$C$6:$AD$33,VLOOKUP($C15,'LDN call distribution'!$C$6:$AD$33,28,FALSE),HLOOKUP(S$12,'LDN call distribution'!$C$6:$AD$33,28,FALSE)),0)) -> 0 | T15: =IF($C15=T$12,IF($E15="On-net",IF($D15="Local",2,1),1),IF(AND($D15="LDN",$E15="On-net"),INDEX('LDN call distribution'!$C$6:$AD$33,VLOOKUP($C15,'LDN call distribution'!$C$6:$AD$33,28,FALSE),HLOOKUP(T$12,'LDN call distribution'!$C$6:$AD$33,28,FALSE)),0)) -> 0 | U15: =IF($C15=U$12,IF($E15="On-net",IF($D15="Local",2,1),1),IF(AND($D15="LDN",$E15="On-net"),INDEX('LDN call distribution'!$C$6:$AD$33,VLOOKUP($C15,'LDN call distribution'!$C$6:$AD$33,28,FALSE),HLOOKUP(U$12,'LDN call distribution'!$C$6:$AD$33,28,FALSE)),0)) -> 0 | V15: =IF($C15=V$12,IF($E15="On-net",IF($D15="Local",2,1),1),IF(AND($D15="LDN",$E15="On-net"),INDEX('LDN call distribution'!$C$6:$AD$33,VLOOKUP($C15,'LDN call distribution'!$C$6:$AD$33,28,FALSE),HLOOKUP(V$12,'LDN call distribution'!$C$6:$AD$33,28,FALSE)),0)) -> 0 | W15: =IF($C15=W$12,IF($E15="On-net",IF($D15="Local",2,1),1),IF(AND($D15="LDN",$E15="On-net"),INDEX('LDN call distribution'!$C$6:$AD$33,VLOOKUP($C15,'LDN call distribution'!$C$6:$AD$33,28,FALSE),HLOOKUP(W$12,'LDN call distribution'!$C$6:$AD$33,28,FALSE)),0)) -> 0 | X15: =IF($C15=X$12,IF($E15="On-net",IF($D15="Local",2,1),1),IF(AND($D15="LDN",$E15="On-net"),INDEX('LDN call distribution'!$C$6:$AD$33,VLOOKUP($C15,'LDN call distribution'!$C$6:$AD$33,28,FALSE),HLOOKUP(X$12,'LDN call distribution'!$C$6:$AD$33,28,FALSE)),0)) -> 0 | Y15: =IF($C15=Y$12,IF($E15="On-net",IF($D15="Local",2,1),1),IF(AND($D15="LDN",$E15="On-net"),INDEX('LDN call distribution'!$C$6:$AD$33,VLOOKUP($C15,'LDN call distribution'!$C$6:$AD$33,28,FALSE),HLOOKUP(Y$12,'LDN call distribution'!$C$6:$AD$33,28,FALSE)),0)) -> 0 | Z15: =IF($C15=Z$12,IF($E15="On-net",IF($D15="Local",2,1),1),IF(AND($D15="LDN",$E15="On-net"),INDEX('LDN call distribution'!$C$6:$AD$33,VLOOKUP($C15,'LDN call distribution'!$C$6:$AD$33,28,FALSE),HLOOKUP(Z$12,'LDN call distribution'!$C$6:$AD$33,28,FALSE)),0)) -> 0 | AA15: =IF($C15=AA$12,IF($E15="On-net",IF($D15="Local",2,1),1),IF(AND($D15="LDN",$E15="On-net"),INDEX('LDN call distribution'!$C$6:$AD$33,VLOOKUP($C15,'LDN call distribution'!$C$6:$AD$33,28,FALSE),HLOOKUP(AA$12,'LDN call distribution'!$C$6:$AD$33,28,FALSE)),0)) -> 0 | AB15: =IF($C15=AB$12,IF($E15="On-net",IF($D15="Local",2,1),1),IF(AND($D15="LDN",$E15="On-net"),INDEX('LDN call distribution'!$C$6:$AD$33,VLOOKUP($C15,'LDN call distribution'!$C$6:$AD$33,28,FALSE),HLOOKUP(AB$12,'LDN call distribution'!$C$6:$AD$33,28,FALSE)),0)) -> 0 | AC15: =IF($C15=AC$12,IF($E15="On-net",IF($D15="Local",2,1),1),IF(AND($D15="LDN",$E15="On-net"),INDEX('LDN call distribution'!$C$6:$AD$33,VLOOKUP($C15,'LDN call distribution'!$C$6:$AD$33,28,FALSE),HLOOKUP(AC$12,'LDN call distribution'!$C$6:$AD$33,28,FALSE)),0)) -> 0 | AD15: =IF($C15=AD$12,IF($E15="On-net",IF($D15="Local",2,1),1),IF(AND($D15="LDN",$E15="On-net"),INDEX('LDN call distribution'!$C$6:$AD$33,VLOOKUP($C15,'LDN call distribution'!$C$6:$AD$33,28,FALSE),HLOOKUP(AD$12,'LDN call distribution'!$C$6:$AD$33,28,FALSE)),0)) -> 0 | AE15: 1 | AF15: 1 | AG15: 1 | AH15: 1 | AI15: 1 | AJ15: 1 | AK15: 1 | AL15: 1 | AM15: 1 | AN15: 1 | AO15: 1 | AP15: 1 | AQ15: 1 | AR15: 1 | AS15: 1 | AT15: 1 | AU15: 1 | AV15: 1 | AW15: 1 | AX15: 1 | AY15: 1 | AZ15: 1 | BA15: 1 | BB15: 1 | BC15: =IF($E15&$D15="On-netLDN",INDEX('LDN call distribution'!$K$45:$AJ$50,VLOOKUP(BC$2,'LDN call distribution'!$K$45:$AJ$50,26,FALSE),HLOOKUP($C15,'LDN call distribution'!$K$45:$AJ$50,6,FALSE)),IF(ISERROR(VLOOKUP($C15,BC$3:BC$12,1,FALSE)),0,1)) -> 1 | BD15: =IF($E15&$D15="On-netLDN",INDEX('LDN call distribution'!$K$45:$AJ$50,VLOOKUP(BD$2,'LDN call distribution'!$K$45:$AJ$50,26,FALSE),HLOOKUP($C15,'LDN call distribution'!$K$45:$AJ$50,6,FALSE)),IF(ISERROR(VLOOKUP($C15,BD$3:BD$12,1,FALSE)),0,1)) -> 0 | BE15: =IF($E15&$D15="On-netLDN",INDEX('LDN call distribution'!$K$45:$AJ$50,VLOOKUP(BE$2,'LDN call distribution'!$K$45:$AJ$50,26,FALSE),HLOOKUP($C15,'LDN call distribution'!$K$45:$AJ$50,6,FALSE)),IF(ISERROR(VLOOKUP($C15,BE$3:BE$12,1,FALSE)),0,1)) -> 0 | BF15: 1 | BG15: 1 | BH15: 1 | BI15: 1 | BJ15: 1 | BK15: 1 | BL15: 1
C16: Amazonas | D16: Local | E16: Incoming | F16: Fixed - Mobile | G16: =IF($C16=G$12,IF($E16="On-net",IF($D16="Local",2,1),1),IF(AND($D16="LDN",$E16="On-net"),INDEX('LDN call distribution'!$C$6:$AD$33,VLOOKUP($C16,'LDN call distribution'!$C$6:$AD$33,28,FALSE),HLOOKUP(G$12,'LDN call distribution'!$C$6:$AD$33,28,FALSE)),0)) -> 1 | H16: =IF($C16=H$12,IF($E16="On-net",IF($D16="Local",2,1),1),IF(AND($D16="LDN",$E16="On-net"),INDEX('LDN call distribution'!$C$6:$AD$33,VLOOKUP($C16,'LDN call distribution'!$C$6:$AD$33,28,FALSE),HLOOKUP(H$12,'LDN call distribution'!$C$6:$AD$33,28,FALSE)),0)) -> 0 | I16: =IF($C16=I$12,IF($E16="On-net",IF($D16="Local",2,1),1),IF(AND($D16="LDN",$E16="On-net"),INDEX('LDN call distribution'!$C$6:$AD$33,VLOOKUP($C16,'LDN call distribution'!$C$6:$AD$33,28,FALSE),HLOOKUP(I$12,'LDN call distribution'!$C$6:$AD$33,28,FALSE)),0)) -> 0 | J16: =IF($C16=J$12,IF($E16="On-net",IF($D16="Local",2,1),1),IF(AND($D16="LDN",$E16="On-net"),INDEX('LDN call distribution'!$C$6:$AD$33,VLOOKUP($C16,'LDN call distribution'!$C$6:$AD$33,28,FALSE),HLOOKUP(J$12,'LDN call distribution'!$C$6:$AD$33,28,FALSE)),0)) -> 0 | K16: =IF($C16=K$12,IF($E16="On-net",IF($D16="Local",2,1),1),IF(AND($D16="LDN",$E16="On-net"),INDEX('LDN call distribution'!$C$6:$AD$33,VLOOKUP($C16,'LDN call distribution'!$C$6:$AD$33,28,FALSE),HLOOKUP(K$12,'LDN call distribution'!$C$6:$AD$33,28,FALSE)),0)) -> 0 | L16: =IF($C16=L$12,IF($E16="On-net",IF($D16="Local",2,1),1),IF(AND($D16="LDN",$E16="On-net"),INDEX('LDN call distribution'!$C$6:$AD$33,VLOOKUP($C16,'LDN call distribution'!$C$6:$AD$33,28,FALSE),HLOOKUP(L$12,'LDN call distribution'!$C$6:$AD$33,28,FALSE)),0)) -> 0 | M16: =IF($C16=M$12,IF($E16="On-net",IF($D16="Local",2,1),1),IF(AND($D16="LDN",$E16="On-net"),INDEX('LDN call distribution'!$C$6:$AD$33,VLOOKUP($C16,'LDN call distribution'!$C$6:$AD$33,28,FALSE),HLOOKUP(M$12,'LDN call distribution'!$C$6:$AD$33,28,FALSE)),0)) -> 0 | N16: =IF($C16=N$12,IF($E16="On-net",IF($D16="Local",2,1),1),IF(AND($D16="LDN",$E16="On-net"),INDEX('LDN call distribution'!$C$6:$AD$33,VLOOKUP($C16,'LDN call distribution'!$C$6:$AD$33,28,FALSE),HLOOKUP(N$12,'LDN call distribution'!$C$6:$AD$33,28,FALSE)),0)) -> 0 | O16: =IF($C16=O$12,IF($E16="On-net",IF($D16="Local",2,1),1),IF(AND($D16="LDN",$E16="On-net"),INDEX('LDN call distribution'!$C$6:$AD$33,VLOOKUP($C16,'LDN call distribution'!$C$6:$AD$33,28,FALSE),HLOOKUP(O$12,'LDN call distribution'!$C$6:$AD$33,28,FALSE)),0)) -> 0 | P16: =IF($C16=P$12,IF($E16="On-net",IF($D16="Local",2,1),1),IF(AND($D16="LDN",$E16="On-net"),INDEX('LDN call distribution'!$C$6:$AD$33,VLOOKUP($C16,'LDN call distribution'!$C$6:$AD$33,28,FALSE),HLOOKUP(P$12,'LDN call distribution'!$C$6:$AD$33,28,FALSE)),0)) -> 0 | Q16: =IF($C16=Q$12,IF($E16="On-net",IF($D16="Local",2,1),1),IF(AND($D16="LDN",$E16="On-net"),INDEX('LDN call distribution'!$C$6:$AD$33,VLOOKUP($C16,'LDN call distribution'!$C$6:$AD$33,28,FALSE),HLOOKUP(Q$12,'LDN call distribution'!$C$6:$AD$33,28,FALSE)),0)) -> 0 | R16: =IF($C16=R$12,IF($E16="On-net",IF($D16="Local",2,1),1),IF(AND($D16="LDN",$E16="On-net"),INDEX('LDN call distribution'!$C$6:$AD$33,VLOOKUP($C16,'LDN call distribution'!$C$6:$AD$33,28,FALSE),HLOOKUP(R$12,'LDN call distribution'!$C$6:$AD$33,28,FALSE)),0)) -> 0 | S16: =IF($C16=S$12,IF($E16="On-net",IF($D16="Local",2,1),1),IF(AND($D16="LDN",$E16="On-net"),INDEX('LDN call distribution'!$C$6:$AD$33,VLOOKUP($C16,'LDN call distribution'!$C$6:$AD$33,28,FALSE),HLOOKUP(S$12,'LDN call distribution'!$C$6:$AD$33,28,FALSE)),0)) -> 0 | T16: =IF($C16=T$12,IF($E16="On-net",IF($D16="Local",2,1),1),IF(AND($D16="LDN",$E16="On-net"),INDEX('LDN call distribution'!$C$6:$AD$33,VLOOKUP($C16,'LDN call distribution'!$C$6:$AD$33,28,FALSE),HLOOKUP(T$12,'LDN call distribution'!$C$6:$AD$33,28,FALSE)),0)) -> 0 | U16: =IF($C16=U$12,IF($E16="On-net",IF($D16="Local",2,1),1),IF(AND($D16="LDN",$E16="On-net"),INDEX('LDN call distribution'!$C$6:$AD$33,VLOOKUP($C16,'LDN call distribution'!$C$6:$AD$33,28,FALSE),HLOOKUP(U$12,'LDN call distribution'!$C$6:$AD$33,28,FALSE)),0)) -> 0 | V16: =IF($C16=V$12,IF($E16="On-net",IF($D16="Local",2,1),1),IF(AND($D16="LDN",$E16="On-net"),INDEX('LDN call distribution'!$C$6:$AD$33,VLOOKUP($C16,'LDN call distribution'!$C$6:$AD$33,28,FALSE),HLOOKUP(V$12,'LDN call distribution'!$C$6:$AD$33,28,FALSE)),0)) -> 0 | W16: =IF($C16=W$12,IF($E16="On-net",IF($D16="Local",2,1),1),IF(AND($D16="LDN",$E16="On-net"),INDEX('LDN call distribution'!$C$6:$AD$33,VLOOKUP($C16,'LDN call distribution'!$C$6:$AD$33,28,FALSE),HLOOKUP(W$12,'LDN call distribution'!$C$6:$AD$33,28,FALSE)),0)) -> 0 | X16: =IF($C16=X$12,IF($E16="On-net",IF($D16="Local",2,1),1),IF(AND($D16="LDN",$E16="On-net"),INDEX('LDN call distribution'!$C$6:$AD$33,VLOOKUP($C16,'LDN call distribution'!$C$6:$AD$33,28,FALSE),HLOOKUP(X$12,'LDN call distribution'!$C$6:$AD$33,28,FALSE)),0)) -> 0 | Y16: =IF($C16=Y$12,IF($E16="On-net",IF($D16="Local",2,1),1),IF(AND($D16="LDN",$E16="On-net"),INDEX('LDN call distribution'!$C$6:$AD$33,VLOOKUP($C16,'LDN call distribution'!$C$6:$AD$33,28,FALSE),HLOOKUP(Y$12,'LDN call distribution'!$C$6:$AD$33,28,FALSE)),0)) -> 0 | Z16: =IF($C16=Z$12,IF($E16="On-net",IF($D16="Local",2,1),1),IF(AND($D16="LDN",$E16="On-net"),INDEX('LDN call distribution'!$C$6:$AD$33,VLOOKUP($C16,'LDN call distribution'!$C$6:$AD$33,28,FALSE),HLOOKUP(Z$12,'LDN call distribution'!$C$6:$AD$33,28,FALSE)),0)) -> 0 | AA16: =IF($C16=AA$12,IF($E16="On-net",IF($D16="Local",2,1),1),IF(AND($D16="LDN",$E16="On-net"),INDEX('LDN call distribution'!$C$6:$AD$33,VLOOKUP($C16,'LDN call distribution'!$C$6:$AD$33,28,FALSE),HLOOKUP(AA$12,'LDN call distribution'!$C$6:$AD$33,28,FALSE)),0)) -> 0 | AB16: =IF($C16=AB$12,IF($E16="On-net",IF($D16="Local",2,1),1),IF(AND($D16="LDN",$E16="On-net"),INDEX('LDN call distribution'!$C$6:$AD$33,VLOOKUP($C16,'LDN call distribution'!$C$6:$AD$33,28,FALSE),HLOOKUP(AB$12,'LDN call distribution'!$C$6:$AD$33,28,FALSE)),0)) -> 0 | AC16: =IF($C16=AC$12,IF($E16="On-net",IF($D16="Local",2,1),1),IF(AND($D16="LDN",$E16="On-net"),INDEX('LDN call distribution'!$C$6:$AD$33,VLOOKUP($C16,'LDN call distribution'!$C$6:$AD$33,28,FALSE),HLOOKUP(AC$12,'LDN call distribution'!$C$6:$AD$33,28,FALSE)),0)) -> 0 | AD16: =IF($C16=AD$12,IF($E16="On-net",IF($D16="Local",2,1),1),IF(AND($D16="LDN",$E16="On-net"),INDEX('LDN call distribution'!$C$6:$AD$33,VLOOKUP($C16,'LDN call distribution'!$C$6:$AD$33,28,FALSE),HLOOKUP(AD$12,'LDN call distribution'!$C$6:$AD$33,28,FALSE)),0)) -> 0 | AE16: 1 | AF16: 1 | AG16: 1 | AH16: 1 | AI16: 1 | AJ16: 1 | AK16: 1 | AL16: 1 | AM16: 1 | AN16: 1 | AO16: 1 | AP16: 1 | AQ16: 1 | AR16: 1 | AS16: 1 | AT16: 1 | AU16: 1 | AV16: 1 | AW16: 1 | AX16: 1 | AY16: 1 | AZ16: 1 | BA16: 1 | BB16: 1 | BC16: =IF($E16&$D16="On-netLDN",INDEX('LDN call distribution'!$K$45:$AJ$50,VLOOKUP(BC$2,'LDN call distribution'!$K$45:$AJ$50,26,FALSE),HLOOKUP($C16,'LDN call distribution'!$K$45:$AJ$50,6,FALSE)),IF(ISERROR(VLOOKUP($C16,BC$3:BC$12,1,FALSE)),0,1)) -> 1 | BD16: =IF($E16&$D16="On-netLDN",INDEX('LDN call distribution'!$K$45:$AJ$50,VLOOKUP(BD$2,'LDN call distribution'!$K$45:$AJ$50,26,FALSE),HLOOKUP($C16,'LDN call distribution'!$K$45:$AJ$50,6,FALSE)),IF(ISERROR(VLOOKUP($C16,BD$3:BD$12,1,FALSE)),0,1)) -> 0 | BE16: =IF($E16&$D16="On-netLDN",INDEX('LDN call distribution'!$K$45:$AJ$50,VLOOKUP(BE$2,'LDN call distribution'!$K$45:$AJ$50,26,FALSE),HLOOKUP($C16,'LDN call distribution'!$K$45:$AJ$50,6,FALSE)),IF(ISERROR(VLOOKUP($C16,BE$3:BE$12,1,FALSE)),0,1)) -> 0 | BF16: 1 | BG16: 1 | BH16: 1 | BI16: 1 | BJ16: 1 | BK16: 1 | BL16: 1
C17: Amazonas | D17: Local | E17: Incoming | F17: Mobile - Mobile | G17: =IF($C17=G$12,IF($E17="On-net",IF($D17="Local",2,1),1),IF(AND($D17="LDN",$E17="On-net"),INDEX('LDN call distribution'!$C$6:$AD$33,VLOOKUP($C17,'LDN call distribution'!$C$6:$AD$33,28,FALSE),HLOOKUP(G$12,'LDN call distribution'!$C$6:$AD$33,28,FALSE)),0)) -> 1 | H17: =IF($C17=H$12,IF($E17="On-net",IF($D17="Local",2,1),1),IF(AND($D17="LDN",$E17="On-net"),INDEX('LDN call distribution'!$C$6:$AD$33,VLOOKUP($C17,'LDN call distribution'!$C$6:$AD$33,28,FALSE),HLOOKUP(H$12,'LDN call distribution'!$C$6:$AD$33,28,FALSE)),0)) -> 0 | I17: =IF($C17=I$12,IF($E17="On-net",IF($D17="Local",2,1),1),IF(AND($D17="LDN",$E17="On-net"),INDEX('LDN call distribution'!$C$6:$AD$33,VLOOKUP($C17,'LDN call distribution'!$C$6:$AD$33,28,FALSE),HLOOKUP(I$12,'LDN call distribution'!$C$6:$AD$33,28,FALSE)),0)) -> 0 | J17: =IF($C17=J$12,IF($E17="On-net",IF($D17="Local",2,1),1),IF(AND($D17="LDN",$E17="On-net"),INDEX('LDN call distribution'!$C$6:$AD$33,VLOOKUP($C17,'LDN call distribution'!$C$6:$AD$33,28,FALSE),HLOOKUP(J$12,'LDN call distribution'!$C$6:$AD$33,28,FALSE)),0)) -> 0 | K17: =IF($C17=K$12,IF($E17="On-net",IF($D17="Local",2,1),1),IF(AND($D17="LDN",$E17="On-net"),INDEX('LDN call distribution'!$C$6:$AD$33,VLOOKUP($C17,'LDN call distribution'!$C$6:$AD$33,28,FALSE),HLOOKUP(K$12,'LDN call distribution'!$C$6:$AD$33,28,FALSE)),0)) -> 0 | L17: =IF($C17=L$12,IF($E17="On-net",IF($D17="Local",2,1),1),IF(AND($D17="LDN",$E17="On-net"),INDEX('LDN call distribution'!$C$6:$AD$33,VLOOKUP($C17,'LDN call distribution'!$C$6:$AD$33,28,FALSE),HLOOKUP(L$12,'LDN call distribution'!$C$6:$AD$33,28,FALSE)),0)) -> 0 | M17: =IF($C17=M$12,IF($E17="On-net",IF($D17="Local",2,1),1),IF(AND($D17="LDN",$E17="On-net"),INDEX('LDN call distribution'!$C$6:$AD$33,VLOOKUP($C17,'LDN call distribution'!$C$6:$AD$33,28,FALSE),HLOOKUP(M$12,'LDN call distribution'!$C$6:$AD$33,28,FALSE)),0)) -> 0 | N17: =IF($C17=N$12,IF($E17="On-net",IF($D17="Local",2,1),1),IF(AND($D17="LDN",$E17="On-net"),INDEX('LDN call distribution'!$C$6:$AD$33,VLOOKUP($C17,'LDN call distribution'!$C$6:$AD$33,28,FALSE),HLOOKUP(N$12,'LDN call distribution'!$C$6:$AD$33,28,FALSE)),0)) -> 0 | O17: =IF($C17=O$12,IF($E17="On-net",IF($D17="Local",2,1),1),IF(AND($D17="LDN",$E17="On-net"),INDEX('LDN call distribution'!$C$6:$AD$33,VLOOKUP($C17,'LDN call distribution'!$C$6:$AD$33,28,FALSE),HLOOKUP(O$12,'LDN call distribution'!$C$6:$AD$33,28,FALSE)),0)) -> 0 | P17: =IF($C17=P$12,IF($E17="On-net",IF($D17="Local",2,1),1),IF(AND($D17="LDN",$E17="On-net"),INDEX('LDN call distribution'!$C$6:$AD$33,VLOOKUP($C17,'LDN call distribution'!$C$6:$AD$33,28,FALSE),HLOOKUP(P$12,'LDN call distribution'!$C$6:$AD$33,28,FALSE)),0)) -> 0 | Q17: =IF($C17=Q$12,IF($E17="On-net",IF($D17="Local",2,1),1),IF(AND($D17="LDN",$E17="On-net"),INDEX('LDN call distribution'!$C$6:$AD$33,VLOOKUP($C17,'LDN call distribution'!$C$6:$AD$33,28,FALSE),HLOOKUP(Q$12,'LDN call distribution'!$C$6:$AD$33,28,FALSE)),0)) -> 0 | R17: =IF($C17=R$12,IF($E17="On-net",IF($D17="Local",2,1),1),IF(AND($D17="LDN",$E17="On-net"),INDEX('LDN call distribution'!$C$6:$AD$33,VLOOKUP($C17,'LDN call distribution'!$C$6:$AD$33,28,FALSE),HLOOKUP(R$12,'LDN call distribution'!$C$6:$AD$33,28,FALSE)),0)) -> 0 | S17: =IF($C17=S$12,IF($E17="On-net",IF($D17="Local",2,1),1),IF(AND($D17="LDN",$E17="On-net"),INDEX('LDN call distribution'!$C$6:$AD$33,VLOOKUP($C17,'LDN call distribution'!$C$6:$AD$33,28,FALSE),HLOOKUP(S$12,'LDN call distribution'!$C$6:$AD$33,28,FALSE)),0)) -> 0 | T17: =IF($C17=T$12,IF($E17="On-net",IF($D17="Local",2,1),1),IF(AND($D17="LDN",$E17="On-net"),INDEX('LDN call distribution'!$C$6:$AD$33,VLOOKUP($C17,'LDN call distribution'!$C$6:$AD$33,28,FALSE),HLOOKUP(T$12,'LDN call distribution'!$C$6:$AD$33,28,FALSE)),0)) -> 0 | U17: =IF($C17=U$12,IF($E17="On-net",IF($D17="Local",2,1),1),IF(AND($D17="LDN",$E17="On-net"),INDEX('LDN call distribution'!$C$6:$AD$33,VLOOKUP($C17,'LDN call distribution'!$C$6:$AD$33,28,FALSE),HLOOKUP(U$12,'LDN call distribution'!$C$6:$AD$33,28,FALSE)),0)) -> 0 | V17: =IF($C17=V$12,IF($E17="On-net",IF($D17="Local",2,1),1),IF(AND($D17="LDN",$E17="On-net"),INDEX('LDN call distribution'!$C$6:$AD$33,VLOOKUP($C17,'LDN call distribution'!$C$6:$AD$33,28,FALSE),HLOOKUP(V$12,'LDN call distribution'!$C$6:$AD$33,28,FALSE)),0)) -> 0 | W17: =IF($C17=W$12,IF($E17="On-net",IF($D17="Local",2,1),1),IF(AND($D17="LDN",$E17="On-net"),INDEX('LDN call distribution'!$C$6:$AD$33,VLOOKUP($C17,'LDN call distribution'!$C$6:$AD$33,28,FALSE),HLOOKUP(W$12,'LDN call distribution'!$C$6:$AD$33,28,FALSE)),0)) -> 0 | X17: =IF($C17=X$12,IF($E17="On-net",IF($D17="Local",2,1),1),IF(AND($D17="LDN",$E17="On-net"),INDEX('LDN call distribution'!$C$6:$AD$33,VLOOKUP($C17,'LDN call distribution'!$C$6:$AD$33,28,FALSE),HLOOKUP(X$12,'LDN call distribution'!$C$6:$AD$33,28,FALSE)),0)) -> 0 | Y17: =IF($C17=Y$12,IF($E17="On-net",IF($D17="Local",2,1),1),IF(AND($D17="LDN",$E17="On-net"),INDEX('LDN call distribution'!$C$6:$AD$33,VLOOKUP($C17,'LDN call distribution'!$C$6:$AD$33,28,FALSE),HLOOKUP(Y$12,'LDN call distribution'!$C$6:$AD$33,28,FALSE)),0)) -> 0 | Z17: =IF($C17=Z$12,IF($E17="On-net",IF($D17="Local",2,1),1),IF(AND($D17="LDN",$E17="On-net"),INDEX('LDN call distribution'!$C$6:$AD$33,VLOOKUP($C17,'LDN call distribution'!$C$6:$AD$33,28,FALSE),HLOOKUP(Z$12,'LDN call distribution'!$C$6:$AD$33,28,FALSE)),0)) -> 0 | AA17: =IF($C17=AA$12,IF($E17="On-net",IF($D17="Local",2,1),1),IF(AND($D17="LDN",$E17="On-net"),INDEX('LDN call distribution'!$C$6:$AD$33,VLOOKUP($C17,'LDN call distribution'!$C$6:$AD$33,28,FALSE),HLOOKUP(AA$12,'LDN call distribution'!$C$6:$AD$33,28,FALSE)),0)) -> 0 | AB17: =IF($C17=AB$12,IF($E17="On-net",IF($D17="Local",2,1),1),IF(AND($D17="LDN",$E17="On-net"),INDEX('LDN call distribution'!$C$6:$AD$33,VLOOKUP($C17,'LDN call distribution'!$C$6:$AD$33,28,FALSE),HLOOKUP(AB$12,'LDN call distribution'!$C$6:$AD$33,28,FALSE)),0)) -> 0 | AC17: =IF($C17=AC$12,IF($E17="On-net",IF($D17="Local",2,1),1),IF(AND($D17="LDN",$E17="On-net"),INDEX('LDN call distribution'!$C$6:$AD$33,VLOOKUP($C17,'LDN call distribution'!$C$6:$AD$33,28,FALSE),HLOOKUP(AC$12,'LDN call distribution'!$C$6:$AD$33,28,FALSE)),0)) -> 0 | AD17: =IF($C17=AD$12,IF($E17="On-net",IF($D17="Local",2,1),1),IF(AND($D17="LDN",$E17="On-net"),INDEX('LDN call distribution'!$C$6:$AD$33,VLOOKUP($C17,'LDN call distribution'!$C$6:$AD$33,28,FALSE),HLOOKUP(AD$12,'LDN call distribution'!$C$6:$AD$33,28,FALSE)),0)) -> 0 | AE17: 1 | AF17: 1 | AG17: 1 | AH17: 1 | AI17: 1 | AJ17: 1 | AK17: 1 | AL17: 1 | AM17: 1 | AN17: 1 | AO17: 1 | AP17: 1 | AQ17: 1 | AR17: 1 | AS17: 1 | AT17: 1 | AU17: 1 | AV17: 1 | AW17: 1 | AX17: 1 | AY17: 1 | AZ17: 1 | BA17: 1 | BB17: 1 | BC17: =IF($E17&$D17="On-netLDN",INDEX('LDN call distribution'!$K$45:$AJ$50,VLOOKUP(BC$2,'LDN call distribution'!$K$45:$AJ$50,26,FALSE),HLOOKUP($C17,'LDN call distribution'!$K$45:$AJ$50,6,FALSE)),IF(ISERROR(VLOOKUP($C17,BC$3:BC$12,1,FALSE)),0,1)) -> 1 | BD17: =IF($E17&$D17="On-netLDN",INDEX('LDN call distribution'!$K$45:$AJ$50,VLOOKUP(BD$2,'LDN call distribution'!$K$45:$AJ$50,26,FALSE),HLOOKUP($C17,'LDN call distribution'!$K$45:$AJ$50,6,FALSE)),IF(ISERROR(VLOOKUP($C17,BD$3:BD$12,1,FALSE)),0,1)) -> 0 | BE17: =IF($E17&$D17="On-netLDN",INDEX('LDN call distribution'!$K$45:$AJ$50,VLOOKUP(BE$2,'LDN call distribution'!$K$45:$AJ$50,26,FALSE),HLOOKUP($C17,'LDN call distribution'!$K$45:$AJ$50,6,FALSE)),IF(ISERROR(VLOOKUP($C17,BE$3:BE$12,1,FALSE)),0,1)) -> 0 | BF17: 1 | BG17: 1 | BH17: 1 | BI17: 1 | BJ17: 1 | BK17: 1 | BL17: 1
C18: Amazonas | D18: LDN | E18: On-net | F18: Mobile - Mobile | G18: =IF($C18=G$12,IF($E18="On-net",IF($D18="Local",2,1),1),IF(AND($D18="LDN",$E18="On-net"),INDEX('LDN call distribution'!$C$6:$AD$33,VLOOKUP($C18,'LDN call distribution'!$C$6:$AD$33,28,FALSE),HLOOKUP(G$12,'LDN call distribution'!$C$6:$AD$33,28,FALSE)),0)) -> 1 | H18: =IF($C18=H$12,IF($E18="On-net",IF($D18="Local",2,1),1),IF(AND($D18="LDN",$E18="On-net"),INDEX('LDN call distribution'!$C$6:$AD$33,VLOOKUP($C18,'LDN call distribution'!$C$6:$AD$33,28,FALSE),HLOOKUP(H$12,'LDN call distribution'!$C$6:$AD$33,28,FALSE)),0)) -> 0.007317587584 | I18: =IF($C18=I$12,IF($E18="On-net",IF($D18="Local",2,1),1),IF(AND($D18="LDN",$E18="On-net"),INDEX('LDN call distribution'!$C$6:$AD$33,VLOOKUP($C18,'LDN call distribution'!$C$6:$AD$33,28,FALSE),HLOOKUP(I$12,'LDN call distribution'!$C$6:$AD$33,28,FALSE)),0)) -> 0.0004749758476 | J18: =IF($C18=J$12,IF($E18="On-net",IF($D18="Local",2,1),1),IF(AND($D18="LDN",$E18="On-net"),INDEX('LDN call distribution'!$C$6:$AD$33,VLOOKUP($C18,'LDN call distribution'!$C$6:$AD$33,28,FALSE),HLOOKUP(J$12,'LDN call distribution'!$C$6:$AD$33,28,FALSE)),0)) -> 0.004543195022 | K18: =IF($C18=K$12,IF($E18="On-net",IF($D18="Local",2,1),1),IF(AND($D18="LDN",$E18="On-net"),INDEX('LDN call distribution'!$C$6:$AD$33,VLOOKUP($C18,'LDN call distribution'!$C$6:$AD$33,28,FALSE),HLOOKUP(K$12,'LDN call distribution'!$C$6:$AD$33,28,FALSE)),0)) -> 0.002581657516 | L18: =IF($C18=L$12,IF($E18="On-net",IF($D18="Local",2,1),1),IF(AND($D18="LDN",$E18="On-net"),INDEX('LDN call distribution'!$C$6:$AD$33,VLOOKUP($C18,'LDN call distribution'!$C$6:$AD$33,28,FALSE),HLOOKUP(L$12,'LDN call distribution'!$C$6:$AD$33,28,FALSE)),0)) -> 0.03752315147 | M18: =IF($C18=M$12,IF($E18="On-net",IF($D18="Local",2,1),1),IF(AND($D18="LDN",$E18="On-net"),INDEX('LDN call distribution'!$C$6:$AD$33,VLOOKUP($C18,'LDN call distribution'!$C$6:$AD$33,28,FALSE),HLOOKUP(M$12,'LDN call distribution'!$C$6:$AD$33,28,FALSE)),0)) -> 0.004044645203 | N18: =IF($C18=N$12,IF($E18="On-net",IF($D18="Local",2,1),1),IF(AND($D18="LDN",$E18="On-net"),INDEX('LDN call distribution'!$C$6:$AD$33,VLOOKUP($C18,'LDN call distribution'!$C$6:$AD$33,28,FALSE),HLOOKUP(N$12,'LDN call distribution'!$C$6:$AD$33,28,FALSE)),0)) -> 2.643763159e-05 | O18: =IF($C18=O$12,IF($E18="On-net",IF($D18="Local",2,1),1),IF(AND($D18="LDN",$E18="On-net"),INDEX('LDN call distribution'!$C$6:$AD$33,VLOOKUP($C18,'LDN call distribution'!$C$6:$AD$33,28,FALSE),HLOOKUP(O$12,'LDN call distribution'!$C$6:$AD$33,28,FALSE)),0)) -> 0.001833503705 | P18: =IF($C18=P$12,IF($E18="On-net",IF($D18="Local",2,1),1),IF(AND($D18="LDN",$E18="On-net"),INDEX('LDN call distribution'!$C$6:$AD$33,VLOOKUP($C18,'LDN call distribution'!$C$6:$AD$33,28,FALSE),HLOOKUP(P$12,'LDN call distribution'!$C$6:$AD$33,28,FALSE)),0)) -> 0.001286669267 | Q18: =IF($C18=Q$12,IF($E18="On-net",IF($D18="Local",2,1),1),IF(AND($D18="LDN",$E18="On-net"),INDEX('LDN call distribution'!$C$6:$AD$33,VLOOKUP($C18,'LDN call distribution'!$C$6:$AD$33,28,FALSE),HLOOKUP(Q$12,'LDN call distribution'!$C$6:$AD$33,28,FALSE)),0)) -> 0.0007492703832 | R18: =IF($C18=R$12,IF($E18="On-net",IF($D18="Local",2,1),1),IF(AND($D18="LDN",$E18="On-net"),INDEX('LDN call distribution'!$C$6:$AD$33,VLOOKUP($C18,'LDN call distribution'!$C$6:$AD$33,28,FALSE),HLOOKUP(R$12,'LDN call distribution'!$C$6:$AD$33,28,FALSE)),0)) -> 0.1487174216 | S18: =IF($C18=S$12,IF($E18="On-net",IF($D18="Local",2,1),1),IF(AND($D18="LDN",$E18="On-net"),INDEX('LDN call distribution'!$C$6:$AD$33,VLOOKUP($C18,'LDN call distribution'!$C$6:$AD$33,28,FALSE),HLOOKUP(S$12,'LDN call distribution'!$C$6:$AD$33,28,FALSE)),0)) -> 0.0538041262 | T18: =IF($C18=T$12,IF($E18="On-net",IF($D18="Local",2,1),1),IF(AND($D18="LDN",$E18="On-net"),INDEX('LDN call distribution'!$C$6:$AD$33,VLOOKUP($C18,'LDN call distribution'!$C$6:$AD$33,28,FALSE),HLOOKUP(T$12,'LDN call distribution'!$C$6:$AD$33,28,FALSE)),0)) -> 0.5855262342 | U18: =IF($C18=U$12,IF($E18="On-net",IF($D18="Local",2,1),1),IF(AND($D18="LDN",$E18="On-net"),INDEX('LDN call distribution'!$C$6:$AD$33,VLOOKUP($C18,'LDN call distribution'!$C$6:$AD$33,28,FALSE),HLOOKUP(U$12,'LDN call distribution'!$C$6:$AD$33,28,FALSE)),0)) -> 0.02076064276 | V18: =IF($C18=V$12,IF($E18="On-net",IF($D18="Local",2,1),1),IF(AND($D18="LDN",$E18="On-net"),INDEX('LDN call distribution'!$C$6:$AD$33,VLOOKUP($C18,'LDN call distribution'!$C$6:$AD$33,28,FALSE),HLOOKUP(V$12,'LDN call distribution'!$C$6:$AD$33,28,FALSE)),0)) -> 0.007826782669 | W18: =IF($C18=W$12,IF($E18="On-net",IF($D18="Local",2,1),1),IF(AND($D18="LDN",$E18="On-net"),INDEX('LDN call distribution'!$C$6:$AD$33,VLOOKUP($C18,'LDN call distribution'!$C$6:$AD$33,28,FALSE),HLOOKUP(W$12,'LDN call distribution'!$C$6:$AD$33,28,FALSE)),0)) -> 0.001292376143 | X18: =IF($C18=X$12,IF($E18="On-net",IF($D18="Local",2,1),1),IF(AND($D18="LDN",$E18="On-net"),INDEX('LDN call distribution'!$C$6:$AD$33,VLOOKUP($C18,'LDN call distribution'!$C$6:$AD$33,28,FALSE),HLOOKUP(X$12,'LDN call distribution'!$C$6:$AD$33,28,FALSE)),0)) -> 0.0002412181006 | Y18: =IF($C18=Y$12,IF($E18="On-net",IF($D18="Local",2,1),1),IF(AND($D18="LDN",$E18="On-net"),INDEX('LDN call distribution'!$C$6:$AD$33,VLOOKUP($C18,'LDN call distribution'!$C$6:$AD$33,28,FALSE),HLOOKUP(Y$12,'LDN call distribution'!$C$6:$AD$33,28,FALSE)),0)) -> 0.01695046112 | Z18: =IF($C18=Z$12,IF($E18="On-net",IF($D18="Local",2,1),1),IF(AND($D18="LDN",$E18="On-net"),INDEX('LDN call distribution'!$C$6:$AD$33,VLOOKUP($C18,'LDN call distribution'!$C$6:$AD$33,28,FALSE),HLOOKUP(Z$12,'LDN call distribution'!$C$6:$AD$33,28,FALSE)),0)) -> 0.001234937204 | AA18: =IF($C18=AA$12,IF($E18="On-net",IF($D18="Local",2,1),1),IF(AND($D18="LDN",$E18="On-net"),INDEX('LDN call distribution'!$C$6:$AD$33,VLOOKUP($C18,'LDN call distribution'!$C$6:$AD$33,28,FALSE),HLOOKUP(AA$12,'LDN call distribution'!$C$6:$AD$33,28,FALSE)),0)) -> 0.08611711629 | AB18: =IF($C18=AB$12,IF($E18="On-net",IF($D18="Local",2,1),1),IF(AND($D18="LDN",$E18="On-net"),INDEX('LDN call distribution'!$C$6:$AD$33,VLOOKUP($C18,'LDN call distribution'!$C$6:$AD$33,28,FALSE),HLOOKUP(AB$12,'LDN call distribution'!$C$6:$AD$33,28,FALSE)),0)) -> 0.001165120085 | AC18: =IF($C18=AC$12,IF($E18="On-net",IF($D18="Local",2,1),1),IF(AND($D18="LDN",$E18="On-net"),INDEX('LDN call distribution'!$C$6:$AD$33,VLOOKUP($C18,'LDN call distribution'!$C$6:$AD$33,28,FALSE),HLOOKUP(AC$12,'LDN call distribution'!$C$6:$AD$33,28,FALSE)),0)) -> 0.001917236056 | AD18: =IF($C18=AD$12,IF($E18="On-net",IF($D18="Local",2,1),1),IF(AND($D18="LDN",$E18="On-net"),INDEX('LDN call distribution'!$C$6:$AD$33,VLOOKUP($C18,'LDN call distribution'!$C$6:$AD$33,28,FALSE),HLOOKUP(AD$12,'LDN call distribution'!$C$6:$AD$33,28,FALSE)),0)) -> 0.0140652339 | AE18: 1 | AF18: 1 | AG18: 1 | AH18: 1 | AI18: 1 | AJ18: 1 | AK18: 1 | AL18: 1 | AM18: 1 | AN18: 1 | AO18: 1 | AP18: 1 | AQ18: 1 | AR18: 1 | AS18: 1 | AT18: 1 | AU18: 1 | AV18: 1 | AW18: 1 | AX18: 1 | AY18: 1 | AZ18: 1 | BA18: 1 | BB18: 1 | BC18: =IF($E18&$D18="On-netLDN",INDEX('LDN call distribution'!$K$45:$AJ$50,VLOOKUP(BC$2,'LDN call distribution'!$K$45:$AJ$50,26,FALSE),HLOOKUP($C18,'LDN call distribution'!$K$45:$AJ$50,6,FALSE)),IF(ISERROR(VLOOKUP($C18,BC$3:BC$12,1,FALSE)),0,1)) -> 0.3523471003 | BD18: =IF($E18&$D18="On-netLDN",INDEX('LDN call distribution'!$K$45:$AJ$50,VLOOKUP(BD$2,'LDN call distribution'!$K$45:$AJ$50,26,FALSE),HLOOKUP($C18,'LDN call distribution'!$K$45:$AJ$50,6,FALSE)),IF(ISERROR(VLOOKUP($C18,BD$3:BD$12,1,FALSE)),0,1)) -> 0.6348976502 | BE18: =IF($E18&$D18="On-netLDN",INDEX('LDN call distribution'!$K$45:$AJ$50,VLOOKUP(BE$2,'LDN call distribution'!$K$45:$AJ$50,26,FALSE),HLOOKUP($C18,'LDN call distribution'!$K$45:$AJ$50,6,FALSE)),IF(ISERROR(VLOOKUP($C18,BE$3:BE$12,1,FALSE)),0,1)) -> 0.0127552495 | BF18: 1 | BG18: 0 | BH18: 1 | BI18: 1 | BJ18: 1 | BK18: 1 | BL18: 1
C19: Amazonas | D19: Local | E19: On-net | F19: Mobile - Mobile | G19: =IF($C19=G$12,IF($E19="On-net",IF($D19="Local",2,1),1),IF(AND($D19="LDN",$E19="On-net"),INDEX('LDN call distribution'!$C$6:$AD$33,VLOOKUP($C19,'LDN call distribution'!$C$6:$AD$33,28,FALSE),HLOOKUP(G$12,'LDN call distribution'!$C$6:$AD$33,28,FALSE)),0)) -> 2 | H19: =IF($C19=H$12,IF($E19="On-net",IF($D19="Local",2,1),1),IF(AND($D19="LDN",$E19="On-net"),INDEX('LDN call distribution'!$C$6:$AD$33,VLOOKUP($C19,'LDN call distribution'!$C$6:$AD$33,28,FALSE),HLOOKUP(H$12,'LDN call distribution'!$C$6:$AD$33,28,FALSE)),0)) -> 0 | I19: =IF($C19=I$12,IF($E19="On-net",IF($D19="Local",2,1),1),IF(AND($D19="LDN",$E19="On-net"),INDEX('LDN call distribution'!$C$6:$AD$33,VLOOKUP($C19,'LDN call distribution'!$C$6:$AD$33,28,FALSE),HLOOKUP(I$12,'LDN call distribution'!$C$6:$AD$33,28,FALSE)),0)) -> 0 | J19: =IF($C19=J$12,IF($E19="On-net",IF($D19="Local",2,1),1),IF(AND($D19="LDN",$E19="On-net"),INDEX('LDN call distribution'!$C$6:$AD$33,VLOOKUP($C19,'LDN call distribution'!$C$6:$AD$33,28,FALSE),HLOOKUP(J$12,'LDN call distribution'!$C$6:$AD$33,28,FALSE)),0)) -> 0 | K19: =IF($C19=K$12,IF($E19="On-net",IF($D19="Local",2,1),1),IF(AND($D19="LDN",$E19="On-net"),INDEX('LDN call distribution'!$C$6:$AD$33,VLOOKUP($C19,'LDN call distribution'!$C$6:$AD$33,28,FALSE),HLOOKUP(K$12,'LDN call distribution'!$C$6:$AD$33,28,FALSE)),0)) -> 0 | L19: =IF($C19=L$12,IF($E19="On-net",IF($D19="Local",2,1),1),IF(AND($D19="LDN",$E19="On-net"),INDEX('LDN call distribution'!$C$6:$AD$33,VLOOKUP($C19,'LDN call distribution'!$C$6:$AD$33,28,FALSE),HLOOKUP(L$12,'LDN call distribution'!$C$6:$AD$33,28,FALSE)),0)) -> 0 | M19: =IF($C19=M$12,IF($E19="On-net",IF($D19="Local",2,1),1),IF(AND($D19="LDN",$E19="On-net"),INDEX('LDN call distribution'!$C$6:$AD$33,VLOOKUP($C19,'LDN call distribution'!$C$6:$AD$33,28,FALSE),HLOOKUP(M$12,'LDN call distribution'!$C$6:$AD$33,28,FALSE)),0)) -> 0 | N19: =IF($C19=N$12,IF($E19="On-net",IF($D19="Local",2,1),1),IF(AND($D19="LDN",$E19="On-net"),INDEX('LDN call distribution'!$C$6:$AD$33,VLOOKUP($C19,'LDN call distribution'!$C$6:$AD$33,28,FALSE),HLOOKUP(N$12,'LDN call distribution'!$C$6:$AD$33,28,FALSE)),0)) -> 0 | O19: =IF($C19=O$12,IF($E19="On-net",IF($D19="Local",2,1),1),IF(AND($D19="LDN",$E19="On-net"),INDEX('LDN call distribution'!$C$6:$AD$33,VLOOKUP($C19,'LDN call distribution'!$C$6:$AD$33,28,FALSE),HLOOKUP(O$12,'LDN call distribution'!$C$6:$AD$33,28,FALSE)),0)) -> 0 | P19: =IF($C19=P$12,IF($E19="On-net",IF($D19="Local",2,1),1),IF(AND($D19="LDN",$E19="On-net"),INDEX('LDN call distribution'!$C$6:$AD$33,VLOOKUP($C19,'LDN call distribution'!$C$6:$AD$33,28,FALSE),HLOOKUP(P$12,'LDN call distribution'!$C$6:$AD$33,28,FALSE)),0)) -> 0 | Q19: =IF($C19=Q$12,IF($E19="On-net",IF($D19="Local",2,1),1),IF(AND($D19="LDN",$E19="On-net"),INDEX('LDN call distribution'!$C$6:$AD$33,VLOOKUP($C19,'LDN call distribution'!$C$6:$AD$33,28,FALSE),HLOOKUP(Q$12,'LDN call distribution'!$C$6:$AD$33,28,FALSE)),0)) -> 0 | R19: =IF($C19=R$12,IF($E19="On-net",IF($D19="Local",2,1),1),IF(AND($D19="LDN",$E19="On-net"),INDEX('LDN call distribution'!$C$6:$AD$33,VLOOKUP($C19,'LDN call distribution'!$C$6:$AD$33,28,FALSE),HLOOKUP(R$12,'LDN call distribution'!$C$6:$AD$33,28,FALSE)),0)) -> 0 | S19: =IF($C19=S$12,IF($E19="On-net",IF($D19="Local",2,1),1),IF(AND($D19="LDN",$E19="On-net"),INDEX('LDN call distribution'!$C$6:$AD$33,VLOOKUP($C19,'LDN call distribution'!$C$6:$AD$33,28,FALSE),HLOOKUP(S$12,'LDN call distribution'!$C$6:$AD$33,28,FALSE)),0)) -> 0 | T19: =IF($C19=T$12,IF($E19="On-net",IF($D19="Local",2,1),1),IF(AND($D19="LDN",$E19="On-net"),INDEX('LDN call distribution'!$C$6:$AD$33,VLOOKUP($C19,'LDN call distribution'!$C$6:$AD$33,28,FALSE),HLOOKUP(T$12,'LDN call distribution'!$C$6:$AD$33,28,FALSE)),0)) -> 0 | U19: =IF($C19=U$12,IF($E19="On-net",IF($D19="Local",2,1),1),IF(AND($D19="LDN",$E19="On-net"),INDEX('LDN call distribution'!$C$6:$AD$33,VLOOKUP($C19,'LDN call distribution'!$C$6:$AD$33,28,FALSE),HLOOKUP(U$12,'LDN call distribution'!$C$6:$AD$33,28,FALSE)),0)) -> 0 | V19: =IF($C19=V$12,IF($E19="On-net",IF($D19="Local",2,1),1),IF(AND($D19="LDN",$E19="On-net"),INDEX('LDN call distribution'!$C$6:$AD$33,VLOOKUP($C19,'LDN call distribution'!$C$6:$AD$33,28,FALSE),HLOOKUP(V$12,'LDN call distribution'!$C$6:$AD$33,28,FALSE)),0)) -> 0 | W19: =IF($C19=W$12,IF($E19="On-net",IF($D19="Local",2,1),1),IF(AND($D19="LDN",$E19="On-net"),INDEX('LDN call distribution'!$C$6:$AD$33,VLOOKUP($C19,'LDN call distribution'!$C$6:$AD$33,28,FALSE),HLOOKUP(W$12,'LDN call distribution'!$C$6:$AD$33,28,FALSE)),0)) -> 0 | X19: =IF($C19=X$12,IF($E19="On-net",IF($D19="Local",2,1),1),IF(AND($D19="LDN",$E19="On-net"),INDEX('LDN call distribution'!$C$6:$AD$33,VLOOKUP($C19,'LDN call distribution'!$C$6:$AD$33,28,FALSE),HLOOKUP(X$12,'LDN call distribution'!$C$6:$AD$33,28,FALSE)),0)) -> 0 | Y19: =IF($C19=Y$12,IF($E19="On-net",IF($D19="Local",2,1),1),IF(AND($D19="LDN",$E19="On-net"),INDEX('LDN call distribution'!$C$6:$AD$33,VLOOKUP($C19,'LDN call distribution'!$C$6:$AD$33,28,FALSE),HLOOKUP(Y$12,'LDN call distribution'!$C$6:$AD$33,28,FALSE)),0)) -> 0 | Z19: =IF($C19=Z$12,IF($E19="On-net",IF($D19="Local",2,1),1),IF(AND($D19="LDN",$E19="On-net"),INDEX('LDN call distribution'!$C$6:$AD$33,VLOOKUP($C19,'LDN call distribution'!$C$6:$AD$33,28,FALSE),HLOOKUP(Z$12,'LDN call distribution'!$C$6:$AD$33,28,FALSE)),0)) -> 0 | AA19: =IF($C19=AA$12,IF($E19="On-net",IF($D19="Local",2,1),1),IF(AND($D19="LDN",$E19="On-net"),INDEX('LDN call distribution'!$C$6:$AD$33,VLOOKUP($C19,'LDN call distribution'!$C$6:$AD$33,28,FALSE),HLOOKUP(AA$12,'LDN call distribution'!$C$6:$AD$33,28,FALSE)),0)) -> 0 | AB19: =IF($C19=AB$12,IF($E19="On-net",IF($D19="Local",2,1),1),IF(AND($D19="LDN",$E19="On-net"),INDEX('LDN call distribution'!$C$6:$AD$33,VLOOKUP($C19,'LDN call distribution'!$C$6:$AD$33,28,FALSE),HLOOKUP(AB$12,'LDN call distribution'!$C$6:$AD$33,28,FALSE)),0)) -> 0 | AC19: =IF($C19=AC$12,IF($E19="On-net",IF($D19="Local",2,1),1),IF(AND($D19="LDN",$E19="On-net"),INDEX('LDN call distribution'!$C$6:$AD$33,VLOOKUP($C19,'LDN call distribution'!$C$6:$AD$33,28,FALSE),HLOOKUP(AC$12,'LDN call distribution'!$C$6:$AD$33,28,FALSE)),0)) -> 0 | AD19: =IF($C19=AD$12,IF($E19="On-net",IF($D19="Local",2,1),1),IF(AND($D19="LDN",$E19="On-net"),INDEX('LDN call distribution'!$C$6:$AD$33,VLOOKUP($C19,'LDN call distribution'!$C$6:$AD$33,28,FALSE),HLOOKUP(AD$12,'LDN call distribution'!$C$6:$AD$33,28,FALSE)),0)) -> 0 | AE19: 1 | AF19: 1 | AG19: 1 | AH19: 1 | AI19: 1 | AJ19: 1 | AK19: 1 | AL19: 1 | AM19: 1 | AN19: 1 | AO19: 1 | AP19: 1 | AQ19: 1 | AR19: 1 | AS19: 1 | AT19: 1 | AU19: 1 | AV19: 1 | AW19: 1 | AX19: 1 | AY19: 1 | AZ19: 1 | BA19: 1 | BB19: 1 | BC19: =IF($E19&$D19="On-netLDN",INDEX('LDN call distribution'!$K$45:$AJ$50,VLOOKUP(BC$2,'LDN call distribution'!$K$45:$AJ$50,26,FALSE),HLOOKUP($C19,'LDN call distribution'!$K$45:$AJ$50,6,FALSE)),IF(ISERROR(VLOOKUP($C19,BC$3:BC$12,1,FALSE)),0,1)) -> 1 | BD19: =IF($E19&$D19="On-netLDN",INDEX('LDN call distribution'!$K$45:$AJ$50,VLOOKUP(BD$2,'LDN call distribution'!$K$45:$AJ$50,26,FALSE),HLOOKUP($C19,'LDN call distribution'!$K$45:$AJ$50,6,FALSE)),IF(ISERROR(VLOOKUP($C19,BD$3:BD$12,1,FALSE)),0,1)) -> 0 | BE19: =IF($E19&$D19="On-netLDN",INDEX('LDN call distribution'!$K$45:$AJ$50,VLOOKUP(BE$2,'LDN call distribution'!$K$45:$AJ$50,26,FALSE),HLOOKUP($C19,'LDN call distribution'!$K$45:$AJ$50,6,FALSE)),IF(ISERROR(VLOOKUP($C19,BE$3:BE$12,1,FALSE)),0,1)) -> 0 | BF19: 1 | BG19: 0 | BH19: 1 | BI19: 1 | BJ19: 1 | BK19: 1 | BL19: 1
C20: Amazonas | D20: LDI | E20: Outgoing | F20: 0 | G20: =IF($C20=G$12,IF($E20="On-net",IF($D20="Local",2,1),1),IF(AND($D20="LDN",$E20="On-net"),INDEX('LDN call distribution'!$C$6:$AD$33,VLOOKUP($C20,'LDN call distribution'!$C$6:$AD$33,28,FALSE),HLOOKUP(G$12,'LDN call distribution'!$C$6:$AD$33,28,FALSE)),0)) -> 1 | H20: =IF($C20=H$12,IF($E20="On-net",IF($D20="Local",2,1),1),IF(AND($D20="LDN",$E20="On-net"),INDEX('LDN call distribution'!$C$6:$AD$33,VLOOKUP($C20,'LDN call distribution'!$C$6:$AD$33,28,FALSE),HLOOKUP(H$12,'LDN call distribution'!$C$6:$AD$33,28,FALSE)),0)) -> 0 | I20: =IF($C20=I$12,IF($E20="On-net",IF($D20="Local",2,1),1),IF(AND($D20="LDN",$E20="On-net"),INDEX('LDN call distribution'!$C$6:$AD$33,VLOOKUP($C20,'LDN call distribution'!$C$6:$AD$33,28,FALSE),HLOOKUP(I$12,'LDN call distribution'!$C$6:$AD$33,28,FALSE)),0)) -> 0 | J20: =IF($C20=J$12,IF($E20="On-net",IF($D20="Local",2,1),1),IF(AND($D20="LDN",$E20="On-net"),INDEX('LDN call distribution'!$C$6:$AD$33,VLOOKUP($C20,'LDN call distribution'!$C$6:$AD$33,28,FALSE),HLOOKUP(J$12,'LDN call distribution'!$C$6:$AD$33,28,FALSE)),0)) -> 0 | K20: =IF($C20=K$12,IF($E20="On-net",IF($D20="Local",2,1),1),IF(AND($D20="LDN",$E20="On-net"),INDEX('LDN call distribution'!$C$6:$AD$33,VLOOKUP($C20,'LDN call distribution'!$C$6:$AD$33,28,FALSE),HLOOKUP(K$12,'LDN call distribution'!$C$6:$AD$33,28,FALSE)),0)) -> 0 | L20: =IF($C20=L$12,IF($E20="On-net",IF($D20="Local",2,1),1),IF(AND($D20="LDN",$E20="On-net"),INDEX('LDN call distribution'!$C$6:$AD$33,VLOOKUP($C20,'LDN call distribution'!$C$6:$AD$33,28,FALSE),HLOOKUP(L$12,'LDN call distribution'!$C$6:$AD$33,28,FALSE)),0)) -> 0 | M20: =IF($C20=M$12,IF($E20="On-net",IF($D20="Local",2,1),1),IF(AND($D20="LDN",$E20="On-net"),INDEX('LDN call distribution'!$C$6:$AD$33,VLOOKUP($C20,'LDN call distribution'!$C$6:$AD$33,28,FALSE),HLOOKUP(M$12,'LDN call distribution'!$C$6:$AD$33,28,FALSE)),0)) -> 0 | N20: =IF($C20=N$12,IF($E20="On-net",IF($D20="Local",2,1),1),IF(AND($D20="LDN",$E20="On-net"),INDEX('LDN call distribution'!$C$6:$AD$33,VLOOKUP($C20,'LDN call distribution'!$C$6:$AD$33,28,FALSE),HLOOKUP(N$12,'LDN call distribution'!$C$6:$AD$33,28,FALSE)),0)) -> 0 | O20: =IF($C20=O$12,IF($E20="On-net",IF($D20="Local",2,1),1),IF(AND($D20="LDN",$E20="On-net"),INDEX('LDN call distribution'!$C$6:$AD$33,VLOOKUP($C20,'LDN call distribution'!$C$6:$AD$33,28,FALSE),HLOOKUP(O$12,'LDN call distribution'!$C$6:$AD$33,28,FALSE)),0)) -> 0 | P20: =IF($C20=P$12,IF($E20="On-net",IF($D20="Local",2,1),1),IF(AND($D20="LDN",$E20="On-net"),INDEX('LDN call distribution'!$C$6:$AD$33,VLOOKUP($C20,'LDN call distribution'!$C$6:$AD$33,28,FALSE),HLOOKUP(P$12,'LDN call distribution'!$C$6:$AD$33,28,FALSE)),0)) -> 0 | Q20: =IF($C20=Q$12,IF($E20="On-net",IF($D20="Local",2,1),1),IF(AND($D20="LDN",$E20="On-net"),INDEX('LDN call distribution'!$C$6:$AD$33,VLOOKUP($C20,'LDN call distribution'!$C$6:$AD$33,28,FALSE),HLOOKUP(Q$12,'LDN call distribution'!$C$6:$AD$33,28,FALSE)),0)) -> 0 | R20: =IF($C20=R$12,IF($E20="On-net",IF($D20="Local",2,1),1),IF(AND($D20="LDN",$E20="On-net"),INDEX('LDN call distribution'!$C$6:$AD$33,VLOOKUP($C20,'LDN call distribution'!$C$6:$AD$33,28,FALSE),HLOOKUP(R$12,'LDN call distribution'!$C$6:$AD$33,28,FALSE)),0)) -> 0 | S20: =IF($C20=S$12,IF($E20="On-net",IF($D20="Local",2,1),1),IF(AND($D20="LDN",$E20="On-net"),INDEX('LDN call distribution'!$C$6:$AD$33,VLOOKUP($C20,'LDN call distribution'!$C$6:$AD$33,28,FALSE),HLOOKUP(S$12,'LDN call distribution'!$C$6:$AD$33,28,FALSE)),0)) -> 0 | T20: =IF($C20=T$12,IF($E20="On-net",IF($D20="Local",2,1),1),IF(AND($D20="LDN",$E20="On-net"),INDEX('LDN call distribution'!$C$6:$AD$33,VLOOKUP($C20,'LDN call distribution'!$C$6:$AD$33,28,FALSE),HLOOKUP(T$12,'LDN call distribution'!$C$6:$AD$33,28,FALSE)),0)) -> 0 | U20: =IF($C20=U$12,IF($E20="On-net",IF($D20="Local",2,1),1),IF(AND($D20="LDN",$E20="On-net"),INDEX('LDN call distribution'!$C$6:$AD$33,VLOOKUP($C20,'LDN call distribution'!$C$6:$AD$33,28,FALSE),HLOOKUP(U$12,'LDN call distribution'!$C$6:$AD$33,28,FALSE)),0)) -> 0 | V20: =IF($C20=V$12,IF($E20="On-net",IF($D20="Local",2,1),1),IF(AND($D20="LDN",$E20="On-net"),INDEX('LDN call distribution'!$C$6:$AD$33,VLOOKUP($C20,'LDN call distribution'!$C$6:$AD$33,28,FALSE),HLOOKUP(V$12,'LDN call distribution'!$C$6:$AD$33,28,FALSE)),0)) -> 0 | W20: =IF($C20=W$12,IF($E20="On-net",IF($D20="Local",2,1),1),IF(AND($D20="LDN",$E20="On-net"),INDEX('LDN call distribution'!$C$6:$AD$33,VLOOKUP($C20,'LDN call distribution'!$C$6:$AD$33,28,FALSE),HLOOKUP(W$12,'LDN call distribution'!$C$6:$AD$33,28,FALSE)),0)) -> 0 | X20: =IF($C20=X$12,IF($E20="On-net",IF($D20="Local",2,1),1),IF(AND($D20="LDN",$E20="On-net"),INDEX('LDN call distribution'!$C$6:$AD$33,VLOOKUP($C20,'LDN call distribution'!$C$6:$AD$33,28,FALSE),HLOOKUP(X$12,'LDN call distribution'!$C$6:$AD$33,28,FALSE)),0)) -> 0 | Y20: =IF($C20=Y$12,IF($E20="On-net",IF($D20="Local",2,1),1),IF(AND($D20="LDN",$E20="On-net"),INDEX('LDN call distribution'!$C$6:$AD$33,VLOOKUP($C20,'LDN call distribution'!$C$6:$AD$33,28,FALSE),HLOOKUP(Y$12,'LDN call distribution'!$C$6:$AD$33,28,FALSE)),0)) -> 0 | Z20: =IF($C20=Z$12,IF($E20="On-net",IF($D20="Local",2,1),1),IF(AND($D20="LDN",$E20="On-net"),INDEX('LDN call distribution'!$C$6:$AD$33,VLOOKUP($C20,'LDN call distribution'!$C$6:$AD$33,28,FALSE),HLOOKUP(Z$12,'LDN call distribution'!$C$6:$AD$33,28,FALSE)),0)) -> 0 | AA20: =IF($C20=AA$12,IF($E20="On-net",IF($D20="Local",2,1),1),IF(AND($D20="LDN",$E20="On-net"),INDEX('LDN call distribution'!$C$6:$AD$33,VLOOKUP($C20,'LDN call distribution'!$C$6:$AD$33,28,FALSE),HLOOKUP(AA$12,'LDN call distribution'!$C$6:$AD$33,28,FALSE)),0)) -> 0 | AB20: =IF($C20=AB$12,IF($E20="On-net",IF($D20="Local",2,1),1),IF(AND($D20="LDN",$E20="On-net"),INDEX('LDN call distribution'!$C$6:$AD$33,VLOOKUP($C20,'LDN call distribution'!$C$6:$AD$33,28,FALSE),HLOOKUP(AB$12,'LDN call distribution'!$C$6:$AD$33,28,FALSE)),0)) -> 0 | AC20: =IF($C20=AC$12,IF($E20="On-net",IF($D20="Local",2,1),1),IF(AND($D20="LDN",$E20="On-net"),INDEX('LDN call distribution'!$C$6:$AD$33,VLOOKUP($C20,'LDN call distribution'!$C$6:$AD$33,28,FALSE),HLOOKUP(AC$12,'LDN call distribution'!$C$6:$AD$33,28,FALSE)),0)) -> 0 | AD20: =IF($C20=AD$12,IF($E20="On-net",IF($D20="Local",2,1),1),IF(AND($D20="LDN",$E20="On-net"),INDEX('LDN call distribution'!$C$6:$AD$33,VLOOKUP($C20,'LDN call distribution'!$C$6:$AD$33,28,FALSE),HLOOKUP(AD$12,'LDN call distribution'!$C$6:$AD$33,28,FALSE)),0)) -> 0 | AE20: 1 | AF20: 1 | AG20: 1 | AH20: 1 | AI20: 1 | AJ20: 1 | AK20: 1 | AL20: 1 | AM20: 1 | AN20: 1 | AO20: 1 | AP20: 1 | AQ20: 1 | AR20: 1 | AS20: 1 | AT20: 1 | AU20: 1 | AV20: 1 | AW20: 1 | AX20: 1 | AY20: 1 | AZ20: 1 | BA20: 1 | BB20: 1 | BC20: =IF($E20&$D20="On-netLDN",INDEX('LDN call distribution'!$K$45:$AJ$50,VLOOKUP(BC$2,'LDN call distribution'!$K$45:$AJ$50,26,FALSE),HLOOKUP($C20,'LDN call distribution'!$K$45:$AJ$50,6,FALSE)),IF(ISERROR(VLOOKUP($C20,BC$3:BC$12,1,FALSE)),0,1)) -> 1 | BD20: =IF($E20&$D20="On-netLDN",INDEX('LDN call distribution'!$K$45:$AJ$50,VLOOKUP(BD$2,'LDN call distribution'!$K$45:$AJ$50,26,FALSE),HLOOKUP($C20,'LDN call distribution'!$K$45:$AJ$50,6,FALSE)),IF(ISERROR(VLOOKUP($C20,BD$3:BD$12,1,FALSE)),0,1)) -> 0 | BE20: =IF($E20&$D20="On-netLDN",INDEX('LDN call distribution'!$K$45:$AJ$50,VLOOKUP(BE$2,'LDN call distribution'!$K$45:$AJ$50,26,FALSE),HLOOKUP($C20,'LDN call distribution'!$K$45:$AJ$50,6,FALSE)),IF(ISERROR(VLOOKUP($C20,BE$3:BE$12,1,FALSE)),0,1)) -> 0 | BF20: 1 | BG20: 0 | BH20: 1 | BI20: 1 | BJ20: 1 | BK20: 1 | BL20: 1
C21: Amazonas | D21: LDN | E21: Outgoing | F21: Mobile - Fixed | G21: =IF($C21=G$12,IF($E21="On-net",IF($D21="Local",2,1),1),IF(AND($D21="LDN",$E21="On-net"),INDEX('LDN call distribution'!$C$6:$AD$33,VLOOKUP($C21,'LDN call distribution'!$C$6:$AD$33,28,FALSE),HLOOKUP(G$12,'LDN call distribution'!$C$6:$AD$33,28,FALSE)),0)) -> 1 | H21: =IF($C21=H$12,IF($E21="On-net",IF($D21="Local",2,1),1),IF(AND($D21="LDN",$E21="On-net"),INDEX('LDN call distribution'!$C$6:$AD$33,VLOOKUP($C21,'LDN call distribution'!$C$6:$AD$33,28,FALSE),HLOOKUP(H$12,'LDN call distribution'!$C$6:$AD$33,28,FALSE)),0)) -> 0 | I21: =IF($C21=I$12,IF($E21="On-net",IF($D21="Local",2,1),1),IF(AND($D21="LDN",$E21="On-net"),INDEX('LDN call distribution'!$C$6:$AD$33,VLOOKUP($C21,'LDN call distribution'!$C$6:$AD$33,28,FALSE),HLOOKUP(I$12,'LDN call distribution'!$C$6:$AD$33,28,FALSE)),0)) -> 0 | J21: =IF($C21=J$12,IF($E21="On-net",IF($D21="Local",2,1),1),IF(AND($D21="LDN",$E21="On-net"),INDEX('LDN call distribution'!$C$6:$AD$33,VLOOKUP($C21,'LDN call distribution'!$C$6:$AD$33,28,FALSE),HLOOKUP(J$12,'LDN call distribution'!$C$6:$AD$33,28,FALSE)),0)) -> 0 | K21: =IF($C21=K$12,IF($E21="On-net",IF($D21="Local",2,1),1),IF(AND($D21="LDN",$E21="On-net"),INDEX('LDN call distribution'!$C$6:$AD$33,VLOOKUP($C21,'LDN call distribution'!$C$6:$AD$33,28,FALSE),HLOOKUP(K$12,'LDN call distribution'!$C$6:$AD$33,28,FALSE)),0)) -> 0 | L21: =IF($C21=L$12,IF($E21="On-net",IF($D21="Local",2,1),1),IF(AND($D21="LDN",$E21="On-net"),INDEX('LDN call distribution'!$C$6:$AD$33,VLOOKUP($C21,'LDN call distribution'!$C$6:$AD$33,28,FALSE),HLOOKUP(L$12,'LDN call distribution'!$C$6:$AD$33,28,FALSE)),0)) -> 0 | M21: =IF($C21=M$12,IF($E21="On-net",IF($D21="Local",2,1),1),IF(AND($D21="LDN",$E21="On-net"),INDEX('LDN call distribution'!$C$6:$AD$33,VLOOKUP($C21,'LDN call distribution'!$C$6:$AD$33,28,FALSE),HLOOKUP(M$12,'LDN call distribution'!$C$6:$AD$33,28,FALSE)),0)) -> 0 | N21: =IF($C21=N$12,IF($E21="On-net",IF($D21="Local",2,1),1),IF(AND($D21="LDN",$E21="On-net"),INDEX('LDN call distribution'!$C$6:$AD$33,VLOOKUP($C21,'LDN call distribution'!$C$6:$AD$33,28,FALSE),HLOOKUP(N$12,'LDN call distribution'!$C$6:$AD$33,28,FALSE)),0)) -> 0 | O21: =IF($C21=O$12,IF($E21="On-net",IF($D21="Local",2,1),1),IF(AND($D21="LDN",$E21="On-net"),INDEX('LDN call distribution'!$C$6:$AD$33,VLOOKUP($C21,'LDN call distribution'!$C$6:$AD$33,28,FALSE),HLOOKUP(O$12,'LDN call distribution'!$C$6:$AD$33,28,FALSE)),0)) -> 0 | P21: =IF($C21=P$12,IF($E21="On-net",IF($D21="Local",2,1),1),IF(AND($D21="LDN",$E21="On-net"),INDEX('LDN call distribution'!$C$6:$AD$33,VLOOKUP($C21,'LDN call distribution'!$C$6:$AD$33,28,FALSE),HLOOKUP(P$12,'LDN call distribution'!$C$6:$AD$33,28,FALSE)),0)) -> 0 | Q21: =IF($C21=Q$12,IF($E21="On-net",IF($D21="Local",2,1),1),IF(AND($D21="LDN",$E21="On-net"),INDEX('LDN call distribution'!$C$6:$AD$33,VLOOKUP($C21,'LDN call distribution'!$C$6:$AD$33,28,FALSE),HLOOKUP(Q$12,'LDN call distribution'!$C$6:$AD$33,28,FALSE)),0)) -> 0 | R21: =IF($C21=R$12,IF($E21="On-net",IF($D21="Local",2,1),1),IF(AND($D21="LDN",$E21="On-net"),INDEX('LDN call distribution'!$C$6:$AD$33,VLOOKUP($C21,'LDN call distribution'!$C$6:$AD$33,28,FALSE),HLOOKUP(R$12,'LDN call distribution'!$C$6:$AD$33,28,FALSE)),0)) -> 0 | S21: =IF($C21=S$12,IF($E21="On-net",IF($D21="Local",2,1),1),IF(AND($D21="LDN",$E21="On-net"),INDEX('LDN call distribution'!$C$6:$AD$33,VLOOKUP($C21,'LDN call distribution'!$C$6:$AD$33,28,FALSE),HLOOKUP(S$12,'LDN call distribution'!$C$6:$AD$33,28,FALSE)),0)) -> 0 | T21: =IF($C21=T$12,IF($E21="On-net",IF($D21="Local",2,1),1),IF(AND($D21="LDN",$E21="On-net"),INDEX('LDN call distribution'!$C$6:$AD$33,VLOOKUP($C21,'LDN call distribution'!$C$6:$AD$33,28,FALSE),HLOOKUP(T$12,'LDN call distribution'!$C$6:$AD$33,28,FALSE)),0)) -> 0 | U21: =IF($C21=U$12,IF($E21="On-net",IF($D21="Local",2,1),1),IF(AND($D21="LDN",$E21="On-net"),INDEX('LDN call distribution'!$C$6:$AD$33,VLOOKUP($C21,'LDN call distribution'!$C$6:$AD$33,28,FALSE),HLOOKUP(U$12,'LDN call distribution'!$C$6:$AD$33,28,FALSE)),0)) -> 0 | V21: =IF($C21=V$12,IF($E21="On-net",IF($D21="Local",2,1),1),IF(AND($D21="LDN",$E21="On-net"),INDEX('LDN call distribution'!$C$6:$AD$33,VLOOKUP($C21,'LDN call distribution'!$C$6:$AD$33,28,FALSE),HLOOKUP(V$12,'LDN call distribution'!$C$6:$AD$33,28,FALSE)),0)) -> 0 | W21: =IF($C21=W$12,IF($E21="On-net",IF($D21="Local",2,1),1),IF(AND($D21="LDN",$E21="On-net"),INDEX('LDN call distribution'!$C$6:$AD$33,VLOOKUP($C21,'LDN call distribution'!$C$6:$AD$33,28,FALSE),HLOOKUP(W$12,'LDN call distribution'!$C$6:$AD$33,28,FALSE)),0)) -> 0 | X21: =IF($C21=X$12,IF($E21="On-net",IF($D21="Local",2,1),1),IF(AND($D21="LDN",$E21="On-net"),INDEX('LDN call distribution'!$C$6:$AD$33,VLOOKUP($C21,'LDN call distribution'!$C$6:$AD$33,28,FALSE),HLOOKUP(X$12,'LDN call distribution'!$C$6:$AD$33,28,FALSE)),0)) -> 0 | Y21: =IF($C21=Y$12,IF($E21="On-net",IF($D21="Local",2,1),1),IF(AND($D21="LDN",$E21="On-net"),INDEX('LDN call distribution'!$C$6:$AD$33,VLOOKUP($C21,'LDN call distribution'!$C$6:$AD$33,28,FALSE),HLOOKUP(Y$12,'LDN call distribution'!$C$6:$AD$33,28,FALSE)),0)) -> 0 | Z21: =IF($C21=Z$12,IF($E21="On-net",IF($D21="Local",2,1),1),IF(AND($D21="LDN",$E21="On-net"),INDEX('LDN call distribution'!$C$6:$AD$33,VLOOKUP($C21,'LDN call distribution'!$C$6:$AD$33,28,FALSE),HLOOKUP(Z$12,'LDN call distribution'!$C$6:$AD$33,28,FALSE)),0)) -> 0 | AA21: =IF($C21=AA$12,IF($E21="On-net",IF($D21="Local",2,1),1),IF(AND($D21="LDN",$E21="On-net"),INDEX('LDN call distribution'!$C$6:$AD$33,VLOOKUP($C21,'LDN call distribution'!$C$6:$AD$33,28,FALSE),HLOOKUP(AA$12,'LDN call distribution'!$C$6:$AD$33,28,FALSE)),0)) -> 0 | AB21: =IF($C21=AB$12,IF($E21="On-net",IF($D21="Local",2,1),1),IF(AND($D21="LDN",$E21="On-net"),INDEX('LDN call distribution'!$C$6:$AD$33,VLOOKUP($C21,'LDN call distribution'!$C$6:$AD$33,28,FALSE),HLOOKUP(AB$12,'LDN call distribution'!$C$6:$AD$33,28,FALSE)),0)) -> 0 | AC21: =IF($C21=AC$12,IF($E21="On-net",IF($D21="Local",2,1),1),IF(AND($D21="LDN",$E21="On-net"),INDEX('LDN call distribution'!$C$6:$AD$33,VLOOKUP($C21,'LDN call distribution'!$C$6:$AD$33,28,FALSE),HLOOKUP(AC$12,'LDN call distribution'!$C$6:$AD$33,28,FALSE)),0)) -> 0 | AD21: =IF($C21=AD$12,IF($E21="On-net",IF($D21="Local",2,1),1),IF(AND($D21="LDN",$E21="On-net"),INDEX('LDN call distribution'!$C$6:$AD$33,VLOOKUP($C21,'LDN call distribution'!$C$6:$AD$33,28,FALSE),HLOOKUP(AD$12,'LDN call distribution'!$C$6:$AD$33,28,FALSE)),0)) -> 0 | AE21: 1 | AF21: 1 | AG21: 1 | AH21: 1 | AI21: 1 | AJ21: 1 | AK21: 1 | AL21: 1 | AM21: 1 | AN21: 1 | AO21: 1 | AP21: 1 | AQ21: 1 | AR21: 1 | AS21: 1 | AT21: 1 | AU21: 1 | AV21: 1 | AW21: 1 | AX21: 1 | AY21: 1 | AZ21: 1 | BA21: 1 | BB21: 1 | BC21: =IF($E21&$D21="On-netLDN",INDEX('LDN call distribution'!$K$45:$AJ$50,VLOOKUP(BC$2,'LDN call distribution'!$K$45:$AJ$50,26,FALSE),HLOOKUP($C21,'LDN call distribution'!$K$45:$AJ$50,6,FALSE)),IF(ISERROR(VLOOKUP($C21,BC$3:BC$12,1,FALSE)),0,1)) -> 1 | BD21: =IF($E21&$D21="On-netLDN",INDEX('LDN call distribution'!$K$45:$AJ$50,VLOOKUP(BD$2,'LDN call distribution'!$K$45:$AJ$50,26,FALSE),HLOOKUP($C21,'LDN call distribution'!$K$45:$AJ$50,6,FALSE)),IF(ISERROR(VLOOKUP($C21,BD$3:BD$12,1,FALSE)),0,1)) -> 0 | BE21: =IF($E21&$D21="On-netLDN",INDEX('LDN call distribution'!$K$45:$AJ$50,VLOOKUP(BE$2,'LDN call distribution'!$K$45:$AJ$50,26,FALSE),HLOOKUP($C21,'LDN call distribution'!$K$45:$AJ$50,6,FALSE)),IF(ISERROR(VLOOKUP($C21,BE$3:BE$12,1,FALSE)),0,1)) -> 0 | BF21: 1 | BG21: 0 | BH21: 1 | BI21: 1 | BJ21: 1 | BK21: 1 | BL21: 1
C22: Amazonas | D22: LDN | E22: Outgoing | F22: Mobile - Mobile | G22: =IF($C22=G$12,IF($E22="On-net",IF($D22="Local",2,1),1),IF(AND($D22="LDN",$E22="On-net"),INDEX('LDN call distribution'!$C$6:$AD$33,VLOOKUP($C22,'LDN call distribution'!$C$6:$AD$33,28,FALSE),HLOOKUP(G$12,'LDN call distribution'!$C$6:$AD$33,28,FALSE)),0)) -> 1 | H22: =IF($C22=H$12,IF($E22="On-net",IF($D22="Local",2,1),1),IF(AND($D22="LDN",$E22="On-net"),INDEX('LDN call distribution'!$C$6:$AD$33,VLOOKUP($C22,'LDN call distribution'!$C$6:$AD$33,28,FALSE),HLOOKUP(H$12,'LDN call distribution'!$C$6:$AD$33,28,FALSE)),0)) -> 0 | I22: =IF($C22=I$12,IF($E22="On-net",IF($D22="Local",2,1),1),IF(AND($D22="LDN",$E22="On-net"),INDEX('LDN call distribution'!$C$6:$AD$33,VLOOKUP($C22,'LDN call distribution'!$C$6:$AD$33,28,FALSE),HLOOKUP(I$12,'LDN call distribution'!$C$6:$AD$33,28,FALSE)),0)) -> 0 | J22: =IF($C22=J$12,IF($E22="On-net",IF($D22="Local",2,1),1),IF(AND($D22="LDN",$E22="On-net"),INDEX('LDN call distribution'!$C$6:$AD$33,VLOOKUP($C22,'LDN call distribution'!$C$6:$AD$33,28,FALSE),HLOOKUP(J$12,'LDN call distribution'!$C$6:$AD$33,28,FALSE)),0)) -> 0 | K22: =IF($C22=K$12,IF($E22="On-net",IF($D22="Local",2,1),1),IF(AND($D22="LDN",$E22="On-net"),INDEX('LDN call distribution'!$C$6:$AD$33,VLOOKUP($C22,'LDN call distribution'!$C$6:$AD$33,28,FALSE),HLOOKUP(K$12,'LDN call distribution'!$C$6:$AD$33,28,FALSE)),0)) -> 0 | L22: =IF($C22=L$12,IF($E22="On-net",IF($D22="Local",2,1),1),IF(AND($D22="LDN",$E22="On-net"),INDEX('LDN call distribution'!$C$6:$AD$33,VLOOKUP($C22,'LDN call distribution'!$C$6:$AD$33,28,FALSE),HLOOKUP(L$12,'LDN call distribution'!$C$6:$AD$33,28,FALSE)),0)) -> 0 | M22: =IF($C22=M$12,IF($E22="On-net",IF($D22="Local",2,1),1),IF(AND($D22="LDN",$E22="On-net"),INDEX('LDN call distribution'!$C$6:$AD$33,VLOOKUP($C22,'LDN call distribution'!$C$6:$AD$33,28,FALSE),HLOOKUP(M$12,'LDN call distribution'!$C$6:$AD$33,28,FALSE)),0)) -> 0 | N22: =IF($C22=N$12,IF($E22="On-net",IF($D22="Local",2,1),1),IF(AND($D22="LDN",$E22="On-net"),INDEX('LDN call distribution'!$C$6:$AD$33,VLOOKUP($C22,'LDN call distribution'!$C$6:$AD$33,28,FALSE),HLOOKUP(N$12,'LDN call distribution'!$C$6:$AD$33,28,FALSE)),0)) -> 0 | O22: =IF($C22=O$12,IF($E22="On-net",IF($D22="Local",2,1),1),IF(AND($D22="LDN",$E22="On-net"),INDEX('LDN call distribution'!$C$6:$AD$33,VLOOKUP($C22,'LDN call distribution'!$C$6:$AD$33,28,FALSE),HLOOKUP(O$12,'LDN call distribution'!$C$6:$AD$33,28,FALSE)),0)) -> 0 | P22: =IF($C22=P$12,IF($E22="On-net",IF($D22="Local",2,1),1),IF(AND($D22="LDN",$E22="On-net"),INDEX('LDN call distribution'!$C$6:$AD$33,VLOOKUP($C22,'LDN call distribution'!$C$6:$AD$33,28,FALSE),HLOOKUP(P$12,'LDN call distribution'!$C$6:$AD$33,28,FALSE)),0)) -> 0 | Q22: =IF($C22=Q$12,IF($E22="On-net",IF($D22="Local",2,1),1),IF(AND($D22="LDN",$E22="On-net"),INDEX('LDN call distribution'!$C$6:$AD$33,VLOOKUP($C22,'LDN call distribution'!$C$6:$AD$33,28,FALSE),HLOOKUP(Q$12,'LDN call distribution'!$C$6:$AD$33,28,FALSE)),0)) -> 0 | R22: =IF($C22=R$12,IF($E22="On-net",IF($D22="Local",2,1),1),IF(AND($D22="LDN",$E22="On-net"),INDEX('LDN call distribution'!$C$6:$AD$33,VLOOKUP($C22,'LDN call distribution'!$C$6:$AD$33,28,FALSE),HLOOKUP(R$12,'LDN call distribution'!$C$6:$AD$33,28,FALSE)),0)) -> 0 | S22: =IF($C22=S$12,IF($E22="On-net",IF($D22="Local",2,1),1),IF(AND($D22="LDN",$E22="On-net"),INDEX('LDN call distribution'!$C$6:$AD$33,VLOOKUP($C22,'LDN call distribution'!$C$6:$AD$33,28,FALSE),HLOOKUP(S$12,'LDN call distribution'!$C$6:$AD$33,28,FALSE)),0)) -> 0 | T22: =IF($C22=T$12,IF($E22="On-net",IF($D22="Local",2,1),1),IF(AND($D22="LDN",$E22="On-net"),INDEX('LDN call distribution'!$C$6:$AD$33,VLOOKUP($C22,'LDN call distribution'!$C$6:$AD$33,28,FALSE),HLOOKUP(T$12,'LDN call distribution'!$C$6:$AD$33,28,FALSE)),0)) -> 0 | U22: =IF($C22=U$12,IF($E22="On-net",IF($D22="Local",2,1),1),IF(AND($D22="LDN",$E22="On-net"),INDEX('LDN call distribution'!$C$6:$AD$33,VLOOKUP($C22,'LDN call distribution'!$C$6:$AD$33,28,FALSE),HLOOKUP(U$12,'LDN call distribution'!$C$6:$AD$33,28,FALSE)),0)) -> 0 | V22: =IF($C22=V$12,IF($E22="On-net",IF($D22="Local",2,1),1),IF(AND($D22="LDN",$E22="On-net"),INDEX('LDN call distribution'!$C$6:$AD$33,VLOOKUP($C22,'LDN call distribution'!$C$6:$AD$33,28,FALSE),HLOOKUP(V$12,'LDN call distribution'!$C$6:$AD$33,28,FALSE)),0)) -> 0 | W22: =IF($C22=W$12,IF($E22="On-net",IF($D22="Local",2,1),1),IF(AND($D22="LDN",$E22="On-net"),INDEX('LDN call distribution'!$C$6:$AD$33,VLOOKUP($C22,'LDN call distribution'!$C$6:$AD$33,28,FALSE),HLOOKUP(W$12,'LDN call distribution'!$C$6:$AD$33,28,FALSE)),0)) -> 0 | X22: =IF($C22=X$12,IF($E22="On-net",IF($D22="Local",2,1),1),IF(AND($D22="LDN",$E22="On-net"),INDEX('LDN call distribution'!$C$6:$AD$33,VLOOKUP($C22,'LDN call distribution'!$C$6:$AD$33,28,FALSE),HLOOKUP(X$12,'LDN call distribution'!$C$6:$AD$33,28,FALSE)),0)) -> 0 | Y22: =IF($C22=Y$12,IF($E22="On-net",IF($D22="Local",2,1),1),IF(AND($D22="LDN",$E22="On-net"),INDEX('LDN call distribution'!$C$6:$AD$33,VLOOKUP($C22,'LDN call distribution'!$C$6:$AD$33,28,FALSE),HLOOKUP(Y$12,'LDN call distribution'!$C$6:$AD$33,28,FALSE)),0)) -> 0 | Z22: =IF($C22=Z$12,IF($E22="On-net",IF($D22="Local",2,1),1),IF(AND($D22="LDN",$E22="On-net"),INDEX('LDN call distribution'!$C$6:$AD$33,VLOOKUP($C22,'LDN call distribution'!$C$6:$AD$33,28,FALSE),HLOOKUP(Z$12,'LDN call distribution'!$C$6:$AD$33,28,FALSE)),0)) -> 0 | AA22: =IF($C22=AA$12,IF($E22="On-net",IF($D22="Local",2,1),1),IF(AND($D22="LDN",$E22="On-net"),INDEX('LDN call distribution'!$C$6:$AD$33,VLOOKUP($C22,'LDN call distribution'!$C$6:$AD$33,28,FALSE),HLOOKUP(AA$12,'LDN call distribution'!$C$6:$AD$33,28,FALSE)),0)) -> 0 | AB22: =IF($C22=AB$12,IF($E22="On-net",IF($D22="Local",2,1),1),IF(AND($D22="LDN",$E22="On-net"),INDEX('LDN call distribution'!$C$6:$AD$33,VLOOKUP($C22,'LDN call distribution'!$C$6:$AD$33,28,FALSE),HLOOKUP(AB$12,'LDN call distribution'!$C$6:$AD$33,28,FALSE)),0)) -> 0 | AC22: =IF($C22=AC$12,IF($E22="On-net",IF($D22="Local",2,1),1),IF(AND($D22="LDN",$E22="On-net"),INDEX('LDN call distribution'!$C$6:$AD$33,VLOOKUP($C22,'LDN call distribution'!$C$6:$AD$33,28,FALSE),HLOOKUP(AC$12,'LDN call distribution'!$C$6:$AD$33,28,FALSE)),0)) -> 0 | AD22: =IF($C22=AD$12,IF($E22="On-net",IF($D22="Local",2,1),1),IF(AND($D22="LDN",$E22="On-net"),INDEX('LDN call distribution'!$C$6:$AD$33,VLOOKUP($C22,'LDN call distribution'!$C$6:$AD$33,28,FALSE),HLOOKUP(AD$12,'LDN call distribution'!$C$6:$AD$33,28,FALSE)),0)) -> 0 | AE22: 1 | AF22: 1 | AG22: 1 | AH22: 1 | AI22: 1 | AJ22: 1 | AK22: 1 | AL22: 1 | AM22: 1 | AN22: 1 | AO22: 1 | AP22: 1 | AQ22: 1 | AR22: 1 | AS22: 1 | AT22: 1 | AU22: 1 | AV22: 1 | AW22: 1 | AX22: 1 | AY22: 1 | AZ22: 1 | BA22: 1 | BB22: 1 | BC22: =IF($E22&$D22="On-netLDN",INDEX('LDN call distribution'!$K$45:$AJ$50,VLOOKUP(BC$2,'LDN call distribution'!$K$45:$AJ$50,26,FALSE),HLOOKUP($C22,'LDN call distribution'!$K$45:$AJ$50,6,FALSE)),IF(ISERROR(VLOOKUP($C22,BC$3:BC$12,1,FALSE)),0,1)) -> 1 | BD22: =IF($E22&$D22="On-netLDN",INDEX('LDN call distribution'!$K$45:$AJ$50,VLOOKUP(BD$2,'LDN call distribution'!$K$45:$AJ$50,26,FALSE),HLOOKUP($C22,'LDN call distribution'!$K$45:$AJ$50,6,FALSE)),IF(ISERROR(VLOOKUP($C22,BD$3:BD$12,1,FALSE)),0,1)) -> 0 | BE22: =IF($E22&$D22="On-netLDN",INDEX('LDN call distribution'!$K$45:$AJ$50,VLOOKUP(BE$2,'LDN call distribution'!$K$45:$AJ$50,26,FALSE),HLOOKUP($C22,'LDN call distribution'!$K$45:$AJ$50,6,FALSE)),IF(ISERROR(VLOOKUP($C22,BE$3:BE$12,1,FALSE)),0,1)) -> 0 | BF22: 1 | BG22: 0 | BH22: 1 | BI22: 1 | BJ22: 1 | BK22: 1 | BL22: 1
C23: Amazonas | D23: Local | E23: Outgoing | F23: Mobile - Fixed | G23: =IF($C23=G$12,IF($E23="On-net",IF($D23="Local",2,1),1),IF(AND($D23="LDN",$E23="On-net"),INDEX('LDN call distribution'!$C$6:$AD$33,VLOOKUP($C23,'LDN call distribution'!$C$6:$AD$33,28,FALSE),HLOOKUP(G$12,'LDN call distribution'!$C$6:$AD$33,28,FALSE)),0)) -> 1 | H23: =IF($C23=H$12,IF($E23="On-net",IF($D23="Local",2,1),1),IF(AND($D23="LDN",$E23="On-net"),INDEX('LDN call distribution'!$C$6:$AD$33,VLOOKUP($C23,'LDN call distribution'!$C$6:$AD$33,28,FALSE),HLOOKUP(H$12,'LDN call distribution'!$C$6:$AD$33,28,FALSE)),0)) -> 0 | I23: =IF($C23=I$12,IF($E23="On-net",IF($D23="Local",2,1),1),IF(AND($D23="LDN",$E23="On-net"),INDEX('LDN call distribution'!$C$6:$AD$33,VLOOKUP($C23,'LDN call distribution'!$C$6:$AD$33,28,FALSE),HLOOKUP(I$12,'LDN call distribution'!$C$6:$AD$33,28,FALSE)),0)) -> 0 | J23: =IF($C23=J$12,IF($E23="On-net",IF($D23="Local",2,1),1),IF(AND($D23="LDN",$E23="On-net"),INDEX('LDN call distribution'!$C$6:$AD$33,VLOOKUP($C23,'LDN call distribution'!$C$6:$AD$33,28,FALSE),HLOOKUP(J$12,'LDN call distribution'!$C$6:$AD$33,28,FALSE)),0)) -> 0 | K23: =IF($C23=K$12,IF($E23="On-net",IF($D23="Local",2,1),1),IF(AND($D23="LDN",$E23="On-net"),INDEX('LDN call distribution'!$C$6:$AD$33,VLOOKUP($C23,'LDN call distribution'!$C$6:$AD$33,28,FALSE),HLOOKUP(K$12,'LDN call distribution'!$C$6:$AD$33,28,FALSE)),0)) -> 0 | L23: =IF($C23=L$12,IF($E23="On-net",IF($D23="Local",2,1),1),IF(AND($D23="LDN",$E23="On-net"),INDEX('LDN call distribution'!$C$6:$AD$33,VLOOKUP($C23,'LDN call distribution'!$C$6:$AD$33,28,FALSE),HLOOKUP(L$12,'LDN call distribution'!$C$6:$AD$33,28,FALSE)),0)) -> 0 | M23: =IF($C23=M$12,IF($E23="On-net",IF($D23="Local",2,1),1),IF(AND($D23="LDN",$E23="On-net"),INDEX('LDN call distribution'!$C$6:$AD$33,VLOOKUP($C23,'LDN call distribution'!$C$6:$AD$33,28,FALSE),HLOOKUP(M$12,'LDN call distribution'!$C$6:$AD$33,28,FALSE)),0)) -> 0 | N23: =IF($C23=N$12,IF($E23="On-net",IF($D23="Local",2,1),1),IF(AND($D23="LDN",$E23="On-net"),INDEX('LDN call distribution'!$C$6:$AD$33,VLOOKUP($C23,'LDN call distribution'!$C$6:$AD$33,28,FALSE),HLOOKUP(N$12,'LDN call distribution'!$C$6:$AD$33,28,FALSE)),0)) -> 0 | O23: =IF($C23=O$12,IF($E23="On-net",IF($D23="Local",2,1),1),IF(AND($D23="LDN",$E23="On-net"),INDEX('LDN call distribution'!$C$6:$AD$33,VLOOKUP($C23,'LDN call distribution'!$C$6:$AD$33,28,FALSE),HLOOKUP(O$12,'LDN call distribution'!$C$6:$AD$33,28,FALSE)),0)) -> 0 | P23: =IF($C23=P$12,IF($E23="On-net",IF($D23="Local",2,1),1),IF(AND($D23="LDN",$E23="On-net"),INDEX('LDN call distribution'!$C$6:$AD$33,VLOOKUP($C23,'LDN call distribution'!$C$6:$AD$33,28,FALSE),HLOOKUP(P$12,'LDN call distribution'!$C$6:$AD$33,28,FALSE)),0)) -> 0 | Q23: =IF($C23=Q$12,IF($E23="On-net",IF($D23="Local",2,1),1),IF(AND($D23="LDN",$E23="On-net"),INDEX('LDN call distribution'!$C$6:$AD$33,VLOOKUP($C23,'LDN call distribution'!$C$6:$AD$33,28,FALSE),HLOOKUP(Q$12,'LDN call distribution'!$C$6:$AD$33,28,FALSE)),0)) -> 0 | R23: =IF($C23=R$12,IF($E23="On-net",IF($D23="Local",2,1),1),IF(AND($D23="LDN",$E23="On-net"),INDEX('LDN call distribution'!$C$6:$AD$33,VLOOKUP($C23,'LDN call distribution'!$C$6:$AD$33,28,FALSE),HLOOKUP(R$12,'LDN call distribution'!$C$6:$AD$33,28,FALSE)),0)) -> 0 | S23: =IF($C23=S$12,IF($E23="On-net",IF($D23="Local",2,1),1),IF(AND($D23="LDN",$E23="On-net"),INDEX('LDN call distribution'!$C$6:$AD$33,VLOOKUP($C23,'LDN call distribution'!$C$6:$AD$33,28,FALSE),HLOOKUP(S$12,'LDN call distribution'!$C$6:$AD$33,28,FALSE)),0)) -> 0 | T23: =IF($C23=T$12,IF($E23="On-net",IF($D23="Local",2,1),1),IF(AND($D23="LDN",$E23="On-net"),INDEX('LDN call distribution'!$C$6:$AD$33,VLOOKUP($C23,'LDN call distribution'!$C$6:$AD$33,28,FALSE),HLOOKUP(T$12,'LDN call distribution'!$C$6:$AD$33,28,FALSE)),0)) -> 0 | U23: =IF($C23=U$12,IF($E23="On-net",IF($D23="Local",2,1),1),IF(AND($D23="LDN",$E23="On-net"),INDEX('LDN call distribution'!$C$6:$AD$33,VLOOKUP($C23,'LDN call distribution'!$C$6:$AD$33,28,FALSE),HLOOKUP(U$12,'LDN call distribution'!$C$6:$AD$33,28,FALSE)),0)) -> 0 | V23: =IF($C23=V$12,IF($E23="On-net",IF($D23="Local",2,1),1),IF(AND($D23="LDN",$E23="On-net"),INDEX('LDN call distribution'!$C$6:$AD$33,VLOOKUP($C23,'LDN call distribution'!$C$6:$AD$33,28,FALSE),HLOOKUP(V$12,'LDN call distribution'!$C$6:$AD$33,28,FALSE)),0)) -> 0 | W23: =IF($C23=W$12,IF($E23="On-net",IF($D23="Local",2,1),1),IF(AND($D23="LDN",$E23="On-net"),INDEX('LDN call distribution'!$C$6:$AD$33,VLOOKUP($C23,'LDN call distribution'!$C$6:$AD$33,28,FALSE),HLOOKUP(W$12,'LDN call distribution'!$C$6:$AD$33,28,FALSE)),0)) -> 0 | X23: =IF($C23=X$12,IF($E23="On-net",IF($D23="Local",2,1),1),IF(AND($D23="LDN",$E23="On-net"),INDEX('LDN call distribution'!$C$6:$AD$33,VLOOKUP($C23,'LDN call distribution'!$C$6:$AD$33,28,FALSE),HLOOKUP(X$12,'LDN call distribution'!$C$6:$AD$33,28,FALSE)),0)) -> 0 | Y23: =IF($C23=Y$12,IF($E23="On-net",IF($D23="Local",2,1),1),IF(AND($D23="LDN",$E23="On-net"),INDEX('LDN call distribution'!$C$6:$AD$33,VLOOKUP($C23,'LDN call distribution'!$C$6:$AD$33,28,FALSE),HLOOKUP(Y$12,'LDN call distribution'!$C$6:$AD$33,28,FALSE)),0)) -> 0 | Z23: =IF($C23=Z$12,IF($E23="On-net",IF($D23="Local",2,1),1),IF(AND($D23="LDN",$E23="On-net"),INDEX('LDN call distribution'!$C$6:$AD$33,VLOOKUP($C23,'LDN call distribution'!$C$6:$AD$33,28,FALSE),HLOOKUP(Z$12,'LDN call distribution'!$C$6:$AD$33,28,FALSE)),0)) -> 0 | AA23: =IF($C23=AA$12,IF($E23="On-net",IF($D23="Local",2,1),1),IF(AND($D23="LDN",$E23="On-net"),INDEX('LDN call distribution'!$C$6:$AD$33,VLOOKUP($C23,'LDN call distribution'!$C$6:$AD$33,28,FALSE),HLOOKUP(AA$12,'LDN call distribution'!$C$6:$AD$33,28,FALSE)),0)) -> 0 | AB23: =IF($C23=AB$12,IF($E23="On-net",IF($D23="Local",2,1),1),IF(AND($D23="LDN",$E23="On-net"),INDEX('LDN call distribution'!$C$6:$AD$33,VLOOKUP($C23,'LDN call distribution'!$C$6:$AD$33,28,FALSE),HLOOKUP(AB$12,'LDN call distribution'!$C$6:$AD$33,28,FALSE)),0)) -> 0 | AC23: =IF($C23=AC$12,IF($E23="On-net",IF($D23="Local",2,1),1),IF(AND($D23="LDN",$E23="On-net"),INDEX('LDN call distribution'!$C$6:$AD$33,VLOOKUP($C23,'LDN call distribution'!$C$6:$AD$33,28,FALSE),HLOOKUP(AC$12,'LDN call distribution'!$C$6:$AD$33,28,FALSE)),0)) -> 0 | AD23: =IF($C23=AD$12,IF($E23="On-net",IF($D23="Local",2,1),1),IF(AND($D23="LDN",$E23="On-net"),INDEX('LDN call distribution'!$C$6:$AD$33,VLOOKUP($C23,'LDN call distribution'!$C$6:$AD$33,28,FALSE),HLOOKUP(AD$12,'LDN call distribution'!$C$6:$AD$33,28,FALSE)),0)) -> 0 | AE23: 1 | AF23: 1 | AG23: 1 | AH23: 1 | AI23: 1 | AJ23: 1 | AK23: 1 | AL23: 1 | AM23: 1 | AN23: 1 | AO23: 1 | AP23: 1 | AQ23: 1 | AR23: 1 | AS23: 1 | AT23: 1 | AU23: 1 | AV23: 1 | AW23: 1 | AX23: 1 | AY23: 1 | AZ23: 1 | BA23: 1 | BB23: 1 | BC23: =IF($E23&$D23="On-netLDN",INDEX('LDN call distribution'!$K$45:$AJ$50,VLOOKUP(BC$2,'LDN call distribution'!$K$45:$AJ$50,26,FALSE),HLOOKUP($C23,'LDN call distribution'!$K$45:$AJ$50,6,FALSE)),IF(ISERROR(VLOOKUP($C23,BC$3:BC$12,1,FALSE)),0,1)) -> 1 | BD23: =IF($E23&$D23="On-netLDN",INDEX('LDN call distribution'!$K$45:$AJ$50,VLOOKUP(BD$2,'LDN call distribution'!$K$45:$AJ$50,26,FALSE),HLOOKUP($C23,'LDN call distribution'!$K$45:$AJ$50,6,FALSE)),IF(ISERROR(VLOOKUP($C23,BD$3:BD$12,1,FALSE)),0,1)) -> 0 | BE23: =IF($E23&$D23="On-netLDN",INDEX('LDN call distribution'!$K$45:$AJ$50,VLOOKUP(BE$2,'LDN call distribution'!$K$45:$AJ$50,26,FALSE),HLOOKUP($C23,'LDN call distribution'!$K$45:$AJ$50,6,FALSE)),IF(ISERROR(VLOOKUP($C23,BE$3:BE$12,1,FALSE)),0,1)) -> 0 | BF23: 1 | BG23: 0 | BH23: 1 | BI23: 1 | BJ23: 1 | BK23: 1 | BL23: 1
